Workbook

Sheet PI vs x
A1: Measurement | B1: Hall
A2: Type | B2: Off-axis
A4: Project | B4: ='10 y=-0.2'!B5 -> 504314
A5: PS serial no | B5: ='10 y=-0.2'!B7 -> 2410095
A7: Measurement date | B7: =LEFT('10 y=-0.2'!B4,10) -> 11-09-2024
C11: Nominal gap [mm] | D11: Encoder [counts] | E11: Encoder [mm] | F11: PI [T^2mm^3] | G11: y [mm] | H11: Encoder value at 10 mm gap:
B12: ='PI vs x'!$C$12 & "mm gap" -> 10mm gap | C12: ='10 y=-0.2'!B48 -> 10 | D12: ='10 y=-0.2'!$B$50 -> 19.6951 | E12: =D12-$H$12+10 -> 10.0017 | F12: ='10 y=-0.2'!$K$3 -> 10614.62827 | G12: -0.2 | H12: 19.6934
C13: =C12 -> 10 | D13: ='10 y=-0.1'!$B$50 -> 19.6951 | E13: =D13-$H$12+10 -> 10.0017 | F13: ='10 y=-0.1'!$K$3 -> 10611.51673 | G13: -0.1
C14: =C13 -> 10 | D14: ='10 y=0'!$B$50 -> 19.6951 | E14: 10.0017 | F14: ='10 y=0'!$K$3 -> 10611.99144 | G14: 0
C15: 10 | D15: ='10 y=0.1'!$B$50 -> 19.6951 | E15: 10.0017 | F15: ='10 y=0.1'!$K$3 -> 10612.17461 | G15: 0.1
C16: 10 | D16: ='10 y=0.2'!$B$50 -> 19.6951 | E16: 10.0017 | F16: ='10 y=0.2'!$K$3 -> 10613.84676 | G16: 0.2
B17: ='PI vs x'!$C$17 & "mm gap" -> mm gap

Sheet 10 y=-0.2
A1: =IF('DF raw data'!A1="","",'DF raw data'!A1) -> Number of header lines | B1: =IF('DF raw data'!B1="","",'DF raw data'!B1) -> 54 | C1: =IF('DF raw data'!C1="","",'DF raw data'!C1) ->  | D1: =IF('DF raw data'!D1="","",'DF raw data'!D1) ->  | F1: T_coeff | G1: -0.001 | H1: /degC | J1: IBy total | K1: =J1262*1000 -> -2.813545052 | L1: muTm | M1: =L1262*1000 -> 98.50430253 | R1: DF ref | S1: 1
A2: =IF('DF raw data'!A2="","",'DF raw data'!A2) -> Measured by | B2: =IF('DF raw data'!B2="","",'DF raw data'!B2) -> Danfysik | C2: =IF('DF raw data'!C2="","",'DF raw data'!C2) ->  | D2: =IF('DF raw data'!D2="","",'DF raw data'!D2) ->  | F2: Tcorr | G2: 20 | H2: degC | J2: JBy total | K2: =K1262 -> -14.55765685 | L2: muTm^2 | M2: =M1262 -> 32.33530313
A3: =IF('DF raw data'!A3="","",'DF raw data'!A3) -> Operator | B3: =IF('DF raw data'!B3="","",'DF raw data'!B3) -> PMHA | C3: =IF('DF raw data'!C3="","",'DF raw data'!C3) ->  | D3: =IF('DF raw data'!D3="","",'DF raw data'!D3) ->  | F3: Step | G3: =A63-A62 -> 0.5 | H3: mm | J3: PI total | K3: =N1262 -> 10614.62827 | L3: T^2mm^3
A4: =IF('DF raw data'!A4="","",'DF raw data'!A4) -> Data-time | B4: =IF('DF raw data'!B4="","",'DF raw data'!B4) -> 11-09-2024, 12:13:26 | C4: =IF('DF raw data'!C4="","",'DF raw data'!C4) ->  | D4: =IF('DF raw data'!D4="","",'DF raw data'!D4) -> 
A5: =IF('DF raw data'!A5="","",'DF raw data'!A5) -> Project | B5: =IF('DF raw data'!B5="","",'DF raw data'!B5) -> 504314 | C5: =IF('DF raw data'!C5="","",'DF raw data'!C5) ->  | D5: =IF('DF raw data'!D5="","",'DF raw data'!D5) -> 
A6: =IF('DF raw data'!A6="","",'DF raw data'!A6) -> Magnet type | B6: =IF('DF raw data'!B6="","",'DF raw data'!B6) -> Dipole | C6: =IF('DF raw data'!C6="","",'DF raw data'!C6) ->  | D6: =IF('DF raw data'!D6="","",'DF raw data'!D6) -> 
A7: =IF('DF raw data'!A7="","",'DF raw data'!A7) -> Magnet nr. | B7: =IF('DF raw data'!B7="","",'DF raw data'!B7) -> 2410095 | C7: =IF('DF raw data'!C7="","",'DF raw data'!C7) ->  | D7: =IF('DF raw data'!D7="","",'DF raw data'!D7) -> 
A8: =IF('DF raw data'!A8="","",'DF raw data'!A8) -> Meas. number | B8: =IF('DF raw data'!B8="","",'DF raw data'!B8) -> 408 | C8: =IF('DF raw data'!C8="","",'DF raw data'!C8) ->  | D8: =IF('DF raw data'!D8="","",'DF raw data'!D8) -> 
A9: =IF('DF raw data'!A9="","",'DF raw data'!A9) -> Add. info | B9: =IF('DF raw data'!B9="","",'DF raw data'!B9) -> Y-alignment scan 1) | C9: =IF('DF raw data'!C9="","",'DF raw data'!C9) ->  | D9: =IF('DF raw data'!D9="","",'DF raw data'!D9) -> 
A10: =IF('DF raw data'!A10="","",'DF raw data'!A10) -> Device | B10: =IF('DF raw data'!B10="","",'DF raw data'!B10) -> (HAL) HALL-PROBE | C10: =IF('DF raw data'!C10="","",'DF raw data'!C10) ->  | D10: =IF('DF raw data'!D10="","",'DF raw data'!D10) -> 
A11: =IF('DF raw data'!A11="","",'DF raw data'!A11) -> Goal | B11: =IF('DF raw data'!B11="","",'DF raw data'!B11) -> (AXI) AXis Integral (Line, EFB) | C11: =IF('DF raw data'!C11="","",'DF raw data'!C11) ->  | D11: =IF('DF raw data'!D11="","",'DF raw data'!D11) -> 
A12: =IF('DF raw data'!A12="","",'DF raw data'!A12) -> Power supply mode | B12: =IF('DF raw data'!B12="","",'DF raw data'!B12) -> (PM) Permanent Magnet (no MPS in use) | C12: =IF('DF raw data'!C12="","",'DF raw data'!C12) ->  | D12: =IF('DF raw data'!D12="","",'DF raw data'!D12) -> 
A13: =IF('DF raw data'!A13="","",'DF raw data'!A13) -> Data format | B13: =IF('DF raw data'!B13="","",'DF raw data'!B13) -> Raw data text file | C13: =IF('DF raw data'!C13="","",'DF raw data'!C13) ->  | D13: =IF('DF raw data'!D13="","",'DF raw data'!D13) -> 
A14: =IF('DF raw data'!A14="","",'DF raw data'!A14) -> Direction of the pos. x-axis | B14: =IF('DF raw data'!B14="","",'DF raw data'!B14) -> See test program | C14: =IF('DF raw data'!C14="","",'DF raw data'!C14) ->  | D14: =IF('DF raw data'!D14="","",'DF raw data'!D14) -> 
A15: =IF('DF raw data'!A15="","",'DF raw data'!A15) -> Direction of the pos. y-axis | B15: =IF('DF raw data'!B15="","",'DF raw data'!B15) -> Vertical up | C15: =IF('DF raw data'!C15="","",'DF raw data'!C15) ->  | D15: =IF('DF raw data'!D15="","",'DF raw data'!D15) -> 
A16: =IF('DF raw data'!A16="","",'DF raw data'!A16) -> Direction of the pos. z-axis | B16: =IF('DF raw data'!B16="","",'DF raw data'!B16) -> See test program | C16: =IF('DF raw data'!C16="","",'DF raw data'!C16) ->  | D16: =IF('DF raw data'!D16="","",'DF raw data'!D16) -> 
A17: =IF('DF raw data'!A17="","",'DF raw data'!A17) -> Mapper type | B17: =IF('DF raw data'!B17="","",'DF raw data'!B17) -> Precision Hall Mapper | C17: =IF('DF raw data'!C17="","",'DF raw data'!C17) ->  | D17: =IF('DF raw data'!D17="","",'DF raw data'!D17) -> 
A18: =IF('DF raw data'!A18="","",'DF raw data'!A18) -> Mapper Danfysik Reg. Number | B18: =IF('DF raw data'!B18="","",'DF raw data'!B18) -> 2033-D (mapper 1) | C18: =IF('DF raw data'!C18="","",'DF raw data'!C18) ->  | D18: =IF('DF raw data'!D18="","",'DF raw data'!D18) -> 
A19: =IF('DF raw data'!A19="","",'DF raw data'!A19) -> Measurement consept | B19: =IF('DF raw data'!B19="","",'DF raw data'!B19) -> Square line grid | C19: =IF('DF raw data'!C19="","",'DF raw data'!C19) ->  | D19: =IF('DF raw data'!D19="","",'DF raw data'!D19) -> 
A20: =IF('DF raw data'!A20="","",'DF raw data'!A20) -> Mode | B20: =IF('DF raw data'!B20="","",'DF raw data'!B20) -> On-the-fly measurement | C20: =IF('DF raw data'!C20="","",'DF raw data'!C20) ->  | D20: =IF('DF raw data'!D20="","",'DF raw data'!D20) -> 
A21: =IF('DF raw data'!A21="","",'DF raw data'!A21) ->  | B21: =IF('DF raw data'!B21="","",'DF raw data'!B21) ->  | C21: =IF('DF raw data'!C21="","",'DF raw data'!C21) ->  | D21: =IF('DF raw data'!D21="","",'DF raw data'!D21) -> 
A22: =IF('DF raw data'!A22="","",'DF raw data'!A22) -> Probe Name | B22: =IF('DF raw data'!B22="","",'DF raw data'!B22) -> ID12_By | C22: =IF('DF raw data'!C22="","",'DF raw data'!C22) ->  | D22: =IF('DF raw data'!D22="","",'DF raw data'!D22) -> 
A23: =IF('DF raw data'!A23="","",'DF raw data'!A23) -> Probe Type | B23: =IF('DF raw data'!B23="","",'DF raw data'!B23) -> DF_ID_3D_Bxyz | C23: =IF('DF raw data'!C23="","",'DF raw data'!C23) ->  | D23: =IF('DF raw data'!D23="","",'DF raw data'!D23) -> 
A24: =IF('DF raw data'!A24="","",'DF raw data'!A24) -> Probe Danfysik Reg. Number | B24: =IF('DF raw data'!B24="","",'DF raw data'!B24) -> 2277 | C24: =IF('DF raw data'!C24="","",'DF raw data'!C24) ->  | D24: =IF('DF raw data'!D24="","",'DF raw data'!D24) -> 
A25: =IF('DF raw data'!A25="","",'DF raw data'!A25) -> Probe Axis | B25: =IF('DF raw data'!B25="","",'DF raw data'!B25) -> By | C25: =IF('DF raw data'!C25="","",'DF raw data'!C25) ->  | D25: =IF('DF raw data'!D25="","",'DF raw data'!D25) -> 
A26: =IF('DF raw data'!A26="","",'DF raw data'!A26) -> Probe Current Supply | B26: =IF('DF raw data'!B26="","",'DF raw data'!B26) -> 1825-D | C26: =IF('DF raw data'!C26="","",'DF raw data'!C26) ->  | D26: =IF('DF raw data'!D26="","",'DF raw data'!D26) -> 
A27: =IF('DF raw data'!A27="","",'DF raw data'!A27) -> Probe Gain Correction | B27: =IF('DF raw data'!B27="","",'DF raw data'!B27) -> 0.99606 | C27: =IF('DF raw data'!C27="","",'DF raw data'!C27) ->  | D27: =IF('DF raw data'!D27="","",'DF raw data'!D27) -> 
A28: =IF('DF raw data'!A28="","",'DF raw data'!A28) -> Probe Offset Correction | B28: =IF('DF raw data'!B28="","",'DF raw data'!B28) -> 0.0027673 | C28: =IF('DF raw data'!C28="","",'DF raw data'!C28) ->  | D28: =IF('DF raw data'!D28="","",'DF raw data'!D28) -> 
A29: =IF('DF raw data'!A29="","",'DF raw data'!A29) -> DVM Number | B29: =IF('DF raw data'!B29="","",'DF raw data'!B29) -> 2 | C29: =IF('DF raw data'!C29="","",'DF raw data'!C29) ->  | D29: =IF('DF raw data'!D29="","",'DF raw data'!D29) -> 
A30: =IF('DF raw data'!A30="","",'DF raw data'!A30) -> DVM Type | B30: =IF('DF raw data'!B30="","",'DF raw data'!B30) -> K2701 | C30: =IF('DF raw data'!C30="","",'DF raw data'!C30) ->  | D30: =IF('DF raw data'!D30="","",'DF raw data'!D30) -> 
A31: =IF('DF raw data'!A31="","",'DF raw data'!A31) -> DVM Danfysik Reg. Number | B31: =IF('DF raw data'!B31="","",'DF raw data'!B31) -> 1743-D | C31: =IF('DF raw data'!C31="","",'DF raw data'!C31) ->  | D31: =IF('DF raw data'!D31="","",'DF raw data'!D31) -> 
A32: =IF('DF raw data'!A32="","",'DF raw data'!A32) -> Probe Name | B32: =IF('DF raw data'!B32="","",'DF raw data'!B32) -> ID12_Bx | C32: =IF('DF raw data'!C32="","",'DF raw data'!C32) ->  | D32: =IF('DF raw data'!D32="","",'DF raw data'!D32) -> 
A33: =IF('DF raw data'!A33="","",'DF raw data'!A33) -> Probe Type | B33: =IF('DF raw data'!B33="","",'DF raw data'!B33) -> DF_ID_3D_Bxyz | C33: =IF('DF raw data'!C33="","",'DF raw data'!C33) ->  | D33: =IF('DF raw data'!D33="","",'DF raw data'!D33) -> 
A34: =IF('DF raw data'!A34="","",'DF raw data'!A34) -> Probe Danfysik Reg. Number | B34: =IF('DF raw data'!B34="","",'DF raw data'!B34) -> 2277 | C34: =IF('DF raw data'!C34="","",'DF raw data'!C34) ->  | D34: =IF('DF raw data'!D34="","",'DF raw data'!D34) -> 
A35: =IF('DF raw data'!A35="","",'DF raw data'!A35) -> Probe Axis | B35: =IF('DF raw data'!B35="","",'DF raw data'!B35) -> Bx | C35: =IF('DF raw data'!C35="","",'DF raw data'!C35) ->  | D35: =IF('DF raw data'!D35="","",'DF raw data'!D35) -> 
A36: =IF('DF raw data'!A36="","",'DF raw data'!A36) -> Probe Current Supply | B36: =IF('DF raw data'!B36="","",'DF raw data'!B36) -> 1825-D | C36: =IF('DF raw data'!C36="","",'DF raw data'!C36) ->  | D36: =IF('DF raw data'!D36="","",'DF raw data'!D36) -> 
A37: =IF('DF raw data'!A37="","",'DF raw data'!A37) -> Probe Gain Correction | B37: =IF('DF raw data'!B37="","",'DF raw data'!B37) -> 1 | C37: =IF('DF raw data'!C37="","",'DF raw data'!C37) ->  | D37: =IF('DF raw data'!D37="","",'DF raw data'!D37) -> 
A38: =IF('DF raw data'!A38="","",'DF raw data'!A38) -> Probe Offset Correction | B38: =IF('DF raw data'!B38="","",'DF raw data'!B38) -> -0.17543 | C38: =IF('DF raw data'!C38="","",'DF raw data'!C38) ->  | D38: =IF('DF raw data'!D38="","",'DF raw data'!D38) -> 
A39: =IF('DF raw data'!A39="","",'DF raw data'!A39) -> DVM Number | B39: =IF('DF raw data'!B39="","",'DF raw data'!B39) -> 3 | C39: =IF('DF raw data'!C39="","",'DF raw data'!C39) ->  | D39: =IF('DF raw data'!D39="","",'DF raw data'!D39) -> 
A40: =IF('DF raw data'!A40="","",'DF raw data'!A40) -> DVM Type | B40: =IF('DF raw data'!B40="","",'DF raw data'!B40) -> K2701 | C40: =IF('DF raw data'!C40="","",'DF raw data'!C40) ->  | D40: =IF('DF raw data'!D40="","",'DF raw data'!D40) -> 
A41: =IF('DF raw data'!A41="","",'DF raw data'!A41) -> DVM Danfysik Reg. Number | B41: =IF('DF raw data'!B41="","",'DF raw data'!B41) -> 1744-D | C41: =IF('DF raw data'!C41="","",'DF raw data'!C41) ->  | D41: =IF('DF raw data'!D41="","",'DF raw data'!D41) -> 
A42: =IF('DF raw data'!A42="","",'DF raw data'!A42) -> Probe Name | B42: =IF('DF raw data'!B42="","",'DF raw data'!B42) -> ID12_Bz | C42: =IF('DF raw data'!C42="","",'DF raw data'!C42) ->  | D42: =IF('DF raw data'!D42="","",'DF raw data'!D42) -> 
A43: =IF('DF raw data'!A43="","",'DF raw data'!A43) -> Probe Type | B43: =IF('DF raw data'!B43="","",'DF raw data'!B43) -> DF_ID_3D_Bxyz | C43: =IF('DF raw data'!C43="","",'DF raw data'!C43) ->  | D43: =IF('DF raw data'!D43="","",'DF raw data'!D43) -> 
A44: =IF('DF raw data'!A44="","",'DF raw data'!A44) -> Probe Danfysik Reg. Number | B44: =IF('DF raw data'!B44="","",'DF raw data'!B44) -> 2277 | C44: =IF('DF raw data'!C44="","",'DF raw data'!C44) ->  | D44: =IF('DF raw data'!D44="","",'DF raw data'!D44) -> 
A45: =IF('DF raw data'!A45="","",'DF raw data'!A45) -> Probe Axis | B45: =IF('DF raw data'!B45="","",'DF raw data'!B45) -> Bz | C45: =IF('DF raw data'!C45="","",'DF raw data'!C45) ->  | D45: =IF('DF raw data'!D45="","",'DF raw data'!D45) -> 
A46: =IF('DF raw data'!A46="","",'DF raw data'!A46) -> Probe Current Supply | B46: =IF('DF raw data'!B46="","",'DF raw data'!B46) -> 1825-D | C46: =IF('DF raw data'!C46="","",'DF raw data'!C46) ->  | D46: =IF('DF raw data'!D46="","",'DF raw data'!D46) -> 
A47: =IF('DF raw data'!A47="","",'DF raw data'!A47) -> Probe Gain Correction | B47: =IF('DF raw data'!B47="","",'DF raw data'!B47) -> 1 | C47: =IF('DF raw data'!C47="","",'DF raw data'!C47) ->  | D47: =IF('DF raw data'!D47="","",'DF raw data'!D47) -> 
A48: =IF('DF raw data'!A53="","",'DF raw data'!A53) -> PS-Gap: | B48: =IF('DF raw data'!B53="","",'DF raw data'!B53) -> 10 | C48: =IF('DF raw data'!C53="","",'DF raw data'!C53) ->  | D48: =IF('DF raw data'!D53="","",'DF raw data'!D53) -> 
A49: =IF('DF raw data'!A54="","",'DF raw data'!A54) -> PS-Temperature: | B49: =IF('DF raw data'!B54="","",'DF raw data'!B54) -> 24 | C49: =IF('DF raw data'!C54="","",'DF raw data'!C54) ->  | D49: =IF('DF raw data'!D54="","",'DF raw data'!D54) -> 
A50: =IF('DF raw data'!A55="","",'DF raw data'!A55) -> PS-Encoder: | B50: =IF('DF raw data'!B55="","",'DF raw data'!B55) -> 19.6951 | C50: =IF('DF raw data'!C55="","",'DF raw data'!C55) ->  | D50: =IF('DF raw data'!D55="","",'DF raw data'!D55) -> 
A51: =IF('DF raw data'!A56="","",'DF raw data'!A56) ->  | B51: =IF('DF raw data'!B56="","",'DF raw data'!B56) ->  | C51: =IF('DF raw data'!C56="","",'DF raw data'!C56) ->  | D51: =IF('DF raw data'!D56="","",'DF raw data'!D56) -> 
A52: =IF('DF raw data'!A57="","",'DF raw data'!A57) -> Monitor-Index | B52: =IF('DF raw data'!B57="","",'DF raw data'!B57) -> [1,1,4] | C52: =IF('DF raw data'!C57="","",'DF raw data'!C57) ->  | D52: =IF('DF raw data'!D57="","",'DF raw data'!D57) -> 
A53: =IF('DF raw data'!A58="","",'DF raw data'!A58) ->  | B53: =IF('DF raw data'!B58="","",'DF raw data'!B58) ->  | C53: =IF('DF raw data'!C58="","",'DF raw data'!C58) ->  | D53: =IF('DF raw data'!D58="","",'DF raw data'!D58) -> 
A54: =IF('DF raw data'!A59="","",'DF raw data'!A59) -> Time [s] | B54: =IF('DF raw data'!B59="","",'DF raw data'!B59) -> Y [mm] | C54: =IF('DF raw data'!C59="","",'DF raw data'!C59) -> X [mm] | D54: =IF('DF raw data'!D59="","",'DF raw data'!D59) -> Nominal current [A]
A55: =IF('DF raw data'!A60="","",'DF raw data'!A60) ->  | B55: =IF('DF raw data'!B60="","",'DF raw data'!B60) ->  | C55: =IF('DF raw data'!C60="","",'DF raw data'!C60) ->  | D55: =IF('DF raw data'!D60="","",'DF raw data'!D60) -> 
A56: =IF('DF raw data'!A61="","",'DF raw data'!A61) -> 208.7 | B56: =IF('DF raw data'!B61="","",'DF raw data'!B61) -> 31.56 | C56: =IF('DF raw data'!C61="","",'DF raw data'!C61) -> 301.8 | D56: =IF('DF raw data'!D61="","",'DF raw data'!D61) -> 0
A57: =IF('DF raw data'!A62="","",'DF raw data'!A62) ->  | B57: =IF('DF raw data'!B62="","",'DF raw data'!B62) ->  | C57: =IF('DF raw data'!C62="","",'DF raw data'!C62) ->  | D57: =IF('DF raw data'!D62="","",'DF raw data'!D62) -> 
A58: =IF('DF raw data'!A63="","",'DF raw data'!A63) -> Measurement-Index | B58: =IF('DF raw data'!B63="","",'DF raw data'!B63) -> [1,1,1201,2] | C58: =IF('DF raw data'!C63="","",'DF raw data'!C63) ->  | D58: =IF('DF raw data'!D63="","",'DF raw data'!D63) -> 
A59: =IF('DF raw data'!A64="","",'DF raw data'!A64) ->  | B59: =IF('DF raw data'!B64="","",'DF raw data'!B64) ->  | C59: =IF('DF raw data'!C64="","",'DF raw data'!C64) ->  | D59: =IF('DF raw data'!D64="","",'DF raw data'!D64) -> 
A60: =IF('DF raw data'!A65="","",'DF raw data'!A65) -> Z [mm] | B60: =IF('DF raw data'!B65="","",'DF raw data'!B65) -> By [T] | C60: =IF('DF raw data'!C65="","",'DF raw data'!C65) -> Bx [T] | D60: =IF('DF raw data'!D65="","",'DF raw data'!D65) -> Bz [T] | F60: By_corr | G60: Bx_corr | H60: Bz_corr | J60: Iy | K60: Jy | L60: Ix | M60: Jx | N60: PI
A62: =IF('DF raw data'!A67="","",'DF raw data'!A67) -> -300 | B62: =IF('DF raw data'!B67="","",'DF raw data'!B67) -> -6.41167e-06 | C62: =IF('DF raw data'!C67="","",'DF raw data'!C67) -> 0.000234569 | D62: =IF('DF raw data'!D67="","",'DF raw data'!D67) -> -1.36481e-05 | F62: =(1-$G$1*($B$49))*B62 -> -6.56555008e-06 | G62: =(1-$G$1*($B$49-$G$2))*C62 -> 0.000235507276 | H62: =(1-$G$1*($B$49-$G$2))*D62 -> -1.37026924e-05 | J62: =F62*$G$3 -> -3.28277504e-06 | K62: =J62*$G$3 -> -1.64138752e-06 | L62: =G62*$G$3 -> 0.000117753638 | M62: =L62*$G$3 -> 5.8876819e-05 | N62: =(J62^2+L62^2)*$G$3 -> 6.938347937e-09
A63: =IF('DF raw data'!A68="","",'DF raw data'!A68) -> -299.5 | B63: =IF('DF raw data'!B68="","",'DF raw data'!B68) -> 1.98052e-06 | C63: =IF('DF raw data'!C68="","",'DF raw data'!C68) -> 0.000240585 | D63: =IF('DF raw data'!D68="","",'DF raw data'!D68) -> -1.41377e-05 | F63: =(1-$G$1*($B$49-$G$2))*B63 -> 1.98844208e-06 | G63: =(1-$G$1*($B$49-$G$2))*C63 -> 0.00024154734 | H63: -1.41942508e-05 | J63: =F63*$G$3+J62 -> -2.288554e-06 | K63: =J63*$G$3+K62 -> -2.78566452e-06 | L63: =G63*$G$3+L62 -> 0.000238527308 | M63: =L63*$G$3+M62 -> 0.000178140473 | N63: =(J63^2+L63^2)*$G$3+N62 -> 3.538860501e-08
A64: =IF('DF raw data'!A69="","",'DF raw data'!A69) -> -299 | B64: =IF('DF raw data'!B69="","",'DF raw data'!B69) -> -8.07639e-06 | C64: =IF('DF raw data'!C69="","",'DF raw data'!C69) -> 0.000248568 | D64: =IF('DF raw data'!D69="","",'DF raw data'!D69) -> -1.46154e-05 | F64: =(1-$G$1*($B$49-$G$2))*B64 -> -8.10869556e-06 | G64: 0.000249562272 | H64: -1.46738616e-05 | J64: =F64*$G$3+J63 -> -6.34290178e-06 | K64: =J64*$G$3+K63 -> -5.95711541e-06 | L64: =G64*$G$3+L63 -> 0.000363308444 | M64: =L64*$G$3+M63 -> 0.000359794695 | N64: =(J64^2+L64^2)*$G$3+N63 -> 1.01405234e-07
A65: =IF('DF raw data'!A70="","",'DF raw data'!A70) -> -298.5 | B65: =IF('DF raw data'!B70="","",'DF raw data'!B70) -> -6.85931e-06 | C65: =IF('DF raw data'!C70="","",'DF raw data'!C70) -> 0.000252361 | D65: =IF('DF raw data'!D70="","",'DF raw data'!D70) -> -1.44098e-05 | F65: -6.88674724e-06 | G65: 0.000253370444 | H65: -1.44674392e-05 | J65: -9.7862754e-06 | K65: -1.085025311e-05 | L65: 0.000489993666 | M65: 0.000604791528 | N65: 2.215000159e-07
A66: =IF('DF raw data'!A71="","",'DF raw data'!A71) -> -298 | B66: =IF('DF raw data'!B71="","",'DF raw data'!B71) -> -4.55358e-06 | C66: =IF('DF raw data'!C71="","",'DF raw data'!C71) -> 0.000250914 | D66: =IF('DF raw data'!D71="","",'DF raw data'!D71) -> -1.39646e-05 | F66: -4.57179432e-06 | G66: 0.000251917656 | H66: -1.40204584e-05 | J66: -1.207217256e-05 | K66: -1.688633939e-05 | L66: 0.000615952494 | M66: 0.000912767775 | N66: 4.11271622e-07
A67: =IF('DF raw data'!A72="","",'DF raw data'!A72) -> -297.5 | B67: =IF('DF raw data'!B72="","",'DF raw data'!B72) -> -5.0023e-06 | C67: =IF('DF raw data'!C72="","",'DF raw data'!C72) -> 0.000248052 | D67: =IF('DF raw data'!D72="","",'DF raw data'!D72) -> -1.36558e-05 | F67: -5.0223092e-06 | G67: 0.000249044208 | H67: -1.37104232e-05 | J67: -1.458332716e-05 | K67: -2.417800297e-05 | L67: 0.000740474598 | M67: 0.001283005074 | N67: 6.855292739e-07
A68: =IF('DF raw data'!A73="","",'DF raw data'!A73) -> -297 | B68: =IF('DF raw data'!B73="","",'DF raw data'!B73) -> -2.24759e-06 | C68: =IF('DF raw data'!C73="","",'DF raw data'!C73) -> 0.000249563 | D68: =IF('DF raw data'!D73="","",'DF raw data'!D73) -> -1.39305e-05 | F68: -2.25658036e-06 | G68: 0.000250561252 | H68: -1.3986222e-05 | J68: -1.571161734e-05 | K68: -3.203381164e-05 | L68: 0.000865755224 | M68: 0.001715882686 | N68: 1.060418755e-06
A69: =IF('DF raw data'!A74="","",'DF raw data'!A74) -> -296.5 | B69: =IF('DF raw data'!B74="","",'DF raw data'!B74) -> 8.19455e-06 | C69: =IF('DF raw data'!C74="","",'DF raw data'!C74) -> 0.000254619 | D69: =IF('DF raw data'!D74="","",'DF raw data'!D74) -> -1.48499e-05 | F69: 8.2273282e-06 | G69: 0.000255637476 | H69: -1.49092996e-05 | J69: -1.159795324e-05 | K69: -3.783278826e-05 | L69: 0.000993573962 | M69: 0.002212669667 | N69: 1.554080621e-06
A70: =IF('DF raw data'!A75="","",'DF raw data'!A75) -> -296 | B70: =IF('DF raw data'!B75="","",'DF raw data'!B75) -> -1.04463e-05 | C70: =IF('DF raw data'!C75="","",'DF raw data'!C75) -> 0.000255687 | D70: =IF('DF raw data'!D75="","",'DF raw data'!D75) -> -1.50134e-05 | F70: -1.04880852e-05 | G70: 0.000256709748 | H70: -1.50734536e-05 | J70: -1.684199584e-05 | K70: -4.625378618e-05 | L70: 0.001121928836 | M70: 0.002773634085 | N70: 2.183584603e-06
A71: =IF('DF raw data'!A76="","",'DF raw data'!A76) -> -295.5 | B71: =IF('DF raw data'!B76="","",'DF raw data'!B76) -> -6.34706e-06 | C71: =IF('DF raw data'!C76="","",'DF raw data'!C76) -> 0.00025526 | D71: =IF('DF raw data'!D76="","",'DF raw data'!D76) -> -1.41117e-05 | F71: -6.37244824e-06 | G71: 0.00025628104 | H71: -1.41681468e-05 | J71: -2.002821996e-05 | K71: -5.626789616e-05 | L71: 0.001250069356 | M71: 0.003398668763 | N71: 2.965121866e-06
A72: =IF('DF raw data'!A77="","",'DF raw data'!A77) -> -295 | B72: =IF('DF raw data'!B77="","",'DF raw data'!B77) -> -3.40082e-06 | C72: =IF('DF raw data'!C77="","",'DF raw data'!C77) -> 0.000268818 | D72: =IF('DF raw data'!D77="","",'DF raw data'!D77) -> -1.35802e-05 | F72: -3.41442328e-06 | G72: 0.000269893272 | H72: -1.36345208e-05 | J72: -2.17354316e-05 | K72: -6.713561196e-05 | L72: 0.001385015992 | M72: 0.004091176759 | N72: 3.924492729e-06
A73: =IF('DF raw data'!A78="","",'DF raw data'!A78) -> -294.5 | B73: =IF('DF raw data'!B78="","",'DF raw data'!B78) -> 5.05524e-06 | C73: =IF('DF raw data'!C78="","",'DF raw data'!C78) -> 0.000274875 | D73: =IF('DF raw data'!D78="","",'DF raw data'!D78) -> -1.41821e-05 | F73: 5.07546096e-06 | G73: 0.0002759745 | H73: -1.42388284e-05 | J73: -1.919770112e-05 | K73: -7.673446252e-05 | L73: 0.001523003242 | M73: 0.00485267838 | N73: 5.084446443e-06
A74: =IF('DF raw data'!A79="","",'DF raw data'!A79) -> -294 | B74: =IF('DF raw data'!B79="","",'DF raw data'!B79) -> -1.28617e-06 | C74: =IF('DF raw data'!C79="","",'DF raw data'!C79) -> 0.000259521 | D74: =IF('DF raw data'!D79="","",'DF raw data'!D79) -> -1.46031e-05 | F74: -1.29131468e-06 | G74: 0.000260559084 | H74: -1.46615124e-05 | J74: -1.984335846e-05 | K74: -8.665614175e-05 | L74: 0.001653282784 | M74: 0.005679319772 | N74: 6.451315304e-06
A75: =IF('DF raw data'!A80="","",'DF raw data'!A80) -> -293.5 | B75: =IF('DF raw data'!B80="","",'DF raw data'!B80) -> -8.07664e-06 | C75: =IF('DF raw data'!C80="","",'DF raw data'!C80) -> 0.000252214 | D75: =IF('DF raw data'!D80="","",'DF raw data'!D80) -> -1.42178e-05 | F75: -8.10894656e-06 | G75: 0.000253222856 | H75: -1.42746712e-05 | J75: -2.389783174e-05 | K75: -9.860505762e-05 | L75: 0.001779894212 | M75: 0.006569266878 | N75: 8.03561256e-06
A76: =IF('DF raw data'!A81="","",'DF raw data'!A81) -> -293 | B76: =IF('DF raw data'!B81="","",'DF raw data'!B81) -> 6.08031e-06 | C76: =IF('DF raw data'!C81="","",'DF raw data'!C81) -> 0.000263925 | D76: =IF('DF raw data'!D81="","",'DF raw data'!D81) -> -1.40229e-05 | F76: 6.10463124e-06 | G76: 0.0002649807 | H76: -1.40789916e-05 | J76: -2.084551612e-05 | K76: -0.0001090278157 | L76: 0.001912384562 | M76: 0.007525459159 | N76: 9.864437184e-06
A77: =IF('DF raw data'!A82="","",'DF raw data'!A82) -> -292.5 | B77: =IF('DF raw data'!B82="","",'DF raw data'!B82) -> -2.24737e-06 | C77: =IF('DF raw data'!C82="","",'DF raw data'!C82) -> 0.000257299 | D77: =IF('DF raw data'!D82="","",'DF raw data'!D82) -> -1.42573e-05 | F77: -2.25635948e-06 | G77: 0.000258328196 | H77: -1.43143292e-05 | J77: -2.197369586e-05 | K77: -0.0001200146636 | L77: 0.00204154866 | M77: 0.008546233489 | N77: 1.194863907e-05
A78: =IF('DF raw data'!A83="","",'DF raw data'!A83) -> -292 | B78: =IF('DF raw data'!B83="","",'DF raw data'!B83) -> 1.53215e-06 | C78: =IF('DF raw data'!C83="","",'DF raw data'!C83) -> 0.000255327 | D78: =IF('DF raw data'!D83="","",'DF raw data'!D83) -> -1.43722e-05 | F78: 1.5382786e-06 | G78: 0.000256348308 | H78: -1.44296888e-05 | J78: -2.120455656e-05 | K78: -0.0001306169419 | L78: 0.002169722814 | M78: 0.009631094896 | N78: 1.430271243e-05
A79: =IF('DF raw data'!A84="","",'DF raw data'!A84) -> -291.5 | B79: =IF('DF raw data'!B84="","",'DF raw data'!B84) -> 9.59944e-07 | C79: =IF('DF raw data'!C84="","",'DF raw data'!C84) -> 0.000251503 | D79: =IF('DF raw data'!D84="","",'DF raw data'!D84) -> -2.08045e-05 | F79: 9.63783776e-07 | G79: 0.000252509012 | H79: -2.0887718e-05 | J79: -2.072266467e-05 | K79: -0.0001409782742 | L79: 0.00229597732 | M79: 0.01077908356 | N79: 1.693868307e-05
A80: =IF('DF raw data'!A85="","",'DF raw data'!A85) -> -291 | B80: =IF('DF raw data'!B85="","",'DF raw data'!B85) -> -4.23003e-06 | C80: =IF('DF raw data'!C85="","",'DF raw data'!C85) -> 0.00024847 | D80: =IF('DF raw data'!D85="","",'DF raw data'!D85) -> -1.9219e-05 | F80: -4.24695012e-06 | G80: 0.00024946388 | H80: -1.9295876e-05 | J80: -2.284613973e-05 | K80: -0.0001524013441 | L80: 0.00242070926 | M80: 0.01198943819 | N80: 1.986886071e-05
A81: =IF('DF raw data'!A86="","",'DF raw data'!A86) -> -290.5 | B81: =IF('DF raw data'!B86="","",'DF raw data'!B86) -> 1.73545e-05 | C81: =IF('DF raw data'!C86="","",'DF raw data'!C86) -> 0.000253183 | D81: =IF('DF raw data'!D86="","",'DF raw data'!D86) -> -1.4064e-05 | F81: 1.7423918e-05 | G81: 0.000254195732 | H81: -1.4120256e-05 | J81: -1.413418073e-05 | K81: -0.0001594684345 | L81: 0.002547807126 | M81: 0.01326334175 | N81: 2.311462117e-05
A82: =IF('DF raw data'!A87="","",'DF raw data'!A87) -> -290 | B82: =IF('DF raw data'!B87="","",'DF raw data'!B87) -> 1.98398e-06 | C82: =IF('DF raw data'!C87="","",'DF raw data'!C87) -> 0.000250117 | D82: =IF('DF raw data'!D87="","",'DF raw data'!D87) -> -1.94759e-05 | F82: 1.99191592e-06 | G82: 0.000251117468 | H82: -1.95538036e-05 | J82: -1.313822277e-05 | K82: -0.0001660375458 | L82: 0.00267336586 | M82: 0.01460002468 | N82: 2.668814999e-05
A83: =IF('DF raw data'!A88="","",'DF raw data'!A88) -> -289.5 | B83: =IF('DF raw data'!B88="","",'DF raw data'!B88) -> -2.54251e-07 | C83: =IF('DF raw data'!C88="","",'DF raw data'!C88) -> 0.000248524 | D83: =IF('DF raw data'!D88="","",'DF raw data'!D88) -> -2.54355e-05 | F83: -2.55268004e-07 | G83: 0.000249518096 | H83: -2.5537242e-05 | J83: -1.326585677e-05 | K83: -0.0001726704742 | L83: 0.002798124908 | M83: 0.01599908713 | N83: 3.060298948e-05
A84: =IF('DF raw data'!A89="","",'DF raw data'!A89) -> -289 | B84: =IF('DF raw data'!B89="","",'DF raw data'!B89) -> -1.12847e-05 | C84: =IF('DF raw data'!C89="","",'DF raw data'!C89) -> 0.000253311 | D84: =IF('DF raw data'!D89="","",'DF raw data'!D89) -> -6.55893e-06 | F84: -1.13298388e-05 | G84: 0.000254324244 | H84: -6.58516572e-06 | J84: -1.893077617e-05 | K84: -0.0001821358623 | L84: 0.00292528703 | M84: 0.01746173065 | N84: 3.488182077e-05
A85: =IF('DF raw data'!A90="","",'DF raw data'!A90) -> -288.5 | B85: =IF('DF raw data'!B90="","",'DF raw data'!B90) -> -4.86956e-06 | C85: =IF('DF raw data'!C90="","",'DF raw data'!C90) -> 0.000259875 | D85: =IF('DF raw data'!D90="","",'DF raw data'!D90) -> -2.08037e-05 | F85: -4.88903824e-06 | G85: 0.0002609145 | H85: -2.08869148e-05 | J85: -2.137529529e-05 | K85: -0.00019282351 | L85: 0.00305574428 | M85: 0.01898960279 | N85: 3.955083578e-05
A86: =IF('DF raw data'!A91="","",'DF raw data'!A91) -> -288 | B86: =IF('DF raw data'!B91="","",'DF raw data'!B91) -> 3.06157e-07 | C86: =IF('DF raw data'!C91="","",'DF raw data'!C91) -> 0.000260375 | D86: =IF('DF raw data'!D91="","",'DF raw data'!D91) -> -4.08802e-07 | F86: 3.07381628e-07 | G86: 0.0002614165 | H86: -4.10437208e-07 | J86: -2.122160448e-05 | K86: -0.0002034343122 | L86: 0.00318645253 | M86: 0.02058282905 | N86: 4.462780082e-05
A87: =IF('DF raw data'!A92="","",'DF raw data'!A92) -> -287.5 | B87: =IF('DF raw data'!B92="","",'DF raw data'!B92) -> -5.00194e-06 | C87: =IF('DF raw data'!C92="","",'DF raw data'!C92) -> 0.000255448 | D87: =IF('DF raw data'!D92="","",'DF raw data'!D92) -> -1.42207e-05 | F87: -5.02194776e-06 | G87: 0.000256469792 | H87: -1.42775828e-05 | J87: -2.373257836e-05 | K87: -0.0002153006014 | L87: 0.003314687426 | M87: 0.02224017277 | N87: 5.01216588e-05
A88: =IF('DF raw data'!A93="","",'DF raw data'!A93) -> -287 | B88: =IF('DF raw data'!B93="","",'DF raw data'!B93) -> 4.02835e-06 | C88: =IF('DF raw data'!C93="","",'DF raw data'!C93) -> 0.000261425 | D88: =IF('DF raw data'!D93="","",'DF raw data'!D93) -> -1.11029e-05 | F88: 4.0444634e-06 | G88: 0.0002624707 | H88: -1.11473116e-05 | J88: -2.171034666e-05 | K88: -0.0002261557747 | L88: 0.003445922776 | M88: 0.02396313415 | N88: 5.605908636e-05
A89: =IF('DF raw data'!A94="","",'DF raw data'!A94) -> -286.5 | B89: =IF('DF raw data'!B94="","",'DF raw data'!B94) -> -3.65699e-06 | C89: =IF('DF raw data'!C94="","",'DF raw data'!C94) -> 0.000264137 | D89: =IF('DF raw data'!D94="","",'DF raw data'!D94) -> -1.36754e-05 | F89: -3.67161796e-06 | G89: 0.000265193548 | H89: -1.37301016e-05 | J89: -2.354615564e-05 | K89: -0.0002379288525 | L89: 0.00357851955 | M89: 0.02575239393 | N89: 6.246226465e-05
A90: =IF('DF raw data'!A95="","",'DF raw data'!A95) -> -286 | B90: =IF('DF raw data'!B95="","",'DF raw data'!B95) -> 1.30711e-07 | C90: =IF('DF raw data'!C95="","",'DF raw data'!C95) -> 0.000259803 | D90: =IF('DF raw data'!D95="","",'DF raw data'!D95) -> -2.63988e-05 | F90: 1.31233844e-07 | G90: 0.000260842212 | H90: -2.65043952e-05 | J90: -2.348053872e-05 | K90: -0.0002496691219 | L90: 0.003708940656 | M90: 0.02760686426 | N90: 6.934066072e-05
A91: =IF('DF raw data'!A96="","",'DF raw data'!A96) -> -285.5 | B91: =IF('DF raw data'!B96="","",'DF raw data'!B96) -> -1.98016e-06 | C91: =IF('DF raw data'!C96="","",'DF raw data'!C96) -> 0.000251583 | D91: =IF('DF raw data'!D96="","",'DF raw data'!D96) -> -3.11997e-05 | F91: -1.98808064e-06 | G91: 0.000252589332 | H91: -3.13244988e-05 | J91: -2.447457904e-05 | K91: -0.0002619064114 | L91: 0.003835235322 | M91: 0.02952448192 | N91: 7.669547521e-05
A92: =IF('DF raw data'!A97="","",'DF raw data'!A97) -> -285 | B92: =IF('DF raw data'!B97="","",'DF raw data'!B97) -> -4.61248e-06 | C92: =IF('DF raw data'!C97="","",'DF raw data'!C97) -> 0.000247694 | D92: =IF('DF raw data'!D97="","",'DF raw data'!D97) -> -2.21229e-05 | F92: -4.63092992e-06 | G92: 0.000248684776 | H92: -2.22113916e-05 | J92: -2.6790044e-05 | K92: -0.0002753014334 | L92: 0.00395957771 | M92: 0.03150427077 | N92: 8.453496188e-05
A93: =IF('DF raw data'!A98="","",'DF raw data'!A98) -> -284.5 | B93: =IF('DF raw data'!B98="","",'DF raw data'!B98) -> -6.02152e-06 | C93: =IF('DF raw data'!C98="","",'DF raw data'!C98) -> 0.000250594 | D93: =IF('DF raw data'!D98="","",'DF raw data'!D98) -> -2.24524e-05 | F93: -6.04560608e-06 | G93: 0.000251596376 | H93: -2.25422096e-05 | J93: -2.981284704e-05 | K93: -0.0002902078569 | L93: 0.004085375898 | M93: 0.03354695872 | N93: 9.28805544e-05
A94: =IF('DF raw data'!A99="","",'DF raw data'!A99) -> -284 | B94: =IF('DF raw data'!B99="","",'DF raw data'!B99) -> -6.53826e-06 | C94: =IF('DF raw data'!C99="","",'DF raw data'!C99) -> 0.000272977 | D94: =IF('DF raw data'!D99="","",'DF raw data'!D99) -> -1.58027e-05 | F94: -6.56441304e-06 | G94: 0.000274068908 | H94: -1.58659108e-05 | J94: -3.309505356e-05 | K94: -0.0003067553837 | L94: 0.004222410352 | M94: 0.0356581639 | N94: 0.0001017954766
A95: =IF('DF raw data'!A100="","",'DF raw data'!A100) -> -283.5 | B95: =IF('DF raw data'!B100="","",'DF raw data'!B100) -> -1.99294e-06 | C95: =IF('DF raw data'!C100="","",'DF raw data'!C100) -> 0.000270011 | D95: =IF('DF raw data'!D100="","",'DF raw data'!D100) -> -1.1495e-05 | F95: -2.00091176e-06 | G95: 0.000271091044 | H95: -1.154098e-05 | J95: -3.409550944e-05 | K95: -0.0003238031384 | L95: 0.004357955874 | M95: 0.03783714183 | N95: 0.0001112919476
A96: =IF('DF raw data'!A101="","",'DF raw data'!A101) -> -283 | B96: =IF('DF raw data'!B101="","",'DF raw data'!B101) -> 1.3403e-06 | C96: =IF('DF raw data'!C101="","",'DF raw data'!C101) -> 0.000256777 | D96: =IF('DF raw data'!D101="","",'DF raw data'!D101) -> -1.46678e-05 | F96: 1.3456612e-06 | G96: 0.000257804108 | H96: -1.47264712e-05 | J96: -3.342267884e-05 | K96: -0.0003405144778 | L96: 0.004486857928 | M96: 0.0400805708 | N96: 0.0001213584532
A97: =IF('DF raw data'!A102="","",'DF raw data'!A102) -> -282.5 | B97: =IF('DF raw data'!B102="","",'DF raw data'!B102) -> 3.77331e-07 | C97: =IF('DF raw data'!C102="","",'DF raw data'!C102) -> 0.000260998 | D97: =IF('DF raw data'!D102="","",'DF raw data'!D102) -> -1.15869e-05 | F97: 3.78840324e-07 | G97: 0.000262041992 | H97: -1.16332476e-05 | J97: -3.323325868e-05 | K97: -0.0003571311072 | L97: 0.004617878924 | M97: 0.04238951026 | N97: 0.0001320214083
A98: =IF('DF raw data'!A103="","",'DF raw data'!A103) -> -282 | B98: =IF('DF raw data'!B103="","",'DF raw data'!B103) -> -1.30035e-05 | C98: =IF('DF raw data'!C103="","",'DF raw data'!C103) -> 0.000259144 | D98: =IF('DF raw data'!D103="","",'DF raw data'!D103) -> -2.28431e-05 | F98: -1.3055514e-05 | G98: 0.000260180576 | H98: -2.29344724e-05 | J98: -3.976101568e-05 | K98: -0.000377011615 | L98: 0.004747969212 | M98: 0.04476349487 | N98: 0.0001432938045
A99: =IF('DF raw data'!A104="","",'DF raw data'!A104) -> -281.5 | B99: =IF('DF raw data'!B104="","",'DF raw data'!B104) -> 3.06404e-06 | C99: =IF('DF raw data'!C104="","",'DF raw data'!C104) -> 0.000267669 | D99: =IF('DF raw data'!D104="","",'DF raw data'!D104) -> -5.54658e-06 | F99: 3.07629616e-06 | G99: 0.000268739676 | H99: -5.56876632e-06 | J99: -3.82228676e-05 | K99: -0.0003961230488 | L99: 0.00488233905 | M99: 0.04720466439 | N99: 0.0001552131523
A100: =IF('DF raw data'!A105="","",'DF raw data'!A105) -> -281 | B100: =IF('DF raw data'!B105="","",'DF raw data'!B105) -> 1.10175e-05 | C100: =IF('DF raw data'!C105="","",'DF raw data'!C105) -> 0.000269849 | D100: =IF('DF raw data'!D105="","",'DF raw data'!D105) -> -2.14022e-05 | F100: 1.106157e-05 | G100: 0.000270928396 | H100: -2.14878088e-05 | J100: -3.26920826e-05 | K100: -0.0004124690901 | L100: 0.005017803248 | M100: 0.04971356602 | N100: 0.0001678028614
A101: =IF('DF raw data'!A106="","",'DF raw data'!A106) -> -280.5 | B101: =IF('DF raw data'!B106="","",'DF raw data'!B106) -> 6.73367e-06 | C101: =IF('DF raw data'!C106="","",'DF raw data'!C106) -> 0.000257421 | D101: =IF('DF raw data'!D106="","",'DF raw data'!D106) -> -3.37404e-05 | F101: 6.76060468e-06 | G101: 0.000258450684 | H101: -3.38753616e-05 | J101: -2.931178026e-05 | K101: -0.0004271249802 | L101: 0.00514702859 | M101: 0.05228708031 | N101: 0.0001810492427
A102: =IF('DF raw data'!A107="","",'DF raw data'!A107) -> -280 | B102: =IF('DF raw data'!B107="","",'DF raw data'!B107) -> -3.65496e-06 | C102: =IF('DF raw data'!C107="","",'DF raw data'!C107) -> 0.000264756 | D102: =IF('DF raw data'!D107="","",'DF raw data'!D107) -> -1.68062e-05 | F102: -3.66957984e-06 | G102: 0.000265815024 | H102: -1.68734248e-05 | J102: -3.114657018e-05 | K102: -0.0004426982653 | L102: 0.005279936102 | M102: 0.05492704836 | N102: 0.0001949885904
A103: =IF('DF raw data'!A108="","",'DF raw data'!A108) -> -279.5 | B103: =IF('DF raw data'!B108="","",'DF raw data'!B108) -> 6.85579e-06 | C103: =IF('DF raw data'!C108="","",'DF raw data'!C108) -> 0.000262383 | D103: =IF('DF raw data'!D108="","",'DF raw data'!D108) -> -2.45084e-05 | F103: 6.88321316e-06 | G103: 0.000263432532 | H103: -2.46064336e-05 | J103: -2.77049636e-05 | K103: -0.0004565507471 | L103: 0.005411652368 | M103: 0.05763287455 | N103: 0.0002096319648
A104: =IF('DF raw data'!A109="","",'DF raw data'!A109) -> -279 | B104: =IF('DF raw data'!B109="","",'DF raw data'!B109) -> -1.86258e-07 | C104: =IF('DF raw data'!C109="","",'DF raw data'!C109) -> 0.000253337 | D104: =IF('DF raw data'!D109="","",'DF raw data'!D109) -> -3.13023e-05 | F104: -1.87003032e-07 | G104: 0.000254350348 | H104: -3.14275092e-05 | J104: -2.779846511e-05 | K104: -0.0004704499797 | L104: 0.005538827542 | M104: 0.06040228832 | N104: 0.0002249716565
A105: =IF('DF raw data'!A110="","",'DF raw data'!A110) -> -278.5 | B105: =IF('DF raw data'!B110="","",'DF raw data'!B110) -> -1.8547e-06 | C105: =IF('DF raw data'!C110="","",'DF raw data'!C110) -> 0.000254041 | D105: =IF('DF raw data'!D110="","",'DF raw data'!D110) -> -2.71178e-05 | F105: -1.8621188e-06 | G105: 0.000255057164 | H105: -2.72262712e-05 | J105: -2.872952451e-05 | K105: -0.0004848147419 | L105: 0.005666356124 | M105: 0.06323546638 | N105: 0.000241025865
A106: =IF('DF raw data'!A111="","",'DF raw data'!A111) -> -278 | B106: =IF('DF raw data'!B111="","",'DF raw data'!B111) -> -3.65363e-06 | C106: =IF('DF raw data'!C111="","",'DF raw data'!C111) -> 0.000259308 | D106: =IF('DF raw data'!D111="","",'DF raw data'!D111) -> -1.88599e-05 | F106: -3.66824452e-06 | G106: 0.000260345232 | H106: -1.89353396e-05 | J106: -3.056364677e-05 | K106: -0.0005000965653 | L106: 0.00579652874 | M106: 0.06613373075 | N106: 0.0002578262048
A107: =IF('DF raw data'!A112="","",'DF raw data'!A112) -> -277.5 | B107: =IF('DF raw data'!B112="","",'DF raw data'!B112) -> 6.21187e-06 | C107: =IF('DF raw data'!C112="","",'DF raw data'!C112) -> 0.000259931 | D107: =IF('DF raw data'!D112="","",'DF raw data'!D112) -> -1.93252e-05 | F107: 6.23671748e-06 | G107: 0.000260970724 | H107: -1.94025008e-05 | J107: -2.744528803e-05 | K107: -0.0005138192093 | L107: 0.005927014102 | M107: 0.0690972378 | N107: 0.0002753913295
A108: =IF('DF raw data'!A113="","",'DF raw data'!A113) -> -277 | B108: =IF('DF raw data'!B113="","",'DF raw data'!B113) -> -6.46772e-06 | C108: =IF('DF raw data'!C113="","",'DF raw data'!C113) -> 0.00024437 | D108: =IF('DF raw data'!D113="","",'DF raw data'!D113) -> -2.56221e-05 | F108: -6.49359088e-06 | G108: 0.00024534748 | H108: -2.57245884e-05 | J108: -3.069208347e-05 | K108: -0.0005291652511 | L108: 0.006049687842 | M108: 0.07212208172 | N108: 0.000293691162
A109: =IF('DF raw data'!A114="","",'DF raw data'!A114) -> -276.5 | B109: =IF('DF raw data'!B114="","",'DF raw data'!B114) -> -6.66826e-06 | C109: =IF('DF raw data'!C114="","",'DF raw data'!C114) -> 0.000246165 | D109: =IF('DF raw data'!D114="","",'DF raw data'!D114) -> -1.29254e-05 | F109: -6.69493304e-06 | G109: 0.00024714966 | H109: -1.29771016e-05 | J109: -3.403954999e-05 | K109: -0.0005461850261 | L109: 0.006173262672 | M109: 0.07520871306 | N109: 0.0003127463274
A110: =IF('DF raw data'!A115="","",'DF raw data'!A115) -> -276 | B110: =IF('DF raw data'!B115="","",'DF raw data'!B115) -> -2.69271e-06 | C110: =IF('DF raw data'!C115="","",'DF raw data'!C115) -> 0.00024811 | D110: =IF('DF raw data'!D115="","",'DF raw data'!D115) -> -1.87767e-05 | F110: -2.70348084e-06 | G110: 0.00024910244 | H110: -1.88518068e-05 | J110: -3.539129041e-05 | K110: -0.0005638806713 | L110: 0.006297813892 | M110: 0.07835762 | N110: 0.0003325781835
A111: =IF('DF raw data'!A116="","",'DF raw data'!A116) -> -275.5 | B111: =IF('DF raw data'!B116="","",'DF raw data'!B116) -> -5.1913e-06 | C111: =IF('DF raw data'!C116="","",'DF raw data'!C116) -> 0.000253818 | D111: =IF('DF raw data'!D116="","",'DF raw data'!D116) -> -1.83678e-05 | F111: -5.2120652e-06 | G111: 0.000254833272 | H111: -1.84412712e-05 | J111: -3.799732301e-05 | K111: -0.0005828793328 | L111: 0.006425230528 | M111: 0.08157023527 | N111: 0.0003532206991
A112: =IF('DF raw data'!A117="","",'DF raw data'!A117) -> -275 | B112: =IF('DF raw data'!B117="","",'DF raw data'!B117) -> 8.38999e-06 | C112: =IF('DF raw data'!C117="","",'DF raw data'!C117) -> 0.0002571 | D112: =IF('DF raw data'!D117="","",'DF raw data'!D117) -> -1.96504e-05 | F112: 8.42354996e-06 | G112: 0.0002581284 | H112: -1.97290016e-05 | J112: -3.378554803e-05 | K112: -0.0005997721068 | L112: 0.006554294728 | M112: 0.08484738263 | N112: 0.0003747006595
A113: =IF('DF raw data'!A118="","",'DF raw data'!A118) -> -274.5 | B113: =IF('DF raw data'!B118="","",'DF raw data'!B118) -> -4.29767e-06 | C113: =IF('DF raw data'!C118="","",'DF raw data'!C118) -> 0.00024969 | D113: =IF('DF raw data'!D118="","",'DF raw data'!D118) -> -1.34944e-05 | F113: -4.31486068e-06 | G113: 0.00025068876 | H113: -1.35483776e-05 | J113: -3.594297837e-05 | K113: -0.000617743596 | L113: 0.006679639108 | M113: 0.08818720218 | N113: 0.0003970100948
A114: =IF('DF raw data'!A119="","",'DF raw data'!A119) -> -274 | B114: =IF('DF raw data'!B119="","",'DF raw data'!B119) -> -6.02869e-06 | C114: =IF('DF raw data'!C119="","",'DF raw data'!C119) -> 0.00024431 | D114: =IF('DF raw data'!D119="","",'DF raw data'!D119) -> -1.13816e-05 | F114: -6.05280476e-06 | G114: 0.00024528724 | H114: -1.14271264e-05 | J114: -3.896938075e-05 | K114: -0.0006372282864 | L114: 0.006802282728 | M114: 0.09158834355 | N114: 0.0004201463792
A115: =IF('DF raw data'!A120="","",'DF raw data'!A120) -> -273.5 | B115: =IF('DF raw data'!B120="","",'DF raw data'!B120) -> -9.10059e-06 | C115: =IF('DF raw data'!C120="","",'DF raw data'!C120) -> 0.000247098 | D115: =IF('DF raw data'!D120="","",'DF raw data'!D120) -> -1.572e-05 | F115: -9.13699236e-06 | G115: 0.000248086392 | H115: -1.578288e-05 | J115: -4.353787693e-05 | K115: -0.0006589972248 | L115: 0.006926325924 | M115: 0.09505150651 | N115: 0.0004441343224
A116: =IF('DF raw data'!A121="","",'DF raw data'!A121) -> -273 | B116: =IF('DF raw data'!B121="","",'DF raw data'!B121) -> 6.21063e-06 | C116: =IF('DF raw data'!C121="","",'DF raw data'!C121) -> 0.000252207 | D116: =IF('DF raw data'!D121="","",'DF raw data'!D121) -> -1.74286e-05 | F116: 6.23547252e-06 | G116: 0.000253215828 | H116: -1.74983144e-05 | J116: -4.042014067e-05 | K116: -0.0006792072952 | L116: 0.007052933838 | M116: 0.09857797343 | N116: 0.0004690070772
A117: =IF('DF raw data'!A122="","",'DF raw data'!A122) -> -272.5 | B117: =IF('DF raw data'!B122="","",'DF raw data'!B122) -> -1.00645e-05 | C117: =IF('DF raw data'!C122="","",'DF raw data'!C122) -> 0.000249899 | D117: =IF('DF raw data'!D122="","",'DF raw data'!D122) -> -1.11937e-05 | F117: -1.0104758e-05 | G117: 0.000250898596 | H117: -1.12384748e-05 | J117: -4.547251967e-05 | K117: -0.000701943555 | L117: 0.007178383136 | M117: 0.102167165 | N117: 0.0004947727033
A118: =IF('DF raw data'!A123="","",'DF raw data'!A123) -> -272 | B118: =IF('DF raw data'!B123="","",'DF raw data'!B123) -> -8.71305e-06 | C118: =IF('DF raw data'!C123="","",'DF raw data'!C123) -> 0.000247724 | D118: =IF('DF raw data'!D123="","",'DF raw data'!D123) -> -2.06196e-05 | F118: -8.7479022e-06 | G118: 0.000248714896 | H118: -2.07020784e-05 | J118: -4.984647077e-05 | K118: -0.0007268667904 | L118: 0.007302740584 | M118: 0.1058185353 | N118: 0.0005214389556
A119: =IF('DF raw data'!A124="","",'DF raw data'!A124) -> -271.5 | B119: =IF('DF raw data'!B124="","",'DF raw data'!B124) -> 5.76233e-06 | C119: =IF('DF raw data'!C124="","",'DF raw data'!C124) -> 0.00024126 | D119: =IF('DF raw data'!D124="","",'DF raw data'!D124) -> -1.77486e-05 | F119: 5.78537932e-06 | G119: 0.00024222504 | H119: -1.78195944e-05 | J119: -4.695378111e-05 | K119: -0.000750343681 | L119: 0.007423853104 | M119: 0.1095304618 | N119: 0.0005489968554
A120: =IF('DF raw data'!A125="","",'DF raw data'!A125) -> -271 | B120: =IF('DF raw data'!B125="","",'DF raw data'!B125) -> 1.03082e-05 | C120: =IF('DF raw data'!C125="","",'DF raw data'!C125) -> 0.000248652 | D120: =IF('DF raw data'!D125="","",'DF raw data'!D125) -> -1.43547e-05 | F120: 1.03494328e-05 | G120: 0.000249646608 | H120: -1.44121188e-05 | J120: -4.177906471e-05 | K120: -0.0007712332133 | L120: 0.007548676408 | M120: 0.1133048 | N120: 0.0005774889859
A121: =IF('DF raw data'!A126="","",'DF raw data'!A126) -> -270.5 | B121: =IF('DF raw data'!B126="","",'DF raw data'!B126) -> 3.26621e-06 | C121: =IF('DF raw data'!C126="","",'DF raw data'!C126) -> 0.000254488 | D121: =IF('DF raw data'!D126="","",'DF raw data'!D126) -> -2.11644e-05 | F121: 3.27927484e-06 | G121: 0.000255505952 | H121: -2.12490576e-05 | J121: -4.013942729e-05 | K121: -0.000791302927 | L121: 0.007676429384 | M121: 0.1171430147 | N121: 0.0006069535755
A122: =IF('DF raw data'!A127="","",'DF raw data'!A127) -> -270 | B122: =IF('DF raw data'!B127="","",'DF raw data'!B127) -> 4.73635e-06 | C122: =IF('DF raw data'!C127="","",'DF raw data'!C127) -> 0.000259317 | D122: =IF('DF raw data'!D127="","",'DF raw data'!D127) -> -1.61274e-05 | F122: 4.7552954e-06 | G122: 0.000260354268 | H122: -1.61919096e-05 | J122: -3.776177959e-05 | K122: -0.0008101838167 | L122: 0.007806606518 | M122: 0.121046318 | N122: 0.0006374258412
A123: =IF('DF raw data'!A128="","",'DF raw data'!A128) -> -269.5 | B123: =IF('DF raw data'!B128="","",'DF raw data'!B128) -> 5.82307e-06 | C123: =IF('DF raw data'!C128="","",'DF raw data'!C128) -> 0.000258766 | D123: =IF('DF raw data'!D128="","",'DF raw data'!D128) -> -1.24295e-05 | F123: 5.84636228e-06 | G123: 0.000259801064 | H123: -1.2479218e-05 | J123: -3.483859845e-05 | K123: -0.000827603116 | L123: 0.00793650705 | M123: 0.1250145715 | N123: 0.0006689205201
A124: =IF('DF raw data'!A129="","",'DF raw data'!A129) -> -269 | B124: =IF('DF raw data'!B129="","",'DF raw data'!B129) -> -3.9092e-06 | C124: =IF('DF raw data'!C129="","",'DF raw data'!C129) -> 0.000261379 | D124: =IF('DF raw data'!D129="","",'DF raw data'!D129) -> -1.98483e-05 | F124: -3.9248368e-06 | G124: 0.000262424516 | H124: -1.99276932e-05 | J124: -3.680101685e-05 | K124: -0.0008460036244 | L124: 0.008067719308 | M124: 0.1290484312 | N124: 0.0007014652447
A125: =IF('DF raw data'!A130="","",'DF raw data'!A130) -> -268.5 | B125: =IF('DF raw data'!B130="","",'DF raw data'!B130) -> -3.58938e-06 | C125: =IF('DF raw data'!C130="","",'DF raw data'!C130) -> 0.000252381 | D125: =IF('DF raw data'!D130="","",'DF raw data'!D130) -> -1.89687e-05 | F125: -3.60373752e-06 | G125: 0.000253390524 | H125: -1.90445748e-05 | J125: -3.860288561e-05 | K125: -0.0008653050672 | L125: 0.00819441457 | M125: 0.1331456385 | N125: 0.0007350402049
A126: =IF('DF raw data'!A131="","",'DF raw data'!A131) -> -268 | B126: =IF('DF raw data'!B131="","",'DF raw data'!B131) -> -3.65443e-06 | C126: =IF('DF raw data'!C131="","",'DF raw data'!C131) -> 0.000253551 | D126: =IF('DF raw data'!D131="","",'DF raw data'!D131) -> -1.76022e-05 | F126: -3.66904772e-06 | G126: 0.000254565204 | H126: -1.76726088e-05 | J126: -4.043740947e-05 | K126: -0.0008855237719 | L126: 0.008321697172 | M126: 0.137306487 | N126: 0.0007696663444
A127: =IF('DF raw data'!A132="","",'DF raw data'!A132) -> -267.5 | B127: =IF('DF raw data'!B132="","",'DF raw data'!B132) -> 6.1423e-06 | C127: =IF('DF raw data'!C132="","",'DF raw data'!C132) -> 0.000256388 | D127: =IF('DF raw data'!D132="","",'DF raw data'!D132) -> -1.10106e-05 | F127: 6.1668692e-06 | G127: 0.000257413552 | H127: -1.10546424e-05 | J127: -3.735397487e-05 | K127: -0.0009042007594 | L127: 0.008450403948 | M127: 0.141531689 | N127: 0.0008053717055
A128: =IF('DF raw data'!A133="","",'DF raw data'!A133) -> -267 | B128: =IF('DF raw data'!B133="","",'DF raw data'!B133) -> 8.98127e-07 | C128: =IF('DF raw data'!C133="","",'DF raw data'!C133) -> 0.000251373 | D128: =IF('DF raw data'!D133="","",'DF raw data'!D133) -> -2.44625e-05 | F128: =(1-$G$1*($B$49-$G$2))*B128 -> 9.01719508e-07 | G128: 0.000252378492 | H128: -2.456035e-05 | J128: =F128*$G$3+J127 -> -3.690311512e-05 | K128: =J128*$G$3+K127 -> -0.0009226523169 | L128: =G128*$G$3+L127 -> 0.008576593194 | M128: =L128*$G$3+M127 -> 0.1458199856 | N128: =(J128^2+L128^2)*$G$3+N127 -> 0.0008421513618
A129: =IF('DF raw data'!A134="","",'DF raw data'!A134) -> -266.5 | B129: =IF('DF raw data'!B134="","",'DF raw data'!B134) -> -1.53987e-06 | C129: =IF('DF raw data'!C134="","",'DF raw data'!C134) -> 0.000250631 | D129: =IF('DF raw data'!D134="","",'DF raw data'!D134) -> -1.85216e-05 | F129: -1.54602948e-06 | G129: 0.000251633524 | H129: -1.85956864e-05 | J129: -3.767612986e-05 | K129: -0.0009414903819 | L129: 0.008702409956 | M129: 0.1501711906 | N129: 0.0008800180411
A130: =IF('DF raw data'!A135="","",'DF raw data'!A135) -> -266 | B130: =IF('DF raw data'!B135="","",'DF raw data'!B135) -> -5.70514e-06 | C130: =IF('DF raw data'!C135="","",'DF raw data'!C135) -> 0.000264146 | D130: =IF('DF raw data'!D135="","",'DF raw data'!D135) -> -1.62075e-05 | F130: -5.72796056e-06 | G130: 0.000265202584 | H130: -1.627233e-05 | J130: -4.054011014e-05 | K130: -0.0009617604369 | L130: 0.008835011248 | M130: 0.1545886962 | N130: 0.0009190475747
A131: =IF('DF raw data'!A136="","",'DF raw data'!A136) -> -265.5 | B131: =IF('DF raw data'!B136="","",'DF raw data'!B136) -> -1.33241e-05 | C131: =IF('DF raw data'!C136="","",'DF raw data'!C136) -> 0.000253326 | D131: =IF('DF raw data'!D136="","",'DF raw data'!D136) -> -2.25851e-05 | F131: -1.33773964e-05 | G131: 0.000254339304 | H131: -2.26754404e-05 | J131: -4.722880834e-05 | K131: -0.0009853748411 | L131: 0.0089621809 | M131: 0.1590697867 | N131: 0.0009592090332
A132: =IF('DF raw data'!A137="","",'DF raw data'!A137) -> -265 | B132: =IF('DF raw data'!B137="","",'DF raw data'!B137) -> 4.03188e-06 | C132: =IF('DF raw data'!C137="","",'DF raw data'!C137) -> 0.000252416 | D132: =IF('DF raw data'!D137="","",'DF raw data'!D137) -> -1.65553e-05 | F132: 4.04800752e-06 | G132: 0.000253425664 | H132: -1.66215212e-05 | J132: -4.520480458e-05 | K132: -0.001007977243 | L132: 0.009088893732 | M132: 0.1636142335 | N132: 0.00100051405
A133: =IF('DF raw data'!A138="","",'DF raw data'!A138) -> -264.5 | B133: =IF('DF raw data'!B138="","",'DF raw data'!B138) -> 6.58643e-06 | C133: =IF('DF raw data'!C138="","",'DF raw data'!C138) -> 0.000259982 | D133: =IF('DF raw data'!D138="","",'DF raw data'!D138) -> -4.22518e-06 | F133: 6.61277572e-06 | G133: 0.000261021928 | H133: -4.24208072e-06 | J133: -4.189841672e-05 | K133: -0.001028926452 | L133: 0.009219404696 | M133: 0.1682239359 | N133: 0.001043013639
A134: =IF('DF raw data'!A139="","",'DF raw data'!A139) -> -264 | B134: =IF('DF raw data'!B139="","",'DF raw data'!B139) -> 1.02209e-06 | C134: =IF('DF raw data'!C139="","",'DF raw data'!C139) -> 0.000251055 | D134: =IF('DF raw data'!D139="","",'DF raw data'!D139) -> -1.80574e-05 | F134: 1.02617836e-06 | G134: 0.00025205922 | H134: -1.81296296e-05 | J134: -4.138532754e-05 | K134: -0.001049619116 | L134: 0.009345434306 | M134: 0.172896653 | N134: 0.001086683066
A135: =IF('DF raw data'!A140="","",'DF raw data'!A140) -> -263.5 | B135: =IF('DF raw data'!B140="","",'DF raw data'!B140) -> -4.42789e-06 | C135: =IF('DF raw data'!C140="","",'DF raw data'!C140) -> 0.000252397 | D135: =IF('DF raw data'!D140="","",'DF raw data'!D140) -> -1.02532e-05 | F135: -4.44560156e-06 | G135: 0.000253406588 | H135: -1.02942128e-05 | J135: -4.360812832e-05 | K135: -0.00107142318 | L135: 0.0094721376 | M135: 0.1776327218 | N135: 0.001131544713
A136: =IF('DF raw data'!A141="","",'DF raw data'!A141) -> -263 | B136: =IF('DF raw data'!B141="","",'DF raw data'!B141) -> 4.86366e-06 | C136: =IF('DF raw data'!C141="","",'DF raw data'!C141) -> 0.000259488 | D136: =IF('DF raw data'!D141="","",'DF raw data'!D141) -> -1.48679e-05 | F136: 4.88311464e-06 | G136: 0.000260525952 | H136: -1.49273716e-05 | J136: -4.1166571e-05 | K136: -0.001092006465 | L136: 0.009602400576 | M136: 0.1824339221 | N136: 0.001177648608
A137: =IF('DF raw data'!A142="","",'DF raw data'!A142) -> -262.5 | B137: =IF('DF raw data'!B142="","",'DF raw data'!B142) -> 4.35221e-06 | C137: =IF('DF raw data'!C142="","",'DF raw data'!C142) -> 0.000266223 | D137: =IF('DF raw data'!D142="","",'DF raw data'!D142) -> -1.63974e-05 | F137: 4.36961884e-06 | G137: 0.000267287892 | H137: -1.64629896e-05 | J137: -3.898176158e-05 | K137: -0.001111497346 | L137: 0.009736044522 | M137: 0.1873019444 | N137: 0.00122504465
A138: =IF('DF raw data'!A143="","",'DF raw data'!A143) -> -262 | B138: =IF('DF raw data'!B143="","",'DF raw data'!B143) -> -5.7444e-07 | C138: =IF('DF raw data'!C143="","",'DF raw data'!C143) -> 0.000260817 | D138: =IF('DF raw data'!D143="","",'DF raw data'!D143) -> -2.53747e-05 | F138: -5.7673776e-07 | G138: 0.000261860268 | H138: -2.54761988e-05 | J138: -3.927013046e-05 | K138: -0.001131132411 | L138: 0.009866974656 | M138: 0.1922354317 | N138: 0.001273724015
A139: =IF('DF raw data'!A144="","",'DF raw data'!A144) -> -261.5 | B139: =IF('DF raw data'!B144="","",'DF raw data'!B144) -> -9.676e-06 | C139: =IF('DF raw data'!C144="","",'DF raw data'!C144) -> 0.000252716 | D139: =IF('DF raw data'!D144="","",'DF raw data'!D144) -> -1.76343e-05 | F139: -9.714704e-06 | G139: 0.000253726864 | H139: -1.77048372e-05 | J139: -4.412748246e-05 | K139: -0.001153196152 | L139: 0.009993838088 | M139: 0.1972323508 | N139: 0.001323663389
A140: =IF('DF raw data'!A145="","",'DF raw data'!A145) -> -261 | B140: =IF('DF raw data'!B145="","",'DF raw data'!B145) -> 6.65041e-06 | C140: =IF('DF raw data'!C145="","",'DF raw data'!C145) -> 0.000257251 | D140: =IF('DF raw data'!D145="","",'DF raw data'!D145) -> -4.33654e-06 | F140: 6.67701164e-06 | G140: 0.000258280004 | H140: -4.35388616e-06 | J140: -4.078897664e-05 | K140: -0.001173590641 | L140: 0.01012297809 | M140: 0.2022938398 | N140: 0.001374901563
A141: =IF('DF raw data'!A146="","",'DF raw data'!A146) -> -260.5 | B141: =IF('DF raw data'!B146="","",'DF raw data'!B146) -> 2.04707e-06 | C141: =IF('DF raw data'!C146="","",'DF raw data'!C146) -> 0.000254324 | D141: =IF('DF raw data'!D146="","",'DF raw data'!D146) -> -1.81713e-05 | F141: 2.05525828e-06 | G141: 0.000255341296 | H141: -1.82439852e-05 | J141: -3.97613475e-05 | K141: -0.001193471314 | L141: 0.01025064874 | M141: 0.2074191642 | N141: 0.001427440253
A142: =IF('DF raw data'!A147="","",'DF raw data'!A147) -> -260 | B142: =IF('DF raw data'!B147="","",'DF raw data'!B147) -> -8.34032e-07 | C142: =IF('DF raw data'!C147="","",'DF raw data'!C147) -> 0.000257912 | D142: =IF('DF raw data'!D147="","",'DF raw data'!D147) -> -2.01835e-05 | F142: -8.37368128e-07 | G142: 0.000258943648 | H142: -2.0264234e-05 | J142: -4.018003156e-05 | K142: -0.00121356133 | L142: 0.01038012056 | M142: 0.2126092245 | N142: 0.001481314512
A143: =IF('DF raw data'!A148="","",'DF raw data'!A148) -> -259.5 | B143: =IF('DF raw data'!B148="","",'DF raw data'!B148) -> 1.65598e-06 | C143: =IF('DF raw data'!C148="","",'DF raw data'!C148) -> 0.000247314 | D143: =IF('DF raw data'!D148="","",'DF raw data'!D148) -> -7.75997e-06 | F143: 1.66260392e-06 | G143: 0.000248303256 | H143: -7.79100988e-06 | J143: -3.93487296e-05 | K143: -0.001233235695 | L143: 0.01050427219 | M143: 0.2178613605 | N143: 0.001536485153
A144: =IF('DF raw data'!A149="","",'DF raw data'!A149) -> -259 | B144: =IF('DF raw data'!B149="","",'DF raw data'!B149) -> -1.63412e-05 | C144: =IF('DF raw data'!C149="","",'DF raw data'!C149) -> 0.000255179 | D144: =IF('DF raw data'!D149="","",'DF raw data'!D149) -> -1.28509e-05 | F144: -1.64065648e-05 | G144: 0.000256199716 | H144: -1.29023036e-05 | J144: -4.7552012e-05 | K144: -0.001257011701 | L144: 0.01063237205 | M144: 0.2231775466 | N144: 0.001593009952
A145: =IF('DF raw data'!A150="","",'DF raw data'!A150) -> -258.5 | B145: =IF('DF raw data'!B150="","",'DF raw data'!B150) -> -5.70828e-06 | C145: =IF('DF raw data'!C150="","",'DF raw data'!C150) -> 0.000257334 | D145: =IF('DF raw data'!D150="","",'DF raw data'!D150) -> -1.14077e-05 | F145: -5.73111312e-06 | G145: 0.000258363336 | H145: -1.14533308e-05 | J145: -5.041756856e-05 | K145: -0.001282220485 | L145: 0.01076155372 | M145: 0.2285583234 | N145: 0.001650916742
A146: =IF('DF raw data'!A151="","",'DF raw data'!A151) -> -258 | B146: =IF('DF raw data'!B151="","",'DF raw data'!B151) -> -8.58303e-06 | C146: =IF('DF raw data'!C151="","",'DF raw data'!C151) -> 0.000256682 | D146: =IF('DF raw data'!D151="","",'DF raw data'!D151) -> -2.35701e-05 | F146: -8.61736212e-06 | G146: 0.000257708728 | H146: -2.36643804e-05 | J146: -5.472624962e-05 | K146: -0.00130958361 | L146: 0.01089040808 | M146: 0.2340035275 | N146: 0.001710218733
A147: =IF('DF raw data'!A152="","",'DF raw data'!A152) -> -257.5 | B147: =IF('DF raw data'!B152="","",'DF raw data'!B152) -> -1.39665e-05 | C147: =IF('DF raw data'!C152="","",'DF raw data'!C152) -> 0.00024573 | D147: =IF('DF raw data'!D152="","",'DF raw data'!D152) -> -1.98658e-05 | F147: -1.4022366e-05 | G147: 0.00024671292 | H147: -1.99452632e-05 | J147: -6.173743262e-05 | K147: -0.001340452326 | L147: 0.01101376454 | M147: 0.2395104097 | N147: 0.001770872144
A148: =IF('DF raw data'!A153="","",'DF raw data'!A153) -> -257 | B148: =IF('DF raw data'!B153="","",'DF raw data'!B153) -> -3.97611e-06 | C148: =IF('DF raw data'!C153="","",'DF raw data'!C153) -> 0.0002406 | D148: =IF('DF raw data'!D153="","",'DF raw data'!D153) -> -1.52543e-05 | F148: -3.99201444e-06 | G148: 0.0002415624 | H148: -1.53153172e-05 | J148: -6.373343984e-05 | K148: -0.001372319046 | L148: 0.01113454574 | M148: 0.2450776826 | N148: 0.001832863229
A149: =IF('DF raw data'!A154="","",'DF raw data'!A154) -> -256.5 | B149: =IF('DF raw data'!B154="","",'DF raw data'!B154) -> -1.03131e-05 | C149: =IF('DF raw data'!C154="","",'DF raw data'!C154) -> 0.000245356 | D149: =IF('DF raw data'!D154="","",'DF raw data'!D154) -> -2.30417e-05 | F149: -1.03543524e-05 | G149: 0.000246337424 | H149: -2.31338668e-05 | J149: -6.891061604e-05 | K149: -0.001406774354 | L149: 0.01125771445 | M149: 0.2507065398 | N149: 0.001896233671
A150: =IF('DF raw data'!A155="","",'DF raw data'!A155) -> -256 | B150: =IF('DF raw data'!B155="","",'DF raw data'!B155) -> -2.81966e-06 | C150: =IF('DF raw data'!C155="","",'DF raw data'!C155) -> 0.000251985 | D150: =IF('DF raw data'!D155="","",'DF raw data'!D155) -> -2.05568e-05 | F150: -2.83093864e-06 | G150: 0.00025299294 | H150: -2.06390272e-05 | J150: -7.032608536e-05 | K150: -0.001441937397 | L150: 0.01138421092 | M150: 0.2563986453 | N150: 0.001961036273
A151: =IF('DF raw data'!A156="","",'DF raw data'!A156) -> -255.5 | B151: =IF('DF raw data'!B156="","",'DF raw data'!B156) -> -3.08083e-06 | C151: =IF('DF raw data'!C156="","",'DF raw data'!C156) -> 0.000257924 | D151: =IF('DF raw data'!D156="","",'DF raw data'!D156) -> -1.29672e-05 | F151: -3.09315332e-06 | G151: 0.000258955696 | H151: -1.30190688e-05 | J151: -7.187266202e-05 | K151: -0.001477873728 | L151: 0.01151368877 | M151: 0.2621554897 | N151: 0.00202732137
A152: =IF('DF raw data'!A157="","",'DF raw data'!A157) -> -255 | B152: =IF('DF raw data'!B157="","",'DF raw data'!B157) -> -5.19537e-06 | C152: =IF('DF raw data'!C157="","",'DF raw data'!C157) -> 0.000261695 | D152: =IF('DF raw data'!D157="","",'DF raw data'!D157) -> -1.20666e-05 | F152: -5.21615148e-06 | G152: 0.00026274178 | H152: -1.21148664e-05 | J152: -7.448073776e-05 | K152: -0.001515114097 | L152: 0.01164505966 | M152: 0.2679780195 | N152: 0.002095127851
A153: =IF('DF raw data'!A158="","",'DF raw data'!A158) -> -254.5 | B153: =IF('DF raw data'!B158="","",'DF raw data'!B158) -> -1.09912e-06 | C153: =IF('DF raw data'!C158="","",'DF raw data'!C158) -> 0.000260989 | D153: =IF('DF raw data'!D158="","",'DF raw data'!D158) -> -6.93466e-06 | F153: -1.10351648e-06 | G153: 0.000262032956 | H153: -6.96239864e-06 | J153: -7.5032496e-05 | K153: -0.001552630345 | L153: 0.01177607614 | M153: 0.2738660576 | N153: 0.002164468651
A154: =IF('DF raw data'!A159="","",'DF raw data'!A159) -> -254 | B154: =IF('DF raw data'!B159="","",'DF raw data'!B159) -> -6.47505e-06 | C154: =IF('DF raw data'!C159="","",'DF raw data'!C159) -> 0.000245542 | D154: =IF('DF raw data'!D159="","",'DF raw data'!D159) -> -1.42793e-05 | F154: -6.5009502e-06 | G154: 0.000246524168 | H154: -1.43364172e-05 | J154: -7.82829711e-05 | K154: -0.001591771831 | L154: 0.01189933822 | M154: 0.2798157267 | N154: 0.00223526884
A155: =IF('DF raw data'!A160="","",'DF raw data'!A160) -> -253.5 | B155: =IF('DF raw data'!B160="","",'DF raw data'!B160) -> -3.85215e-06 | C155: =IF('DF raw data'!C160="","",'DF raw data'!C160) -> 0.000243474 | D155: =IF('DF raw data'!D160="","",'DF raw data'!D160) -> -8.92292e-06 | F155: -3.8675586e-06 | G155: 0.000244447896 | H155: -8.95861168e-06 | J155: -8.02167504e-05 | K155: -0.001631880206 | L155: 0.01202156217 | M155: 0.2858265078 | N155: 0.002307531036
A156: =IF('DF raw data'!A161="","",'DF raw data'!A161) -> -253 | B156: =IF('DF raw data'!B161="","",'DF raw data'!B161) -> -6.47114e-06 | C156: =IF('DF raw data'!C161="","",'DF raw data'!C161) -> 0.000250841 | D156: =IF('DF raw data'!D161="","",'DF raw data'!D161) -> -2.03033e-05 | F156: -6.49702456e-06 | G156: 0.000251844364 | H156: -2.03845132e-05 | J156: -8.346526268e-05 | K156: -0.001673612837 | L156: 0.01214748435 | M156: 0.29190025 | N156: 0.002381315207
A157: =IF('DF raw data'!A162="","",'DF raw data'!A162) -> -252.5 | B157: =IF('DF raw data'!B162="","",'DF raw data'!B162) -> -1.02447e-05 | C157: =IF('DF raw data'!C162="","",'DF raw data'!C162) -> 0.000252138 | D157: =IF('DF raw data'!D162="","",'DF raw data'!D162) -> -2.96418e-05 | F157: -1.02856788e-05 | G157: 0.000253146552 | H157: -2.97603672e-05 | J157: -8.860810208e-05 | K157: -0.001717916888 | L157: 0.01227405763 | M157: 0.2980372788 | N157: 0.002456645378
A158: =IF('DF raw data'!A163="","",'DF raw data'!A163) -> -252 | B158: =IF('DF raw data'!B163="","",'DF raw data'!B163) -> 4.03132e-06 | C158: =IF('DF raw data'!C163="","",'DF raw data'!C163) -> 0.00026083 | D158: =IF('DF raw data'!D163="","",'DF raw data'!D163) -> -1.56983e-05 | F158: 4.04744528e-06 | G158: 0.00026187332 | H158: -1.57610932e-05 | J158: -8.658437944e-05 | K158: -0.001761209078 | L158: 0.01240499429 | M158: 0.3042397759 | N158: 0.002533591068
A159: =IF('DF raw data'!A164="","",'DF raw data'!A164) -> -251.5 | B159: =IF('DF raw data'!B164="","",'DF raw data'!B164) -> -3.40146e-06 | C159: =IF('DF raw data'!C164="","",'DF raw data'!C164) -> 0.000258315 | D159: =IF('DF raw data'!D164="","",'DF raw data'!D164) -> -1.26451e-05 | F159: -3.41506584e-06 | G159: 0.00025934826 | H159: -1.26956804e-05 | J159: -8.829191236e-05 | K159: -0.001805355034 | L159: 0.01253466842 | M159: 0.3105071101 | N159: 0.002612153922
A160: =IF('DF raw data'!A165="","",'DF raw data'!A165) -> -251 | B160: =IF('DF raw data'!B165="","",'DF raw data'!B165) -> -6.15691e-06 | C160: =IF('DF raw data'!C165="","",'DF raw data'!C165) -> 0.000260264 | D160: =IF('DF raw data'!D165="","",'DF raw data'!D165) -> -1.11651e-05 | F160: -6.18153764e-06 | G160: 0.000261305056 | H160: -1.12097604e-05 | J160: -9.138268118e-05 | K160: -0.001851046375 | L160: 0.01266532095 | M160: 0.3168397706 | N160: 0.002692363275
A161: =IF('DF raw data'!A166="","",'DF raw data'!A166) -> -250.5 | B161: =IF('DF raw data'!B166="","",'DF raw data'!B166) -> -1.6736e-06 | C161: =IF('DF raw data'!C166="","",'DF raw data'!C166) -> 0.000264301 | D161: =IF('DF raw data'!D166="","",'DF raw data'!D166) -> -9.8678e-06 | F161: -1.6802944e-06 | G161: 0.000265358204 | H161: -9.9072712e-06 | J161: -9.222282838e-05 | K161: -0.001897157789 | L161: 0.01279800005 | M161: 0.3232387706 | N161: 0.00277426193
A162: =IF('DF raw data'!A167="","",'DF raw data'!A167) -> -250 | B162: =IF('DF raw data'!B167="","",'DF raw data'!B167) -> 4.85426e-06 | C162: =IF('DF raw data'!C167="","",'DF raw data'!C167) -> 0.000258569 | D162: =IF('DF raw data'!D167="","",'DF raw data'!D167) -> -3.89516e-07 | F162: 4.87367704e-06 | G162: 0.000259603276 | H162: -3.91074064e-07 | J162: -8.978598986e-05 | K162: -0.001942050784 | L162: 0.01292780169 | M162: 0.3297026715 | N162: 0.002857829989
A163: =IF('DF raw data'!A168="","",'DF raw data'!A168) -> -249.5 | B163: =IF('DF raw data'!B168="","",'DF raw data'!B168) -> 3.4585e-06 | C163: =IF('DF raw data'!C168="","",'DF raw data'!C168) -> 0.00024575 | D163: =IF('DF raw data'!D168="","",'DF raw data'!D168) -> -2.11186e-05 | F163: 3.472334e-06 | G163: 0.000246733 | H163: -2.12030744e-05 | J163: -8.804982286e-05 | K163: -0.001986075695 | L163: 0.01305116819 | M163: 0.3362282556 | N163: 0.002943000361
A164: =IF('DF raw data'!A169="","",'DF raw data'!A169) -> -249 | B164: =IF('DF raw data'!B169="","",'DF raw data'!B169) -> 6.98261e-06 | C164: =IF('DF raw data'!C169="","",'DF raw data'!C169) -> 0.000253395 | D164: =IF('DF raw data'!D169="","",'DF raw data'!D169) -> -2.2548e-05 | F164: 7.01054044e-06 | G164: 0.00025440858 | H164: -2.2638192e-05 | J164: -8.454455264e-05 | K164: -0.002028347971 | L164: 0.01317837248 | M164: 0.3428174418 | N164: 0.003029838685
A165: =IF('DF raw data'!A170="","",'DF raw data'!A170) -> -248.5 | B165: =IF('DF raw data'!B170="","",'DF raw data'!B170) -> 9.21798e-06 | C165: =IF('DF raw data'!C170="","",'DF raw data'!C170) -> 0.000256522 | D165: =IF('DF raw data'!D170="","",'DF raw data'!D170) -> -1.2048e-05 | F165: 9.25485192e-06 | G165: 0.000257548088 | H165: -1.2096192e-05 | J165: -7.991712668e-05 | K165: -0.002068306535 | L165: 0.01330714652 | M165: 0.3494710151 | N165: 0.003118381953
A166: =IF('DF raw data'!A171="","",'DF raw data'!A171) -> -248 | B166: =IF('DF raw data'!B171="","",'DF raw data'!B171) -> -1.06365e-05 | C166: =IF('DF raw data'!C171="","",'DF raw data'!C171) -> 0.000253725 | D166: =IF('DF raw data'!D171="","",'DF raw data'!D171) -> -1.83702e-05 | F166: -1.0679046e-05 | G166: 0.0002547399 | H166: -1.84436808e-05 | J166: -8.525664968e-05 | K166: -0.00211093486 | L166: 0.01343451647 | M166: 0.3561882733 | N166: 0.003208628704
A167: =IF('DF raw data'!A172="","",'DF raw data'!A172) -> -247.5 | B167: =IF('DF raw data'!B172="","",'DF raw data'!B172) -> 1.34875e-06 | C167: =IF('DF raw data'!C172="","",'DF raw data'!C172) -> 0.000256338 | D167: =IF('DF raw data'!D172="","",'DF raw data'!D172) -> -2.76799e-05 | F167: 1.354145e-06 | G167: 0.000257363352 | H167: -2.77906196e-05 | J167: -8.457957718e-05 | K167: -0.002153224648 | L167: 0.01356319815 | M167: 0.3629698724 | N167: 0.003300612452
A168: =IF('DF raw data'!A173="","",'DF raw data'!A173) -> -247 | B168: =IF('DF raw data'!B173="","",'DF raw data'!B173) -> -4.2949e-06 | C168: =IF('DF raw data'!C173="","",'DF raw data'!C173) -> 0.000250956 | D168: =IF('DF raw data'!D173="","",'DF raw data'!D173) -> -1.77566e-05 | F168: -4.3120796e-06 | G168: 0.000251959824 | H168: -1.78276264e-05 | J168: -8.673561698e-05 | K168: -0.002196592457 | L168: 0.01368917806 | M168: 0.3698144614 | N168: 0.003394313012
A169: =IF('DF raw data'!A174="","",'DF raw data'!A174) -> -246.5 | B169: =IF('DF raw data'!B174="","",'DF raw data'!B174) -> -8.84342e-06 | C169: =IF('DF raw data'!C174="","",'DF raw data'!C174) -> 0.000242512 | D169: =IF('DF raw data'!D174="","",'DF raw data'!D174) -> -1.72458e-05 | F169: -8.87879368e-06 | G169: 0.000243482048 | H169: -1.73147832e-05 | J169: -9.117501382e-05 | K169: -0.002242179964 | L169: 0.01381091908 | M169: 0.3767199209 | N169: 0.003489687911
A170: =IF('DF raw data'!A175="","",'DF raw data'!A175) -> -246 | B170: =IF('DF raw data'!B175="","",'DF raw data'!B175) -> -4.67289e-06 | C170: =IF('DF raw data'!C175="","",'DF raw data'!C175) -> 0.000249092 | D170: =IF('DF raw data'!D175="","",'DF raw data'!D175) -> -2.75489e-05 | F170: -4.69158156e-06 | G170: 0.000250088368 | H170: -2.76590956e-05 | J170: -9.35208046e-05 | K170: -0.002288940366 | L170: 0.01393596327 | M170: 0.3836879026 | N170: 0.00358679782
A171: =IF('DF raw data'!A176="","",'DF raw data'!A176) -> -245.5 | B171: =IF('DF raw data'!B176="","",'DF raw data'!B176) -> -1.66336e-06 | C171: =IF('DF raw data'!C176="","",'DF raw data'!C176) -> 0.000252365 | D171: =IF('DF raw data'!D176="","",'DF raw data'!D176) -> -2.56486e-05 | F171: -1.67001344e-06 | G171: 0.00025337446 | H171: -2.57511944e-05 | J171: -9.435581132e-05 | K171: -0.002336118272 | L171: 0.0140626505 | M171: 0.3907192278 | N171: 0.003685681341
A172: =IF('DF raw data'!A177="","",'DF raw data'!A177) -> -245 | B172: =IF('DF raw data'!B177="","",'DF raw data'!B177) -> 2.1036e-06 | C172: =IF('DF raw data'!C177="","",'DF raw data'!C177) -> 0.000255023 | D172: =IF('DF raw data'!D177="","",'DF raw data'!D177) -> -6.37217e-06 | F172: 2.1120144e-06 | G172: 0.000256043092 | H172: -6.39765868e-06 | J172: -9.329980412e-05 | K172: -0.002382768174 | L172: 0.01419067204 | M172: 0.3978145638 | N172: 0.00378637328
A173: =IF('DF raw data'!A178="","",'DF raw data'!A178) -> -244.5 | B173: =IF('DF raw data'!B178="","",'DF raw data'!B178) -> -7.11396e-07 | C173: =IF('DF raw data'!C178="","",'DF raw data'!C178) -> 0.000249308 | D173: =IF('DF raw data'!D178="","",'DF raw data'!D178) -> -1.17451e-05 | F173: -7.14241584e-07 | G173: 0.000250305232 | H173: -1.17920804e-05 | J173: -9.365692491e-05 | K173: -0.002429596636 | L173: 0.01431582466 | M173: 0.4049724762 | N173: 0.003888849084
A174: =IF('DF raw data'!A179="","",'DF raw data'!A179) -> -244 | B174: =IF('DF raw data'!B179="","",'DF raw data'!B179) -> -8.85049e-06 | C174: =IF('DF raw data'!C179="","",'DF raw data'!C179) -> 0.000244502 | D174: =IF('DF raw data'!D179="","",'DF raw data'!D179) -> -6.24092e-06 | F174: -8.88589196e-06 | G174: 0.000245480008 | H174: -6.26588368e-06 | J174: -9.809987089e-05 | K174: -0.002478646572 | L174: 0.01443856466 | M174: 0.4121917585 | N174: 0.003993089971
A175: =IF('DF raw data'!A180="","",'DF raw data'!A180) -> -243.5 | B175: =IF('DF raw data'!B180="","",'DF raw data'!B180) -> 2.55329e-06 | C175: =IF('DF raw data'!C180="","",'DF raw data'!C180) -> 0.000252292 | D175: =IF('DF raw data'!D180="","",'DF raw data'!D180) -> -8.13146e-06 | F175: 2.56350316e-06 | G175: 0.000253301168 | H175: -8.16398584e-06 | J175: -9.681811931e-05 | K175: -0.002527055631 | L175: 0.01456521525 | M175: 0.4194743661 | N175: 0.004099167405
A176: =IF('DF raw data'!A181="","",'DF raw data'!A181) -> -243 | B176: =IF('DF raw data'!B181="","",'DF raw data'!B181) -> 2.10393e-06 | C176: =IF('DF raw data'!C181="","",'DF raw data'!C181) -> 0.000250331 | D176: =IF('DF raw data'!D181="","",'DF raw data'!D181) -> -6.89301e-06 | F176: 2.11234572e-06 | G176: 0.000251332324 | H176: -6.92058204e-06 | J176: -9.576194645e-05 | K176: -0.002574936604 | L176: 0.01469088141 | M176: 0.4268198068 | N176: 0.004207082988
A177: =IF('DF raw data'!A182="","",'DF raw data'!A182) -> -242.5 | B177: =IF('DF raw data'!B182="","",'DF raw data'!B182) -> 1.10111e-05 | C177: =IF('DF raw data'!C182="","",'DF raw data'!C182) -> 0.000246601 | D177: =IF('DF raw data'!D182="","",'DF raw data'!D182) -> -1.12292e-05 | F177: 1.10551444e-05 | G177: 0.000247587404 | H177: -1.12741168e-05 | J177: -9.023437425e-05 | K177: -0.002620053792 | L177: 0.01481467511 | M177: 0.4342271444 | N177: 0.004316824359
A178: =IF('DF raw data'!A183="","",'DF raw data'!A183) -> -242 | B178: =IF('DF raw data'!B183="","",'DF raw data'!B183) -> -8.42032e-07 | C178: =IF('DF raw data'!C183="","",'DF raw data'!C183) -> 0.00024656 | D178: =IF('DF raw data'!D183="","",'DF raw data'!D183) -> -7.84278e-06 | F178: -8.45400128e-07 | G178: 0.00024754624 | H178: -7.87415112e-06 | J178: -9.065707432e-05 | K178: -0.002665382329 | L178: 0.01493844823 | M178: 0.4416963685 | N178: 0.004428407086
A179: =IF('DF raw data'!A184="","",'DF raw data'!A184) -> -241.5 | B179: =IF('DF raw data'!B184="","",'DF raw data'!B184) -> 3.96995e-06 | C179: =IF('DF raw data'!C184="","",'DF raw data'!C184) -> 0.000251235 | D179: =IF('DF raw data'!D184="","",'DF raw data'!D184) -> -1.95595e-05 | F179: 3.9858298e-06 | G179: 0.00025223994 | H179: -1.9637738e-05 | J179: -8.866415942e-05 | K179: -0.002709714408 | L179: 0.0150645682 | M179: 0.4492286526 | N179: 0.004541881624
A180: =IF('DF raw data'!A185="","",'DF raw data'!A185) -> -241 | B180: =IF('DF raw data'!B185="","",'DF raw data'!B185) -> -2.62767e-07 | C180: =IF('DF raw data'!C185="","",'DF raw data'!C185) -> 0.000252397 | D180: =IF('DF raw data'!D185="","",'DF raw data'!D185) -> -1.2302e-05 | F180: -2.63818068e-07 | G180: 0.000253406588 | H180: -1.2351208e-05 | J180: -8.879606845e-05 | K180: -0.002754112443 | L180: 0.01519127149 | M180: 0.4568242883 | N180: 0.004657272931
A181: =IF('DF raw data'!A186="","",'DF raw data'!A186) -> -240.5 | B181: =IF('DF raw data'!B186="","",'DF raw data'!B186) -> -1.99722e-06 | C181: =IF('DF raw data'!C186="","",'DF raw data'!C186) -> 0.000259547 | D181: =IF('DF raw data'!D186="","",'DF raw data'!D186) -> -4.94333e-06 | F181: -2.00520888e-06 | G181: 0.000260585188 | H181: -4.96310332e-06 | J181: -8.979867289e-05 | K181: -0.002799011779 | L181: 0.01532156409 | M181: 0.4644850704 | N181: 0.004774652126
A182: =IF('DF raw data'!A187="","",'DF raw data'!A187) -> -240 | B182: =IF('DF raw data'!B187="","",'DF raw data'!B187) -> -4.94115e-06 | C182: =IF('DF raw data'!C187="","",'DF raw data'!C187) -> 0.000262127 | D182: =IF('DF raw data'!D187="","",'DF raw data'!D187) -> -8.96183e-06 | F182: -4.9609146e-06 | G182: 0.000263175508 | H182: -8.99767732e-06 | J182: -9.227913019e-05 | K182: -0.002845151344 | L182: 0.01545315184 | M182: 0.4722116463 | N182: 0.004894056335
A183: =IF('DF raw data'!A188="","",'DF raw data'!A188) -> -239.5 | B183: =IF('DF raw data'!B188="","",'DF raw data'!B188) -> -4.68867e-06 | C183: =IF('DF raw data'!C188="","",'DF raw data'!C188) -> 0.000264241 | D183: =IF('DF raw data'!D188="","",'DF raw data'!D188) -> -3.30914e-06 | F183: -4.70742468e-06 | G183: 0.000265297964 | H183: -3.32237656e-06 | J183: -9.463284253e-05 | K183: -0.002892467766 | L183: 0.01558580082 | M183: 0.4800045467 | N183: 0.005015519406
A184: =IF('DF raw data'!A189="","",'DF raw data'!A189) -> -239 | B184: =IF('DF raw data'!B189="","",'DF raw data'!B189) -> -2.24351e-06 | C184: =IF('DF raw data'!C189="","",'DF raw data'!C189) -> 0.000263015 | D184: =IF('DF raw data'!D189="","",'DF raw data'!D189) -> -2.01954e-05 | F184: -2.25248404e-06 | G184: 0.00026406706 | H184: -2.02761816e-05 | J184: -9.575908455e-05 | K184: -0.002940347308 | L184: 0.01571783435 | M184: 0.4878634639 | N184: 0.00513904915
A185: =IF('DF raw data'!A190="","",'DF raw data'!A190) -> -238.5 | B185: =IF('DF raw data'!B190="","",'DF raw data'!B190) -> -4.48691e-06 | C185: =IF('DF raw data'!C190="","",'DF raw data'!C190) -> 0.000254834 | D185: =IF('DF raw data'!D190="","",'DF raw data'!D190) -> -1.83096e-05 | F185: -4.50485764e-06 | G185: 0.000255853336 | H185: -1.83828384e-05 | J185: -9.801151337e-05 | K185: -0.002989353064 | L185: 0.01584576102 | M185: 0.4957863444 | N185: 0.005264598024
A186: =IF('DF raw data'!A191="","",'DF raw data'!A191) -> -238 | B186: =IF('DF raw data'!B191="","",'DF raw data'!B191) -> -7.88477e-06 | C186: =IF('DF raw data'!C191="","",'DF raw data'!C191) -> 0.000250424 | D186: =IF('DF raw data'!D191="","",'DF raw data'!D191) -> -1.39235e-05 | F186: -7.91630908e-06 | G186: 0.000251425696 | H186: -1.3979194e-05 | J186: -0.0001019696679 | K186: -0.003040337898 | L186: 0.01597147387 | M186: 0.5037720813 | N186: 0.005392147212
A187: =IF('DF raw data'!A192="","",'DF raw data'!A192) -> -237.5 | B187: =IF('DF raw data'!B192="","",'DF raw data'!B192) -> -5.57731e-06 | C187: =IF('DF raw data'!C192="","",'DF raw data'!C192) -> 0.000259001 | D187: =IF('DF raw data'!D192="","",'DF raw data'!D192) -> -1.59005e-05 | F187: -5.59961924e-06 | G187: 0.000260037004 | H187: -1.5964102e-05 | J187: -0.0001047694775 | K187: -0.003092722637 | L187: 0.01610149237 | M187: 0.5118228275 | N187: 0.005521781728
A188: =IF('DF raw data'!A193="","",'DF raw data'!A193) -> -237 | B188: =IF('DF raw data'!B193="","",'DF raw data'!B193) -> 2.43216e-06 | C188: =IF('DF raw data'!C193="","",'DF raw data'!C193) -> 0.000248164 | D188: =IF('DF raw data'!D193="","",'DF raw data'!D193) -> -1.89595e-05 | F188: 2.44188864e-06 | G188: 0.000249156656 | H188: -1.9035338e-05 | J188: -0.0001035485332 | K188: -0.003144496904 | L188: 0.0162260707 | M188: 0.5199358629 | N188: 0.005653429775
A189: =IF('DF raw data'!A194="","",'DF raw data'!A194) -> -236.5 | B189: =IF('DF raw data'!B194="","",'DF raw data'!B194) -> 5.49897e-06 | C189: =IF('DF raw data'!C194="","",'DF raw data'!C194) -> 0.000244652 | D189: =IF('DF raw data'!D194="","",'DF raw data'!D194) -> -6.65529e-06 | F189: 5.52096588e-06 | G189: 0.000245630608 | H189: -6.68191116e-06 | J189: -0.0001007880503 | K189: -0.003194890929 | L189: 0.016348886 | M189: 0.5281103059 | N189: 0.00578707789
A190: =IF('DF raw data'!A195="","",'DF raw data'!A195) -> -236 | B190: =IF('DF raw data'!B195="","",'DF raw data'!B195) -> 4.86325e-06 | C190: =IF('DF raw data'!C195="","",'DF raw data'!C195) -> 0.00025066 | D190: =IF('DF raw data'!D195="","",'DF raw data'!D195) -> -1.4283e-05 | F190: 4.882703e-06 | G190: 0.00025166264 | H190: -1.4340132e-05 | J190: -9.834669877e-05 | K190: -0.003244064278 | L190: 0.01647471732 | M190: 0.5363476645 | N190: 0.005922790882
A191: =IF('DF raw data'!A196="","",'DF raw data'!A196) -> -235.5 | B191: =IF('DF raw data'!B196="","",'DF raw data'!B196) -> 8.19603e-06 | C191: =IF('DF raw data'!C196="","",'DF raw data'!C196) -> 0.000256874 | D191: =IF('DF raw data'!D196="","",'DF raw data'!D196) -> -1.69517e-05 | F191: 8.22881412e-06 | G191: 0.000257901496 | H191: -1.70195068e-05 | J191: -9.423229171e-05 | K191: -0.003291180424 | L191: 0.01660366807 | M191: 0.5446494986 | N191: 0.006060636218
A192: =IF('DF raw data'!A197="","",'DF raw data'!A197) -> -235 | B192: =IF('DF raw data'!B197="","",'DF raw data'!B197) -> 1.15865e-07 | C192: =IF('DF raw data'!C197="","",'DF raw data'!C197) -> 0.000259821 | D192: =IF('DF raw data'!D197="","",'DF raw data'!D197) -> -3.50703e-06 | F192: =(1-$G$1*($B$49-$G$2))*B192 -> 1.1632846e-07 | G192: 0.000260860284 | H192: -3.52105812e-06 | J192: =F192*$G$3+J191 -> -9.417412748e-05 | K192: =J192*$G$3+K191 -> -0.003338267488 | L192: =G192*$G$3+L191 -> 0.01673409821 | M192: =L192*$G$3+M191 -> 0.5530165477 | N192: =(J192^2+L192^2)*$G$3+N191 -> 0.006200655674
A193: =IF('DF raw data'!A198="","",'DF raw data'!A198) -> -234.5 | B193: =IF('DF raw data'!B198="","",'DF raw data'!B198) -> 1.4088e-05 | C193: =IF('DF raw data'!C198="","",'DF raw data'!C198) -> 0.000252292 | D193: =IF('DF raw data'!D198="","",'DF raw data'!D198) -> -1.4502e-05 | F193: 1.4144352e-05 | G193: 0.000253301168 | H193: -1.4560008e-05 | J193: -8.710195148e-05 | K193: -0.003381818464 | L193: 0.0168607488 | M193: 0.5614469221 | N193: 0.006342801893
A194: =IF('DF raw data'!A199="","",'DF raw data'!A199) -> -234 | B194: =IF('DF raw data'!B199="","",'DF raw data'!B199) -> -2.63661e-06 | C194: =IF('DF raw data'!C199="","",'DF raw data'!C199) -> 0.000257602 | D194: =IF('DF raw data'!D199="","",'DF raw data'!D199) -> -6.69361e-06 | F194: -2.64715644e-06 | G194: 0.000258632408 | H194: -6.72038444e-06 | J194: -8.84255297e-05 | K194: -0.003426031229 | L194: 0.016990065 | M194: 0.5699419546 | N194: 0.006487136957
A195: =IF('DF raw data'!A200="","",'DF raw data'!A200) -> -233.5 | B195: =IF('DF raw data'!B200="","",'DF raw data'!B200) -> 4.45445e-07 | C195: =IF('DF raw data'!C200="","",'DF raw data'!C200) -> 0.000260415 | D195: =IF('DF raw data'!D200="","",'DF raw data'!D200) -> -1.7634e-05 | F195: 4.4722678e-07 | G195: 0.00026145666 | H195: -1.7704536e-05 | J195: -8.820191631e-05 | K195: -0.003470132187 | L195: 0.01712079333 | M195: 0.5785023512 | N195: 0.006633701629
A196: =IF('DF raw data'!A201="","",'DF raw data'!A201) -> -233 | B196: =IF('DF raw data'!B201="","",'DF raw data'!B201) -> -5.57536e-06 | C196: =IF('DF raw data'!C201="","",'DF raw data'!C201) -> 0.000262332 | D196: =IF('DF raw data'!D201="","",'DF raw data'!D201) -> -1.87847e-05 | F196: -5.59766144e-06 | G196: 0.000263381328 | H196: -1.88598388e-05 | J196: -9.100074703e-05 | K196: -0.00351563256 | L196: 0.017252484 | M196: 0.5871285932 | N196: 0.006782529871
A197: =IF('DF raw data'!A202="","",'DF raw data'!A202) -> -232.5 | B197: =IF('DF raw data'!B202="","",'DF raw data'!B202) -> -1.30731e-05 | C197: =IF('DF raw data'!C202="","",'DF raw data'!C202) -> 0.000252058 | D197: =IF('DF raw data'!D202="","",'DF raw data'!D202) -> -1.4668e-05 | F197: -1.31253924e-05 | G197: 0.000253066232 | H197: -1.4726672e-05 | J197: -9.756344323e-05 | K197: -0.003564414282 | L197: 0.01737901711 | M197: 0.5958181018 | N197: 0.006933549748
A198: =IF('DF raw data'!A203="","",'DF raw data'!A203) -> -232 | B198: =IF('DF raw data'!B203="","",'DF raw data'!B203) -> -1.70495e-05 | C198: =IF('DF raw data'!C203="","",'DF raw data'!C203) -> 0.000251529 | D198: =IF('DF raw data'!D203="","",'DF raw data'!D203) -> -7.30551e-06 | F198: -1.7117698e-05 | G198: 0.000252535116 | H198: -7.33473204e-06 | J198: -0.0001061222922 | K198: -0.003617475428 | L198: 0.01750528467 | M198: 0.6045707441 | N198: 0.007086772875
A199: =IF('DF raw data'!A204="","",'DF raw data'!A204) -> -231.5 | B199: =IF('DF raw data'!B204="","",'DF raw data'!B204) -> 1.13292e-05 | C199: =IF('DF raw data'!C204="","",'DF raw data'!C204) -> 0.000246819 | D199: =IF('DF raw data'!D204="","",'DF raw data'!D204) -> -8.13733e-06 | F199: 1.13745168e-05 | G199: 0.000247806276 | H199: -8.16987932e-06 | J199: -0.0001004350338 | K199: -0.003667692945 | L199: 0.01762918781 | M199: 0.613385338 | N199: 0.00724217205
A200: =IF('DF raw data'!A205="","",'DF raw data'!A205) -> -231 | B200: =IF('DF raw data'!B205="","",'DF raw data'!B205) -> -1.39709e-05 | C200: =IF('DF raw data'!C205="","",'DF raw data'!C205) -> 0.000246821 | D200: =IF('DF raw data'!D205="","",'DF raw data'!D205) -> -1.29256e-05 | F200: -1.40267836e-05 | G200: 0.000247808284 | H200: -1.29773024e-05 | J200: -0.0001074484256 | K200: -0.003721417158 | L200: 0.01775309195 | M200: 0.622261884 | N200: 0.00739976396
A201: =IF('DF raw data'!A206="","",'DF raw data'!A206) -> -230.5 | B201: =IF('DF raw data'!B206="","",'DF raw data'!B206) -> -1.40947e-06 | C201: =IF('DF raw data'!C206="","",'DF raw data'!C206) -> 0.000244633 | D201: =IF('DF raw data'!D206="","",'DF raw data'!D206) -> -2.20493e-05 | F201: -1.41510788e-06 | G201: 0.000245611532 | H201: -2.21374972e-05 | J201: -0.0001081559796 | K201: -0.003775495147 | L201: 0.01787589772 | M201: 0.6311998329 | N201: 0.007559543668
... 1061 more rows

Sheet 10 y=-0.1
A1: =IF('DF raw data'!E1="","",'DF raw data'!E1) -> Number of header lines | B1: =IF('DF raw data'!F1="","",'DF raw data'!F1) -> 54 | C1: =IF('DF raw data'!G1="","",'DF raw data'!G1) ->  | D1: =IF('DF raw data'!H1="","",'DF raw data'!H1) ->  | F1: T_coeff | G1: -0.001 | H1: /degC | J1: IBy total | K1: =J1262*1000 -> -2.354011675 | L1: muTm | M1: =L1262*1000 -> 70.41773495 | R1: DF ref | S1: ='10 y=-0.2'!S1 -> 1
A2: =IF('DF raw data'!E2="","",'DF raw data'!E2) -> Measured by | B2: =IF('DF raw data'!F2="","",'DF raw data'!F2) -> Danfysik | C2: =IF('DF raw data'!G2="","",'DF raw data'!G2) ->  | D2: =IF('DF raw data'!H2="","",'DF raw data'!H2) ->  | F2: Tcorr | G2: 20 | H2: degC | J2: JBy total | K2: =K1262 -> -14.44411425 | L2: muTm^2 | M2: =M1262 -> 22.55741217
A3: =IF('DF raw data'!E3="","",'DF raw data'!E3) -> Operator | B3: =IF('DF raw data'!F3="","",'DF raw data'!F3) -> PMHA | C3: =IF('DF raw data'!G3="","",'DF raw data'!G3) ->  | D3: =IF('DF raw data'!H3="","",'DF raw data'!H3) ->  | F3: Step | G3: =A63-A62 -> 0.5 | H3: mm | J3: PI total | K3: =N1262 -> 10611.51673 | L3: T^2mm^3
A4: =IF('DF raw data'!E4="","",'DF raw data'!E4) -> Data-time | B4: =IF('DF raw data'!F4="","",'DF raw data'!F4) -> 11-09-2024, 12:16:53 | C4: =IF('DF raw data'!G4="","",'DF raw data'!G4) ->  | D4: =IF('DF raw data'!H4="","",'DF raw data'!H4) -> 
A5: =IF('DF raw data'!E5="","",'DF raw data'!E5) -> Project | B5: =IF('DF raw data'!F5="","",'DF raw data'!F5) -> 504314 | C5: =IF('DF raw data'!G5="","",'DF raw data'!G5) ->  | D5: =IF('DF raw data'!H5="","",'DF raw data'!H5) -> 
A6: =IF('DF raw data'!E6="","",'DF raw data'!E6) -> Magnet type | B6: =IF('DF raw data'!F6="","",'DF raw data'!F6) -> Dipole | C6: =IF('DF raw data'!G6="","",'DF raw data'!G6) ->  | D6: =IF('DF raw data'!H6="","",'DF raw data'!H6) -> 
A7: =IF('DF raw data'!E7="","",'DF raw data'!E7) -> Magnet nr. | B7: =IF('DF raw data'!F7="","",'DF raw data'!F7) -> 2410095 | C7: =IF('DF raw data'!G7="","",'DF raw data'!G7) ->  | D7: =IF('DF raw data'!H7="","",'DF raw data'!H7) -> 
A8: =IF('DF raw data'!E8="","",'DF raw data'!E8) -> Meas. number | B8: =IF('DF raw data'!F8="","",'DF raw data'!F8) -> 409 | C8: =IF('DF raw data'!G8="","",'DF raw data'!G8) ->  | D8: =IF('DF raw data'!H8="","",'DF raw data'!H8) -> 
A9: =IF('DF raw data'!E9="","",'DF raw data'!E9) -> Add. info | B9: =IF('DF raw data'!F9="","",'DF raw data'!F9) -> Y-alignment scan 2) | C9: =IF('DF raw data'!G9="","",'DF raw data'!G9) ->  | D9: =IF('DF raw data'!H9="","",'DF raw data'!H9) -> 
A10: =IF('DF raw data'!E10="","",'DF raw data'!E10) -> Device | B10: =IF('DF raw data'!F10="","",'DF raw data'!F10) -> (HAL) HALL-PROBE | C10: =IF('DF raw data'!G10="","",'DF raw data'!G10) ->  | D10: =IF('DF raw data'!H10="","",'DF raw data'!H10) -> 
A11: =IF('DF raw data'!E11="","",'DF raw data'!E11) -> Goal | B11: =IF('DF raw data'!F11="","",'DF raw data'!F11) -> (AXI) AXis Integral (Line, EFB) | C11: =IF('DF raw data'!G11="","",'DF raw data'!G11) ->  | D11: =IF('DF raw data'!H11="","",'DF raw data'!H11) -> 
A12: =IF('DF raw data'!E12="","",'DF raw data'!E12) -> Power supply mode | B12: =IF('DF raw data'!F12="","",'DF raw data'!F12) -> (PM) Permanent Magnet (no MPS in use) | C12: =IF('DF raw data'!G12="","",'DF raw data'!G12) ->  | D12: =IF('DF raw data'!H12="","",'DF raw data'!H12) -> 
A13: =IF('DF raw data'!E13="","",'DF raw data'!E13) -> Data format | B13: =IF('DF raw data'!F13="","",'DF raw data'!F13) -> Raw data text file | C13: =IF('DF raw data'!G13="","",'DF raw data'!G13) ->  | D13: =IF('DF raw data'!H13="","",'DF raw data'!H13) -> 
A14: =IF('DF raw data'!E14="","",'DF raw data'!E14) -> Direction of the pos. x-axis | B14: =IF('DF raw data'!F14="","",'DF raw data'!F14) -> See test program | C14: =IF('DF raw data'!G14="","",'DF raw data'!G14) ->  | D14: =IF('DF raw data'!H14="","",'DF raw data'!H14) -> 
A15: =IF('DF raw data'!E15="","",'DF raw data'!E15) -> Direction of the pos. y-axis | B15: =IF('DF raw data'!F15="","",'DF raw data'!F15) -> Vertical up | C15: =IF('DF raw data'!G15="","",'DF raw data'!G15) ->  | D15: =IF('DF raw data'!H15="","",'DF raw data'!H15) -> 
A16: =IF('DF raw data'!E16="","",'DF raw data'!E16) -> Direction of the pos. z-axis | B16: =IF('DF raw data'!F16="","",'DF raw data'!F16) -> See test program | C16: =IF('DF raw data'!G16="","",'DF raw data'!G16) ->  | D16: =IF('DF raw data'!H16="","",'DF raw data'!H16) -> 
A17: =IF('DF raw data'!E17="","",'DF raw data'!E17) -> Mapper type | B17: =IF('DF raw data'!F17="","",'DF raw data'!F17) -> Precision Hall Mapper | C17: =IF('DF raw data'!G17="","",'DF raw data'!G17) ->  | D17: =IF('DF raw data'!H17="","",'DF raw data'!H17) -> 
A18: =IF('DF raw data'!E18="","",'DF raw data'!E18) -> Mapper Danfysik Reg. Number | B18: =IF('DF raw data'!F18="","",'DF raw data'!F18) -> 2033-D (mapper 1) | C18: =IF('DF raw data'!G18="","",'DF raw data'!G18) ->  | D18: =IF('DF raw data'!H18="","",'DF raw data'!H18) -> 
A19: =IF('DF raw data'!E19="","",'DF raw data'!E19) -> Measurement consept | B19: =IF('DF raw data'!F19="","",'DF raw data'!F19) -> Square line grid | C19: =IF('DF raw data'!G19="","",'DF raw data'!G19) ->  | D19: =IF('DF raw data'!H19="","",'DF raw data'!H19) -> 
A20: =IF('DF raw data'!E20="","",'DF raw data'!E20) -> Mode | B20: =IF('DF raw data'!F20="","",'DF raw data'!F20) -> On-the-fly measurement | C20: =IF('DF raw data'!G20="","",'DF raw data'!G20) ->  | D20: =IF('DF raw data'!H20="","",'DF raw data'!H20) -> 
A21: =IF('DF raw data'!E21="","",'DF raw data'!E21) ->  | B21: =IF('DF raw data'!F21="","",'DF raw data'!F21) ->  | C21: =IF('DF raw data'!G21="","",'DF raw data'!G21) ->  | D21: =IF('DF raw data'!H21="","",'DF raw data'!H21) -> 
A22: =IF('DF raw data'!E22="","",'DF raw data'!E22) -> Probe Name | B22: =IF('DF raw data'!F22="","",'DF raw data'!F22) -> ID12_By | C22: =IF('DF raw data'!G22="","",'DF raw data'!G22) ->  | D22: =IF('DF raw data'!H22="","",'DF raw data'!H22) -> 
A23: =IF('DF raw data'!E23="","",'DF raw data'!E23) -> Probe Type | B23: =IF('DF raw data'!F23="","",'DF raw data'!F23) -> DF_ID_3D_Bxyz | C23: =IF('DF raw data'!G23="","",'DF raw data'!G23) ->  | D23: =IF('DF raw data'!H23="","",'DF raw data'!H23) -> 
A24: =IF('DF raw data'!E24="","",'DF raw data'!E24) -> Probe Danfysik Reg. Number | B24: =IF('DF raw data'!F24="","",'DF raw data'!F24) -> 2277 | C24: =IF('DF raw data'!G24="","",'DF raw data'!G24) ->  | D24: =IF('DF raw data'!H24="","",'DF raw data'!H24) -> 
A25: =IF('DF raw data'!E25="","",'DF raw data'!E25) -> Probe Axis | B25: =IF('DF raw data'!F25="","",'DF raw data'!F25) -> By | C25: =IF('DF raw data'!G25="","",'DF raw data'!G25) ->  | D25: =IF('DF raw data'!H25="","",'DF raw data'!H25) -> 
A26: =IF('DF raw data'!E26="","",'DF raw data'!E26) -> Probe Current Supply | B26: =IF('DF raw data'!F26="","",'DF raw data'!F26) -> 1825-D | C26: =IF('DF raw data'!G26="","",'DF raw data'!G26) ->  | D26: =IF('DF raw data'!H26="","",'DF raw data'!H26) -> 
A27: =IF('DF raw data'!E27="","",'DF raw data'!E27) -> Probe Gain Correction | B27: =IF('DF raw data'!F27="","",'DF raw data'!F27) -> 0.99606 | C27: =IF('DF raw data'!G27="","",'DF raw data'!G27) ->  | D27: =IF('DF raw data'!H27="","",'DF raw data'!H27) -> 
A28: =IF('DF raw data'!E28="","",'DF raw data'!E28) -> Probe Offset Correction | B28: =IF('DF raw data'!F28="","",'DF raw data'!F28) -> 0.0027673 | C28: =IF('DF raw data'!G28="","",'DF raw data'!G28) ->  | D28: =IF('DF raw data'!H28="","",'DF raw data'!H28) -> 
A29: =IF('DF raw data'!E29="","",'DF raw data'!E29) -> DVM Number | B29: =IF('DF raw data'!F29="","",'DF raw data'!F29) -> 2 | C29: =IF('DF raw data'!G29="","",'DF raw data'!G29) ->  | D29: =IF('DF raw data'!H29="","",'DF raw data'!H29) -> 
A30: =IF('DF raw data'!E30="","",'DF raw data'!E30) -> DVM Type | B30: =IF('DF raw data'!F30="","",'DF raw data'!F30) -> K2701 | C30: =IF('DF raw data'!G30="","",'DF raw data'!G30) ->  | D30: =IF('DF raw data'!H30="","",'DF raw data'!H30) -> 
A31: =IF('DF raw data'!E31="","",'DF raw data'!E31) -> DVM Danfysik Reg. Number | B31: =IF('DF raw data'!F31="","",'DF raw data'!F31) -> 1743-D | C31: =IF('DF raw data'!G31="","",'DF raw data'!G31) ->  | D31: =IF('DF raw data'!H31="","",'DF raw data'!H31) -> 
A32: =IF('DF raw data'!E32="","",'DF raw data'!E32) -> Probe Name | B32: =IF('DF raw data'!F32="","",'DF raw data'!F32) -> ID12_Bx | C32: =IF('DF raw data'!G32="","",'DF raw data'!G32) ->  | D32: =IF('DF raw data'!H32="","",'DF raw data'!H32) -> 
A33: =IF('DF raw data'!E33="","",'DF raw data'!E33) -> Probe Type | B33: =IF('DF raw data'!F33="","",'DF raw data'!F33) -> DF_ID_3D_Bxyz | C33: =IF('DF raw data'!G33="","",'DF raw data'!G33) ->  | D33: =IF('DF raw data'!H33="","",'DF raw data'!H33) -> 
A34: =IF('DF raw data'!E34="","",'DF raw data'!E34) -> Probe Danfysik Reg. Number | B34: =IF('DF raw data'!F34="","",'DF raw data'!F34) -> 2277 | C34: =IF('DF raw data'!G34="","",'DF raw data'!G34) ->  | D34: =IF('DF raw data'!H34="","",'DF raw data'!H34) -> 
A35: =IF('DF raw data'!E35="","",'DF raw data'!E35) -> Probe Axis | B35: =IF('DF raw data'!F35="","",'DF raw data'!F35) -> Bx | C35: =IF('DF raw data'!G35="","",'DF raw data'!G35) ->  | D35: =IF('DF raw data'!H35="","",'DF raw data'!H35) -> 
A36: =IF('DF raw data'!E36="","",'DF raw data'!E36) -> Probe Current Supply | B36: =IF('DF raw data'!F36="","",'DF raw data'!F36) -> 1825-D | C36: =IF('DF raw data'!G36="","",'DF raw data'!G36) ->  | D36: =IF('DF raw data'!H36="","",'DF raw data'!H36) -> 
A37: =IF('DF raw data'!E37="","",'DF raw data'!E37) -> Probe Gain Correction | B37: =IF('DF raw data'!F37="","",'DF raw data'!F37) -> 1 | C37: =IF('DF raw data'!G37="","",'DF raw data'!G37) ->  | D37: =IF('DF raw data'!H37="","",'DF raw data'!H37) -> 
A38: =IF('DF raw data'!E38="","",'DF raw data'!E38) -> Probe Offset Correction | B38: =IF('DF raw data'!F38="","",'DF raw data'!F38) -> -0.17543 | C38: =IF('DF raw data'!G38="","",'DF raw data'!G38) ->  | D38: =IF('DF raw data'!H38="","",'DF raw data'!H38) -> 
A39: =IF('DF raw data'!E39="","",'DF raw data'!E39) -> DVM Number | B39: =IF('DF raw data'!F39="","",'DF raw data'!F39) -> 3 | C39: =IF('DF raw data'!G39="","",'DF raw data'!G39) ->  | D39: =IF('DF raw data'!H39="","",'DF raw data'!H39) -> 
A40: =IF('DF raw data'!E40="","",'DF raw data'!E40) -> DVM Type | B40: =IF('DF raw data'!F40="","",'DF raw data'!F40) -> K2701 | C40: =IF('DF raw data'!G40="","",'DF raw data'!G40) ->  | D40: =IF('DF raw data'!H40="","",'DF raw data'!H40) -> 
A41: =IF('DF raw data'!E41="","",'DF raw data'!E41) -> DVM Danfysik Reg. Number | B41: =IF('DF raw data'!F41="","",'DF raw data'!F41) -> 1744-D | C41: =IF('DF raw data'!G41="","",'DF raw data'!G41) ->  | D41: =IF('DF raw data'!H41="","",'DF raw data'!H41) -> 
A42: =IF('DF raw data'!E42="","",'DF raw data'!E42) -> Probe Name | B42: =IF('DF raw data'!F42="","",'DF raw data'!F42) -> ID12_Bz | C42: =IF('DF raw data'!G42="","",'DF raw data'!G42) ->  | D42: =IF('DF raw data'!H42="","",'DF raw data'!H42) -> 
A43: =IF('DF raw data'!E43="","",'DF raw data'!E43) -> Probe Type | B43: =IF('DF raw data'!F43="","",'DF raw data'!F43) -> DF_ID_3D_Bxyz | C43: =IF('DF raw data'!G43="","",'DF raw data'!G43) ->  | D43: =IF('DF raw data'!H43="","",'DF raw data'!H43) -> 
A44: =IF('DF raw data'!E44="","",'DF raw data'!E44) -> Probe Danfysik Reg. Number | B44: =IF('DF raw data'!F44="","",'DF raw data'!F44) -> 2277 | C44: =IF('DF raw data'!G44="","",'DF raw data'!G44) ->  | D44: =IF('DF raw data'!H44="","",'DF raw data'!H44) -> 
A45: =IF('DF raw data'!E45="","",'DF raw data'!E45) -> Probe Axis | B45: =IF('DF raw data'!F45="","",'DF raw data'!F45) -> Bz | C45: =IF('DF raw data'!G45="","",'DF raw data'!G45) ->  | D45: =IF('DF raw data'!H45="","",'DF raw data'!H45) -> 
A46: =IF('DF raw data'!E46="","",'DF raw data'!E46) -> Probe Current Supply | B46: =IF('DF raw data'!F46="","",'DF raw data'!F46) -> 1825-D | C46: =IF('DF raw data'!G46="","",'DF raw data'!G46) ->  | D46: =IF('DF raw data'!H46="","",'DF raw data'!H46) -> 
A47: =IF('DF raw data'!E47="","",'DF raw data'!E47) -> Probe Gain Correction | B47: =IF('DF raw data'!F47="","",'DF raw data'!F47) -> 1 | C47: =IF('DF raw data'!G47="","",'DF raw data'!G47) ->  | D47: =IF('DF raw data'!H47="","",'DF raw data'!H47) -> 
A48: =IF('DF raw data'!E53="","",'DF raw data'!E53) -> PS-Gap: | B48: =IF('DF raw data'!F53="","",'DF raw data'!F53) -> 10 | C48: =IF('DF raw data'!G53="","",'DF raw data'!G53) ->  | D48: =IF('DF raw data'!H53="","",'DF raw data'!H53) -> 
A49: =IF('DF raw data'!E54="","",'DF raw data'!E54) -> PS-Temperature: | B49: =IF('DF raw data'!F54="","",'DF raw data'!F54) -> 24 | C49: =IF('DF raw data'!G54="","",'DF raw data'!G54) ->  | D49: =IF('DF raw data'!H54="","",'DF raw data'!H54) -> 
A50: =IF('DF raw data'!E55="","",'DF raw data'!E55) -> PS-Encoder: | B50: =IF('DF raw data'!F55="","",'DF raw data'!F55) -> 19.6951 | C50: =IF('DF raw data'!G55="","",'DF raw data'!G55) ->  | D50: =IF('DF raw data'!H55="","",'DF raw data'!H55) -> 
A51: =IF('DF raw data'!E56="","",'DF raw data'!E56) ->  | B51: =IF('DF raw data'!F56="","",'DF raw data'!F56) ->  | C51: =IF('DF raw data'!G56="","",'DF raw data'!G56) ->  | D51: =IF('DF raw data'!H56="","",'DF raw data'!H56) -> 
A52: =IF('DF raw data'!E57="","",'DF raw data'!E57) -> Monitor-Index | B52: =IF('DF raw data'!F57="","",'DF raw data'!F57) -> [1,1,4] | C52: =IF('DF raw data'!G57="","",'DF raw data'!G57) ->  | D52: =IF('DF raw data'!H57="","",'DF raw data'!H57) -> 
A53: =IF('DF raw data'!E58="","",'DF raw data'!E58) ->  | B53: =IF('DF raw data'!F58="","",'DF raw data'!F58) ->  | C53: =IF('DF raw data'!G58="","",'DF raw data'!G58) ->  | D53: =IF('DF raw data'!H58="","",'DF raw data'!H58) -> 
A54: =IF('DF raw data'!E59="","",'DF raw data'!E59) -> Time [s] | B54: =IF('DF raw data'!F59="","",'DF raw data'!F59) -> Y [mm] | C54: =IF('DF raw data'!G59="","",'DF raw data'!G59) -> X [mm] | D54: =IF('DF raw data'!H59="","",'DF raw data'!H59) -> Nominal current [A]
A55: =IF('DF raw data'!E60="","",'DF raw data'!E60) ->  | B55: =IF('DF raw data'!F60="","",'DF raw data'!F60) ->  | C55: =IF('DF raw data'!G60="","",'DF raw data'!G60) ->  | D55: =IF('DF raw data'!H60="","",'DF raw data'!H60) -> 
A56: =IF('DF raw data'!E61="","",'DF raw data'!E61) -> 207.2 | B56: =IF('DF raw data'!F61="","",'DF raw data'!F61) -> 31.66 | C56: =IF('DF raw data'!G61="","",'DF raw data'!G61) -> 301.8 | D56: =IF('DF raw data'!H61="","",'DF raw data'!H61) -> 0
A57: =IF('DF raw data'!E62="","",'DF raw data'!E62) ->  | B57: =IF('DF raw data'!F62="","",'DF raw data'!F62) ->  | C57: =IF('DF raw data'!G62="","",'DF raw data'!G62) ->  | D57: =IF('DF raw data'!H62="","",'DF raw data'!H62) -> 
A58: =IF('DF raw data'!E63="","",'DF raw data'!E63) -> Measurement-Index | B58: =IF('DF raw data'!F63="","",'DF raw data'!F63) -> [1,1,1201,2] | C58: =IF('DF raw data'!G63="","",'DF raw data'!G63) ->  | D58: =IF('DF raw data'!H63="","",'DF raw data'!H63) -> 
A59: =IF('DF raw data'!E64="","",'DF raw data'!E64) ->  | B59: =IF('DF raw data'!F64="","",'DF raw data'!F64) ->  | C59: =IF('DF raw data'!G64="","",'DF raw data'!G64) ->  | D59: =IF('DF raw data'!H64="","",'DF raw data'!H64) -> 
A60: =IF('DF raw data'!E65="","",'DF raw data'!E65) -> Z [mm] | B60: By [T] | C60: Bx [T] | D60: Bz [T] | F60: By_corr | G60: Bx_corr | H60: Bz_corr | J60: Iy | K60: Jy | L60: Ix | M60: Jx | N60: PI
A62: =IF('DF raw data'!E67="","",'DF raw data'!E67) -> -300 | B62: =IF('DF raw data'!F67="","",'DF raw data'!F67) -> 2.7799e-07 | C62: =IF('DF raw data'!G67="","",'DF raw data'!G67) -> 0.000182791 | D62: =IF('DF raw data'!H67="","",'DF raw data'!H67) -> -2.37456e-05 | F62: =(1-$G$1*($B$49))*B62 -> 2.8466176e-07 | G62: =(1-$G$1*($B$49-$G$2))*C62 -> 0.000183522164 | H62: =(1-$G$1*($B$49-$G$2))*D62 -> -2.38405824e-05 | J62: =F62*$G$3 -> 1.4233088e-07 | K62: =J62*$G$3 -> 7.116544e-08 | L62: =G62*$G$3 -> 9.1761082e-05 | M62: =L62*$G$3 -> 4.5880541e-05 | N62: =(J62^2+L62^2)*$G$3 -> 4.210058214e-09
A63: =IF('DF raw data'!E68="","",'DF raw data'!E68) -> -299.5 | B63: =IF('DF raw data'!F68="","",'DF raw data'!F68) -> 1.23922e-06 | C63: =IF('DF raw data'!G68="","",'DF raw data'!G68) -> 0.000195442 | D63: =IF('DF raw data'!H68="","",'DF raw data'!H68) -> -2.40142e-05 | F63: =(1-$G$1*($B$49-$G$2))*B63 -> 1.24417688e-06 | G63: =(1-$G$1*($B$49-$G$2))*C63 -> 0.000196223768 | H63: -2.41102568e-05 | J63: =F63*$G$3+J62 -> 7.6441932e-07 | K63: =J63*$G$3+K62 -> 4.533751e-07 | L63: =G63*$G$3+L62 -> 0.000189872966 | M63: =L63*$G$3+M62 -> 0.000140817024 | N63: =(J63^2+L63^2)*$G$3+N62 -> 2.223622199e-08
A64: =IF('DF raw data'!E69="","",'DF raw data'!E69) -> -299 | B64: =IF('DF raw data'!F69="","",'DF raw data'!F69) -> 1.05291e-05 | C64: =IF('DF raw data'!G69="","",'DF raw data'!G69) -> 0.000199918 | D64: =IF('DF raw data'!H69="","",'DF raw data'!H69) -> -2.48759e-05 | F64: =(1-$G$1*($B$49-$G$2))*B64 -> 1.05712164e-05 | G64: 0.000200717672 | H64: -2.49754036e-05 | J64: =F64*$G$3+J63 -> 6.05002752e-06 | K64: =J64*$G$3+K63 -> 3.47838886e-06 | L64: =G64*$G$3+L63 -> 0.000290231802 | M64: =L64*$G$3+M63 -> 0.000285932925 | N64: =(J64^2+L64^2)*$G$3+N63 -> 6.437177285e-08
A65: =IF('DF raw data'!E70="","",'DF raw data'!E70) -> -298.5 | B65: =IF('DF raw data'!F70="","",'DF raw data'!F70) -> 2.71351e-06 | C65: =IF('DF raw data'!G70="","",'DF raw data'!G70) -> 0.000195599 | D65: =IF('DF raw data'!H70="","",'DF raw data'!H70) -> -2.55373e-05 | F65: 2.72436404e-06 | G65: 0.000196381396 | H65: -2.56394492e-05 | J65: 7.41220954e-06 | K65: 7.18449363e-06 | L65: 0.0003884225 | M65: 0.000480144175 | N65: 1.398352625e-07
A66: =IF('DF raw data'!E71="","",'DF raw data'!E71) -> -298 | B66: =IF('DF raw data'!F71="","",'DF raw data'!F71) -> -4.71823e-06 | C66: =IF('DF raw data'!G71="","",'DF raw data'!G71) -> 0.000193514 | D66: =IF('DF raw data'!H71="","",'DF raw data'!H71) -> -2.50687e-05 | F66: -4.73710292e-06 | G66: 0.000194288056 | H66: -2.51689748e-05 | J66: 5.04365808e-06 | K66: 9.70632267e-06 | L66: 0.000485566528 | M66: 0.000722927439 | N66: 2.577354083e-07
A67: =IF('DF raw data'!E72="","",'DF raw data'!E72) -> -297.5 | B67: =IF('DF raw data'!F72="","",'DF raw data'!F72) -> -7.46709e-07 | C67: =IF('DF raw data'!G72="","",'DF raw data'!G72) -> 0.000191684 | D67: =IF('DF raw data'!H72="","",'DF raw data'!H72) -> -2.40796e-05 | F67: -7.49695836e-07 | G67: 0.000192450736 | H67: -2.41759184e-05 | J67: 4.668810162e-06 | K67: 1.204072775e-05 | L67: 0.000581791896 | M67: 0.001013823387 | N67: 4.269872124e-07
A68: =IF('DF raw data'!E73="","",'DF raw data'!E73) -> -297 | B68: =IF('DF raw data'!F73="","",'DF raw data'!F73) -> 3.60952e-06 | C68: =IF('DF raw data'!G73="","",'DF raw data'!G73) -> 0.000188033 | D68: =IF('DF raw data'!H73="","",'DF raw data'!H73) -> -2.38251e-05 | F68: 3.62395808e-06 | G68: 0.000188785132 | H68: -2.39204004e-05 | J68: 6.480789202e-06 | K68: 1.528112235e-05 | L68: 0.000676184462 | M68: 0.001351915618 | N68: 6.55620926e-07
A69: =IF('DF raw data'!E74="","",'DF raw data'!E74) -> -296.5 | B69: =IF('DF raw data'!F74="","",'DF raw data'!F74) -> 9.63103e-06 | C69: =IF('DF raw data'!G74="","",'DF raw data'!G74) -> 0.000189581 | D69: =IF('DF raw data'!H74="","",'DF raw data'!H74) -> -2.44187e-05 | F69: 9.66955412e-06 | G69: 0.000190339324 | H69: -2.45163748e-05 | J69: 1.131556626e-05 | K69: 2.093890548e-05 | L69: 0.000771354124 | M69: 0.00173759268 | N69: 9.531785393e-07
A70: =IF('DF raw data'!E75="","",'DF raw data'!E75) -> -296 | B70: =IF('DF raw data'!F75="","",'DF raw data'!F75) -> 4.18673e-06 | C70: =IF('DF raw data'!G75="","",'DF raw data'!G75) -> 0.000193998 | D70: =IF('DF raw data'!H75="","",'DF raw data'!H75) -> -2.5003e-05 | F70: 4.20347692e-06 | G70: 0.000194773992 | H70: -2.5103012e-05 | J70: 1.341730472e-05 | K70: 2.764755784e-05 | L70: 0.00086874112 | M70: 0.00217196324 | N70: 1.330624118e-06
A71: =IF('DF raw data'!E76="","",'DF raw data'!E76) -> -295.5 | B71: =IF('DF raw data'!F76="","",'DF raw data'!F76) -> 4.82698e-06 | C71: =IF('DF raw data'!G76="","",'DF raw data'!G76) -> 0.000194545 | D71: =IF('DF raw data'!H76="","",'DF raw data'!H76) -> -2.52261e-05 | F71: 4.84628792e-06 | G71: 0.00019532318 | H71: -2.53270044e-05 | J71: 1.584044868e-05 | K71: 3.556778218e-05 | L71: 0.00096640271 | M71: 0.002655164595 | N71: 1.797716677e-06
A72: =IF('DF raw data'!E77="","",'DF raw data'!E77) -> -295 | B72: =IF('DF raw data'!F77="","",'DF raw data'!F77) -> 2.58544e-06 | C72: =IF('DF raw data'!G77="","",'DF raw data'!G77) -> 0.000189533 | D72: =IF('DF raw data'!H77="","",'DF raw data'!H77) -> -2.51843e-05 | F72: 2.59578176e-06 | G72: 0.000190291132 | H72: -2.52850372e-05 | J72: 1.713833956e-05 | K72: 4.413695197e-05 | L72: 0.001061548276 | M72: 0.003185938733 | N72: 2.361305909e-06
A73: =IF('DF raw data'!E78="","",'DF raw data'!E78) -> -294.5 | B73: =IF('DF raw data'!F78="","",'DF raw data'!F78) -> 8.67458e-08 | C73: =IF('DF raw data'!G78="","",'DF raw data'!G78) -> 0.000189362 | D73: =IF('DF raw data'!H78="","",'DF raw data'!H78) -> -2.49999e-05 | F73: 8.70927832e-08 | G73: 0.000190119448 | H73: -2.50998996e-05 | J73: 1.718188595e-05 | K73: 5.272789494e-05 | L73: 0.001156608 | M73: 0.003764242733 | N73: 3.030324551e-06
A74: =IF('DF raw data'!E79="","",'DF raw data'!E79) -> -294 | B74: =IF('DF raw data'!F79="","",'DF raw data'!F79) -> 5.34955e-07 | C74: =IF('DF raw data'!G79="","",'DF raw data'!G79) -> 0.000187743 | D74: =IF('DF raw data'!H79="","",'DF raw data'!H79) -> -2.48415e-05 | F74: 5.3709482e-07 | G74: 0.000188493972 | H74: -2.4940866e-05 | J74: 1.745043336e-05 | K74: 6.145311162e-05 | L74: 0.001250854986 | M74: 0.004389670226 | N74: 3.812795908e-06
A75: =IF('DF raw data'!E80="","",'DF raw data'!E80) -> -293.5 | B75: =IF('DF raw data'!F80="","",'DF raw data'!F80) -> 2.13635e-06 | C75: =IF('DF raw data'!G80="","",'DF raw data'!G80) -> 0.000185733 | D75: =IF('DF raw data'!H80="","",'DF raw data'!H80) -> -2.47563e-05 | F75: 2.1448954e-06 | G75: 0.000186475932 | H75: -2.48553252e-05 | J75: 1.852288106e-05 | K75: 7.071455216e-05 | L75: 0.001344092952 | M75: 0.005061716702 | N75: 4.716260388e-06
A76: =IF('DF raw data'!E81="","",'DF raw data'!E81) -> -293 | B76: =IF('DF raw data'!F81="","",'DF raw data'!F81) -> -3.05272e-06 | C76: =IF('DF raw data'!G81="","",'DF raw data'!G81) -> 0.000182705 | D76: =IF('DF raw data'!H81="","",'DF raw data'!H81) -> -2.45635e-05 | F76: -3.06493088e-06 | G76: 0.00018343582 | H76: -2.4661754e-05 | J76: 1.699041562e-05 | K76: 7.920975997e-05 | L76: 0.001435810862 | M76: 0.005779622133 | N76: 5.747181141e-06
A77: =IF('DF raw data'!E82="","",'DF raw data'!E82) -> -292.5 | B77: =IF('DF raw data'!F82="","",'DF raw data'!F82) -> 4.7624e-06 | C77: =IF('DF raw data'!G82="","",'DF raw data'!G82) -> 0.000196019 | D77: =IF('DF raw data'!H82="","",'DF raw data'!H82) -> -2.42321e-05 | F77: 4.7814496e-06 | G77: 0.000196803076 | H77: -2.43290284e-05 | J77: 1.938114042e-05 | K77: 8.890033018e-05 | L77: 0.0015342124 | M77: 0.006546728333 | N77: 6.924272799e-06
A78: =IF('DF raw data'!E83="","",'DF raw data'!E83) -> -292 | B78: =IF('DF raw data'!F83="","",'DF raw data'!F83) -> -1.57983e-06 | C78: =IF('DF raw data'!G83="","",'DF raw data'!G83) -> 0.000195308 | D78: =IF('DF raw data'!H83="","",'DF raw data'!H83) -> -2.39268e-05 | F78: -1.58614932e-06 | G78: 0.000196089232 | H78: -2.40225072e-05 | J78: 1.858806576e-05 | K78: 9.819436306e-05 | L78: 0.001632257016 | M78: 0.007362856841 | N78: 8.256577041e-06
A79: =IF('DF raw data'!E84="","",'DF raw data'!E84) -> -291.5 | B79: =IF('DF raw data'!F84="","",'DF raw data'!F84) -> 9.56532e-06 | C79: =IF('DF raw data'!G84="","",'DF raw data'!G84) -> 0.000192688 | D79: =IF('DF raw data'!H84="","",'DF raw data'!H84) -> -2.21537e-05 | F79: 9.60358128e-06 | G79: 0.000193458752 | H79: -2.22423148e-05 | J79: 2.33898564e-05 | K79: 0.0001098892913 | L79: 0.001728986392 | M79: 0.008227350037 | N79: 9.751547555e-06
A80: =IF('DF raw data'!E85="","",'DF raw data'!E85) -> -291 | B80: =IF('DF raw data'!F85="","",'DF raw data'!F85) -> 1.2962e-05 | C80: =IF('DF raw data'!G85="","",'DF raw data'!G85) -> 0.000189718 | D80: =IF('DF raw data'!H85="","",'DF raw data'!H85) -> -2.24097e-05 | F80: 1.3013848e-05 | G80: 0.000190476872 | H80: -2.24993388e-05 | J80: 2.98967804e-05 | K80: 0.0001248376815 | L80: 0.001824224828 | M80: 0.009139462451 | N80: 1.141589258e-05
A81: =IF('DF raw data'!E86="","",'DF raw data'!E86) -> -290.5 | B81: =IF('DF raw data'!F86="","",'DF raw data'!F86) -> -8.04477e-06 | C81: =IF('DF raw data'!G86="","",'DF raw data'!G86) -> 0.000191497 | D81: =IF('DF raw data'!H86="","",'DF raw data'!H86) -> -3.09769e-05 | F81: -8.07694908e-06 | G81: 0.000192262988 | H81: -3.11008076e-05 | J81: 2.585830586e-05 | K81: 0.0001377668344 | L81: 0.001920356322 | M81: 0.01009964061 | N81: 1.32601111e-05
A82: =IF('DF raw data'!E87="","",'DF raw data'!E87) -> -290 | B82: =IF('DF raw data'!F87="","",'DF raw data'!F87) -> 9.24141e-07 | C82: =IF('DF raw data'!G87="","",'DF raw data'!G87) -> 0.00018928 | D82: =IF('DF raw data'!H87="","",'DF raw data'!H87) -> -3.22645e-05 | F82: 9.27837564e-07 | G82: 0.00019003712 | H82: -3.2393558e-05 | J82: 2.632222465e-05 | K82: 0.0001509279467 | L82: 0.002015374882 | M82: 0.01110732805 | N82: 1.529132549e-05
A83: =IF('DF raw data'!E88="","",'DF raw data'!E88) -> -289.5 | B83: =IF('DF raw data'!F88="","",'DF raw data'!F88) -> 4.19043e-06 | C83: =IF('DF raw data'!G88="","",'DF raw data'!G88) -> 0.000187469 | D83: =IF('DF raw data'!H88="","",'DF raw data'!H88) -> -3.14145e-05 | F83: 4.20719172e-06 | G83: 0.000188218876 | H83: -3.1540158e-05 | J83: 2.842582051e-05 | K83: 0.000165140857 | L83: 0.00210948432 | M83: 0.01216207021 | N83: 1.751669155e-05
A84: =IF('DF raw data'!E89="","",'DF raw data'!E89) -> -289 | B84: =IF('DF raw data'!F89="","",'DF raw data'!F89) -> -7.98349e-06 | C84: =IF('DF raw data'!G89="","",'DF raw data'!G89) -> 0.000191346 | D84: =IF('DF raw data'!H89="","",'DF raw data'!H89) -> -2.82934e-05 | F84: -8.01542396e-06 | G84: 0.000192111384 | H84: -2.84065736e-05 | J84: 2.441810853e-05 | K84: 0.0001773499112 | L84: 0.002205540012 | M84: 0.01326484022 | N84: 1.994919305e-05
A85: =IF('DF raw data'!E90="","",'DF raw data'!E90) -> -288.5 | B85: =IF('DF raw data'!F90="","",'DF raw data'!F90) -> -1.228e-05 | C85: =IF('DF raw data'!G90="","",'DF raw data'!G90) -> 0.000196748 | D85: =IF('DF raw data'!H90="","",'DF raw data'!H90) -> -1.9707e-05 | F85: -1.232912e-05 | G85: 0.000197534992 | H85: -1.9785828e-05 | J85: 1.825354853e-05 | K85: 0.0001864766855 | L85: 0.002304307508 | M85: 0.01441699397 | N85: 2.260427619e-05
A86: =IF('DF raw data'!E91="","",'DF raw data'!E91) -> -288 | B86: =IF('DF raw data'!F91="","",'DF raw data'!F91) -> -4.9772e-06 | C86: =IF('DF raw data'!G91="","",'DF raw data'!G91) -> 0.000190948 | D86: =IF('DF raw data'!H91="","",'DF raw data'!H91) -> -2.09452e-05 | F86: -4.9971088e-06 | G86: 0.000191711792 | H86: -2.10289808e-05 | J86: 1.575499413e-05 | K86: 0.0001943541826 | L86: 0.002400163404 | M86: 0.01561707568 | N86: 2.548479248e-05
A87: =IF('DF raw data'!E92="","",'DF raw data'!E92) -> -287.5 | B87: =IF('DF raw data'!F92="","",'DF raw data'!F92) -> -2.80191e-06 | C87: =IF('DF raw data'!G92="","",'DF raw data'!G92) -> 0.000187504 | D87: =IF('DF raw data'!H92="","",'DF raw data'!H92) -> -1.56657e-05 | F87: -2.81311764e-06 | G87: 0.000188254016 | H87: -1.57283628e-05 | J87: 1.434843531e-05 | K87: 0.0002015284002 | L87: 0.002494290412 | M87: 0.01686422088 | N87: 2.859563775e-05
A88: =IF('DF raw data'!E93="","",'DF raw data'!E93) -> -287 | B88: =IF('DF raw data'!F93="","",'DF raw data'!F93) -> -5.4169e-06 | C88: =IF('DF raw data'!G93="","",'DF raw data'!G93) -> 0.000190726 | D88: =IF('DF raw data'!H93="","",'DF raw data'!H93) -> -3.4211e-05 | F88: -5.4385676e-06 | G88: 0.000191488904 | H88: -3.4347844e-05 | J88: 1.162915151e-05 | K88: 0.000207342976 | L88: 0.002590034864 | M88: 0.01815923831 | N88: 3.194984567e-05
A89: =IF('DF raw data'!E94="","",'DF raw data'!E94) -> -286.5 | B89: =IF('DF raw data'!F94="","",'DF raw data'!F94) -> -7.49376e-07 | C89: =IF('DF raw data'!G94="","",'DF raw data'!G94) -> 0.000192291 | D89: =IF('DF raw data'!H94="","",'DF raw data'!H94) -> -1.9951e-05 | F89: -7.52373504e-07 | G89: 0.000193060164 | H89: -2.0030804e-05 | J89: 1.125296475e-05 | K89: 0.0002129694583 | L89: 0.002686564946 | M89: 0.01950252079 | N89: 3.555872459e-05
A90: =IF('DF raw data'!E95="","",'DF raw data'!E95) -> -286 | B90: =IF('DF raw data'!F95="","",'DF raw data'!F95) -> 8.79303e-06 | C90: =IF('DF raw data'!G95="","",'DF raw data'!G95) -> 0.000192519 | D90: =IF('DF raw data'!H95="","",'DF raw data'!H95) -> -1.50427e-05 | F90: 8.82820212e-06 | G90: 0.000193289076 | H90: -1.51028708e-05 | J90: 1.566706581e-05 | K90: 0.0002208029913 | L90: 0.002783209484 | M90: 0.02089412553 | N90: 3.943197483e-05
A91: =IF('DF raw data'!E96="","",'DF raw data'!E96) -> -285.5 | B91: =IF('DF raw data'!F96="","",'DF raw data'!F96) -> 6.37091e-06 | C91: =IF('DF raw data'!G96="","",'DF raw data'!G96) -> 0.00018568 | D91: =IF('DF raw data'!H96="","",'DF raw data'!H96) -> -3.50096e-05 | F91: 6.39639364e-06 | G91: 0.00018642272 | H91: -3.51496384e-05 | J91: 1.886526263e-05 | K91: 0.0002302356226 | L91: 0.002876420844 | M91: 0.02233233595 | N91: 4.356905122e-05
A92: =IF('DF raw data'!E97="","",'DF raw data'!E97) -> -285 | B92: =IF('DF raw data'!F97="","",'DF raw data'!F97) -> 5.14834e-06 | C92: =IF('DF raw data'!G97="","",'DF raw data'!G97) -> 0.000191022 | D92: =IF('DF raw data'!H97="","",'DF raw data'!H97) -> -2.58306e-05 | F92: 5.16893336e-06 | G92: 0.000191786088 | H92: -2.59339224e-05 | J92: 2.144972931e-05 | K92: 0.0002409604872 | L92: 0.002972313888 | M92: 0.02381849289 | N92: 4.798660618e-05
A93: =IF('DF raw data'!E98="","",'DF raw data'!E98) -> -284.5 | B93: =IF('DF raw data'!F98="","",'DF raw data'!F98) -> -4.85195e-06 | C93: =IF('DF raw data'!G98="","",'DF raw data'!G98) -> 0.000199474 | D93: =IF('DF raw data'!H98="","",'DF raw data'!H98) -> -1.56814e-05 | F93: -4.8713578e-06 | G93: 0.000200271896 | H93: -1.57441256e-05 | J93: 1.901405041e-05 | K93: 0.0002504675124 | L93: 0.003072449836 | M93: 0.02535471781 | N93: 5.270676095e-05
A94: =IF('DF raw data'!E99="","",'DF raw data'!E99) -> -284 | B94: =IF('DF raw data'!F99="","",'DF raw data'!F99) -> -6.32478e-06 | C94: =IF('DF raw data'!G99="","",'DF raw data'!G99) -> 0.000199412 | D94: =IF('DF raw data'!H99="","",'DF raw data'!H99) -> -1.76154e-05 | F94: -6.35007912e-06 | G94: 0.000200209648 | H94: -1.76858616e-05 | J94: 1.583901085e-05 | K94: 0.0002583870179 | L94: 0.00317255466 | M94: 0.02694099514 | N94: 5.773943792e-05
A95: =IF('DF raw data'!E100="","",'DF raw data'!E100) -> -283.5 | B95: =IF('DF raw data'!F100="","",'DF raw data'!F100) -> 8.34919e-06 | C95: =IF('DF raw data'!G100="","",'DF raw data'!G100) -> 0.000203124 | D95: =IF('DF raw data'!H100="","",'DF raw data'!H100) -> -2.33196e-05 | F95: 8.38258676e-06 | G95: 0.000203936496 | H95: -2.34128784e-05 | J95: 2.003030423e-05 | K95: 0.00026840217 | L95: 0.003274522908 | M95: 0.0285782566 | N95: 6.310088867e-05
A96: =IF('DF raw data'!E101="","",'DF raw data'!E101) -> -283 | B96: =IF('DF raw data'!F101="","",'DF raw data'!F101) -> -7.92576e-06 | C96: =IF('DF raw data'!G101="","",'DF raw data'!G101) -> 0.000206128 | D96: =IF('DF raw data'!H101="","",'DF raw data'!H101) -> -1.83013e-05 | F96: -7.95746304e-06 | G96: 0.000206952512 | H96: -1.83745052e-05 | J96: 1.605157271e-05 | K96: 0.0002764279563 | L96: 0.003377999164 | M96: 0.03026725618 | N96: 6.880645667e-05
A97: =IF('DF raw data'!E102="","",'DF raw data'!E102) -> -282.5 | B97: =IF('DF raw data'!F102="","",'DF raw data'!F102) -> -1.70422e-06 | C97: =IF('DF raw data'!G102="","",'DF raw data'!G102) -> 0.000197065 | D97: =IF('DF raw data'!H102="","",'DF raw data'!H102) -> -2.9393e-05 | F97: -1.71103688e-06 | G97: 0.00019785326 | H97: -2.9510572e-05 | J97: 1.519605427e-05 | K97: 0.0002840259835 | L97: 0.003476925794 | M97: 0.03200571908 | N97: 7.485107862e-05
A98: =IF('DF raw data'!E103="","",'DF raw data'!E103) -> -282 | B98: =IF('DF raw data'!F103="","",'DF raw data'!F103) -> 1.142e-05 | C98: =IF('DF raw data'!G103="","",'DF raw data'!G103) -> 0.00019594 | D98: =IF('DF raw data'!H103="","",'DF raw data'!H103) -> -1.54791e-05 | F98: 1.146568e-05 | G98: 0.00019672376 | H98: -1.55410164e-05 | J98: 2.092889427e-05 | K98: 0.0002944904306 | L98: 0.003575287674 | M98: 0.03379336291 | N98: 8.12426386e-05
A99: =IF('DF raw data'!E104="","",'DF raw data'!E104) -> -281.5 | B99: =IF('DF raw data'!F104="","",'DF raw data'!F104) -> -4.60759e-08 | C99: =IF('DF raw data'!G104="","",'DF raw data'!G104) -> 0.000189187 | D99: =IF('DF raw data'!H104="","",'DF raw data'!H104) -> -1.77349e-05 | F99: -4.62602036e-08 | G99: 0.000189943748 | H99: -1.78058396e-05 | J99: 2.090576417e-05 | K99: 0.0003049433127 | L99: 0.003670259548 | M99: 0.03562849269 | N99: 8.79782597e-05
A100: =IF('DF raw data'!E105="","",'DF raw data'!E105) -> -281 | B100: =IF('DF raw data'!F105="","",'DF raw data'!F105) -> -1.90011e-06 | C100: =IF('DF raw data'!G105="","",'DF raw data'!G105) -> 0.000190893 | D100: =IF('DF raw data'!H105="","",'DF raw data'!H105) -> -2.37593e-05 | F100: -1.90771044e-06 | G100: 0.000191656572 | H100: -2.38543372e-05 | J100: 1.995190895e-05 | K100: 0.0003149192672 | L100: 0.003766087834 | M100: 0.0375115366 | N100: 9.507016753e-05
A101: =IF('DF raw data'!E106="","",'DF raw data'!E106) -> -280.5 | B101: =IF('DF raw data'!F106="","",'DF raw data'!F106) -> 8.15106e-06 | C101: =IF('DF raw data'!G106="","",'DF raw data'!G106) -> 0.000188689 | D101: =IF('DF raw data'!H106="","",'DF raw data'!H106) -> -1.43443e-05 | F101: 8.18366424e-06 | G101: 0.000189443756 | H101: -1.44016772e-05 | J101: 2.404374107e-05 | K101: 0.0003269411377 | L101: 0.003860809712 | M101: 0.03944194146 | N101: 0.0001025233824
A102: =IF('DF raw data'!E107="","",'DF raw data'!E107) -> -280 | B102: =IF('DF raw data'!F107="","",'DF raw data'!F107) -> -6.44839e-06 | C102: =IF('DF raw data'!G107="","",'DF raw data'!G107) -> 0.000194748 | D102: =IF('DF raw data'!H107="","",'DF raw data'!H107) -> -2.46103e-05 | F102: -6.47418356e-06 | G102: 0.000195526992 | H102: -2.47087412e-05 | J102: 2.080664929e-05 | K102: 0.0003373444623 | L102: 0.003958573208 | M102: 0.04142122806 | N102: 0.0001103587498
A103: =IF('DF raw data'!E108="","",'DF raw data'!E108) -> -279.5 | B103: =IF('DF raw data'!F108="","",'DF raw data'!F108) -> -8.62956e-06 | C103: =IF('DF raw data'!G108="","",'DF raw data'!G108) -> 0.000191404 | D103: =IF('DF raw data'!H108="","",'DF raw data'!H108) -> -1.83979e-05 | F103: -8.66407824e-06 | G103: 0.000192169616 | H103: -1.84714916e-05 | J103: 1.647461017e-05 | K103: 0.0003455817674 | L103: 0.004054658016 | M103: 0.04344855707 | N103: 0.0001185790113
A104: =IF('DF raw data'!E109="","",'DF raw data'!E109) -> -279 | B104: =IF('DF raw data'!F109="","",'DF raw data'!F109) -> 1.62335e-05 | C104: =IF('DF raw data'!G109="","",'DF raw data'!G109) -> 0.0001901 | D104: =IF('DF raw data'!H109="","",'DF raw data'!H109) -> -2.84691e-05 | F104: 1.6298434e-05 | G104: 0.0001908604 | H104: -2.85829764e-05 | J104: 2.462382717e-05 | K104: 0.000357893681 | L104: 0.004150088216 | M104: 0.04552360118 | N104: 0.0001271909306
A105: =IF('DF raw data'!E110="","",'DF raw data'!E110) -> -278.5 | B105: =IF('DF raw data'!F110="","",'DF raw data'!F110) -> 4.05628e-06 | C105: =IF('DF raw data'!G110="","",'DF raw data'!G110) -> 0.000191672 | D105: =IF('DF raw data'!H110="","",'DF raw data'!H110) -> -2.21052e-05 | F105: 4.07250512e-06 | G105: 0.000192438688 | H105: -2.21936208e-05 | J105: 2.666007973e-05 | K105: 0.0003712237209 | L105: 0.00424630756 | M105: 0.04764675496 | N105: 0.0001362068499
A106: =IF('DF raw data'!E111="","",'DF raw data'!E111) -> -278 | B106: =IF('DF raw data'!F111="","",'DF raw data'!F111) -> -9.59326e-06 | C106: =IF('DF raw data'!G111="","",'DF raw data'!G111) -> 0.000182431 | D106: =IF('DF raw data'!H111="","",'DF raw data'!H111) -> -1.58596e-05 | F106: -9.63163304e-06 | G106: 0.000183160724 | H106: -1.59230384e-05 | J106: 2.184426321e-05 | K106: 0.0003821458525 | L106: 0.004337887922 | M106: 0.04981569892 | N106: 0.0001456157243
A107: =IF('DF raw data'!E112="","",'DF raw data'!E112) -> -277.5 | B107: =IF('DF raw data'!F112="","",'DF raw data'!F112) -> -6.51538e-06 | C107: =IF('DF raw data'!G112="","",'DF raw data'!G112) -> 0.000182355 | D107: =IF('DF raw data'!H112="","",'DF raw data'!H112) -> -1.87351e-05 | F107: -6.54144152e-06 | G107: 0.00018308442 | H107: -1.88100404e-05 | J107: 1.857354245e-05 | K107: 0.0003914326237 | L107: 0.004429430132 | M107: 0.05203041399 | N107: 0.0001554258224
A108: =IF('DF raw data'!E113="","",'DF raw data'!E113) -> -277 | B108: =IF('DF raw data'!F113="","",'DF raw data'!F113) -> -7.22481e-06 | C108: =IF('DF raw data'!G113="","",'DF raw data'!G113) -> 0.000188182 | D108: =IF('DF raw data'!H113="","",'DF raw data'!H113) -> -1.27923e-05 | F108: -7.25370924e-06 | G108: 0.000188934728 | H108: -1.28434692e-05 | J108: 1.494668783e-05 | K108: 0.0003989059676 | L108: 0.004523897496 | M108: 0.05429236273 | N108: 0.0001656587584
A109: =IF('DF raw data'!E114="","",'DF raw data'!E114) -> -276.5 | B109: =IF('DF raw data'!F114="","",'DF raw data'!F114) -> -1.11932e-05 | C109: =IF('DF raw data'!G114="","",'DF raw data'!G114) -> 0.000183241 | D109: =IF('DF raw data'!H114="","",'DF raw data'!H114) -> -1.62257e-05 | F109: -1.12379728e-05 | G109: 0.000183973964 | H109: -1.62906028e-05 | J109: 9.327701432e-06 | K109: 0.0004035698183 | L109: 0.004615884478 | M109: 0.05660030497 | N109: 0.0001763119967
A110: =IF('DF raw data'!E115="","",'DF raw data'!E115) -> -276 | B110: =IF('DF raw data'!F115="","",'DF raw data'!F115) -> -8.50474e-06 | C110: =IF('DF raw data'!G115="","",'DF raw data'!G115) -> 0.000179989 | D110: =IF('DF raw data'!H115="","",'DF raw data'!H115) -> -1.4818e-05 | F110: -8.53875896e-06 | G110: 0.000180708956 | H110: -1.4877272e-05 | J110: 5.058321952e-06 | K110: 0.0004060989793 | L110: 0.004706238956 | M110: 0.05895342445 | N110: 0.000187386352
A111: =IF('DF raw data'!E116="","",'DF raw data'!E116) -> -275.5 | B111: =IF('DF raw data'!F116="","",'DF raw data'!F116) -> -7.34604e-06 | C111: =IF('DF raw data'!G116="","",'DF raw data'!G116) -> 0.000185127 | D111: =IF('DF raw data'!H116="","",'DF raw data'!H116) -> -2.21115e-05 | F111: -7.37542416e-06 | G111: 0.000185867508 | H111: -2.2199946e-05 | J111: 1.370609872e-06 | K111: 0.0004067842843 | L111: 0.00479917271 | M111: 0.06135301081 | N111: 0.0001989023823
A112: =IF('DF raw data'!E117="","",'DF raw data'!E117) -> -275 | B112: =IF('DF raw data'!F117="","",'DF raw data'!F117) -> -1.13333e-07 | C112: =IF('DF raw data'!G117="","",'DF raw data'!G117) -> 0.000183528 | D112: =IF('DF raw data'!H117="","",'DF raw data'!H117) -> -1.30227e-05 | F112: -1.13786332e-07 | G112: 0.000184262112 | H112: -1.30747908e-05 | J112: 1.313716706e-06 | K112: 0.0004074411426 | L112: 0.004891303766 | M112: 0.06379866269 | N112: 0.0002108648094
A113: =IF('DF raw data'!E118="","",'DF raw data'!E118) -> -274.5 | B113: =IF('DF raw data'!F118="","",'DF raw data'!F118) -> -1.45257e-06 | C113: =IF('DF raw data'!G118="","",'DF raw data'!G118) -> 0.0001776 | D113: =IF('DF raw data'!H118="","",'DF raw data'!H118) -> -2.23344e-05 | F113: -1.45838028e-06 | G113: 0.0001783104 | H113: -2.24237376e-05 | J113: 5.845265658e-07 | K113: 0.0004077334059 | L113: 0.004980458966 | M113: 0.06628889217 | N113: 0.0002232672954
A114: =IF('DF raw data'!E119="","",'DF raw data'!E119) -> -274 | B114: =IF('DF raw data'!F119="","",'DF raw data'!F119) -> 3.79774e-06 | C114: =IF('DF raw data'!G119="","",'DF raw data'!G119) -> 0.00017735 | D114: =IF('DF raw data'!H119="","",'DF raw data'!H119) -> -1.78444e-05 | F114: 3.81293096e-06 | G114: 0.0001780594 | H114: -1.79157776e-05 | J114: 2.490992046e-06 | K114: 0.0004089789019 | L114: 0.005069488666 | M114: 0.0688236365 | N114: 0.0002361171561
A115: =IF('DF raw data'!E120="","",'DF raw data'!E120) -> -273.5 | B115: =IF('DF raw data'!F120="","",'DF raw data'!F120) -> -2.80179e-06 | C115: =IF('DF raw data'!G120="","",'DF raw data'!G120) -> 0.000172971 | D115: =IF('DF raw data'!H120="","",'DF raw data'!H120) -> -1.58671e-05 | F115: -2.81299716e-06 | G115: 0.000173662884 | H115: -1.59305684e-05 | J115: 1.084493466e-06 | K115: 0.0004095211487 | L115: 0.005156320108 | M115: 0.07140179656 | N115: 0.0002494109752
A116: =IF('DF raw data'!E121="","",'DF raw data'!E121) -> -273 | B116: =IF('DF raw data'!F121="","",'DF raw data'!F121) -> 6.59648e-07 | C116: =IF('DF raw data'!G121="","",'DF raw data'!G121) -> 0.000175447 | D116: =IF('DF raw data'!H121="","",'DF raw data'!H121) -> -1.95469e-05 | F116: 6.62286592e-07 | G116: 0.000176148788 | H116: -1.96250876e-05 | J116: 1.415636762e-06 | K116: 0.000410228967 | L116: 0.005244394502 | M116: 0.07402399381 | N116: 0.0002631628131
A117: =IF('DF raw data'!E122="","",'DF raw data'!E122) -> -272.5 | B117: =IF('DF raw data'!F122="","",'DF raw data'!F122) -> -6.57659e-06 | C117: =IF('DF raw data'!G122="","",'DF raw data'!G122) -> 0.00017853 | D117: =IF('DF raw data'!H122="","",'DF raw data'!H122) -> -2.33403e-05 | F117: -6.60289636e-06 | G117: 0.00017924412 | H117: -2.34336612e-05 | J117: -1.885811418e-06 | K117: 0.0004092860613 | L117: 0.005334016562 | M117: 0.07669100209 | N117: 0.0002773886812
A118: =IF('DF raw data'!E123="","",'DF raw data'!E123) -> -272 | B118: =IF('DF raw data'!F123="","",'DF raw data'!F123) -> -2.4799e-06 | C118: =IF('DF raw data'!G123="","",'DF raw data'!G123) -> 0.000176317 | D118: =IF('DF raw data'!H123="","",'DF raw data'!H123) -> -1.89872e-05 | F118: -2.4898196e-06 | G118: 0.000177022268 | H118: -1.90631488e-05 | J118: -3.130721218e-06 | K118: 0.0004077207007 | L118: 0.005422527696 | M118: 0.07940226594 | N118: 0.0002920905894
A119: =IF('DF raw data'!E124="","",'DF raw data'!E124) -> -271.5 | B119: =IF('DF raw data'!F124="","",'DF raw data'!F124) -> -2.15746e-06 | C119: =IF('DF raw data'!G124="","",'DF raw data'!G124) -> 0.000173093 | D119: =IF('DF raw data'!H124="","",'DF raw data'!H124) -> -2.16964e-05 | F119: -2.16608984e-06 | G119: 0.000173785372 | H119: -2.17831856e-05 | J119: -4.213766138e-06 | K119: 0.0004056138176 | L119: 0.005509420382 | M119: 0.08215697613 | N119: 0.0003072674548
A120: =IF('DF raw data'!E125="","",'DF raw data'!E125) -> -271 | B120: =IF('DF raw data'!F125="","",'DF raw data'!F125) -> -4.6561e-06 | C120: =IF('DF raw data'!G125="","",'DF raw data'!G125) -> 0.000184397 | D120: =IF('DF raw data'!H125="","",'DF raw data'!H125) -> -2.195e-05 | F120: -4.6747244e-06 | G120: 0.000185134588 | H120: -2.20378e-05 | J120: -6.551128338e-06 | K120: 0.0004023382535 | L120: 0.005601987676 | M120: 0.08495796997 | N120: 0.0003229586092
A121: =IF('DF raw data'!E126="","",'DF raw data'!E126) -> -270.5 | B121: =IF('DF raw data'!F126="","",'DF raw data'!F126) -> 5.27038e-06 | C121: =IF('DF raw data'!G126="","",'DF raw data'!G126) -> 0.000187174 | D121: =IF('DF raw data'!H126="","",'DF raw data'!H126) -> -1.73422e-05 | F121: 5.29146152e-06 | G121: 0.000187922696 | H121: -1.74115688e-05 | J121: -3.905397578e-06 | K121: 0.0004003855547 | L121: 0.005695949024 | M121: 0.08780594448 | N121: 0.0003391805345
A122: =IF('DF raw data'!E127="","",'DF raw data'!E127) -> -270 | B122: =IF('DF raw data'!F127="","",'DF raw data'!F127) -> -6.76321e-07 | C122: =IF('DF raw data'!G127="","",'DF raw data'!G127) -> 0.000186008 | D122: =IF('DF raw data'!H127="","",'DF raw data'!H127) -> -3.41541e-05 | F122: -6.79026284e-07 | G122: 0.000186752032 | H122: -3.42907164e-05 | J122: -4.24491072e-06 | K122: 0.0003982630993 | L122: 0.00578932504 | M122: 0.090700607 | N122: 0.0003559386857
A123: =IF('DF raw data'!E128="","",'DF raw data'!E128) -> -269.5 | B123: =IF('DF raw data'!F128="","",'DF raw data'!F128) -> 3.93851e-06 | C123: =IF('DF raw data'!G128="","",'DF raw data'!G128) -> 0.000191665 | D123: =IF('DF raw data'!H128="","",'DF raw data'!H128) -> -3.80196e-05 | F123: 3.95426404e-06 | G123: 0.00019243166 | H123: -3.81716784e-05 | J123: -2.2677787e-06 | K123: 0.00039712921 | L123: 0.00588554087 | M123: 0.09364337743 | N123: 0.0003732584839
A124: =IF('DF raw data'!E129="","",'DF raw data'!E129) -> -269 | B124: =IF('DF raw data'!F129="","",'DF raw data'!F129) -> -5.302e-06 | C124: =IF('DF raw data'!G129="","",'DF raw data'!G129) -> 0.000190868 | D124: =IF('DF raw data'!H129="","",'DF raw data'!H129) -> -1.38023e-05 | F124: -5.323208e-06 | G124: 0.000191631472 | H124: -1.38575092e-05 | J124: -4.9293827e-06 | K124: 0.0003946645186 | L124: 0.005981356606 | M124: 0.09663405574 | N124: 0.0003911468095
A125: =IF('DF raw data'!E130="","",'DF raw data'!E130) -> -268.5 | B125: =IF('DF raw data'!F130="","",'DF raw data'!F130) -> -2.53936e-06 | C125: =IF('DF raw data'!G130="","",'DF raw data'!G130) -> 0.000181696 | D125: =IF('DF raw data'!H130="","",'DF raw data'!H130) -> -2.54505e-05 | F125: -2.54951744e-06 | G125: 0.000182422784 | H125: -2.5552302e-05 | J125: -6.20414142e-06 | K125: 0.0003915624479 | L125: 0.006072567998 | M125: 0.09967033974 | N125: 0.0004095848698
A126: =IF('DF raw data'!E131="","",'DF raw data'!E131) -> -268 | B126: =IF('DF raw data'!F131="","",'DF raw data'!F131) -> -3.69541e-06 | C126: =IF('DF raw data'!G131="","",'DF raw data'!G131) -> 0.000185037 | D126: =IF('DF raw data'!H131="","",'DF raw data'!H131) -> -2.17685e-05 | F126: -3.71019164e-06 | G126: 0.000185777148 | H126: -2.1855574e-05 | J126: -8.05923724e-06 | K126: 0.0003875328293 | L126: 0.006165456572 | M126: 0.102753068 | N126: 0.0004285913296
A127: =IF('DF raw data'!E132="","",'DF raw data'!E132) -> -267.5 | B127: =IF('DF raw data'!F132="","",'DF raw data'!F132) -> 7.64008e-06 | C127: =IF('DF raw data'!G132="","",'DF raw data'!G132) -> 0.000189004 | D127: =IF('DF raw data'!H132="","",'DF raw data'!H132) -> -1.65926e-05 | F127: 7.67064032e-06 | G127: 0.000189760016 | H127: -1.66589704e-05 | J127: -4.22391708e-06 | K127: 0.0003854208708 | L127: 0.00626033658 | M127: 0.1058832363 | N127: 0.0004481872456
A128: =IF('DF raw data'!E133="","",'DF raw data'!E133) -> -267 | B128: =IF('DF raw data'!F133="","",'DF raw data'!F133) -> -2.38616e-07 | C128: =IF('DF raw data'!G133="","",'DF raw data'!G133) -> 0.000180362 | D128: =IF('DF raw data'!H133="","",'DF raw data'!H133) -> -1.74028e-05 | F128: =(1-$G$1*($B$49-$G$2))*B128 -> -2.39570464e-07 | G128: 0.000181083448 | H128: -1.74724112e-05 | J128: =F128*$G$3+J127 -> -4.343702312e-06 | K128: =J128*$G$3+K127 -> 0.0003832490196 | L128: =G128*$G$3+L127 -> 0.006350878304 | M128: =L128*$G$3+M127 -> 0.1090586755 | N128: =(J128^2+L128^2)*$G$3+N127 -> 0.0004683540826
A129: =IF('DF raw data'!E134="","",'DF raw data'!E134) -> -266.5 | B129: =IF('DF raw data'!F134="","",'DF raw data'!F134) -> 4.69899e-06 | C129: =IF('DF raw data'!G134="","",'DF raw data'!G134) -> 0.000178467 | D129: =IF('DF raw data'!H134="","",'DF raw data'!H134) -> -2.54013e-05 | F129: 4.71778596e-06 | G129: 0.000179180868 | H129: -2.55029052e-05 | J129: -1.984809332e-06 | K129: 0.0003822566149 | L129: 0.006440468738 | M129: 0.1122789098 | N129: 0.0004890939034
A130: =IF('DF raw data'!E135="","",'DF raw data'!E135) -> -266 | B130: =IF('DF raw data'!F135="","",'DF raw data'!F135) -> 1.66778e-05 | C130: =IF('DF raw data'!G135="","",'DF raw data'!G135) -> 0.000177049 | D130: =IF('DF raw data'!H135="","",'DF raw data'!H135) -> -2.23345e-05 | F130: 1.67445112e-05 | G130: 0.000177757196 | H130: -2.2423838e-05 | J130: 6.387446268e-06 | K130: 0.0003854503381 | L130: 0.006529347336 | M130: 0.1155435835 | N130: 0.0005104101121
A131: =IF('DF raw data'!E136="","",'DF raw data'!E136) -> -265.5 | B131: =IF('DF raw data'!F136="","",'DF raw data'!F136) -> 4.25091e-06 | C131: =IF('DF raw data'!G136="","",'DF raw data'!G136) -> 0.000186926 | D131: =IF('DF raw data'!H136="","",'DF raw data'!H136) -> -2.56774e-05 | F131: 4.26791364e-06 | G131: 0.000187673704 | H131: -2.57801096e-05 | J131: 8.521403088e-06 | K131: 0.0003897110396 | L131: 0.006623184188 | M131: 0.1188551756 | N131: 0.0005323434328
A132: =IF('DF raw data'!E137="","",'DF raw data'!E137) -> -265 | B132: =IF('DF raw data'!F137="","",'DF raw data'!F137) -> -8.75533e-06 | C132: =IF('DF raw data'!G137="","",'DF raw data'!G137) -> 0.000191845 | D132: =IF('DF raw data'!H137="","",'DF raw data'!H137) -> -2.35815e-05 | F132: -8.79035132e-06 | G132: 0.00019261238 | H132: -2.3675826e-05 | J132: 4.126227428e-06 | K132: 0.0003917741533 | L132: 0.006719490378 | M132: 0.1222149208 | N132: 0.0005549192168
A133: =IF('DF raw data'!E138="","",'DF raw data'!E138) -> -264.5 | B133: =IF('DF raw data'!F138="","",'DF raw data'!F138) -> -4.08493e-06 | C133: =IF('DF raw data'!G138="","",'DF raw data'!G138) -> 0.000199144 | D133: =IF('DF raw data'!H138="","",'DF raw data'!H138) -> -1.31256e-05 | F133: -4.10126972e-06 | G133: 0.000199940576 | H133: -1.31781024e-05 | J133: 2.075592568e-06 | K133: 0.0003928119496 | L133: 0.006819460666 | M133: 0.1256246511 | N133: 0.0005781717408
A134: =IF('DF raw data'!E139="","",'DF raw data'!E139) -> -264 | B134: =IF('DF raw data'!F139="","",'DF raw data'!F139) -> 4.56182e-07 | C134: =IF('DF raw data'!G139="","",'DF raw data'!G139) -> 0.000195209 | D134: =IF('DF raw data'!H139="","",'DF raw data'!H139) -> -1.94946e-06 | F134: 4.58006728e-07 | G134: 0.000195989836 | H134: -1.95725784e-06 | J134: 2.304595932e-06 | K134: 0.0003939642476 | L134: 0.006917455584 | M134: 0.1290833789 | N134: 0.0006020973394
A135: =IF('DF raw data'!E140="","",'DF raw data'!E140) -> -263.5 | B135: =IF('DF raw data'!F140="","",'DF raw data'!F140) -> -2.53982e-06 | C135: =IF('DF raw data'!G140="","",'DF raw data'!G140) -> 0.00019516 | D135: =IF('DF raw data'!H140="","",'DF raw data'!H140) -> -2.47349e-05 | F135: -2.54997928e-06 | G135: 0.00019594064 | H135: -2.48338396e-05 | J135: 1.029606292e-06 | K135: 0.0003944790507 | L135: 0.007015425904 | M135: 0.1325910919 | N135: 0.0006267054402
A136: =IF('DF raw data'!E141="","",'DF raw data'!E141) -> -263 | B136: =IF('DF raw data'!F141="","",'DF raw data'!F141) -> 1.43e-06 | C136: =IF('DF raw data'!G141="","",'DF raw data'!G141) -> 0.00020554 | D136: =IF('DF raw data'!H141="","",'DF raw data'!H141) -> -2.20233e-05 | F136: 1.43572e-06 | G136: 0.00020636216 | H136: -2.21113932e-05 | J136: 1.747466292e-06 | K136: 0.0003953527839 | L136: 0.007118606984 | M136: 0.1361503954 | N136: 0.0006520427244
A137: =IF('DF raw data'!E142="","",'DF raw data'!E142) -> -262.5 | B137: =IF('DF raw data'!F142="","",'DF raw data'!F142) -> -3.06284e-07 | C137: =IF('DF raw data'!G142="","",'DF raw data'!G142) -> 0.000198325 | D137: =IF('DF raw data'!H142="","",'DF raw data'!H142) -> -1.15874e-05 | F137: -3.07509136e-07 | G137: 0.0001991183 | H137: -1.16337496e-05 | J137: 1.593711724e-06 | K137: 0.0003961496397 | L137: 0.007218166134 | M137: 0.1397594784 | N137: 0.0006780936869
A138: =IF('DF raw data'!E143="","",'DF raw data'!E143) -> -262 | B138: =IF('DF raw data'!F143="","",'DF raw data'!F143) -> 1.88149e-06 | C138: =IF('DF raw data'!G143="","",'DF raw data'!G143) -> 0.000187102 | D138: =IF('DF raw data'!H143="","",'DF raw data'!H143) -> -2.65259e-05 | F138: 1.88901596e-06 | G138: 0.000187850408 | H138: -2.66320036e-05 | J138: 2.538219704e-06 | K138: 0.0003974187496 | L138: 0.007312091338 | M138: 0.1434155241 | N138: 0.00070482703
A139: =IF('DF raw data'!E144="","",'DF raw data'!E144) -> -261.5 | B139: =IF('DF raw data'!F144="","",'DF raw data'!F144) -> 4.05738e-06 | C139: =IF('DF raw data'!G144="","",'DF raw data'!G144) -> 0.000189083 | D139: =IF('DF raw data'!H144="","",'DF raw data'!H144) -> -2.37773e-05 | F139: 4.07360952e-06 | G139: 0.000189839332 | H139: -2.38724092e-05 | J139: 4.575024464e-06 | K139: 0.0003997062618 | L139: 0.007407011004 | M139: 0.1471190296 | N139: 0.0007322589464
A140: =IF('DF raw data'!E145="","",'DF raw data'!E145) -> -261 | B140: =IF('DF raw data'!F145="","",'DF raw data'!F145) -> 5.33686e-06 | C140: =IF('DF raw data'!G145="","",'DF raw data'!G145) -> 0.000187331 | D140: =IF('DF raw data'!H145="","",'DF raw data'!H145) -> -1.99611e-05 | F140: 5.35820744e-06 | G140: 0.000188080324 | H140: -2.00409444e-05 | J140: 7.254128184e-06 | K140: 0.0004033333259 | L140: 0.007501051166 | M140: 0.1508695552 | N140: 0.000760391857
A141: =IF('DF raw data'!E146="","",'DF raw data'!E146) -> -260.5 | B141: =IF('DF raw data'!F146="","",'DF raw data'!F146) -> -9.00479e-06 | C141: =IF('DF raw data'!G146="","",'DF raw data'!G146) -> 0.000190793 | D141: =IF('DF raw data'!H146="","",'DF raw data'!H146) -> -3.24762e-05 | F141: -9.04080916e-06 | G141: 0.000191556172 | H141: -3.26061048e-05 | J141: 2.733723604e-06 | K141: 0.0004047001877 | L141: 0.007596829252 | M141: 0.1546679698 | N141: 0.0007892477681
A142: =IF('DF raw data'!E147="","",'DF raw data'!E147) -> -260 | B142: =IF('DF raw data'!F147="","",'DF raw data'!F147) -> 2.62105e-08 | C142: =IF('DF raw data'!G147="","",'DF raw data'!G147) -> 0.000202671 | D142: =IF('DF raw data'!H147="","",'DF raw data'!H147) -> -3.06297e-05 | F142: 2.6315342e-08 | G142: 0.000203481684 | H142: -3.07522188e-05 | J142: 2.746881275e-06 | K142: 0.0004060736283 | L142: 0.007698570094 | M142: 0.1585172548 | N142: 0.0008188817626
A143: =IF('DF raw data'!E148="","",'DF raw data'!E148) -> -259.5 | B143: =IF('DF raw data'!F148="","",'DF raw data'!F148) -> 3.60447e-06 | C143: =IF('DF raw data'!G148="","",'DF raw data'!G148) -> 0.000196123 | D143: =IF('DF raw data'!H148="","",'DF raw data'!H148) -> -1.66044e-05 | F143: 3.61888788e-06 | G143: 0.000196907492 | H143: -1.66708176e-05 | J143: 4.556325215e-06 | K143: 0.000408351791 | L143: 0.00779702384 | M143: 0.1624157668 | N143: 0.0008492785634
A144: =IF('DF raw data'!E149="","",'DF raw data'!E149) -> -259 | B144: =IF('DF raw data'!F149="","",'DF raw data'!F149) -> 2.83962e-06 | C144: =IF('DF raw data'!G149="","",'DF raw data'!G149) -> 0.000180819 | D144: =IF('DF raw data'!H149="","",'DF raw data'!H149) -> -2.20027e-05 | F144: 2.85097848e-06 | G144: 0.000181542276 | H144: -2.20907108e-05 | J144: 5.981814455e-06 | K144: 0.0004113426982 | L144: 0.007887794978 | M144: 0.1663596643 | N144: 0.0008803872361
A145: =IF('DF raw data'!E150="","",'DF raw data'!E150) -> -258.5 | B145: =IF('DF raw data'!F150="","",'DF raw data'!F150) -> 2.90361e-06 | C145: =IF('DF raw data'!G150="","",'DF raw data'!G150) -> 0.000183882 | D145: =IF('DF raw data'!H150="","",'DF raw data'!H150) -> -2.25882e-05 | F145: 2.91522444e-06 | G145: 0.000184617528 | H145: -2.26785528e-05 | J145: 7.439426675e-06 | K145: 0.0004150624115 | L145: 0.007980103742 | M145: 0.1703497161 | N145: 0.0009122282916
A146: =IF('DF raw data'!E151="","",'DF raw data'!E151) -> -258 | B146: =IF('DF raw data'!F151="","",'DF raw data'!F151) -> -4.3421e-06 | C146: =IF('DF raw data'!G151="","",'DF raw data'!G151) -> 0.000191952 | D146: =IF('DF raw data'!H151="","",'DF raw data'!H151) -> -1.24384e-05 | F146: -4.3594684e-06 | G146: 0.000192719808 | H146: -1.24881536e-05 | J146: 5.259692475e-06 | K146: 0.0004176922578 | L146: 0.008076463646 | M146: 0.174387948 | N146: 0.000944842938
A147: =IF('DF raw data'!E152="","",'DF raw data'!E152) -> -257.5 | B147: =IF('DF raw data'!F152="","",'DF raw data'!F152) -> 1.74677e-06 | C147: =IF('DF raw data'!G152="","",'DF raw data'!G152) -> 0.000189389 | D147: =IF('DF raw data'!H152="","",'DF raw data'!H152) -> -1.6662e-05 | F147: 1.75375708e-06 | G147: 0.000190146556 | H147: -1.6728648e-05 | J147: 6.136571015e-06 | K147: 0.0004207605433 | L147: 0.008171536924 | M147: 0.1784737164 | N147: 0.0009782299647
A148: =IF('DF raw data'!E153="","",'DF raw data'!E153) -> -257 | B148: =IF('DF raw data'!F153="","",'DF raw data'!F153) -> -3.76679e-06 | C148: =IF('DF raw data'!G153="","",'DF raw data'!G153) -> 0.00018835 | D148: =IF('DF raw data'!H153="","",'DF raw data'!H153) -> -1.02924e-05 | F148: -3.78185716e-06 | G148: 0.0001891034 | H148: -1.03335696e-05 | J148: 4.245642435e-06 | K148: 0.0004228833645 | L148: 0.008266088624 | M148: 0.1826067607 | N148: 0.001012394084
A149: =IF('DF raw data'!E154="","",'DF raw data'!E154) -> -256.5 | B149: =IF('DF raw data'!F154="","",'DF raw data'!F154) -> -4.01708e-06 | C149: =IF('DF raw data'!G154="","",'DF raw data'!G154) -> 0.00017996 | D149: =IF('DF raw data'!H154="","",'DF raw data'!H154) -> -1.87932e-05 | F149: -4.03314832e-06 | G149: 0.00018067984 | H149: -1.88683728e-05 | J149: 2.229068275e-06 | K149: 0.0004239978986 | L149: 0.008356428544 | M149: 0.186784975 | N149: 0.001047309036
A150: =IF('DF raw data'!E155="","",'DF raw data'!E155) -> -256 | B150: =IF('DF raw data'!F155="","",'DF raw data'!F155) -> -1.09358e-05 | C150: =IF('DF raw data'!G155="","",'DF raw data'!G155) -> 0.000186578 | D150: =IF('DF raw data'!H155="","",'DF raw data'!H155) -> -2.00157e-05 | F150: -1.09795432e-05 | G150: 0.000187324312 | H150: -2.00957628e-05 | J150: -3.260703325e-06 | K150: 0.000422367547 | L150: 0.0084500907 | M150: 0.1910100203 | N150: 0.001083011057
A151: =IF('DF raw data'!E156="","",'DF raw data'!E156) -> -255.5 | B151: =IF('DF raw data'!F156="","",'DF raw data'!F156) -> -6.26127e-06 | C151: =IF('DF raw data'!G156="","",'DF raw data'!G156) -> 0.000179141 | D151: =IF('DF raw data'!H156="","",'DF raw data'!H156) -> -1.54974e-05 | F151: -6.28631508e-06 | G151: 0.000179857564 | H151: -1.55593896e-05 | J151: -6.403860865e-06 | K151: 0.0004191656165 | L151: 0.008540019482 | M151: 0.1952800301 | N151: 0.001119477044
A152: =IF('DF raw data'!E157="","",'DF raw data'!E157) -> -255 | B152: =IF('DF raw data'!F157="","",'DF raw data'!F157) -> 6.43023e-06 | C152: =IF('DF raw data'!G157="","",'DF raw data'!G157) -> 0.000185694 | D152: =IF('DF raw data'!H157="","",'DF raw data'!H157) -> -2.67774e-05 | F152: 6.45595092e-06 | G152: 0.000186436776 | H152: -2.68845096e-05 | J152: -3.175885405e-06 | K152: 0.0004175776738 | L152: 0.00863323787 | M152: 0.199596649 | N152: 0.001156743447
A153: =IF('DF raw data'!E158="","",'DF raw data'!E158) -> -254.5 | B153: =IF('DF raw data'!F158="","",'DF raw data'!F158) -> 3.9875e-06 | C153: =IF('DF raw data'!G158="","",'DF raw data'!G158) -> 0.000199793 | D153: =IF('DF raw data'!H158="","",'DF raw data'!H158) -> -1.4598e-05 | F153: 4.00345e-06 | G153: 0.000200592172 | H153: -1.4656392e-05 | J153: -1.174160405e-06 | K153: 0.0004169905936 | L153: 0.008733533956 | M153: 0.203963416 | N153: 0.001194880756
A154: =IF('DF raw data'!E159="","",'DF raw data'!E159) -> -254 | B154: =IF('DF raw data'!F159="","",'DF raw data'!F159) -> 4.25172e-06 | C154: =IF('DF raw data'!G159="","",'DF raw data'!G159) -> 0.000205117 | D154: =IF('DF raw data'!H159="","",'DF raw data'!H159) -> -2.61945e-05 | F154: 4.26872688e-06 | G154: 0.000205937468 | H154: -2.6299278e-05 | J154: 9.602030348e-07 | K154: 0.0004174706951 | L154: 0.00883650269 | M154: 0.2083816673 | N154: 0.001233922646
A155: =IF('DF raw data'!E160="","",'DF raw data'!E160) -> -253.5 | B155: =IF('DF raw data'!F160="","",'DF raw data'!F160) -> 5.95917e-07 | C155: =IF('DF raw data'!G160="","",'DF raw data'!G160) -> 0.000193856 | D155: =IF('DF raw data'!H160="","",'DF raw data'!H160) -> -1.99573e-05 | F155: 5.98300668e-07 | G155: 0.000194631424 | H155: -2.00371292e-05 | J155: 1.259353369e-06 | K155: 0.0004181003718 | L155: 0.008933818402 | M155: 0.2128485765 | N155: 0.001273829203
A156: =IF('DF raw data'!E161="","",'DF raw data'!E161) -> -253 | B156: =IF('DF raw data'!F161="","",'DF raw data'!F161) -> 5.92196e-07 | C156: =IF('DF raw data'!G161="","",'DF raw data'!G161) -> 0.000190747 | D156: =IF('DF raw data'!H161="","",'DF raw data'!H161) -> -1.41157e-05 | F156: 5.94564784e-07 | G156: 0.000191509988 | H156: -1.41721628e-05 | J156: 1.556635761e-06 | K156: 0.0004188786897 | L156: 0.009029573396 | M156: 0.2173633632 | N156: 0.001314595802
A157: =IF('DF raw data'!E162="","",'DF raw data'!E162) -> -252.5 | B157: =IF('DF raw data'!F162="","",'DF raw data'!F162) -> 5.46631e-06 | C157: =IF('DF raw data'!G162="","",'DF raw data'!G162) -> 0.000197753 | D157: =IF('DF raw data'!H162="","",'DF raw data'!H162) -> -2.29227e-05 | F157: 5.48817524e-06 | G157: 0.000198544012 | H157: -2.30143908e-05 | J157: 4.300723381e-06 | K157: 0.0004210290514 | L157: 0.009128845402 | M157: 0.2219277859 | N157: 0.00135626372
A158: =IF('DF raw data'!E163="","",'DF raw data'!E163) -> -252 | B158: =IF('DF raw data'!F163="","",'DF raw data'!F163) -> -4.8606e-07 | C158: =IF('DF raw data'!G163="","",'DF raw data'!G163) -> 0.000205727 | D158: =IF('DF raw data'!H163="","",'DF raw data'!H163) -> -3.0985e-05 | F158: -4.8800424e-07 | G158: 0.000206549908 | H158: -3.110894e-05 | J158: 4.056721261e-06 | K158: 0.000423057412 | L158: 0.009232120356 | M158: 0.2265438461 | N158: 0.001398879751
A159: =IF('DF raw data'!E164="","",'DF raw data'!E164) -> -251.5 | B159: =IF('DF raw data'!F164="","",'DF raw data'!F164) -> -3.69435e-06 | C159: =IF('DF raw data'!G164="","",'DF raw data'!G164) -> 0.000196365 | D159: =IF('DF raw data'!H164="","",'DF raw data'!H164) -> -2.27719e-05 | F159: -3.7091274e-06 | G159: 0.00019715046 | H159: -2.28629876e-05 | J159: 2.202157561e-06 | K159: 0.0004241584908 | L159: 0.009330695586 | M159: 0.2312091939 | N159: 0.001442410694
A160: =IF('DF raw data'!E165="","",'DF raw data'!E165) -> -251 | B160: =IF('DF raw data'!F165="","",'DF raw data'!F165) -> -2.60822e-06 | C160: =IF('DF raw data'!G165="","",'DF raw data'!G165) -> 0.000192055 | D160: =IF('DF raw data'!H165="","",'DF raw data'!H165) -> -1.8715e-05 | F160: -2.61865288e-06 | G160: 0.00019282322 | H160: -1.878986e-05 | J160: 8.928311208e-07 | K160: 0.0004246049064 | L160: 0.009427107196 | M160: 0.2359227475 | N160: 0.001486845869
A161: =IF('DF raw data'!E166="","",'DF raw data'!E166) -> -250.5 | B161: =IF('DF raw data'!F166="","",'DF raw data'!F166) -> -1.0616e-05 | C161: =IF('DF raw data'!G166="","",'DF raw data'!G166) -> 0.000190503 | D161: =IF('DF raw data'!H166="","",'DF raw data'!H166) -> -1.74241e-05 | F161: -1.0658464e-05 | G161: 0.000191265012 | H161: -1.74937964e-05 | J161: -4.436400879e-06 | K161: 0.0004223867059 | L161: 0.009522739702 | M161: 0.2406841174 | N161: 0.001532187165
A162: =IF('DF raw data'!E167="","",'DF raw data'!E167) -> -250 | B162: =IF('DF raw data'!F167="","",'DF raw data'!F167) -> -1.33714e-05 | C162: =IF('DF raw data'!G167="","",'DF raw data'!G167) -> 0.000190833 | D162: =IF('DF raw data'!H167="","",'DF raw data'!H167) -> -1.8496e-05 | F162: -1.34248856e-05 | G162: 0.000191596332 | H162: -1.8569984e-05 | J162: -1.114884368e-05 | K162: 0.0004168122841 | L162: 0.009618537868 | M162: 0.2454933863 | N162: 0.001578445362
A163: =IF('DF raw data'!E168="","",'DF raw data'!E168) -> -249.5 | B163: =IF('DF raw data'!F168="","",'DF raw data'!F168) -> -7.92653e-06 | C163: =IF('DF raw data'!G168="","",'DF raw data'!G168) -> 0.000191347 | D163: =IF('DF raw data'!H168="","",'DF raw data'!H168) -> -1.58109e-05 | F163: -7.95823612e-06 | G163: 0.000192112388 | H163: -1.58741436e-05 | J163: -1.512796174e-05 | K163: 0.0004092483032 | L163: 0.009714594062 | M163: 0.2503506833 | N163: 0.001625632146
A164: =IF('DF raw data'!E169="","",'DF raw data'!E169) -> -249 | B164: =IF('DF raw data'!F169="","",'DF raw data'!F169) -> 2.57398e-06 | C164: =IF('DF raw data'!G169="","",'DF raw data'!G169) -> 0.000190285 | D164: =IF('DF raw data'!H169="","",'DF raw data'!H169) -> -7.51711e-06 | F164: 2.58427592e-06 | G164: 0.00019104614 | H164: -7.54717844e-06 | J164: -1.383582378e-05 | K164: 0.0004023303913 | L164: 0.009810117132 | M164: 0.2552557419 | N164: 0.001673751441
A165: =IF('DF raw data'!E170="","",'DF raw data'!E170) -> -248.5 | B165: =IF('DF raw data'!F170="","",'DF raw data'!F170) -> -2.80688e-06 | C165: =IF('DF raw data'!G170="","",'DF raw data'!G170) -> 0.000194791 | D165: =IF('DF raw data'!H170="","",'DF raw data'!H170) -> -8.03827e-06 | F165: -2.81810752e-06 | G165: 0.000195570164 | H165: -8.07042308e-06 | J165: -1.524487754e-05 | K165: 0.0003947079526 | L165: 0.009907902214 | M165: 0.260209693 | N165: 0.00172283482
A166: =IF('DF raw data'!E171="","",'DF raw data'!E171) -> -248 | B166: =IF('DF raw data'!F171="","",'DF raw data'!F171) -> 1.42318e-06 | C166: =IF('DF raw data'!G171="","",'DF raw data'!G171) -> 0.000204056 | D166: =IF('DF raw data'!H171="","",'DF raw data'!H171) -> -1.15071e-05 | F166: 1.42887272e-06 | G166: 0.000204872224 | H166: -1.15531284e-05 | J166: -1.453044118e-05 | K166: 0.000387442732 | L166: 0.01001033833 | M166: 0.2652148622 | N166: 0.001772938362
A167: =IF('DF raw data'!E172="","",'DF raw data'!E172) -> -247.5 | B167: =IF('DF raw data'!F172="","",'DF raw data'!F172) -> -8.11562e-06 | C167: =IF('DF raw data'!G172="","",'DF raw data'!G172) -> 0.000197125 | D167: =IF('DF raw data'!H172="","",'DF raw data'!H172) -> -2.07697e-05 | F167: -8.14808248e-06 | G167: 0.0001979135 | H167: -2.08527788e-05 | J167: -1.860448242e-05 | K167: 0.0003781404908 | L167: 0.01010929508 | M167: 0.2702695097 | N167: 0.001824037459
A168: =IF('DF raw data'!E173="","",'DF raw data'!E173) -> -247 | B168: =IF('DF raw data'!F173="","",'DF raw data'!F173) -> 1.00157e-05 | C168: =IF('DF raw data'!G173="","",'DF raw data'!G173) -> 0.00019139 | D168: =IF('DF raw data'!H173="","",'DF raw data'!H173) -> -2.32488e-05 | F168: 1.00557628e-05 | G168: 0.00019215556 | H168: -2.33417952e-05 | J168: -1.357660102e-05 | K168: 0.0003713521902 | L168: 0.01020537286 | M168: 0.2753721961 | N168: 0.001876112368
A169: =IF('DF raw data'!E174="","",'DF raw data'!E174) -> -246.5 | B169: =IF('DF raw data'!F174="","",'DF raw data'!F174) -> 7.64208e-06 | C169: =IF('DF raw data'!G174="","",'DF raw data'!G174) -> 0.000187464 | D169: =IF('DF raw data'!H174="","",'DF raw data'!H174) -> -1.9617e-05 | F169: 7.67264832e-06 | G169: 0.000188213856 | H169: -1.9695468e-05 | J169: -9.740276859e-06 | K169: 0.0003664820518 | L169: 0.01029947978 | M169: 0.280521936 | N169: 0.001929152058
A170: =IF('DF raw data'!E175="","",'DF raw data'!E175) -> -246 | B170: =IF('DF raw data'!F175="","",'DF raw data'!F175) -> -6.1313e-06 | C170: =IF('DF raw data'!G175="","",'DF raw data'!G175) -> 0.000194204 | D170: =IF('DF raw data'!H175="","",'DF raw data'!H175) -> -1.94238e-05 | F170: -6.1558252e-06 | G170: 0.000194980816 | H170: -1.95014952e-05 | J170: -1.281818946e-05 | K170: 0.0003600729571 | L170: 0.01039697019 | M170: 0.2857204211 | N170: 0.001983200635
A171: =IF('DF raw data'!E176="","",'DF raw data'!E176) -> -245.5 | B171: =IF('DF raw data'!F176="","",'DF raw data'!F176) -> 1.2064e-05 | C171: =IF('DF raw data'!G176="","",'DF raw data'!G176) -> 0.000201073 | D171: =IF('DF raw data'!H176="","",'DF raw data'!H176) -> -2.26623e-05 | F171: 1.2112256e-05 | G171: 0.000201877292 | H171: -2.27529492e-05 | J171: -6.762061459e-06 | K171: 0.0003566919264 | L171: 0.01049790884 | M171: 0.2909693755 | N171: 0.002038303702
A172: =IF('DF raw data'!E177="","",'DF raw data'!E177) -> -245 | B172: =IF('DF raw data'!F177="","",'DF raw data'!F177) -> -5.10851e-06 | C172: =IF('DF raw data'!G177="","",'DF raw data'!G177) -> 0.000189787 | D172: =IF('DF raw data'!H177="","",'DF raw data'!H177) -> -1.60418e-05 | F172: -5.12894404e-06 | G172: 0.000190546148 | H172: -1.61059672e-05 | J172: -9.326533479e-06 | K172: 0.0003520286596 | L172: 0.01059318191 | M172: 0.2962659665 | N172: 0.002094411497
A173: =IF('DF raw data'!E178="","",'DF raw data'!E178) -> -244.5 | B173: =IF('DF raw data'!F178="","",'DF raw data'!F178) -> -2.92865e-06 | C173: =IF('DF raw data'!G178="","",'DF raw data'!G178) -> 0.000192038 | D173: =IF('DF raw data'!H178="","",'DF raw data'!H178) -> -1.78196e-05 | F173: -2.9403646e-06 | G173: 0.000192806152 | H173: -1.78908784e-05 | J173: -1.079671578e-05 | K173: 0.0003466303017 | L173: 0.01068958499 | M173: 0.301610759 | N173: 0.002151545169
A174: =IF('DF raw data'!E179="","",'DF raw data'!E179) -> -244 | B174: =IF('DF raw data'!F179="","",'DF raw data'!F179) -> -7.28464e-06 | C174: =IF('DF raw data'!G179="","",'DF raw data'!G179) -> 0.000194514 | D174: =IF('DF raw data'!H179="","",'DF raw data'!H179) -> -1.91056e-05 | F174: -7.31377856e-06 | G174: 0.000195292056 | H174: -1.91820224e-05 | J174: -1.445360506e-05 | K174: 0.0003394034992 | L174: 0.01078723102 | M174: 0.3070043745 | N174: 0.00220972745
A175: =IF('DF raw data'!E180="","",'DF raw data'!E180) -> -243.5 | B175: =IF('DF raw data'!F180="","",'DF raw data'!F180) -> -7.98359e-06 | C175: =IF('DF raw data'!G180="","",'DF raw data'!G180) -> 0.000190455 | D175: =IF('DF raw data'!H180="","",'DF raw data'!H180) -> -2.68393e-05 | F175: -8.01552436e-06 | G175: 0.00019121682 | H175: -2.69466572e-05 | J175: -1.846136724e-05 | K175: 0.0003301728156 | L175: 0.01088283943 | M175: 0.3124457942 | N175: 0.002268945718
A176: =IF('DF raw data'!E181="","",'DF raw data'!E181) -> -243 | B176: =IF('DF raw data'!F181="","",'DF raw data'!F181) -> -3.05701e-06 | C176: =IF('DF raw data'!G181="","",'DF raw data'!G181) -> 0.000186628 | D176: =IF('DF raw data'!H181="","",'DF raw data'!H181) -> -1.79378e-05 | F176: -3.06923804e-06 | G176: 0.000187374512 | H176: -1.80095512e-05 | J176: -1.999598626e-05 | K176: 0.0003201748224 | L176: 0.01097652668 | M176: 0.3179340576 | N176: 0.002329187987
A177: =IF('DF raw data'!E182="","",'DF raw data'!E182) -> -242.5 | B177: =IF('DF raw data'!F182="","",'DF raw data'!F182) -> -9.46393e-06 | C177: =IF('DF raw data'!G182="","",'DF raw data'!G182) -> 0.00018197 | D177: =IF('DF raw data'!H182="","",'DF raw data'!H182) -> -1.61566e-05 | F177: -9.50178572e-06 | G177: 0.00018269788 | H177: -1.62212264e-05 | J177: -2.474687912e-05 | K177: 0.0003078013829 | L177: 0.01106787562 | M177: 0.3234679954 | N177: 0.002390437228
A178: =IF('DF raw data'!E183="","",'DF raw data'!E183) -> -242 | B178: =IF('DF raw data'!F183="","",'DF raw data'!F183) -> -1.64463e-06 | C178: =IF('DF raw data'!G183="","",'DF raw data'!G183) -> 0.00018093 | D178: =IF('DF raw data'!H183="","",'DF raw data'!H183) -> -2.25781e-05 | F178: -1.65120852e-06 | G178: 0.00018165372 | H178: -2.26684124e-05 | J178: -2.557248338e-05 | K178: 0.0002950151412 | L178: 0.01115870248 | M178: 0.3290473466 | N178: 0.002452695876
A179: =IF('DF raw data'!E184="","",'DF raw data'!E184) -> -241.5 | B179: =IF('DF raw data'!F184="","",'DF raw data'!F184) -> -1.5819e-06 | C179: =IF('DF raw data'!G184="","",'DF raw data'!G184) -> 0.000177767 | D179: =IF('DF raw data'!H184="","",'DF raw data'!H184) -> -2.0466e-05 | F179: -1.5882276e-06 | G179: 0.000178478068 | H179: -2.0547864e-05 | J179: -2.636659718e-05 | K179: 0.0002818318426 | L179: 0.01124794152 | M179: 0.3346713174 | N179: 0.002515954317
A180: =IF('DF raw data'!E185="","",'DF raw data'!E185) -> -241 | B180: =IF('DF raw data'!F185="","",'DF raw data'!F185) -> 7.12367e-06 | C180: =IF('DF raw data'!G185="","",'DF raw data'!G185) -> 0.000182387 | D180: =IF('DF raw data'!H185="","",'DF raw data'!H185) -> -9.23567e-06 | F180: 7.15216468e-06 | G180: 0.000183116548 | H180: -9.27261268e-06 | J180: -2.279051484e-05 | K180: 0.0002704365852 | L180: 0.01133949979 | M180: 0.3403410673 | N180: 0.002580246705
A181: =IF('DF raw data'!E186="","",'DF raw data'!E186) -> -240.5 | B181: =IF('DF raw data'!F186="","",'DF raw data'!F186) -> -3.19599e-06 | C181: =IF('DF raw data'!G186="","",'DF raw data'!G186) -> 0.000185869 | D181: =IF('DF raw data'!H186="","",'DF raw data'!H186) -> -6.81846e-07 | F181: -3.20877396e-06 | G181: 0.000186612476 | H181: -6.84573384e-07 | J181: -2.439490182e-05 | K181: 0.0002582391343 | L181: 0.01143280603 | M181: 0.3460574703 | N181: 0.002645601529
A182: =IF('DF raw data'!E187="","",'DF raw data'!E187) -> -240 | B182: =IF('DF raw data'!F187="","",'DF raw data'!F187) -> -3.76437e-06 | C182: =IF('DF raw data'!G187="","",'DF raw data'!G187) -> 0.000192246 | D182: =IF('DF raw data'!H187="","",'DF raw data'!H187) -> -1.40309e-05 | F182: -3.77942748e-06 | G182: 0.000193014984 | H182: -1.40870236e-05 | J182: -2.628461556e-05 | K182: 0.0002450968265 | L182: 0.01152931352 | M182: 0.351822127 | N182: 0.00271206441
A183: =IF('DF raw data'!E188="","",'DF raw data'!E188) -> -239.5 | B183: =IF('DF raw data'!F188="","",'DF raw data'!F188) -> -2.47918e-06 | C183: =IF('DF raw data'!G188="","",'DF raw data'!G188) -> 0.000194475 | D183: =IF('DF raw data'!H188="","",'DF raw data'!H188) -> -1.9697e-05 | F183: -2.48909672e-06 | G183: 0.0001952529 | H183: -1.9775788e-05 | J183: -2.752916392e-05 | K183: 0.0002313322445 | L183: 0.01162693997 | M183: 0.357635597 | N183: 0.002779657655
A184: =IF('DF raw data'!E189="","",'DF raw data'!E189) -> -239 | B184: =IF('DF raw data'!F189="","",'DF raw data'!F189) -> 6.61347e-06 | C184: =IF('DF raw data'!G189="","",'DF raw data'!G189) -> 0.00018014 | D184: =IF('DF raw data'!H189="","",'DF raw data'!H189) -> -1.27665e-05 | F184: 6.63992388e-06 | G184: 0.00018086056 | H184: -1.2817566e-05 | J184: -2.420920198e-05 | K184: 0.0002192276436 | L184: 0.01171737025 | M184: 0.3634942821 | N184: 0.002848306331
A185: =IF('DF raw data'!E190="","",'DF raw data'!E190) -> -238.5 | B185: =IF('DF raw data'!F190="","",'DF raw data'!F190) -> 1.60308e-05 | C185: =IF('DF raw data'!G190="","",'DF raw data'!G190) -> 0.000178341 | D185: =IF('DF raw data'!H190="","",'DF raw data'!H190) -> -1.51606e-05 | F185: 1.60949232e-05 | G185: 0.000179054364 | H185: -1.52212424e-05 | J185: -1.616174038e-05 | K185: 0.0002111467734 | L185: 0.01180689743 | M185: 0.3693977309 | N185: 0.002918007875
A186: =IF('DF raw data'!E191="","",'DF raw data'!E191) -> -238 | B186: =IF('DF raw data'!F191="","",'DF raw data'!F191) -> 2.52028e-06 | C186: =IF('DF raw data'!G191="","",'DF raw data'!G191) -> 0.000182255 | D186: =IF('DF raw data'!H191="","",'DF raw data'!H191) -> -2.36766e-05 | F186: 2.53036112e-06 | G186: 0.00018298402 | H186: -2.37713064e-05 | J186: -1.489655982e-05 | K186: 0.0002036984935 | L186: 0.01189838944 | M186: 0.3753469256 | N186: 0.002988793822
A187: =IF('DF raw data'!E192="","",'DF raw data'!E192) -> -237.5 | B187: =IF('DF raw data'!F192="","",'DF raw data'!F192) -> -3.11307e-06 | C187: =IF('DF raw data'!G192="","",'DF raw data'!G192) -> 0.000172448 | D187: =IF('DF raw data'!H192="","",'DF raw data'!H192) -> -2.99665e-05 | F187: -3.12552228e-06 | G187: 0.000173137792 | H187: -3.0086366e-05 | J187: -1.645932096e-05 | K187: 0.000195468833 | L187: 0.01198495834 | M187: 0.3813394047 | N187: 0.00306061357
A188: =IF('DF raw data'!E193="","",'DF raw data'!E193) -> -237 | B188: =IF('DF raw data'!F193="","",'DF raw data'!F193) -> 2.38766e-06 | C188: =IF('DF raw data'!G193="","",'DF raw data'!G193) -> 0.000179533 | D188: =IF('DF raw data'!H193="","",'DF raw data'!H193) -> -1.67524e-05 | F188: 2.39721064e-06 | G188: 0.000180251132 | H188: -1.68194096e-05 | J188: -1.526071564e-05 | K188: 0.0001878384752 | L188: 0.0120750839 | M188: 0.3873769467 | N188: 0.003133517513
A189: =IF('DF raw data'!E194="","",'DF raw data'!E194) -> -236.5 | B189: =IF('DF raw data'!F194="","",'DF raw data'!F194) -> -9.78797e-06 | C189: =IF('DF raw data'!G194="","",'DF raw data'!G194) -> 0.000175117 | D189: =IF('DF raw data'!H194="","",'DF raw data'!H194) -> -1.01566e-05 | F189: -9.82712188e-06 | G189: 0.000175817468 | H189: -1.01972264e-05 | J189: -2.017427658e-05 | K189: 0.0001777513369 | L189: 0.01216299264 | M189: 0.393458443 | N189: 0.003207486911
A190: =IF('DF raw data'!E195="","",'DF raw data'!E195) -> -236 | B190: =IF('DF raw data'!F195="","",'DF raw data'!F195) -> 5.7877e-06 | C190: =IF('DF raw data'!G195="","",'DF raw data'!G195) -> 0.000176671 | D190: =IF('DF raw data'!H195="","",'DF raw data'!H195) -> -2.38516e-05 | F190: 5.8108508e-06 | G190: 0.000177377684 | H190: -2.39470064e-05 | J190: -1.726885118e-05 | K190: 0.0001691169113 | L190: 0.01225168148 | M190: 0.3995842838 | N190: 0.00328253891
A191: =IF('DF raw data'!E196="","",'DF raw data'!E196) -> -235.5 | B191: =IF('DF raw data'!F196="","",'DF raw data'!F196) -> -1.13334e-06 | C191: =IF('DF raw data'!G196="","",'DF raw data'!G196) -> 0.000185756 | D191: =IF('DF raw data'!H196="","",'DF raw data'!H196) -> -2.05394e-05 | F191: -1.13787336e-06 | G191: 0.000186499024 | H191: -2.06215576e-05 | J191: -1.783778786e-05 | K191: 0.0001601980173 | L191: 0.01234493099 | M191: 0.4057567493 | N191: 0.003358737729
A192: =IF('DF raw data'!E197="","",'DF raw data'!E197) -> -235 | B192: =IF('DF raw data'!F197="","",'DF raw data'!F197) -> -1.13457e-06 | C192: =IF('DF raw data'!G197="","",'DF raw data'!G197) -> 0.000183459 | D192: =IF('DF raw data'!H197="","",'DF raw data'!H197) -> -1.88226e-05 | F192: =(1-$G$1*($B$49-$G$2))*B192 -> -1.13910828e-06 | G192: 0.000184192836 | H192: -1.88978904e-05 | J192: =F192*$G$3+J191 -> -1.8407342e-05 | K192: =J192*$G$3+K191 -> 0.0001509943463 | L192: =G192*$G$3+L191 -> 0.01243702741 | M192: =L192*$G$3+M191 -> 0.411975263 | N192: =(J192^2+L192^2)*$G$3+N191 -> 0.003436077724
A193: =IF('DF raw data'!E198="","",'DF raw data'!E198) -> -234.5 | B193: =IF('DF raw data'!F198="","",'DF raw data'!F198) -> -8.82648e-06 | C193: =IF('DF raw data'!G198="","",'DF raw data'!G198) -> 0.00018379 | D193: =IF('DF raw data'!H198="","",'DF raw data'!H198) -> -1.09943e-05 | F193: -8.86178592e-06 | G193: 0.00018452516 | H193: -1.10382772e-05 | J193: -2.283823496e-05 | K193: 0.0001395752289 | L193: 0.01252928999 | M193: 0.418239908 | N193: 0.003514569539
A194: =IF('DF raw data'!E199="","",'DF raw data'!E199) -> -234 | B194: =IF('DF raw data'!F199="","",'DF raw data'!F199) -> -8.82633e-06 | C194: =IF('DF raw data'!G199="","",'DF raw data'!G199) -> 0.00017723 | D194: =IF('DF raw data'!H199="","",'DF raw data'!H199) -> -1.26266e-05 | F194: -8.86163532e-06 | G194: 0.00017793892 | H194: -1.26771064e-05 | J194: -2.726905262e-05 | K194: 0.0001259407026 | L194: 0.01261825945 | M194: 0.4245490377 | N194: 0.003594180146
A195: =IF('DF raw data'!E200="","",'DF raw data'!E200) -> -233.5 | B195: =IF('DF raw data'!F200="","",'DF raw data'!F200) -> -8.95601e-06 | C195: =IF('DF raw data'!G200="","",'DF raw data'!G200) -> 0.000185402 | D195: =IF('DF raw data'!H200="","",'DF raw data'!H200) -> -9.25557e-06 | F195: -8.99183404e-06 | G195: 0.000186143608 | H195: -9.29259228e-06 | J195: -3.176496964e-05 | K195: 0.0001100582177 | L195: 0.01271133125 | M195: 0.4309047033 | N195: 0.003674969622
A196: =IF('DF raw data'!E201="","",'DF raw data'!E201) -> -233 | B196: =IF('DF raw data'!F201="","",'DF raw data'!F201) -> -9.49281e-07 | C196: =IF('DF raw data'!G201="","",'DF raw data'!G201) -> 0.00019019 | D196: =IF('DF raw data'!H201="","",'DF raw data'!H201) -> -8.38303e-06 | F196: -9.53078124e-07 | G196: 0.00019095076 | H196: -8.41656212e-06 | J196: -3.22415087e-05 | K196: 9.393746338e-05 | L196: 0.01280680663 | M196: 0.4373081066 | N196: 0.00375697729
A197: =IF('DF raw data'!E202="","",'DF raw data'!E202) -> -232.5 | B197: =IF('DF raw data'!F202="","",'DF raw data'!F202) -> -1.78523e-05 | C197: =IF('DF raw data'!G202="","",'DF raw data'!G202) -> 0.000179036 | D197: =IF('DF raw data'!H202="","",'DF raw data'!H202) -> -2.14905e-05 | F197: -1.79237092e-05 | G197: 0.000179752144 | H197: -2.1576462e-05 | J197: -4.12033633e-05 | K197: 7.333578173e-05 | L197: 0.01289668271 | M197: 0.443756448 | N197: 0.003840140351
A198: =IF('DF raw data'!E203="","",'DF raw data'!E203) -> -232 | B198: =IF('DF raw data'!F203="","",'DF raw data'!F203) -> -4.02002e-06 | C198: =IF('DF raw data'!G203="","",'DF raw data'!G203) -> 0.000177347 | D198: =IF('DF raw data'!H203="","",'DF raw data'!H203) -> -1.49308e-05 | F198: -4.03610008e-06 | G198: 0.000178056388 | H198: -1.49905232e-05 | J198: -4.322141334e-05 | K198: 5.172507506e-05 | L198: 0.0129857109 | M198: 0.4502493034 | N198: 0.003924455629
A199: =IF('DF raw data'!E204="","",'DF raw data'!E204) -> -231.5 | B199: =IF('DF raw data'!F204="","",'DF raw data'!F204) -> -3.96078e-06 | C199: =IF('DF raw data'!G204="","",'DF raw data'!G204) -> 0.000175042 | D199: =IF('DF raw data'!H204="","",'DF raw data'!H204) -> -7.1353e-06 | F199: -3.97662312e-06 | G199: 0.000175742168 | H199: -7.1638412e-06 | J199: -4.52097249e-05 | K199: 2.912021261e-05 | L199: 0.01307358198 | M199: 0.4567860944 | N199: 0.004009915924
A200: =IF('DF raw data'!E205="","",'DF raw data'!E205) -> -231 | B200: =IF('DF raw data'!F205="","",'DF raw data'!F205) -> -1.31202e-05 | C200: =IF('DF raw data'!G205="","",'DF raw data'!G205) -> 0.000188844 | D200: =IF('DF raw data'!H205="","",'DF raw data'!H205) -> -1.05911e-05 | F200: -1.31726808e-05 | G200: 0.000189599376 | H200: -1.06334644e-05 | J200: -5.17960653e-05 | K200: 3.222179962e-06 | L200: 0.01316838167 | M200: 0.4633702853 | N200: 0.004096620403
A201: =IF('DF raw data'!E206="","",'DF raw data'!E206) -> -230.5 | B201: =IF('DF raw data'!F206="","",'DF raw data'!F206) -> -1.40183e-06 | C201: =IF('DF raw data'!G206="","",'DF raw data'!G206) -> 0.000177475 | D201: =IF('DF raw data'!H206="","",'DF raw data'!H206) -> -1.6414e-06 | F201: -1.40743732e-06 | G201: 0.0001781849 | H201: -1.6479656e-06 | J201: -5.249978396e-05 | K201: -2.302771202e-05 | L201: 0.01325747412 | M201: 0.4699990223 | N201: 0.004184502091
... 1061 more rows

Sheet 10 y=0
A1: =IF('DF raw data'!I1="","",'DF raw data'!I1) -> Number of header lines | B1: =IF('DF raw data'!J1="","",'DF raw data'!J1) -> 54 | C1: =IF('DF raw data'!K1="","",'DF raw data'!K1) ->  | D1: =IF('DF raw data'!L1="","",'DF raw data'!L1) ->  | F1: T_coeff | G1: -0.001 | H1: /degC | J1: IBy total | K1: =J1262*1000 -> -1.681238851 | L1: muTm | M1: =L1262*1000 -> 61.32649489 | R1: DF ref | S1: ='10 y=-0.2'!S1 -> 1
A2: =IF('DF raw data'!I2="","",'DF raw data'!I2) -> Measured by | B2: =IF('DF raw data'!J2="","",'DF raw data'!J2) -> Danfysik | C2: =IF('DF raw data'!K2="","",'DF raw data'!K2) ->  | D2: =IF('DF raw data'!L2="","",'DF raw data'!L2) ->  | F2: Tcorr | G2: 20 | H2: degC | J2: JBy total | K2: =K1262 -> -14.1376227 | L2: muTm^2 | M2: =M1262 -> 20.63786164
A3: =IF('DF raw data'!I3="","",'DF raw data'!I3) -> Operator | B3: =IF('DF raw data'!J3="","",'DF raw data'!J3) -> PMHA | C3: =IF('DF raw data'!K3="","",'DF raw data'!K3) ->  | D3: =IF('DF raw data'!L3="","",'DF raw data'!L3) ->  | F3: Step | G3: =A63-A62 -> 0.5 | H3: mm | J3: PI total | K3: =N1262 -> 10611.99144 | L3: T^2mm^3
A4: =IF('DF raw data'!I4="","",'DF raw data'!I4) -> Data-time | B4: =IF('DF raw data'!J4="","",'DF raw data'!J4) -> 11-09-2024, 12:20:21 | C4: =IF('DF raw data'!K4="","",'DF raw data'!K4) ->  | D4: =IF('DF raw data'!L4="","",'DF raw data'!L4) -> 
A5: =IF('DF raw data'!I5="","",'DF raw data'!I5) -> Project | B5: =IF('DF raw data'!J5="","",'DF raw data'!J5) -> 504314 | C5: =IF('DF raw data'!K5="","",'DF raw data'!K5) ->  | D5: =IF('DF raw data'!L5="","",'DF raw data'!L5) -> 
A6: =IF('DF raw data'!I6="","",'DF raw data'!I6) -> Magnet type | B6: =IF('DF raw data'!J6="","",'DF raw data'!J6) -> Dipole | C6: =IF('DF raw data'!K6="","",'DF raw data'!K6) ->  | D6: =IF('DF raw data'!L6="","",'DF raw data'!L6) -> 
A7: =IF('DF raw data'!I7="","",'DF raw data'!I7) -> Magnet nr. | B7: =IF('DF raw data'!J7="","",'DF raw data'!J7) -> 2410095 | C7: =IF('DF raw data'!K7="","",'DF raw data'!K7) ->  | D7: =IF('DF raw data'!L7="","",'DF raw data'!L7) -> 
A8: =IF('DF raw data'!I8="","",'DF raw data'!I8) -> Meas. number | B8: =IF('DF raw data'!J8="","",'DF raw data'!J8) -> 410 | C8: =IF('DF raw data'!K8="","",'DF raw data'!K8) ->  | D8: =IF('DF raw data'!L8="","",'DF raw data'!L8) -> 
A9: =IF('DF raw data'!I9="","",'DF raw data'!I9) -> Add. info | B9: =IF('DF raw data'!J9="","",'DF raw data'!J9) -> Y-alignment scan 3) | C9: =IF('DF raw data'!K9="","",'DF raw data'!K9) ->  | D9: =IF('DF raw data'!L9="","",'DF raw data'!L9) -> 
A10: =IF('DF raw data'!I10="","",'DF raw data'!I10) -> Device | B10: =IF('DF raw data'!J10="","",'DF raw data'!J10) -> (HAL) HALL-PROBE | C10: =IF('DF raw data'!K10="","",'DF raw data'!K10) ->  | D10: =IF('DF raw data'!L10="","",'DF raw data'!L10) -> 
A11: =IF('DF raw data'!I11="","",'DF raw data'!I11) -> Goal | B11: =IF('DF raw data'!J11="","",'DF raw data'!J11) -> (AXI) AXis Integral (Line, EFB) | C11: =IF('DF raw data'!K11="","",'DF raw data'!K11) ->  | D11: =IF('DF raw data'!L11="","",'DF raw data'!L11) -> 
A12: =IF('DF raw data'!I12="","",'DF raw data'!I12) -> Power supply mode | B12: =IF('DF raw data'!J12="","",'DF raw data'!J12) -> (PM) Permanent Magnet (no MPS in use) | C12: =IF('DF raw data'!K12="","",'DF raw data'!K12) ->  | D12: =IF('DF raw data'!L12="","",'DF raw data'!L12) -> 
A13: =IF('DF raw data'!I13="","",'DF raw data'!I13) -> Data format | B13: =IF('DF raw data'!J13="","",'DF raw data'!J13) -> Raw data text file | C13: =IF('DF raw data'!K13="","",'DF raw data'!K13) ->  | D13: =IF('DF raw data'!L13="","",'DF raw data'!L13) -> 
A14: =IF('DF raw data'!I14="","",'DF raw data'!I14) -> Direction of the pos. x-axis | B14: =IF('DF raw data'!J14="","",'DF raw data'!J14) -> See test program | C14: =IF('DF raw data'!K14="","",'DF raw data'!K14) ->  | D14: =IF('DF raw data'!L14="","",'DF raw data'!L14) -> 
A15: =IF('DF raw data'!I15="","",'DF raw data'!I15) -> Direction of the pos. y-axis | B15: =IF('DF raw data'!J15="","",'DF raw data'!J15) -> Vertical up | C15: =IF('DF raw data'!K15="","",'DF raw data'!K15) ->  | D15: =IF('DF raw data'!L15="","",'DF raw data'!L15) -> 
A16: =IF('DF raw data'!I16="","",'DF raw data'!I16) -> Direction of the pos. z-axis | B16: =IF('DF raw data'!J16="","",'DF raw data'!J16) -> See test program | C16: =IF('DF raw data'!K16="","",'DF raw data'!K16) ->  | D16: =IF('DF raw data'!L16="","",'DF raw data'!L16) -> 
A17: =IF('DF raw data'!I17="","",'DF raw data'!I17) -> Mapper type | B17: =IF('DF raw data'!J17="","",'DF raw data'!J17) -> Precision Hall Mapper | C17: =IF('DF raw data'!K17="","",'DF raw data'!K17) ->  | D17: =IF('DF raw data'!L17="","",'DF raw data'!L17) -> 
A18: =IF('DF raw data'!I18="","",'DF raw data'!I18) -> Mapper Danfysik Reg. Number | B18: =IF('DF raw data'!J18="","",'DF raw data'!J18) -> 2033-D (mapper 1) | C18: =IF('DF raw data'!K18="","",'DF raw data'!K18) ->  | D18: =IF('DF raw data'!L18="","",'DF raw data'!L18) -> 
A19: =IF('DF raw data'!I19="","",'DF raw data'!I19) -> Measurement consept | B19: =IF('DF raw data'!J19="","",'DF raw data'!J19) -> Square line grid | C19: =IF('DF raw data'!K19="","",'DF raw data'!K19) ->  | D19: =IF('DF raw data'!L19="","",'DF raw data'!L19) -> 
A20: =IF('DF raw data'!I20="","",'DF raw data'!I20) -> Mode | B20: =IF('DF raw data'!J20="","",'DF raw data'!J20) -> On-the-fly measurement | C20: =IF('DF raw data'!K20="","",'DF raw data'!K20) ->  | D20: =IF('DF raw data'!L20="","",'DF raw data'!L20) -> 
A21: =IF('DF raw data'!I21="","",'DF raw data'!I21) ->  | B21: =IF('DF raw data'!J21="","",'DF raw data'!J21) ->  | C21: =IF('DF raw data'!K21="","",'DF raw data'!K21) ->  | D21: =IF('DF raw data'!L21="","",'DF raw data'!L21) -> 
A22: =IF('DF raw data'!I22="","",'DF raw data'!I22) -> Probe Name | B22: =IF('DF raw data'!J22="","",'DF raw data'!J22) -> ID12_By | C22: =IF('DF raw data'!K22="","",'DF raw data'!K22) ->  | D22: =IF('DF raw data'!L22="","",'DF raw data'!L22) -> 
A23: =IF('DF raw data'!I23="","",'DF raw data'!I23) -> Probe Type | B23: =IF('DF raw data'!J23="","",'DF raw data'!J23) -> DF_ID_3D_Bxyz | C23: =IF('DF raw data'!K23="","",'DF raw data'!K23) ->  | D23: =IF('DF raw data'!L23="","",'DF raw data'!L23) -> 
A24: =IF('DF raw data'!I24="","",'DF raw data'!I24) -> Probe Danfysik Reg. Number | B24: =IF('DF raw data'!J24="","",'DF raw data'!J24) -> 2277 | C24: =IF('DF raw data'!K24="","",'DF raw data'!K24) ->  | D24: =IF('DF raw data'!L24="","",'DF raw data'!L24) -> 
A25: =IF('DF raw data'!I25="","",'DF raw data'!I25) -> Probe Axis | B25: =IF('DF raw data'!J25="","",'DF raw data'!J25) -> By | C25: =IF('DF raw data'!K25="","",'DF raw data'!K25) ->  | D25: =IF('DF raw data'!L25="","",'DF raw data'!L25) -> 
A26: =IF('DF raw data'!I26="","",'DF raw data'!I26) -> Probe Current Supply | B26: =IF('DF raw data'!J26="","",'DF raw data'!J26) -> 1825-D | C26: =IF('DF raw data'!K26="","",'DF raw data'!K26) ->  | D26: =IF('DF raw data'!L26="","",'DF raw data'!L26) -> 
A27: =IF('DF raw data'!I27="","",'DF raw data'!I27) -> Probe Gain Correction | B27: =IF('DF raw data'!J27="","",'DF raw data'!J27) -> 0.99606 | C27: =IF('DF raw data'!K27="","",'DF raw data'!K27) ->  | D27: =IF('DF raw data'!L27="","",'DF raw data'!L27) -> 
A28: =IF('DF raw data'!I28="","",'DF raw data'!I28) -> Probe Offset Correction | B28: =IF('DF raw data'!J28="","",'DF raw data'!J28) -> 0.0027673 | C28: =IF('DF raw data'!K28="","",'DF raw data'!K28) ->  | D28: =IF('DF raw data'!L28="","",'DF raw data'!L28) -> 
A29: =IF('DF raw data'!I29="","",'DF raw data'!I29) -> DVM Number | B29: =IF('DF raw data'!J29="","",'DF raw data'!J29) -> 2 | C29: =IF('DF raw data'!K29="","",'DF raw data'!K29) ->  | D29: =IF('DF raw data'!L29="","",'DF raw data'!L29) -> 
A30: =IF('DF raw data'!I30="","",'DF raw data'!I30) -> DVM Type | B30: =IF('DF raw data'!J30="","",'DF raw data'!J30) -> K2701 | C30: =IF('DF raw data'!K30="","",'DF raw data'!K30) ->  | D30: =IF('DF raw data'!L30="","",'DF raw data'!L30) -> 
A31: =IF('DF raw data'!I31="","",'DF raw data'!I31) -> DVM Danfysik Reg. Number | B31: =IF('DF raw data'!J31="","",'DF raw data'!J31) -> 1743-D | C31: =IF('DF raw data'!K31="","",'DF raw data'!K31) ->  | D31: =IF('DF raw data'!L31="","",'DF raw data'!L31) -> 
A32: =IF('DF raw data'!I32="","",'DF raw data'!I32) -> Probe Name | B32: =IF('DF raw data'!J32="","",'DF raw data'!J32) -> ID12_Bx | C32: =IF('DF raw data'!K32="","",'DF raw data'!K32) ->  | D32: =IF('DF raw data'!L32="","",'DF raw data'!L32) -> 
A33: =IF('DF raw data'!I33="","",'DF raw data'!I33) -> Probe Type | B33: =IF('DF raw data'!J33="","",'DF raw data'!J33) -> DF_ID_3D_Bxyz | C33: =IF('DF raw data'!K33="","",'DF raw data'!K33) ->  | D33: =IF('DF raw data'!L33="","",'DF raw data'!L33) -> 
A34: =IF('DF raw data'!I34="","",'DF raw data'!I34) -> Probe Danfysik Reg. Number | B34: =IF('DF raw data'!J34="","",'DF raw data'!J34) -> 2277 | C34: =IF('DF raw data'!K34="","",'DF raw data'!K34) ->  | D34: =IF('DF raw data'!L34="","",'DF raw data'!L34) -> 
A35: =IF('DF raw data'!I35="","",'DF raw data'!I35) -> Probe Axis | B35: =IF('DF raw data'!J35="","",'DF raw data'!J35) -> Bx | C35: =IF('DF raw data'!K35="","",'DF raw data'!K35) ->  | D35: =IF('DF raw data'!L35="","",'DF raw data'!L35) -> 
A36: =IF('DF raw data'!I36="","",'DF raw data'!I36) -> Probe Current Supply | B36: =IF('DF raw data'!J36="","",'DF raw data'!J36) -> 1825-D | C36: =IF('DF raw data'!K36="","",'DF raw data'!K36) ->  | D36: =IF('DF raw data'!L36="","",'DF raw data'!L36) -> 
A37: =IF('DF raw data'!I37="","",'DF raw data'!I37) -> Probe Gain Correction | B37: =IF('DF raw data'!J37="","",'DF raw data'!J37) -> 1 | C37: =IF('DF raw data'!K37="","",'DF raw data'!K37) ->  | D37: =IF('DF raw data'!L37="","",'DF raw data'!L37) -> 
A38: =IF('DF raw data'!I38="","",'DF raw data'!I38) -> Probe Offset Correction | B38: =IF('DF raw data'!J38="","",'DF raw data'!J38) -> -0.17543 | C38: =IF('DF raw data'!K38="","",'DF raw data'!K38) ->  | D38: =IF('DF raw data'!L38="","",'DF raw data'!L38) -> 
A39: =IF('DF raw data'!I39="","",'DF raw data'!I39) -> DVM Number | B39: =IF('DF raw data'!J39="","",'DF raw data'!J39) -> 3 | C39: =IF('DF raw data'!K39="","",'DF raw data'!K39) ->  | D39: =IF('DF raw data'!L39="","",'DF raw data'!L39) -> 
A40: =IF('DF raw data'!I40="","",'DF raw data'!I40) -> DVM Type | B40: =IF('DF raw data'!J40="","",'DF raw data'!J40) -> K2701 | C40: =IF('DF raw data'!K40="","",'DF raw data'!K40) ->  | D40: =IF('DF raw data'!L40="","",'DF raw data'!L40) -> 
A41: =IF('DF raw data'!I41="","",'DF raw data'!I41) -> DVM Danfysik Reg. Number | B41: =IF('DF raw data'!J41="","",'DF raw data'!J41) -> 1744-D | C41: =IF('DF raw data'!K41="","",'DF raw data'!K41) ->  | D41: =IF('DF raw data'!L41="","",'DF raw data'!L41) -> 
A42: =IF('DF raw data'!I42="","",'DF raw data'!I42) -> Probe Name | B42: =IF('DF raw data'!J42="","",'DF raw data'!J42) -> ID12_Bz | C42: =IF('DF raw data'!K42="","",'DF raw data'!K42) ->  | D42: =IF('DF raw data'!L42="","",'DF raw data'!L42) -> 
A43: =IF('DF raw data'!I43="","",'DF raw data'!I43) -> Probe Type | B43: =IF('DF raw data'!J43="","",'DF raw data'!J43) -> DF_ID_3D_Bxyz | C43: =IF('DF raw data'!K43="","",'DF raw data'!K43) ->  | D43: =IF('DF raw data'!L43="","",'DF raw data'!L43) -> 
A44: =IF('DF raw data'!I44="","",'DF raw data'!I44) -> Probe Danfysik Reg. Number | B44: =IF('DF raw data'!J44="","",'DF raw data'!J44) -> 2277 | C44: =IF('DF raw data'!K44="","",'DF raw data'!K44) ->  | D44: =IF('DF raw data'!L44="","",'DF raw data'!L44) -> 
A45: =IF('DF raw data'!I45="","",'DF raw data'!I45) -> Probe Axis | B45: =IF('DF raw data'!J45="","",'DF raw data'!J45) -> Bz | C45: =IF('DF raw data'!K45="","",'DF raw data'!K45) ->  | D45: =IF('DF raw data'!L45="","",'DF raw data'!L45) -> 
A46: =IF('DF raw data'!I46="","",'DF raw data'!I46) -> Probe Current Supply | B46: =IF('DF raw data'!J46="","",'DF raw data'!J46) -> 1825-D | C46: =IF('DF raw data'!K46="","",'DF raw data'!K46) ->  | D46: =IF('DF raw data'!L46="","",'DF raw data'!L46) -> 
A47: =IF('DF raw data'!I47="","",'DF raw data'!I47) -> Probe Gain Correction | B47: =IF('DF raw data'!J47="","",'DF raw data'!J47) -> 1 | C47: =IF('DF raw data'!K47="","",'DF raw data'!K47) ->  | D47: =IF('DF raw data'!L47="","",'DF raw data'!L47) -> 
A48: =IF('DF raw data'!I53="","",'DF raw data'!I53) -> PS-Gap: | B48: =IF('DF raw data'!J53="","",'DF raw data'!J53) -> 10 | C48: =IF('DF raw data'!K53="","",'DF raw data'!K53) ->  | D48: =IF('DF raw data'!L53="","",'DF raw data'!L53) -> 
A49: =IF('DF raw data'!I54="","",'DF raw data'!I54) -> PS-Temperature: | B49: =IF('DF raw data'!J54="","",'DF raw data'!J54) -> 24 | C49: =IF('DF raw data'!K54="","",'DF raw data'!K54) ->  | D49: =IF('DF raw data'!L54="","",'DF raw data'!L54) -> 
A50: =IF('DF raw data'!I55="","",'DF raw data'!I55) -> PS-Encoder: | B50: =IF('DF raw data'!J55="","",'DF raw data'!J55) -> 19.6951 | C50: =IF('DF raw data'!K55="","",'DF raw data'!K55) ->  | D50: =IF('DF raw data'!L55="","",'DF raw data'!L55) -> 
A51: =IF('DF raw data'!I56="","",'DF raw data'!I56) ->  | B51: =IF('DF raw data'!J56="","",'DF raw data'!J56) ->  | C51: =IF('DF raw data'!K56="","",'DF raw data'!K56) ->  | D51: =IF('DF raw data'!L56="","",'DF raw data'!L56) -> 
A52: =IF('DF raw data'!I57="","",'DF raw data'!I57) -> Monitor-Index | B52: =IF('DF raw data'!J57="","",'DF raw data'!J57) -> [1,1,4] | C52: =IF('DF raw data'!K57="","",'DF raw data'!K57) ->  | D52: =IF('DF raw data'!L57="","",'DF raw data'!L57) -> 
A53: =IF('DF raw data'!I58="","",'DF raw data'!I58) ->  | B53: =IF('DF raw data'!J58="","",'DF raw data'!J58) ->  | C53: =IF('DF raw data'!K58="","",'DF raw data'!K58) ->  | D53: =IF('DF raw data'!L58="","",'DF raw data'!L58) -> 
A54: =IF('DF raw data'!I59="","",'DF raw data'!I59) -> Time [s] | B54: =IF('DF raw data'!J59="","",'DF raw data'!J59) -> Y [mm] | C54: =IF('DF raw data'!K59="","",'DF raw data'!K59) -> X [mm] | D54: =IF('DF raw data'!L59="","",'DF raw data'!L59) -> Nominal current [A]
A55: =IF('DF raw data'!I60="","",'DF raw data'!I60) ->  | B55: =IF('DF raw data'!J60="","",'DF raw data'!J60) ->  | C55: =IF('DF raw data'!K60="","",'DF raw data'!K60) ->  | D55: =IF('DF raw data'!L60="","",'DF raw data'!L60) -> 
A56: =IF('DF raw data'!I61="","",'DF raw data'!I61) -> 207.4 | B56: =IF('DF raw data'!J61="","",'DF raw data'!J61) -> 31.76 | C56: =IF('DF raw data'!K61="","",'DF raw data'!K61) -> 301.8 | D56: =IF('DF raw data'!L61="","",'DF raw data'!L61) -> 0
A57: =IF('DF raw data'!I62="","",'DF raw data'!I62) ->  | B57: =IF('DF raw data'!J62="","",'DF raw data'!J62) ->  | C57: =IF('DF raw data'!K62="","",'DF raw data'!K62) ->  | D57: =IF('DF raw data'!L62="","",'DF raw data'!L62) -> 
A58: =IF('DF raw data'!I63="","",'DF raw data'!I63) -> Measurement-Index | B58: =IF('DF raw data'!J63="","",'DF raw data'!J63) -> [1,1,1201,2] | C58: =IF('DF raw data'!K63="","",'DF raw data'!K63) ->  | D58: =IF('DF raw data'!L63="","",'DF raw data'!L63) -> 
A59: =IF('DF raw data'!I64="","",'DF raw data'!I64) ->  | B59: =IF('DF raw data'!J64="","",'DF raw data'!J64) ->  | C59: =IF('DF raw data'!K64="","",'DF raw data'!K64) ->  | D59: =IF('DF raw data'!L64="","",'DF raw data'!L64) -> 
A60: =IF('DF raw data'!I65="","",'DF raw data'!I65) -> Z [mm] | B60: By [T] | C60: Bx [T] | D60: Bz [T] | F60: By_corr | G60: Bx_corr | H60: Bz_corr | J60: Iy | K60: Jy | L60: Ix | M60: Jx | N60: PI
A62: =IF('DF raw data'!I67="","",'DF raw data'!I67) -> -300 | B62: =IF('DF raw data'!J67="","",'DF raw data'!J67) -> -1.54975e-05 | C62: =IF('DF raw data'!K67="","",'DF raw data'!K67) -> 0.00016688 | D62: =IF('DF raw data'!L67="","",'DF raw data'!L67) -> -2.80147e-06 | F62: =(1-$G$1*($B$49))*B62 -> -1.586944e-05 | G62: =(1-$G$1*($B$49-$G$2))*C62 -> 0.00016754752 | H62: =(1-$G$1*($B$49-$G$2))*D62 -> -2.81267588e-06 | J62: =F62*$G$3 -> -7.93472e-06 | K62: =J62*$G$3 -> -3.96736e-06 | L62: =G62*$G$3 -> 8.377376e-05 | M62: =L62*$G$3 -> 4.188688e-05 | N62: =(J62^2+L62^2)*$G$3 -> 3.540501323e-09
A63: =IF('DF raw data'!I68="","",'DF raw data'!I68) -> -299.5 | B63: =IF('DF raw data'!J68="","",'DF raw data'!J68) -> -2.19686e-05 | C63: =IF('DF raw data'!K68="","",'DF raw data'!K68) -> 0.00016891 | D63: =IF('DF raw data'!L68="","",'DF raw data'!L68) -> -1.94859e-06 | F63: =(1-$G$1*($B$49-$G$2))*B63 -> -2.20564744e-05 | G63: =(1-$G$1*($B$49-$G$2))*C63 -> 0.00016958564 | H63: -1.95638436e-06 | J63: =F63*$G$3+J62 -> -1.89629572e-05 | K63: =J63*$G$3+K62 -> -1.34488386e-05 | L63: =G63*$G$3+L62 -> 0.00016856658 | M63: =L63*$G$3+M62 -> 0.00012617017 | N63: =(J63^2+L63^2)*$G$3+N62 -> 1.792764414e-08
A64: =IF('DF raw data'!I69="","",'DF raw data'!I69) -> -299 | B64: =IF('DF raw data'!J69="","",'DF raw data'!J69) -> -1.08438e-06 | C64: =IF('DF raw data'!K69="","",'DF raw data'!K69) -> 0.000174573 | D64: =IF('DF raw data'!L69="","",'DF raw data'!L69) -> -1.24482e-06 | F64: =(1-$G$1*($B$49-$G$2))*B64 -> -1.08871752e-06 | G64: 0.000175271292 | H64: -1.24979928e-06 | J64: =F64*$G$3+J63 -> -1.950731596e-05 | K64: =J64*$G$3+K63 -> -2.320249658e-05 | L64: =G64*$G$3+L63 -> 0.000256202226 | M64: =L64*$G$3+M63 -> 0.000254271283 | N64: =(J64^2+L64^2)*$G$3+N63 -> 5.093770213e-08
A65: =IF('DF raw data'!I70="","",'DF raw data'!I70) -> -298.5 | B65: =IF('DF raw data'!J70="","",'DF raw data'!J70) -> 8.14135e-06 | C65: =IF('DF raw data'!K70="","",'DF raw data'!K70) -> 0.00017452 | D65: =IF('DF raw data'!L70="","",'DF raw data'!L70) -> -2.46912e-06 | F65: 8.1739154e-06 | G65: 0.00017521808 | H65: -2.47899648e-06 | J65: -1.542035826e-05 | K65: -3.091267571e-05 | L65: 0.000343811266 | M65: 0.000426176916 | N65: 1.101596892e-07
A66: =IF('DF raw data'!I71="","",'DF raw data'!I71) -> -298 | B66: =IF('DF raw data'!J71="","",'DF raw data'!J71) -> 1.00004e-05 | C66: =IF('DF raw data'!K71="","",'DF raw data'!K71) -> 0.000180285 | D66: =IF('DF raw data'!L71="","",'DF raw data'!L71) -> -4.27501e-06 | F66: 1.00404016e-05 | G66: 0.00018100614 | H66: -4.29211004e-06 | J66: -1.040015746e-05 | K66: -3.611275444e-05 | L66: 0.000434314336 | M66: 0.000643334084 | N66: 2.04528242e-07
A67: =IF('DF raw data'!I72="","",'DF raw data'!I72) -> -297.5 | B67: =IF('DF raw data'!J72="","",'DF raw data'!J72) -> -4.47754e-06 | C67: =IF('DF raw data'!K72="","",'DF raw data'!K72) -> 0.000183668 | D67: =IF('DF raw data'!L72="","",'DF raw data'!L72) -> -4.57983e-06 | F67: -4.49545016e-06 | G67: 0.000184402672 | H67: -4.59814932e-06 | J67: -1.264788254e-05 | K67: -4.243669571e-05 | L67: 0.000526515672 | M67: 0.00090659192 | N67: 3.432176029e-07
A68: =IF('DF raw data'!I73="","",'DF raw data'!I73) -> -297 | B68: =IF('DF raw data'!J73="","",'DF raw data'!J73) -> -2.62022e-06 | C68: =IF('DF raw data'!K73="","",'DF raw data'!K73) -> 0.000183263 | D68: =IF('DF raw data'!L73="","",'DF raw data'!L73) -> -4.1248e-06 | F68: -2.63070088e-06 | G68: 0.000183996052 | H68: -4.1412992e-06 | J68: -1.396323298e-05 | K68: -4.94183122e-05 | L68: 0.000618513698 | M68: 0.001215848769 | N68: 5.345946862e-07
A69: =IF('DF raw data'!I74="","",'DF raw data'!I74) -> -296.5 | B69: =IF('DF raw data'!J74="","",'DF raw data'!J74) -> 6.60505e-06 | C69: =IF('DF raw data'!K74="","",'DF raw data'!K74) -> 0.000193189 | D69: =IF('DF raw data'!L74="","",'DF raw data'!L74) -> -4.26184e-06 | F69: 6.6314702e-06 | G69: 0.000193961756 | H69: -4.27888736e-06 | J69: -1.064749788e-05 | K69: -5.474206114e-05 | L69: 0.000715494576 | M69: 0.001573596057 | N69: 7.906176149e-07
A70: =IF('DF raw data'!I75="","",'DF raw data'!I75) -> -296 | B70: =IF('DF raw data'!J75="","",'DF raw data'!J75) -> -7.29679e-06 | C70: =IF('DF raw data'!K75="","",'DF raw data'!K75) -> 0.000190213 | D70: =IF('DF raw data'!L75="","",'DF raw data'!L75) -> -4.08828e-06 | F70: -7.32597716e-06 | G70: 0.000190973852 | H70: -4.10463312e-06 | J70: -1.431048646e-05 | K70: -6.189730437e-05 | L70: 0.000810981502 | M70: 0.001979086808 | N70: 1.119565508e-06
A71: =IF('DF raw data'!I76="","",'DF raw data'!I76) -> -295.5 | B71: =IF('DF raw data'!J76="","",'DF raw data'!J76) -> -7.74566e-06 | C71: =IF('DF raw data'!K76="","",'DF raw data'!K76) -> 0.000188508 | D71: =IF('DF raw data'!L76="","",'DF raw data'!L76) -> -3.13947e-06 | F71: -7.77664264e-06 | G71: 0.000189262032 | H71: -3.15202788e-06 | J71: -1.819880778e-05 | K71: -7.099670826e-05 | L71: 0.000905612518 | M71: 0.002431893067 | N71: 1.529798123e-06
A72: =IF('DF raw data'!I77="","",'DF raw data'!I77) -> -295 | B72: =IF('DF raw data'!J77="","",'DF raw data'!J77) -> 6.0277e-06 | C72: =IF('DF raw data'!K77="","",'DF raw data'!K77) -> 0.000182526 | D72: =IF('DF raw data'!L77="","",'DF raw data'!L77) -> -2.7648e-06 | F72: 6.0518108e-06 | G72: 0.000183256104 | H72: -2.7758592e-06 | J72: -1.517290238e-05 | K72: -7.858315945e-05 | L72: 0.00099724057 | M72: 0.002930513352 | N72: 2.027157609e-06
A73: =IF('DF raw data'!I78="","",'DF raw data'!I78) -> -294.5 | B73: =IF('DF raw data'!J78="","",'DF raw data'!J78) -> 5.19506e-06 | C73: =IF('DF raw data'!K78="","",'DF raw data'!K78) -> 0.00017815 | D73: =IF('DF raw data'!L78="","",'DF raw data'!L78) -> -3.23528e-06 | F73: 5.21584024e-06 | G73: 0.0001788626 | H73: -3.24822112e-06 | J73: -1.256498226e-05 | K73: -8.486565058e-05 | L73: 0.00108667187 | M73: 0.003473849287 | N73: 2.617664425e-06
A74: =IF('DF raw data'!I79="","",'DF raw data'!I79) -> -294 | B74: =IF('DF raw data'!J79="","",'DF raw data'!J79) -> 3.08129e-06 | C74: =IF('DF raw data'!K79="","",'DF raw data'!K79) -> 0.000187524 | D74: =IF('DF raw data'!L79="","",'DF raw data'!L79) -> -3.72817e-06 | F74: 3.09361516e-06 | G74: 0.000188274096 | H74: -3.74308268e-06 | J74: -1.101817468e-05 | K74: -9.037473792e-05 | L74: 0.001180808918 | M74: 0.004064253746 | N74: 3.314879975e-06
A75: =IF('DF raw data'!I80="","",'DF raw data'!I80) -> -293.5 | B75: =IF('DF raw data'!J80="","",'DF raw data'!J80) -> 8.59101e-06 | C75: =IF('DF raw data'!K80="","",'DF raw data'!K80) -> 0.000186365 | D75: =IF('DF raw data'!L80="","",'DF raw data'!L80) -> -4.20616e-06 | F75: 8.62537404e-06 | G75: 0.00018711046 | H75: -4.22298464e-06 | J75: -6.70548766e-06 | K75: -9.372748175e-05 | L75: 0.001274364148 | M75: 0.00470143582 | N75: 4.126904448e-06
A76: =IF('DF raw data'!I81="","",'DF raw data'!I81) -> -293 | B76: =IF('DF raw data'!J81="","",'DF raw data'!J81) -> 3.27415e-06 | C76: =IF('DF raw data'!K81="","",'DF raw data'!K81) -> 0.000187601 | D76: =IF('DF raw data'!L81="","",'DF raw data'!L81) -> -4.58209e-06 | F76: 3.2872466e-06 | G76: 0.000188351404 | H76: -4.60041836e-06 | J76: -5.06186436e-06 | K76: -9.625841393e-05 | L76: 0.00136853985 | M76: 0.005385705745 | N76: 5.063367919e-06
A77: =IF('DF raw data'!I82="","",'DF raw data'!I82) -> -292.5 | B77: =IF('DF raw data'!J82="","",'DF raw data'!J82) -> -2.17146e-06 | C77: =IF('DF raw data'!K82="","",'DF raw data'!K82) -> 0.000182913 | D77: =IF('DF raw data'!L82="","",'DF raw data'!L82) -> -4.42591e-06 | F77: -2.18014584e-06 | G77: 0.000183644652 | H77: -4.44361364e-06 | J77: -6.15193728e-06 | K77: -9.933438257e-05 | L77: 0.001460362176 | M77: 0.006115886833 | N77: 6.129715685e-06
A78: =IF('DF raw data'!I83="","",'DF raw data'!I83) -> -292 | B78: =IF('DF raw data'!J83="","",'DF raw data'!J83) -> 2.62563e-07 | C78: =IF('DF raw data'!K83="","",'DF raw data'!K83) -> 0.000186008 | D78: =IF('DF raw data'!L83="","",'DF raw data'!L83) -> -4.03454e-06 | F78: 2.63613252e-07 | G78: 0.000186752032 | H78: -4.05067816e-06 | J78: -6.020130654e-06 | K78: -0.0001023444479 | L78: 0.001553738192 | M78: 0.006892755929 | N78: 7.336784991e-06
A79: =IF('DF raw data'!I84="","",'DF raw data'!I84) -> -291.5 | B79: =IF('DF raw data'!J84="","",'DF raw data'!J84) -> -2.99565e-06 | C79: =IF('DF raw data'!K84="","",'DF raw data'!K84) -> 0.000181732 | D79: =IF('DF raw data'!L84="","",'DF raw data'!L84) -> -1.78799e-05 | F79: -3.0076326e-06 | G79: 0.000182458928 | H79: -1.79514196e-05 | J79: -7.523946954e-06 | K79: -0.0001061064214 | L79: 0.001644967656 | M79: 0.007715239757 | N79: 8.68977259e-06
A80: =IF('DF raw data'!I85="","",'DF raw data'!I85) -> -291 | B80: =IF('DF raw data'!J85="","",'DF raw data'!J85) -> 5.08565e-06 | C80: =IF('DF raw data'!K85="","",'DF raw data'!K85) -> 0.000175081 | D80: =IF('DF raw data'!L85="","",'DF raw data'!L85) -> -3.20435e-05 | F80: 5.1059926e-06 | G80: 0.000175781324 | H80: -3.2171674e-05 | J80: -4.970950654e-06 | K80: -0.0001085918967 | L80: 0.001732858318 | M80: 0.008581668916 | N80: 1.019118392e-05
A81: =IF('DF raw data'!I86="","",'DF raw data'!I86) -> -290.5 | B81: =IF('DF raw data'!J86="","",'DF raw data'!J86) -> -1.4202e-05 | C81: =IF('DF raw data'!K86="","",'DF raw data'!K86) -> 0.000184707 | D81: =IF('DF raw data'!L86="","",'DF raw data'!L86) -> -2.48722e-05 | F81: -1.4258808e-05 | G81: 0.000185445828 | H81: -2.49716888e-05 | J81: -1.210035465e-05 | K81: -0.000114642074 | L81: 0.001825581232 | M81: 0.009494459532 | N81: 1.185763055e-05
A82: =IF('DF raw data'!I87="","",'DF raw data'!I87) -> -290 | B82: =IF('DF raw data'!J87="","",'DF raw data'!J87) -> -1.13851e-05 | C82: =IF('DF raw data'!K87="","",'DF raw data'!K87) -> 0.000183494 | D82: =IF('DF raw data'!L87="","",'DF raw data'!L87) -> -2.23797e-05 | F82: -1.14306404e-05 | G82: 0.000184227976 | H82: -2.24692188e-05 | J82: -1.781567485e-05 | K82: -0.0001235499115 | L82: 0.00191769522 | M82: 0.01045330714 | N82: 1.369656672e-05
A83: =IF('DF raw data'!I88="","",'DF raw data'!I88) -> -289.5 | B83: =IF('DF raw data'!J88="","",'DF raw data'!J88) -> -8.63217e-06 | C83: =IF('DF raw data'!K88="","",'DF raw data'!K88) -> 0.000185281 | D83: =IF('DF raw data'!L88="","",'DF raw data'!L88) -> -1.94468e-05 | F83: -8.66669868e-06 | G83: 0.000186022124 | H83: -1.95245872e-05 | J83: -2.214902419e-05 | K83: -0.0001346244236 | L83: 0.002010706282 | M83: 0.01145866028 | N83: 1.571828189e-05
A84: =IF('DF raw data'!I89="","",'DF raw data'!I89) -> -289 | B84: =IF('DF raw data'!J89="","",'DF raw data'!J89) -> -1.64608e-06 | C84: =IF('DF raw data'!K89="","",'DF raw data'!K89) -> 0.000182868 | D84: =IF('DF raw data'!L89="","",'DF raw data'!L89) -> -2.43397e-05 | F84: -1.65266432e-06 | G84: 0.000183599472 | H84: -2.44370588e-05 | J84: -2.297535635e-05 | K84: -0.0001461121017 | L84: 0.002102506018 | M84: 0.01250991329 | N84: 1.79288116e-05
A85: =IF('DF raw data'!I90="","",'DF raw data'!I90) -> -288.5 | B85: =IF('DF raw data'!J90="","",'DF raw data'!J90) -> -8.95082e-06 | C85: =IF('DF raw data'!K90="","",'DF raw data'!K90) -> 0.000178204 | D85: =IF('DF raw data'!L90="","",'DF raw data'!L90) -> -2.17904e-05 | F85: -8.98662328e-06 | G85: 0.000178916816 | H85: -2.18775616e-05 | J85: -2.746866799e-05 | K85: -0.0001598464357 | L85: 0.002191964426 | M85: 0.0136058955 | N85: 2.033154289e-05
A86: =IF('DF raw data'!I91="","",'DF raw data'!I91) -> -288 | B86: =IF('DF raw data'!J91="","",'DF raw data'!J91) -> -4.15318e-06 | C86: =IF('DF raw data'!K91="","",'DF raw data'!K91) -> 0.000185558 | D86: =IF('DF raw data'!L91="","",'DF raw data'!L91) -> -1.10652e-05 | F86: -4.16979272e-06 | G86: 0.000186300232 | H86: -1.11094608e-05 | J86: -2.955356435e-05 | K86: -0.0001746232179 | L86: 0.002285114542 | M86: 0.01474845278 | N86: 2.294285383e-05
A87: =IF('DF raw data'!I92="","",'DF raw data'!I92) -> -287.5 | B87: =IF('DF raw data'!J92="","",'DF raw data'!J92) -> -4.40774e-06 | C87: =IF('DF raw data'!K92="","",'DF raw data'!K92) -> 0.000181295 | D87: =IF('DF raw data'!L92="","",'DF raw data'!L92) -> -1.36035e-05 | F87: -4.42537096e-06 | G87: 0.00018202018 | H87: -1.3657914e-05 | J87: -3.176624983e-05 | K87: -0.0001905063428 | L87: 0.002376124632 | M87: 0.01593651509 | N87: 2.576634251e-05
A88: =IF('DF raw data'!I93="","",'DF raw data'!I93) -> -287 | B88: =IF('DF raw data'!J93="","",'DF raw data'!J93) -> 3.22335e-06 | C88: =IF('DF raw data'!K93="","",'DF raw data'!K93) -> 0.000175394 | D88: =IF('DF raw data'!L93="","",'DF raw data'!L93) -> -2.5217e-05 | F88: 3.2362434e-06 | G88: 0.000176095576 | H88: -2.5317868e-05 | J88: -3.014812813e-05 | K88: -0.0002055804069 | L88: 0.00246417242 | M88: 0.0171686013 | N88: 2.880286982e-05
A89: =IF('DF raw data'!I94="","",'DF raw data'!I94) -> -286.5 | B89: =IF('DF raw data'!J94="","",'DF raw data'!J94) -> 5.15002e-06 | C89: =IF('DF raw data'!K94="","",'DF raw data'!K94) -> 0.000172662 | D89: =IF('DF raw data'!L94="","",'DF raw data'!L94) -> -3.27954e-05 | F89: 5.17062008e-06 | G89: 0.000173352648 | H89: -3.29265816e-05 | J89: -2.756281809e-05 | K89: -0.0002193618159 | L89: 0.002550848744 | M89: 0.01844402567 | N89: 3.205666434e-05
A90: =IF('DF raw data'!I95="","",'DF raw data'!I95) -> -286 | B90: =IF('DF raw data'!J95="","",'DF raw data'!J95) -> -4.24218e-07 | C90: =IF('DF raw data'!K95="","",'DF raw data'!K95) -> 0.000191296 | D90: =IF('DF raw data'!L95="","",'DF raw data'!L95) -> -3.14093e-05 | F90: -4.25914872e-07 | G90: 0.000192061184 | H90: -3.15349372e-05 | J90: -2.777577553e-05 | K90: -0.0002332497037 | L90: 0.002646879336 | M90: 0.01976746534 | N90: 3.556003519e-05
A91: =IF('DF raw data'!I96="","",'DF raw data'!I96) -> -285.5 | B91: =IF('DF raw data'!J96="","",'DF raw data'!J96) -> 4.11983e-06 | C91: =IF('DF raw data'!K96="","",'DF raw data'!K96) -> 0.00018412 | D91: =IF('DF raw data'!L96="","",'DF raw data'!L96) -> -2.47365e-05 | F91: 4.13630932e-06 | G91: 0.00018485648 | H91: -2.4835446e-05 | J91: -2.570762087e-05 | K91: -0.0002461035141 | L91: 0.002739307576 | M91: 0.02113711913 | N91: 3.931226863e-05
A92: =IF('DF raw data'!I97="","",'DF raw data'!I97) -> -285 | B92: =IF('DF raw data'!J97="","",'DF raw data'!J97) -> 5.65858e-06 | C92: =IF('DF raw data'!K97="","",'DF raw data'!K97) -> 0.000184478 | D92: =IF('DF raw data'!L97="","",'DF raw data'!L97) -> -2.66493e-05 | F92: 5.68121432e-06 | G92: 0.000185215912 | H92: -2.67558972e-05 | J92: -2.286701371e-05 | K92: -0.000257537021 | L92: 0.002831915532 | M92: 0.0225530769 | N92: 4.332240287e-05
A93: =IF('DF raw data'!I98="","",'DF raw data'!I98) -> -284.5 | B93: =IF('DF raw data'!J98="","",'DF raw data'!J98) -> 3.99343e-06 | C93: =IF('DF raw data'!K98="","",'DF raw data'!K98) -> 0.000184783 | D93: =IF('DF raw data'!L98="","",'DF raw data'!L98) -> -2.7395e-05 | F93: 4.00940372e-06 | G93: 0.000185522132 | H93: -2.750458e-05 | J93: -2.086231185e-05 | K93: -0.0002679681769 | L93: 0.002924676598 | M93: 0.0240154152 | N93: 4.759948709e-05
A94: =IF('DF raw data'!I99="","",'DF raw data'!I99) -> -284 | B94: =IF('DF raw data'!J99="","",'DF raw data'!J99) -> -1.97193e-05 | C94: =IF('DF raw data'!K99="","",'DF raw data'!K99) -> 0.000180364 | D94: =IF('DF raw data'!L99="","",'DF raw data'!L99) -> -1.31139e-05 | F94: -1.97981772e-05 | G94: 0.000181085456 | H94: -1.31663556e-05 | J94: -3.076140045e-05 | K94: -0.0002833488771 | L94: 0.003015219326 | M94: 0.02552302486 | N94: 5.214573401e-05
A95: =IF('DF raw data'!I100="","",'DF raw data'!I100) -> -283.5 | B95: =IF('DF raw data'!J100="","",'DF raw data'!J100) -> 7.64122e-06 | C95: =IF('DF raw data'!K100="","",'DF raw data'!K100) -> 0.000180929 | D95: =IF('DF raw data'!L100="","",'DF raw data'!L100) -> -2.16428e-05 | F95: 7.67178488e-06 | G95: 0.000181652716 | H95: -2.17293712e-05 | J95: -2.692550801e-05 | K95: -0.0002968116311 | L95: 0.003106045684 | M95: 0.0270760477 | N95: 5.69698564e-05
A96: =IF('DF raw data'!I101="","",'DF raw data'!I101) -> -283 | B96: =IF('DF raw data'!J101="","",'DF raw data'!J101) -> 2.13312e-06 | C96: =IF('DF raw data'!K101="","",'DF raw data'!K101) -> 0.000181461 | D96: =IF('DF raw data'!L101="","",'DF raw data'!L101) -> -2.35471e-05 | F96: 2.14165248e-06 | G96: 0.000182186844 | H96: -2.36412884e-05 | J96: -2.585468177e-05 | K96: -0.000309738972 | L96: 0.003197139106 | M96: 0.02867461725 | N96: 6.208103986e-05
A97: =IF('DF raw data'!I102="","",'DF raw data'!I102) -> -282.5 | B97: =IF('DF raw data'!J102="","",'DF raw data'!J102) -> -2.0373e-06 | C97: =IF('DF raw data'!K102="","",'DF raw data'!K102) -> 0.00017945 | D97: =IF('DF raw data'!L102="","",'DF raw data'!L102) -> -1.37225e-05 | F97: -2.0454492e-06 | G97: 0.0001801678 | H97: -1.377739e-05 | J97: -2.687740637e-05 | K97: -0.0003231776752 | L97: 0.003287223006 | M97: 0.03031822876 | N97: 6.748431861e-05
A98: =IF('DF raw data'!I103="","",'DF raw data'!I103) -> -282 | B98: =IF('DF raw data'!J103="","",'DF raw data'!J103) -> 5.65513e-06 | C98: =IF('DF raw data'!K103="","",'DF raw data'!K103) -> 0.000180268 | D98: =IF('DF raw data'!L103="","",'DF raw data'!L103) -> -2.12797e-05 | F98: 5.67775052e-06 | G98: 0.000180989072 | H98: -2.13648188e-05 | J98: -2.403853111e-05 | K98: -0.0003351969408 | L98: 0.003377717542 | M98: 0.03200708753 | N98: 7.318909543e-05
A99: =IF('DF raw data'!I104="","",'DF raw data'!I104) -> -281.5 | B99: =IF('DF raw data'!J104="","",'DF raw data'!J104) -> -4.20259e-06 | C99: =IF('DF raw data'!K104="","",'DF raw data'!K104) -> 0.000184733 | D99: =IF('DF raw data'!L104="","",'DF raw data'!L104) -> -3.33658e-05 | F99: -4.21940036e-06 | G99: 0.000185471932 | H99: -3.34992632e-05 | J99: -2.614823129e-05 | K99: -0.0003482710564 | L99: 0.003470453508 | M99: 0.03374231428 | N99: 7.921146107e-05
A100: =IF('DF raw data'!I105="","",'DF raw data'!I105) -> -281 | B100: =IF('DF raw data'!J105="","",'DF raw data'!J105) -> -3.18519e-06 | C100: =IF('DF raw data'!K105="","",'DF raw data'!K105) -> 0.000186061 | D100: =IF('DF raw data'!L105="","",'DF raw data'!L105) -> -2.18065e-05 | F100: -3.19793076e-06 | G100: 0.000186805244 | H100: -2.1893726e-05 | J100: -2.774719667e-05 | K100: -0.0003621446547 | L100: 0.00356385613 | M100: 0.03552424235 | N100: 8.556238128e-05
A101: =IF('DF raw data'!I106="","",'DF raw data'!I106) -> -280.5 | B101: =IF('DF raw data'!J106="","",'DF raw data'!J106) -> -3.88699e-06 | C101: =IF('DF raw data'!K106="","",'DF raw data'!K106) -> 0.0001843 | D101: =IF('DF raw data'!L106="","",'DF raw data'!L106) -> -2.63341e-05 | F101: -3.90253796e-06 | G101: 0.0001850372 | H101: -2.64394364e-05 | J101: -2.969846565e-05 | K101: -0.0003769938876 | L101: 0.00365637473 | M101: 0.03735242971 | N101: 9.224736036e-05
A102: =IF('DF raw data'!I107="","",'DF raw data'!I107) -> -280 | B102: =IF('DF raw data'!J107="","",'DF raw data'!J107) -> -2.72788e-06 | C102: =IF('DF raw data'!K107="","",'DF raw data'!K107) -> 0.000174832 | D102: =IF('DF raw data'!L107="","",'DF raw data'!L107) -> -3.57083e-05 | F102: -2.73879152e-06 | G102: 0.000175531328 | H102: -3.58511332e-05 | J102: -3.106786141e-05 | K102: -0.0003925278183 | L102: 0.003744140394 | M102: 0.03922449991 | N102: 9.925713662e-05
A103: =IF('DF raw data'!I108="","",'DF raw data'!I108) -> -279.5 | B103: =IF('DF raw data'!J108="","",'DF raw data'!J108) -> -6.766e-06 | C103: =IF('DF raw data'!K108="","",'DF raw data'!K108) -> 0.000183268 | D103: =IF('DF raw data'!L108="","",'DF raw data'!L108) -> -3.2219e-05 | F103: -6.793064e-06 | G103: 0.000184001072 | H103: -3.2347876e-05 | J103: -3.446439341e-05 | K103: -0.000409760015 | L103: 0.00383614093 | M103: 0.04114257037 | N103: 0.0001066157191
A104: =IF('DF raw data'!I109="","",'DF raw data'!I109) -> -279 | B104: =IF('DF raw data'!J109="","",'DF raw data'!J109) -> 1.37341e-06 | C104: =IF('DF raw data'!K109="","",'DF raw data'!K109) -> 0.000181951 | D104: =IF('DF raw data'!L109="","",'DF raw data'!L109) -> -3.74691e-05 | F104: 1.37890364e-06 | G104: 0.000182678804 | H104: -3.76189764e-05 | J104: -3.377494159e-05 | K104: -0.0004266474858 | L104: 0.003927480332 | M104: 0.04310631054 | N104: 0.0001143288404
A105: =IF('DF raw data'!I110="","",'DF raw data'!I110) -> -278.5 | B105: =IF('DF raw data'!J110="","",'DF raw data'!J110) -> 3.48444e-06 | C105: =IF('DF raw data'!K110="","",'DF raw data'!K110) -> 0.000174952 | D105: =IF('DF raw data'!L110="","",'DF raw data'!L110) -> -3.27593e-05 | F105: 3.49837776e-06 | G105: 0.000175651808 | H105: -3.28903372e-05 | J105: -3.202575271e-05 | K105: -0.0004426603621 | L105: 0.004015306236 | M105: 0.04511396366 | N105: 0.0001223906953
A106: =IF('DF raw data'!I111="","",'DF raw data'!I111) -> -278 | B106: =IF('DF raw data'!J111="","",'DF raw data'!J111) -> -4.91139e-06 | C106: =IF('DF raw data'!K111="","",'DF raw data'!K111) -> 0.000174726 | D106: =IF('DF raw data'!L111="","",'DF raw data'!L111) -> -2.72993e-05 | F106: -4.93103556e-06 | G106: 0.000175424904 | H106: -2.74084972e-05 | J106: -3.449127049e-05 | K106: -0.0004599059974 | L106: 0.004103018688 | M106: 0.047165473 | N106: 0.0001308086713
A107: =IF('DF raw data'!I112="","",'DF raw data'!I112) -> -277.5 | B107: =IF('DF raw data'!J112="","",'DF raw data'!J112) -> 8.53537e-06 | C107: =IF('DF raw data'!K112="","",'DF raw data'!K112) -> 0.00017704 | D107: =IF('DF raw data'!L112="","",'DF raw data'!L112) -> -1.74805e-05 | F107: 8.56951148e-06 | G107: 0.00017774816 | H107: -1.7550422e-05 | J107: -3.020651475e-05 | K107: -0.0004750092548 | L107: 0.004191892768 | M107: 0.04926141938 | N107: 0.00013959511
A108: =IF('DF raw data'!I113="","",'DF raw data'!I113) -> -277 | B108: =IF('DF raw data'!J113="","",'DF raw data'!J113) -> -5.16748e-06 | C108: =IF('DF raw data'!K113="","",'DF raw data'!K113) -> 0.000180028 | D108: =IF('DF raw data'!L113="","",'DF raw data'!L113) -> -2.7528e-05 | F108: -5.18814992e-06 | G108: 0.000180748112 | H108: -2.7638112e-05 | J108: -3.280058971e-05 | K108: -0.0004914095496 | L108: 0.004282266824 | M108: 0.0514025528 | N108: 0.0001487645525
A109: =IF('DF raw data'!I114="","",'DF raw data'!I114) -> -276.5 | B109: =IF('DF raw data'!J114="","",'DF raw data'!J114) -> -3.05603e-06 | C109: =IF('DF raw data'!K114="","",'DF raw data'!K114) -> 0.000179607 | D109: =IF('DF raw data'!L114="","",'DF raw data'!L114) -> -2.33433e-05 | F109: -3.06825412e-06 | G109: 0.000180325428 | H109: -2.34366732e-05 | J109: -3.433471677e-05 | K109: -0.000508576908 | L109: 0.004372429538 | M109: 0.05358876757 | N109: 0.000158324212
A110: =IF('DF raw data'!I115="","",'DF raw data'!I115) -> -276 | B110: =IF('DF raw data'!J115="","",'DF raw data'!J115) -> -5.23766e-06 | C110: =IF('DF raw data'!K115="","",'DF raw data'!K115) -> 0.000184734 | D110: =IF('DF raw data'!L115="","",'DF raw data'!L115) -> -1.83025e-05 | F110: -5.25861064e-06 | G110: 0.000185472936 | H110: -1.837571e-05 | J110: -3.696402209e-05 | K110: -0.000527058919 | L110: 0.004465166006 | M110: 0.05582135057 | N110: 0.0001682937489
A111: =IF('DF raw data'!I116="","",'DF raw data'!I116) -> -275.5 | B111: =IF('DF raw data'!J116="","",'DF raw data'!J116) -> -2.35628e-06 | C111: =IF('DF raw data'!K116="","",'DF raw data'!K116) -> 0.000176381 | D111: =IF('DF raw data'!L116="","",'DF raw data'!L116) -> -1.5568e-05 | F111: -2.36570512e-06 | G111: 0.000177086524 | H111: -1.5630272e-05 | J111: -3.814687465e-05 | K111: -0.0005461323564 | L111: 0.004553709268 | M111: 0.0580982052 | N111: 0.0001786626105
A112: =IF('DF raw data'!I117="","",'DF raw data'!I117) -> -275 | B112: =IF('DF raw data'!J117="","",'DF raw data'!J117) -> 2.96617e-06 | C112: =IF('DF raw data'!K117="","",'DF raw data'!K117) -> 0.00017429 | D112: =IF('DF raw data'!L117="","",'DF raw data'!L117) -> -2.37575e-05 | F112: 2.97803468e-06 | G112: 0.00017498716 | H112: -2.385253e-05 | J112: -3.665785731e-05 | K112: -0.000564461285 | L112: 0.004641202848 | M112: 0.06041880663 | N112: 0.0001894336644
A113: =IF('DF raw data'!I118="","",'DF raw data'!I118) -> -274.5 | B113: =IF('DF raw data'!J118="","",'DF raw data'!J118) -> 5.01276e-06 | C113: =IF('DF raw data'!K118="","",'DF raw data'!K118) -> 0.000176685 | D113: =IF('DF raw data'!L118="","",'DF raw data'!L118) -> -1.87186e-05 | F113: 5.03281104e-06 | G113: 0.00017739174 | H113: -1.87934744e-05 | J113: -3.414145179e-05 | K113: -0.0005815320109 | L113: 0.004729898718 | M113: 0.06278375599 | N113: 0.0002006202181
A114: =IF('DF raw data'!I119="","",'DF raw data'!I119) -> -274 | B114: =IF('DF raw data'!J119="","",'DF raw data'!J119) -> 2.0645e-06 | C114: =IF('DF raw data'!K119="","",'DF raw data'!K119) -> 0.00017228 | D114: =IF('DF raw data'!L119="","",'DF raw data'!L119) -> -1.6324e-05 | F114: 2.072758e-06 | G114: 0.00017296912 | H114: -1.6389296e-05 | J114: -3.310507279e-05 | K114: -0.0005980845473 | L114: 0.004816383278 | M114: 0.06519194762 | N114: 0.00021221954
A115: =IF('DF raw data'!I120="","",'DF raw data'!I120) -> -273.5 | B115: =IF('DF raw data'!J120="","",'DF raw data'!J120) -> -1.8389e-06 | C115: =IF('DF raw data'!K120="","",'DF raw data'!K120) -> 0.000172535 | D115: =IF('DF raw data'!L120="","",'DF raw data'!L120) -> -2.3113e-05 | F115: -1.8462556e-06 | G115: 0.00017322514 | H115: -2.3205452e-05 | J115: -3.402820059e-05 | K115: -0.0006150986476 | L115: 0.004902995848 | M115: 0.06764344555 | N115: 0.0002242398031
A116: =IF('DF raw data'!I121="","",'DF raw data'!I121) -> -273 | B116: =IF('DF raw data'!J121="","",'DF raw data'!J121) -> -1.11957e-05 | C116: =IF('DF raw data'!K121="","",'DF raw data'!K121) -> 0.000176148 | D116: =IF('DF raw data'!L121="","",'DF raw data'!L121) -> -1.79258e-05 | F116: -1.12404828e-05 | G116: 0.000176852592 | H116: -1.79975032e-05 | J116: -3.964844199e-05 | K116: -0.0006349228686 | L116: 0.004991422144 | M116: 0.07013915662 | N116: 0.0002366977366
A117: =IF('DF raw data'!I122="","",'DF raw data'!I122) -> -272.5 | B117: =IF('DF raw data'!J122="","",'DF raw data'!J122) -> -1.03647e-05 | C117: =IF('DF raw data'!K122="","",'DF raw data'!K122) -> 0.000171385 | D117: =IF('DF raw data'!L122="","",'DF raw data'!L122) -> -1.47307e-05 | F117: -1.04061588e-05 | G117: 0.00017207054 | H117: -1.47896228e-05 | J117: -4.485152139e-05 | K117: -0.0006573486293 | L117: 0.005077457414 | M117: 0.07267788533 | N117: 0.0002495890294
A118: =IF('DF raw data'!I123="","",'DF raw data'!I123) -> -272 | B118: =IF('DF raw data'!J123="","",'DF raw data'!J123) -> -1.9698e-06 | C118: =IF('DF raw data'!K123="","",'DF raw data'!K123) -> 0.000167957 | D118: =IF('DF raw data'!L123="","",'DF raw data'!L123) -> -1.89017e-05 | F118: -1.9776792e-06 | G118: 0.000168628828 | H118: -1.89773068e-05 | J118: -4.584036099e-05 | K118: -0.0006802688098 | L118: 0.005161771828 | M118: 0.07525877124 | N118: 0.0002629120242
A119: =IF('DF raw data'!I124="","",'DF raw data'!I124) -> -271.5 | B119: =IF('DF raw data'!J124="","",'DF raw data'!J124) -> 7.25525e-06 | C119: =IF('DF raw data'!K124="","",'DF raw data'!K124) -> 0.000168145 | D119: =IF('DF raw data'!L124="","",'DF raw data'!L124) -> -1.91746e-05 | F119: 7.284271e-06 | G119: 0.00016881758 | H119: -1.92512984e-05 | J119: -4.219822549e-05 | K119: -0.0007013679225 | L119: 0.005246180618 | M119: 0.07788186155 | N119: 0.0002766741201
A120: =IF('DF raw data'!I125="","",'DF raw data'!I125) -> -271 | B120: =IF('DF raw data'!J125="","",'DF raw data'!J125) -> -2.99622e-06 | C120: =IF('DF raw data'!K125="","",'DF raw data'!K125) -> 0.000174648 | D120: =IF('DF raw data'!L125="","",'DF raw data'!L125) -> -1.70741e-05 | F120: -3.00820488e-06 | G120: 0.000175346592 | H120: -1.71423964e-05 | J120: -4.370232793e-05 | K120: -0.0007232190865 | L120: 0.005333853914 | M120: 0.08054878851 | N120: 0.0002909000739
A121: =IF('DF raw data'!I126="","",'DF raw data'!I126) -> -270.5 | B121: =IF('DF raw data'!J126="","",'DF raw data'!J126) -> -9.01942e-06 | C121: =IF('DF raw data'!K126="","",'DF raw data'!K126) -> 0.000181516 | D121: =IF('DF raw data'!L126="","",'DF raw data'!L126) -> -1.48551e-05 | F121: -9.05549768e-06 | G121: 0.000182242064 | H121: -1.49145204e-05 | J121: -4.823007677e-05 | K121: -0.0007473341249 | L121: 0.005424974946 | M121: 0.08326127598 | N121: 0.0003056164135
A122: =IF('DF raw data'!I127="","",'DF raw data'!I127) -> -270 | B122: =IF('DF raw data'!J127="","",'DF raw data'!J127) -> -9.5305e-07 | C122: =IF('DF raw data'!K127="","",'DF raw data'!K127) -> 0.000183141 | D122: =IF('DF raw data'!L127="","",'DF raw data'!L127) -> -6.21171e-06 | F122: -9.568622e-07 | G122: 0.000183873564 | H122: -6.23655684e-06 | J122: -4.870850787e-05 | K122: -0.0007716883788 | L122: 0.005516911728 | M122: 0.08601973184 | N122: 0.0003208357573
A123: =IF('DF raw data'!I128="","",'DF raw data'!I128) -> -269.5 | B123: =IF('DF raw data'!J128="","",'DF raw data'!J128) -> 2.69757e-06 | C123: =IF('DF raw data'!K128="","",'DF raw data'!K128) -> 0.000176911 | D123: =IF('DF raw data'!L128="","",'DF raw data'!L128) -> -4.79323e-06 | F123: 2.70836028e-06 | G123: 0.000177618644 | H123: -4.81240292e-06 | J123: -4.735432773e-05 | K123: -0.0007953655427 | L123: 0.00560572105 | M123: 0.08882259237 | N123: 0.0003365489327
A124: =IF('DF raw data'!I129="","",'DF raw data'!I129) -> -269 | B124: =IF('DF raw data'!J129="","",'DF raw data'!J129) -> -3.313e-06 | C124: =IF('DF raw data'!K129="","",'DF raw data'!K129) -> 0.000177502 | D124: =IF('DF raw data'!L129="","",'DF raw data'!L129) -> -2.23233e-05 | F124: -3.326252e-06 | G124: 0.000178212008 | H124: -2.24125932e-05 | J124: -4.901745373e-05 | K124: -0.0008198742695 | L124: 0.005694827054 | M124: 0.0916700059 | N124: 0.0003527656617
A125: =IF('DF raw data'!I130="","",'DF raw data'!I130) -> -268.5 | B125: =IF('DF raw data'!J130="","",'DF raw data'!J130) -> 2.96576e-06 | C125: =IF('DF raw data'!K130="","",'DF raw data'!K130) -> 0.000186696 | D125: =IF('DF raw data'!L130="","",'DF raw data'!L130) -> -2.32302e-05 | F125: 2.97762304e-06 | G125: 0.000187442784 | H125: -2.33231208e-05 | J125: -4.752864221e-05 | K125: -0.0008436385907 | L125: 0.005788548446 | M125: 0.09456428012 | N125: 0.0003695204377
A126: =IF('DF raw data'!I131="","",'DF raw data'!I131) -> -268 | B126: =IF('DF raw data'!J131="","",'DF raw data'!J131) -> 3.48001e-06 | C126: =IF('DF raw data'!K131="","",'DF raw data'!K131) -> 0.000173574 | D126: =IF('DF raw data'!L131="","",'DF raw data'!L131) -> -2.58032e-05 | F126: 3.49393004e-06 | G126: 0.000174268296 | H126: -2.59064128e-05 | J126: -4.578167719e-05 | K126: -0.0008665294292 | L126: 0.005875682594 | M126: 0.09750212142 | N126: 0.0003867833087
A127: =IF('DF raw data'!I132="","",'DF raw data'!I132) -> -267.5 | B127: =IF('DF raw data'!J132="","",'DF raw data'!J132) -> 1.05825e-05 | C127: =IF('DF raw data'!K132="","",'DF raw data'!K132) -> 0.000176915 | D127: =IF('DF raw data'!L132="","",'DF raw data'!L132) -> -1.28991e-05 | F127: 1.062483e-05 | G127: 0.00017762266 | H127: -1.29506964e-05 | J127: -4.046926219e-05 | K127: -0.0008867640603 | L127: 0.005964493924 | M127: 0.1004843684 | N127: 0.0004045717214
A128: =IF('DF raw data'!I133="","",'DF raw data'!I133) -> -267 | B128: =IF('DF raw data'!J133="","",'DF raw data'!J133) -> -2.41984e-06 | C128: =IF('DF raw data'!K133="","",'DF raw data'!K133) -> 0.000184838 | D128: =IF('DF raw data'!L133="","",'DF raw data'!L133) -> -1.66355e-05 | F128: =(1-$G$1*($B$49-$G$2))*B128 -> -2.42951936e-06 | G128: 0.000185577352 | H128: -1.6702042e-05 | J128: =F128*$G$3+J127 -> -4.168402187e-05 | K128: =J128*$G$3+K127 -> -0.0009076060713 | L128: =G128*$G$3+L127 -> 0.0060572826 | M128: =L128*$G$3+M127 -> 0.1035130097 | N128: =(J128^2+L128^2)*$G$3+N127 -> 0.0004229179265
A129: =IF('DF raw data'!I134="","",'DF raw data'!I134) -> -266.5 | B129: =IF('DF raw data'!J134="","",'DF raw data'!J134) -> -4.59306e-06 | C129: =IF('DF raw data'!K134="","",'DF raw data'!K134) -> 0.000179798 | D129: =IF('DF raw data'!L134="","",'DF raw data'!L134) -> -2.39035e-05 | F129: -4.61143224e-06 | G129: 0.000180517192 | H129: -2.3999114e-05 | J129: -4.398973799e-05 | K129: -0.0009296009403 | L129: 0.006147541196 | M129: 0.1065867803 | N129: 0.0004418150254
A130: =IF('DF raw data'!I135="","",'DF raw data'!I135) -> -266 | B130: =IF('DF raw data'!J135="","",'DF raw data'!J135) -> -1.35619e-05 | C130: =IF('DF raw data'!K135="","",'DF raw data'!K135) -> 0.000179577 | D130: =IF('DF raw data'!L135="","",'DF raw data'!L135) -> -2.45662e-05 | F130: -1.36161476e-05 | G130: 0.000180295308 | H130: -2.46644648e-05 | J130: -5.079781179e-05 | K130: -0.0009549998462 | L130: 0.00623768885 | M130: 0.1097056247 | N130: 0.0004612706967
A131: =IF('DF raw data'!I136="","",'DF raw data'!I136) -> -265.5 | B131: =IF('DF raw data'!J136="","",'DF raw data'!J136) -> 3.35698e-07 | C131: =IF('DF raw data'!K136="","",'DF raw data'!K136) -> 0.000175429 | D131: =IF('DF raw data'!L136="","",'DF raw data'!L136) -> -1.78316e-05 | F131: 3.37040792e-07 | G131: 0.000176130716 | H131: -1.79029264e-05 | J131: -5.062929139e-05 | K131: -0.0009803144919 | L131: 0.006325754208 | M131: 0.1128685018 | N131: 0.0004812795615
A132: =IF('DF raw data'!I137="","",'DF raw data'!I137) -> -265 | B132: =IF('DF raw data'!J137="","",'DF raw data'!J137) -> 3.29153e-07 | C132: =IF('DF raw data'!K137="","",'DF raw data'!K137) -> 0.000168621 | D132: =IF('DF raw data'!L137="","",'DF raw data'!L137) -> -7.72555e-06 | F132: 3.30469612e-07 | G132: 0.000169295484 | H132: -7.7564522e-06 | J132: -5.046405659e-05 | K132: -0.00100554652 | L132: 0.00641040195 | M132: 0.1160737028 | N132: 0.0005018274614
A133: =IF('DF raw data'!I138="","",'DF raw data'!I138) -> -264.5 | B133: =IF('DF raw data'!J138="","",'DF raw data'!J138) -> -3.51713e-06 | C133: =IF('DF raw data'!K138="","",'DF raw data'!K138) -> 0.000166916 | D133: =IF('DF raw data'!L138="","",'DF raw data'!L138) -> -3.94477e-06 | F133: -3.53119852e-06 | G133: 0.000167583664 | H133: -3.96054908e-06 | J133: -5.222965585e-05 | K133: -0.001031661348 | L133: 0.006494193782 | M133: 0.1193207997 | N133: 0.0005229161018
A134: =IF('DF raw data'!I139="","",'DF raw data'!I139) -> -264 | B134: =IF('DF raw data'!J139="","",'DF raw data'!J139) -> 7.44286e-06 | C134: =IF('DF raw data'!K139="","",'DF raw data'!K139) -> 0.000174302 | D134: =IF('DF raw data'!L139="","",'DF raw data'!L139) -> -1.16246e-05 | F134: 7.47263144e-06 | G134: 0.000174999208 | H134: -1.16710984e-05 | J134: -4.849334013e-05 | K134: -0.001055908018 | L134: 0.006581693386 | M134: 0.1226116464 | N134: 0.0005445766215
A135: =IF('DF raw data'!I140="","",'DF raw data'!I140) -> -263.5 | B135: =IF('DF raw data'!J140="","",'DF raw data'!J140) -> 1.28924e-05 | C135: =IF('DF raw data'!K140="","",'DF raw data'!K140) -> 0.000172386 | D135: =IF('DF raw data'!L140="","",'DF raw data'!L140) -> -1.86819e-05 | F135: 1.29439696e-05 | G135: 0.000173075544 | H135: -1.87566276e-05 | J135: -4.202135533e-05 | K135: -0.001076918696 | L135: 0.006668231158 | M135: 0.1259457619 | N135: 0.0005668101578
A136: =IF('DF raw data'!I141="","",'DF raw data'!I141) -> -263 | B136: =IF('DF raw data'!J141="","",'DF raw data'!J141) -> -1.01057e-05 | C136: =IF('DF raw data'!K141="","",'DF raw data'!K141) -> 0.000179933 | D136: =IF('DF raw data'!L141="","",'DF raw data'!L141) -> -1.92761e-05 | F136: -1.01461228e-05 | G136: 0.000180652732 | H136: -1.93532044e-05 | J136: -4.709441673e-05 | K136: -0.001100465904 | L136: 0.006758557524 | M136: 0.1293250407 | N136: 0.0005896503167
A137: =IF('DF raw data'!I142="","",'DF raw data'!I142) -> -262.5 | B137: =IF('DF raw data'!J142="","",'DF raw data'!J142) -> 8.41846e-08 | C137: =IF('DF raw data'!K142="","",'DF raw data'!K142) -> 0.000179625 | D137: =IF('DF raw data'!L142="","",'DF raw data'!L142) -> -2.51161e-05 | F137: 8.45213384e-08 | G137: 0.0001803435 | H137: -2.52165644e-05 | J137: -4.705215606e-05 | K137: -0.001123991982 | L137: 0.006848729274 | M137: 0.1327494053 | N137: 0.0006131039699
A138: =IF('DF raw data'!I143="","",'DF raw data'!I143) -> -262 | B138: =IF('DF raw data'!J143="","",'DF raw data'!J143) -> -7.9291e-06 | C138: =IF('DF raw data'!K143="","",'DF raw data'!K143) -> 0.000173359 | D138: =IF('DF raw data'!L143="","",'DF raw data'!L143) -> -1.70111e-05 | F138: -7.9608164e-06 | G138: 0.000174052436 | H138: -1.70791444e-05 | J138: -5.103256426e-05 | K138: -0.001149508264 | L138: 0.006935755492 | M138: 0.1362172831 | N138: 0.0006371576242
A139: =IF('DF raw data'!I144="","",'DF raw data'!I144) -> -261.5 | B139: =IF('DF raw data'!J144="","",'DF raw data'!J144) -> -1.27042e-06 | C139: =IF('DF raw data'!K144="","",'DF raw data'!K144) -> 0.000188521 | D139: =IF('DF raw data'!L144="","",'DF raw data'!L144) -> -1.08997e-05 | F139: -1.27550168e-06 | G139: 0.000189275084 | H139: -1.09432988e-05 | J139: -5.16703151e-05 | K139: -0.001175343422 | L139: 0.007030393034 | M139: 0.1397324796 | N139: 0.0006618721722
A140: =IF('DF raw data'!I145="","",'DF raw data'!I145) -> -261 | B140: =IF('DF raw data'!J145="","",'DF raw data'!J145) -> 7.57585e-06 | C140: =IF('DF raw data'!K145="","",'DF raw data'!K145) -> 0.000189366 | D140: =IF('DF raw data'!L145="","",'DF raw data'!L145) -> -1.91428e-05 | F140: 7.6061534e-06 | G140: 0.000190123464 | H140: -1.92193712e-05 | J140: -4.78672384e-05 | K140: -0.001199277041 | L140: 0.007125454766 | M140: 0.143295207 | N140: 0.0006872593707
A141: =IF('DF raw data'!I146="","",'DF raw data'!I146) -> -260.5 | B141: =IF('DF raw data'!J146="","",'DF raw data'!J146) -> -9.01654e-06 | C141: =IF('DF raw data'!K146="","",'DF raw data'!K146) -> 0.00017425 | D141: =IF('DF raw data'!L146="","",'DF raw data'!L146) -> -1.9358e-05 | F141: -9.05260616e-06 | G141: 0.000174947 | H141: -1.9435432e-05 | J141: -5.239354148e-05 | K141: -0.001225473812 | L141: 0.007212928266 | M141: 0.1469016711 | N141: 0.0007132739103
A142: =IF('DF raw data'!I147="","",'DF raw data'!I147) -> -260 | B142: =IF('DF raw data'!J147="","",'DF raw data'!J147) -> 8.53386e-06 | C142: =IF('DF raw data'!K147="","",'DF raw data'!K147) -> 0.000171551 | D142: =IF('DF raw data'!L147="","",'DF raw data'!L147) -> -1.48699e-05 | F142: 8.56799544e-06 | G142: 0.000172237204 | H142: -1.49293796e-05 | J142: -4.810954376e-05 | K142: -0.001249528584 | L142: 0.007299046868 | M142: 0.1505511946 | N142: 0.0007399131102
A143: =IF('DF raw data'!I148="","",'DF raw data'!I148) -> -259.5 | B143: =IF('DF raw data'!J148="","",'DF raw data'!J148) -> -8.11984e-06 | C143: =IF('DF raw data'!K148="","",'DF raw data'!K148) -> 0.000171126 | D143: =IF('DF raw data'!L148="","",'DF raw data'!L148) -> -1.91434e-05 | F143: -8.15231936e-06 | G143: 0.000171810504 | H143: -1.92199736e-05 | J143: -5.218570344e-05 | K143: -0.001275621435 | L143: 0.00738495212 | M143: 0.1542436706 | N143: 0.0007671832308
A144: =IF('DF raw data'!I149="","",'DF raw data'!I149) -> -259 | B144: =IF('DF raw data'!J149="","",'DF raw data'!J149) -> -1.26311e-06 | C144: =IF('DF raw data'!K149="","",'DF raw data'!K149) -> 0.000168675 | D144: =IF('DF raw data'!L149="","",'DF raw data'!L149) -> -2.2208e-05 | F144: -1.26816244e-06 | G144: 0.0001693497 | H144: -2.2296832e-05 | J144: -5.281978466e-05 | K144: -0.001302031328 | L144: 0.00746962697 | M144: 0.1579784841 | N144: 0.0007950822893
A145: =IF('DF raw data'!I150="","",'DF raw data'!I150) -> -258.5 | B145: =IF('DF raw data'!J150="","",'DF raw data'!J150) -> -3.44554e-06 | C145: =IF('DF raw data'!K150="","",'DF raw data'!K150) -> 0.000165924 | D145: =IF('DF raw data'!L150="","",'DF raw data'!L150) -> -1.53634e-05 | F145: -3.45932216e-06 | G145: 0.000166587696 | H145: -1.54248536e-05 | J145: -5.454944574e-05 | K145: -0.001329306051 | L145: 0.007552920818 | M145: 0.1617549445 | N145: 0.0008236070835
A146: =IF('DF raw data'!I151="","",'DF raw data'!I151) -> -258 | B146: =IF('DF raw data'!J151="","",'DF raw data'!J151) -> -1.96286e-06 | C146: =IF('DF raw data'!K151="","",'DF raw data'!K151) -> 0.00016793 | D146: =IF('DF raw data'!L151="","",'DF raw data'!L151) -> -2.96096e-05 | F146: -1.97071144e-06 | G146: 0.00016860172 | H146: -2.97280384e-05 | J146: -5.553480146e-05 | K146: -0.001357073451 | L146: 0.007637221678 | M146: 0.1655735553 | N146: 0.0008527722031
A147: =IF('DF raw data'!I152="","",'DF raw data'!I152) -> -257.5 | B147: =IF('DF raw data'!J152="","",'DF raw data'!J152) -> -1.71911e-06 | C147: =IF('DF raw data'!K152="","",'DF raw data'!K152) -> 0.000170674 | D147: =IF('DF raw data'!L152="","",'DF raw data'!L152) -> -1.02625e-05 | F147: -1.72598644e-06 | G147: 0.000171356696 | H147: -1.030355e-05 | J147: -5.639779468e-05 | K147: -0.001385272349 | L147: 0.007722900026 | M147: 0.1694350054 | N147: 0.0008825953858
A148: =IF('DF raw data'!I153="","",'DF raw data'!I153) -> -257 | B148: =IF('DF raw data'!J153="","",'DF raw data'!J153) -> -4.14483e-06 | C148: =IF('DF raw data'!K153="","",'DF raw data'!K153) -> 0.000167573 | D148: =IF('DF raw data'!L153="","",'DF raw data'!L153) -> -2.40192e-05 | F148: -4.16140932e-06 | G148: 0.000168243292 | H148: -2.41152768e-05 | J148: -5.847849934e-05 | K148: -0.001414511598 | L148: 0.007807021672 | M148: 0.1733385162 | N148: 0.0009130718894
A149: =IF('DF raw data'!I154="","",'DF raw data'!I154) -> -256.5 | B149: =IF('DF raw data'!J154="","",'DF raw data'!J154) -> -9.52381e-07 | C149: =IF('DF raw data'!K154="","",'DF raw data'!K154) -> 0.000170897 | D149: =IF('DF raw data'!L154="","",'DF raw data'!L154) -> -7.20355e-06 | F149: -9.56190524e-07 | G149: 0.000171580588 | H149: -7.2323642e-06 | J149: -5.89565946e-05 | K149: -0.001443989896 | L149: 0.007892811966 | M149: 0.1772849222 | N149: 0.0009442218677
A150: =IF('DF raw data'!I155="","",'DF raw data'!I155) -> -256 | B150: =IF('DF raw data'!J155="","",'DF raw data'!J155) -> 6.80347e-06 | C150: =IF('DF raw data'!K155="","",'DF raw data'!K155) -> 0.000164526 | D150: =IF('DF raw data'!L155="","",'DF raw data'!L155) -> -1.34704e-05 | F150: 6.83068388e-06 | G150: 0.000165184104 | H150: -1.35242816e-05 | J150: -5.554125266e-05 | K150: -0.001471760522 | L150: 0.007975404018 | M150: 0.1812726242 | N150: 0.0009760269447
A151: =IF('DF raw data'!I156="","",'DF raw data'!I156) -> -255.5 | B151: =IF('DF raw data'!J156="","",'DF raw data'!J156) -> 2.44153e-06 | C151: =IF('DF raw data'!K156="","",'DF raw data'!K156) -> 0.00017213 | D151: =IF('DF raw data'!L156="","",'DF raw data'!L156) -> -5.10746e-06 | F151: 2.45129612e-06 | G151: 0.00017281852 | H151: -5.12788984e-06 | J151: -5.43156046e-05 | K151: -0.001498918324 | L151: 0.008061813278 | M151: 0.1853035308 | N151: 0.001008524836
A152: =IF('DF raw data'!I157="","",'DF raw data'!I157) -> -255 | B152: =IF('DF raw data'!J157="","",'DF raw data'!J157) -> 1.39797e-05 | C152: =IF('DF raw data'!K157="","",'DF raw data'!K157) -> 0.000180649 | D152: =IF('DF raw data'!L157="","",'DF raw data'!L157) -> -1.51639e-05 | F152: 1.40356188e-05 | G152: 0.000181371596 | H152: -1.52245556e-05 | J152: -4.72977952e-05 | K152: -0.001522567222 | L152: 0.008152499076 | M152: 0.1893797804 | N152: 0.001041757576
A153: =IF('DF raw data'!I158="","",'DF raw data'!I158) -> -254.5 | B153: =IF('DF raw data'!J158="","",'DF raw data'!J158) -> -5.05107e-08 | C153: =IF('DF raw data'!K158="","",'DF raw data'!K158) -> 0.000181305 | D153: =IF('DF raw data'!L158="","",'DF raw data'!L158) -> -1.49751e-05 | F153: -5.07127428e-08 | G153: 0.00018203022 | H153: -1.50350004e-05 | J153: -4.732315157e-05 | K153: -0.001546228798 | L153: 0.008243514186 | M153: 0.1935015375 | N153: 0.001075736458
A154: =IF('DF raw data'!I159="","",'DF raw data'!I159) -> -254 | B154: =IF('DF raw data'!J159="","",'DF raw data'!J159) -> -4.29414e-07 | C154: =IF('DF raw data'!K159="","",'DF raw data'!K159) -> 0.000179098 | D154: =IF('DF raw data'!L159="","",'DF raw data'!L159) -> -2.34066e-05 | F154: -4.31131656e-07 | G154: 0.000179814392 | H154: -2.35002264e-05 | J154: -4.75387174e-05 | K154: -0.001569998156 | L154: 0.008333421382 | M154: 0.1976682482 | N154: 0.001110460544
A155: =IF('DF raw data'!I160="","",'DF raw data'!I160) -> -253.5 | B155: =IF('DF raw data'!J160="","",'DF raw data'!J160) -> -6.52873e-06 | C155: =IF('DF raw data'!K160="","",'DF raw data'!K160) -> 0.000188214 | D155: =IF('DF raw data'!L160="","",'DF raw data'!L160) -> -2.87566e-06 | F155: -6.55484492e-06 | G155: 0.000188966856 | H155: -2.88716264e-06 | J155: -5.081613986e-05 | K155: -0.001595406226 | L155: 0.00842790481 | M155: 0.2018822006 | N155: 0.001145976625
A156: =IF('DF raw data'!I161="","",'DF raw data'!I161) -> -253 | B156: =IF('DF raw data'!J161="","",'DF raw data'!J161) -> -2.48742e-06 | C156: =IF('DF raw data'!K161="","",'DF raw data'!K161) -> 0.000179386 | D156: =IF('DF raw data'!L161="","",'DF raw data'!L161) -> -1.14192e-05 | F156: -2.49736968e-06 | G156: 0.000180103544 | H156: -1.14648768e-05 | J156: -5.20648247e-05 | K156: -0.001621438639 | L156: 0.008517956582 | M156: 0.2061411788 | N156: 0.001182255773
A157: =IF('DF raw data'!I162="","",'DF raw data'!I162) -> -252.5 | B157: =IF('DF raw data'!J162="","",'DF raw data'!J162) -> -6.08025e-06 | C157: =IF('DF raw data'!K162="","",'DF raw data'!K162) -> 0.000169935 | D157: =IF('DF raw data'!L162="","",'DF raw data'!L162) -> -2.77335e-06 | F157: -6.104571e-06 | G157: 0.00017061474 | H157: -2.7844434e-06 | J157: -5.51171102e-05 | K157: -0.001648997194 | L157: 0.008603263952 | M157: 0.2104428108 | N157: 0.001219265367
A158: =IF('DF raw data'!I163="","",'DF raw data'!I163) -> -252 | B158: =IF('DF raw data'!J163="","",'DF raw data'!J163) -> 1.86955e-06 | C158: =IF('DF raw data'!K163="","",'DF raw data'!K163) -> 0.000177572 | D158: =IF('DF raw data'!L163="","",'DF raw data'!L163) -> -1.22329e-05 | F158: 1.8770282e-06 | G158: 0.000178282288 | H158: -1.22818316e-05 | J158: -5.41785961e-05 | K158: -0.001676086492 | L158: 0.008692405096 | M158: 0.2147890134 | N158: 0.001257045788
A159: =IF('DF raw data'!I164="","",'DF raw data'!I164) -> -251.5 | B159: =IF('DF raw data'!J164="","",'DF raw data'!J164) -> -4.32048e-07 | C159: =IF('DF raw data'!K164="","",'DF raw data'!K164) -> 0.000177285 | D159: =IF('DF raw data'!L164="","",'DF raw data'!L164) -> -1.93203e-05 | F159: -4.33776192e-07 | G159: 0.00017799414 | H159: -1.93975812e-05 | J159: -5.43954842e-05 | K159: -0.001703284234 | L159: 0.008781402166 | M159: 0.2191797145 | N159: 0.001295603779
A160: =IF('DF raw data'!I165="","",'DF raw data'!I165) -> -251 | B160: =IF('DF raw data'!J165="","",'DF raw data'!J165) -> 6.16443e-06 | C160: =IF('DF raw data'!K165="","",'DF raw data'!K165) -> 0.000178468 | D160: =IF('DF raw data'!L165="","",'DF raw data'!L165) -> -1.58468e-05 | F160: 6.18908772e-06 | G160: 0.000179181872 | H160: -1.59101872e-05 | J160: -5.130094034e-05 | K160: -0.001728934704 | L160: 0.008870993102 | M160: 0.223615211 | N160: 0.001334952355
A161: =IF('DF raw data'!I166="","",'DF raw data'!I166) -> -250.5 | B161: =IF('DF raw data'!J166="","",'DF raw data'!J166) -> -5.17922e-06 | C161: =IF('DF raw data'!K166="","",'DF raw data'!K166) -> 0.000173721 | D161: =IF('DF raw data'!L166="","",'DF raw data'!L166) -> -9.25876e-06 | F161: -5.19993688e-06 | G161: 0.000174415884 | H161: -9.29579504e-06 | J161: -5.390090878e-05 | K161: -0.001755885158 | L161: 0.008958201044 | M161: 0.2280943115 | N161: 0.00137507849
A162: =IF('DF raw data'!I167="","",'DF raw data'!I167) -> -250 | B162: =IF('DF raw data'!J167="","",'DF raw data'!J167) -> -1.71478e-06 | C162: =IF('DF raw data'!K167="","",'DF raw data'!K167) -> 0.000182988 | D162: =IF('DF raw data'!L167="","",'DF raw data'!L167) -> -1.70148e-05 | F162: -1.72163912e-06 | G162: 0.000183719952 | H162: -1.70828592e-05 | J162: -5.476172834e-05 | K162: -0.001783266023 | L162: 0.00905006102 | M162: 0.232619342 | N162: 0.001416031792
A163: =IF('DF raw data'!I168="","",'DF raw data'!I168) -> -249.5 | B163: =IF('DF raw data'!J168="","",'DF raw data'!J168) -> -6.71621e-06 | C163: =IF('DF raw data'!K168="","",'DF raw data'!K168) -> 0.000185493 | D163: =IF('DF raw data'!L168="","",'DF raw data'!L168) -> -9.93245e-06 | F163: -6.74307484e-06 | G163: 0.000186234972 | H163: -9.9721798e-06 | J163: -5.813326576e-05 | K163: -0.001812332656 | L163: 0.009143178506 | M163: 0.2371909313 | N163: 0.001457832338
A164: =IF('DF raw data'!I169="","",'DF raw data'!I169) -> -249 | B164: =IF('DF raw data'!J169="","",'DF raw data'!J169) -> 9.56047e-06 | C164: =IF('DF raw data'!K169="","",'DF raw data'!K169) -> 0.000182592 | D164: =IF('DF raw data'!L169="","",'DF raw data'!L169) -> -1.69266e-05 | F164: 9.59871188e-06 | G164: 0.000183322368 | H164: -1.69943064e-05 | J164: -5.333390982e-05 | K164: -0.00183899961 | L164: 0.00923483969 | M164: 0.2418083511 | N164: 0.001500474892
A165: =IF('DF raw data'!I170="","",'DF raw data'!I170) -> -248.5 | B165: =IF('DF raw data'!J170="","",'DF raw data'!J170) -> 2.30219e-05 | C165: =IF('DF raw data'!K170="","",'DF raw data'!K170) -> 0.000186714 | D165: =IF('DF raw data'!L170="","",'DF raw data'!L170) -> -3.03273e-05 | F165: 2.31139876e-05 | G165: 0.000187460856 | H165: -3.04486092e-05 | J165: -4.177691602e-05 | K165: -0.001859888068 | L165: 0.009328570118 | M165: 0.2464726362 | N165: 0.001543986875
A166: =IF('DF raw data'!I171="","",'DF raw data'!I171) -> -248 | B166: =IF('DF raw data'!J171="","",'DF raw data'!J171) -> -8.18801e-06 | C166: =IF('DF raw data'!K171="","",'DF raw data'!K171) -> 0.0001914 | D166: =IF('DF raw data'!L171="","",'DF raw data'!L171) -> -1.29258e-05 | F166: -8.22076204e-06 | G166: 0.0001921656 | H166: -1.29775032e-05 | J166: -4.588729704e-05 | K166: -0.001882831717 | L166: 0.009424652918 | M166: 0.2511849627 | N166: 0.001588399969
A167: =IF('DF raw data'!I172="","",'DF raw data'!I172) -> -247.5 | B167: =IF('DF raw data'!J172="","",'DF raw data'!J172) -> 1.22284e-06 | C167: =IF('DF raw data'!K172="","",'DF raw data'!K172) -> 0.000185367 | D167: =IF('DF raw data'!L172="","",'DF raw data'!L172) -> -2.88557e-06 | F167: 1.22773136e-06 | G167: 0.000186108468 | H167: -2.89711228e-06 | J167: -4.527343136e-05 | K167: -0.001905468433 | L167: 0.009517707152 | M167: 0.2559438162 | N167: 0.001633694369
A168: =IF('DF raw data'!I173="","",'DF raw data'!I173) -> -247 | B168: =IF('DF raw data'!J173="","",'DF raw data'!J173) -> 1.86898e-06 | C168: =IF('DF raw data'!K173="","",'DF raw data'!K173) -> 0.00018413 | D168: =IF('DF raw data'!L173="","",'DF raw data'!L173) -> -1.13622e-05 | F168: 1.87645592e-06 | G168: 0.00018486652 | H168: -1.14076488e-05 | J168: -4.43352034e-05 | K168: -0.001927636034 | L168: 0.009610140412 | M168: 0.2607488864 | N168: 0.001679872751
A169: =IF('DF raw data'!I174="","",'DF raw data'!I174) -> -246.5 | B169: =IF('DF raw data'!J174="","",'DF raw data'!J174) -> -1.19261e-07 | C169: =IF('DF raw data'!K174="","",'DF raw data'!K174) -> 0.000178026 | D169: =IF('DF raw data'!L174="","",'DF raw data'!L174) -> -7.94477e-06 | F169: -1.19738044e-07 | G169: 0.000178738104 | H169: -7.97654908e-06 | J169: -4.439507242e-05 | K169: -0.001949833571 | L169: 0.009699509464 | M169: 0.2655986412 | N169: 0.001726913979
A170: =IF('DF raw data'!I175="","",'DF raw data'!I175) -> -246 | B170: =IF('DF raw data'!J175="","",'DF raw data'!J175) -> 2.05967e-06 | C170: =IF('DF raw data'!K175="","",'DF raw data'!K175) -> 0.000179086 | D170: =IF('DF raw data'!L175="","",'DF raw data'!L175) -> -8.85844e-06 | F170: 2.06790868e-06 | G170: 0.000179802344 | H170: -8.89387376e-06 | J170: -4.336111808e-05 | K170: -0.00197151413 | L170: 0.009789410636 | M170: 0.2704933465 | N170: 0.001774831199
A171: =IF('DF raw data'!I176="","",'DF raw data'!I176) -> -245.5 | B171: =IF('DF raw data'!J176="","",'DF raw data'!J176) -> 3.92072e-07 | C171: =IF('DF raw data'!K176="","",'DF raw data'!K176) -> 0.000177528 | D171: =IF('DF raw data'!L176="","",'DF raw data'!L176) -> -5.77587e-06 | F171: 3.93640288e-07 | G171: 0.000178238112 | H171: -5.79897348e-06 | J171: -4.316429793e-05 | K171: -0.001993096279 | L171: 0.009878529692 | M171: 0.2754326113 | N171: 0.001823624805
A172: =IF('DF raw data'!I177="","",'DF raw data'!I177) -> -245 | B172: =IF('DF raw data'!J177="","",'DF raw data'!J177) -> -7.5438e-06 | C172: =IF('DF raw data'!K177="","",'DF raw data'!K177) -> 0.000167133 | D172: =IF('DF raw data'!L177="","",'DF raw data'!L177) -> -1.84783e-05 | F172: -7.5739752e-06 | G172: 0.000167801532 | H172: -1.85522132e-05 | J172: -4.695128553e-05 | K172: -0.002016571921 | L172: 0.009962430458 | M172: 0.2804138266 | N172: 0.001873250917
A173: =IF('DF raw data'!I178="","",'DF raw data'!I178) -> -244.5 | B173: =IF('DF raw data'!J178="","",'DF raw data'!J178) -> 2.95747e-06 | C173: =IF('DF raw data'!K178="","",'DF raw data'!K178) -> 0.000176396 | D173: =IF('DF raw data'!L178="","",'DF raw data'!L178) -> -1.04265e-05 | F173: 2.96929988e-06 | G173: 0.000177101584 | H173: -1.0468206e-05 | J173: -4.546663559e-05 | K173: -0.002039305239 | L173: 0.01005098125 | M173: 0.2854393172 | N173: 0.001923763063
A174: =IF('DF raw data'!I179="","",'DF raw data'!I179) -> -244 | B174: =IF('DF raw data'!J179="","",'DF raw data'!J179) -> -8.96264e-06 | C174: =IF('DF raw data'!K179="","",'DF raw data'!K179) -> 0.00019318 | D174: =IF('DF raw data'!L179="","",'DF raw data'!L179) -> -3.86606e-06 | F174: -8.99849056e-06 | G174: 0.00019395272 | H174: -3.88152424e-06 | J174: -4.996588087e-05 | K174: -0.00206428818 | L174: 0.01014795761 | M174: 0.290513296 | N174: 0.001975254833
A175: =IF('DF raw data'!I180="","",'DF raw data'!I180) -> -243.5 | B175: =IF('DF raw data'!J180="","",'DF raw data'!J180) -> -8.32099e-06 | C175: =IF('DF raw data'!K180="","",'DF raw data'!K180) -> 0.000181168 | D175: =IF('DF raw data'!L180="","",'DF raw data'!L180) -> -5.06714e-06 | F175: -8.35427396e-06 | G175: 0.000181892672 | H175: -5.08740856e-06 | J175: -5.414301785e-05 | K175: -0.002091359688 | L175: 0.01023890395 | M175: 0.295632748 | N175: 0.002027673876
A176: =IF('DF raw data'!I181="","",'DF raw data'!I181) -> -243 | B176: =IF('DF raw data'!J181="","",'DF raw data'!J181) -> -1.47298e-05 | C176: =IF('DF raw data'!K181="","",'DF raw data'!K181) -> 0.000165154 | D176: =IF('DF raw data'!L181="","",'DF raw data'!L181) -> -1.80932e-06 | F176: -1.47887192e-05 | G176: 0.000165814616 | H176: -1.81655728e-06 | J176: -6.153737745e-05 | K176: -0.002122128377 | L176: 0.01032181125 | M176: 0.3007936536 | N176: 0.002080945663
A177: =IF('DF raw data'!I182="","",'DF raw data'!I182) -> -242.5 | B177: =IF('DF raw data'!J182="","",'DF raw data'!J182) -> -2.36233e-06 | C177: =IF('DF raw data'!K182="","",'DF raw data'!K182) -> 0.000164928 | D177: =IF('DF raw data'!L182="","",'DF raw data'!L182) -> -6.21046e-06 | F177: -2.37177932e-06 | G177: 0.000165587712 | H177: -6.23530184e-06 | J177: -6.272326711e-05 | K177: -0.002153490011 | L177: 0.01040460511 | M177: 0.3059959561 | N177: 0.002135075534
A178: =IF('DF raw data'!I183="","",'DF raw data'!I183) -> -242 | B178: =IF('DF raw data'!J183="","",'DF raw data'!J183) -> 8.2096e-06 | C178: =IF('DF raw data'!K183="","",'DF raw data'!K183) -> 0.000173799 | D178: =IF('DF raw data'!L183="","",'DF raw data'!L183) -> -8.48407e-06 | F178: 8.2424384e-06 | G178: 0.000174494196 | H178: -8.51800628e-06 | J178: -5.860204791e-05 | K178: -0.002182791035 | L178: 0.01049185221 | M178: 0.3112418822 | N178: 0.002190116733
A179: =IF('DF raw data'!I184="","",'DF raw data'!I184) -> -241.5 | B179: =IF('DF raw data'!J184="","",'DF raw data'!J184) -> 3.53537e-06 | C179: =IF('DF raw data'!K184="","",'DF raw data'!K184) -> 0.000165263 | D179: =IF('DF raw data'!L184="","",'DF raw data'!L184) -> -1.23614e-05 | F179: 3.54951148e-06 | G179: 0.000165924052 | H179: -1.24108456e-05 | J179: -5.682729217e-05 | K179: -0.002211204681 | L179: 0.01057481423 | M179: 0.3165292894 | N179: 0.002246031695
A180: =IF('DF raw data'!I185="","",'DF raw data'!I185) -> -241 | B180: =IF('DF raw data'!J185="","",'DF raw data'!J185) -> 2.83267e-06 | C180: =IF('DF raw data'!K185="","",'DF raw data'!K185) -> 0.000168532 | D180: =IF('DF raw data'!L185="","",'DF raw data'!L185) -> -1.54045e-05 | F180: 2.84400068e-06 | G180: 0.000169206128 | H180: -1.5466118e-05 | J180: -5.540529183e-05 | K180: -0.002238907327 | L180: 0.0106594173 | M180: 0.321858998 | N180: 0.002302844819
A181: =IF('DF raw data'!I186="","",'DF raw data'!I186) -> -240.5 | B181: =IF('DF raw data'!J186="","",'DF raw data'!J186) -> 6.61527e-06 | C181: =IF('DF raw data'!K186="","",'DF raw data'!K186) -> 0.000182748 | D181: =IF('DF raw data'!L186="","",'DF raw data'!L186) -> -2.0146e-05 | F181: 6.64173108e-06 | G181: 0.000183478992 | H181: -2.0226584e-05 | J181: -5.208442629e-05 | K181: -0.00226494954 | L181: 0.01075115679 | M181: 0.3272345764 | N181: 0.002360639861
A182: =IF('DF raw data'!I187="","",'DF raw data'!I187) -> -240 | B182: =IF('DF raw data'!J187="","",'DF raw data'!J187) -> -8.63582e-06 | C182: =IF('DF raw data'!K187="","",'DF raw data'!K187) -> 0.00017995 | D182: =IF('DF raw data'!L187="","",'DF raw data'!L187) -> -1.41789e-05 | F182: -8.67036328e-06 | G182: 0.0001806698 | H182: -1.42356156e-05 | J182: -5.641960793e-05 | K182: -0.002293159344 | L182: 0.01084149169 | M182: 0.3326553223 | N182: 0.002419410424
A183: =IF('DF raw data'!I188="","",'DF raw data'!I188) -> -239.5 | B183: =IF('DF raw data'!J188="","",'DF raw data'!J188) -> -1.57467e-05 | C183: =IF('DF raw data'!K188="","",'DF raw data'!K188) -> 0.000176094 | D183: =IF('DF raw data'!L188="","",'DF raw data'!L188) -> -1.33822e-05 | F183: -1.58096868e-05 | G183: 0.000176798376 | H183: -1.34357288e-05 | J183: -6.432445133e-05 | K183: -0.002325321569 | L183: 0.01092989088 | M183: 0.3381202677 | N183: 0.00247914375
A184: =IF('DF raw data'!I189="","",'DF raw data'!I189) -> -239 | B184: =IF('DF raw data'!J189="","",'DF raw data'!J189) -> -1.71549e-06 | C184: =IF('DF raw data'!K189="","",'DF raw data'!K189) -> 0.000181631 | D184: =IF('DF raw data'!L189="","",'DF raw data'!L189) -> -1.59367e-05 | F184: -1.72235196e-06 | G184: 0.000182357524 | H184: -1.60004468e-05 | J184: -6.518562731e-05 | K184: -0.002357914383 | L184: 0.01102106964 | M184: 0.3436308025 | N184: 0.002539877863
A185: =IF('DF raw data'!I190="","",'DF raw data'!I190) -> -238.5 | B185: =IF('DF raw data'!J190="","",'DF raw data'!J190) -> -3.12673e-07 | C185: =IF('DF raw data'!K190="","",'DF raw data'!K190) -> 0.000177927 | D185: =IF('DF raw data'!L190="","",'DF raw data'!L190) -> -5.83661e-06 | F185: -3.13923692e-07 | G185: 0.000178638708 | H185: -5.85995644e-06 | J185: -6.534258916e-05 | K185: -0.002390585678 | L185: 0.011110389 | M185: 0.349185997 | N185: 0.002601600369
A186: =IF('DF raw data'!I191="","",'DF raw data'!I191) -> -238 | B186: =IF('DF raw data'!J191="","",'DF raw data'!J191) -> -3.57676e-06 | C186: =IF('DF raw data'!K191="","",'DF raw data'!K191) -> 0.000174436 | D186: =IF('DF raw data'!L191="","",'DF raw data'!L191) -> -1.07873e-05 | F186: -3.59106704e-06 | G186: 0.000175133744 | H186: -1.08304492e-05 | J186: -6.713812268e-05 | K186: -0.002424154739 | L186: 0.01119795587 | M186: 0.354784975 | N186: 0.002664299731
A187: =IF('DF raw data'!I192="","",'DF raw data'!I192) -> -237.5 | B187: =IF('DF raw data'!J192="","",'DF raw data'!J192) -> -2.23253e-06 | C187: =IF('DF raw data'!K192="","",'DF raw data'!K192) -> 0.00016602 | D187: =IF('DF raw data'!L192="","",'DF raw data'!L192) -> -8.78347e-06 | F187: -2.24146012e-06 | G187: 0.00016668408 | H187: -8.81860388e-06 | J187: -6.825885274e-05 | K187: -0.002458284165 | L187: 0.01128129791 | M187: 0.3604256239 | N187: 0.002727935902
A188: =IF('DF raw data'!I193="","",'DF raw data'!I193) -> -237 | B188: =IF('DF raw data'!J193="","",'DF raw data'!J193) -> -1.16518e-05 | C188: =IF('DF raw data'!K193="","",'DF raw data'!K193) -> 0.000166792 | D188: =IF('DF raw data'!L193="","",'DF raw data'!L193) -> -6.60528e-06 | F188: -1.16984072e-05 | G188: 0.000167459168 | H188: -6.63170112e-06 | J188: -7.410805634e-05 | K188: -0.002495338194 | L188: 0.01136502749 | M188: 0.3661081377 | N188: 0.002792520573
A189: =IF('DF raw data'!I194="","",'DF raw data'!I194) -> -236.5 | B189: =IF('DF raw data'!J194="","",'DF raw data'!J194) -> 2.18755e-06 | C189: =IF('DF raw data'!K194="","",'DF raw data'!K194) -> 0.000179733 | D189: =IF('DF raw data'!L194="","",'DF raw data'!L194) -> -8.59083e-06 | F189: 2.1963002e-06 | G189: 0.000180451932 | H189: -8.62519332e-06 | J189: -7.300990624e-05 | K189: -0.002531843147 | L189: 0.01145525346 | M189: 0.3718357644 | N189: 0.002858134654
A190: =IF('DF raw data'!I195="","",'DF raw data'!I195) -> -236 | B190: =IF('DF raw data'!J195="","",'DF raw data'!J195) -> 1.00086e-05 | C190: =IF('DF raw data'!K195="","",'DF raw data'!K195) -> 0.000168018 | D190: =IF('DF raw data'!L195="","",'DF raw data'!L195) -> -1.65598e-05 | F190: 1.00486344e-05 | G190: 0.000168690072 | H190: -1.66260392e-05 | J190: -6.798558904e-05 | K190: -0.002565835941 | L190: 0.0115395985 | M190: 0.3776055636 | N190: 0.002924718132
A191: =IF('DF raw data'!I196="","",'DF raw data'!I196) -> -235.5 | B191: =IF('DF raw data'!J196="","",'DF raw data'!J196) -> 4.49907e-06 | C191: =IF('DF raw data'!K196="","",'DF raw data'!K196) -> 0.000163817 | D191: =IF('DF raw data'!L196="","",'DF raw data'!L196) -> -1.69098e-05 | F191: 4.51706628e-06 | G191: 0.000164472268 | H191: -1.69774392e-05 | J191: -6.57270559e-05 | K191: -0.002598699469 | L191: 0.01162183463 | M191: 0.383416481 | N191: 0.002992253812
A192: =IF('DF raw data'!I197="","",'DF raw data'!I197) -> -235 | B192: =IF('DF raw data'!J197="","",'DF raw data'!J197) -> -1.979e-06 | C192: =IF('DF raw data'!K197="","",'DF raw data'!K197) -> 0.000172566 | D192: =IF('DF raw data'!L197="","",'DF raw data'!L197) -> -4.72918e-06 | F192: =(1-$G$1*($B$49-$G$2))*B192 -> -1.986916e-06 | G192: 0.000173256264 | H192: -4.74809672e-06 | J192: =F192*$G$3+J191 -> -6.67205139e-05 | K192: =J192*$G$3+K191 -> -0.002632059726 | L192: =G192*$G$3+L191 -> 0.01170846276 | M192: =L192*$G$3+M191 -> 0.3892707123 | N192: =(J192^2+L192^2)*$G$3+N191 -> 0.003060800088
A193: =IF('DF raw data'!I198="","",'DF raw data'!I198) -> -234.5 | B193: =IF('DF raw data'!J198="","",'DF raw data'!J198) -> -8.76819e-06 | C193: =IF('DF raw data'!K198="","",'DF raw data'!K198) -> 0.00017268 | D193: =IF('DF raw data'!L198="","",'DF raw data'!L198) -> -7.13438e-06 | F193: -8.80326276e-06 | G193: 0.00017337072 | H193: -7.16291752e-06 | J193: -7.112214528e-05 | K193: -0.002667620799 | L193: 0.01179514812 | M193: 0.3951682864 | N193: 0.003130365377
A194: =IF('DF raw data'!I199="","",'DF raw data'!I199) -> -234 | B194: =IF('DF raw data'!J199="","",'DF raw data'!J199) -> 5.26918e-07 | C194: =IF('DF raw data'!K199="","",'DF raw data'!K199) -> 0.000168297 | D194: =IF('DF raw data'!L199="","",'DF raw data'!L199) -> -1.61254e-05 | F194: 5.29025672e-07 | G194: 0.000168970188 | H194: -1.61899016e-05 | J194: -7.085763244e-05 | K194: -0.002703049615 | L194: 0.01187963322 | M194: 0.401108103 | N194: 0.00320093073
A195: =IF('DF raw data'!I200="","",'DF raw data'!I200) -> -233.5 | B195: =IF('DF raw data'!J200="","",'DF raw data'!J200) -> -1.67756e-05 | C195: =IF('DF raw data'!K200="","",'DF raw data'!K200) -> 0.000177765 | D195: =IF('DF raw data'!L200="","",'DF raw data'!L200) -> -7.78334e-06 | F195: -1.68427024e-05 | G195: 0.00017847606 | H195: -7.81447336e-06 | J195: -7.927898364e-05 | K195: -0.002742689107 | L195: 0.01196887125 | M195: 0.4070925386 | N195: 0.003272560812
A196: =IF('DF raw data'!I201="","",'DF raw data'!I201) -> -233 | B196: =IF('DF raw data'!J201="","",'DF raw data'!J201) -> -2.44047e-07 | C196: =IF('DF raw data'!K201="","",'DF raw data'!K201) -> 0.000185163 | D196: =IF('DF raw data'!L201="","",'DF raw data'!L201) -> -1.3097e-05 | F196: -2.45023188e-07 | G196: 0.000185903652 | H196: -1.3149388e-05 | J196: -7.940149524e-05 | K196: -0.002782389854 | L196: 0.01206182307 | M196: 0.4131234502 | N196: 0.003345307752
A197: =IF('DF raw data'!I202="","",'DF raw data'!I202) -> -232.5 | B197: =IF('DF raw data'!J202="","",'DF raw data'!J202) -> -1.13334e-05 | C197: =IF('DF raw data'!K202="","",'DF raw data'!K202) -> 0.000173339 | D197: =IF('DF raw data'!L202="","",'DF raw data'!L202) -> -2.73271e-06 | F197: -1.13787336e-05 | G197: 0.000174032356 | H197: -2.74364084e-06 | J197: -8.509086204e-05 | K197: -0.002824935285 | L197: 0.01214883925 | M197: 0.4191978698 | N197: 0.00341910852
A198: =IF('DF raw data'!I203="","",'DF raw data'!I203) -> -232 | B198: =IF('DF raw data'!J203="","",'DF raw data'!J203) -> -1.05606e-05 | C198: =IF('DF raw data'!K203="","",'DF raw data'!K203) -> 0.000172412 | D198: =IF('DF raw data'!L203="","",'DF raw data'!L203) -> -9.64028e-06 | F198: -1.06028424e-05 | G198: 0.000173101648 | H198: -9.67884112e-06 | J198: -9.039228324e-05 | K198: -0.002870131427 | L198: 0.01223539007 | M198: 0.4253155648 | N198: 0.00349396499
A199: =IF('DF raw data'!I204="","",'DF raw data'!I204) -> -231.5 | B199: =IF('DF raw data'!J204="","",'DF raw data'!J204) -> -4.09443e-06 | C199: =IF('DF raw data'!K204="","",'DF raw data'!K204) -> 0.000180248 | D199: =IF('DF raw data'!L204="","",'DF raw data'!L204) -> -2.56906e-06 | F199: -4.11080772e-06 | G199: 0.000180968992 | H199: -2.57933624e-06 | J199: -9.24476871e-05 | K199: -0.002916355271 | L199: 0.01232587457 | M199: 0.4314785021 | N199: 0.003569932855
A200: =IF('DF raw data'!I205="","",'DF raw data'!I205) -> -231 | B200: =IF('DF raw data'!J205="","",'DF raw data'!J205) -> -1.76061e-05 | C200: =IF('DF raw data'!K205="","",'DF raw data'!K205) -> 0.000175888 | D200: =IF('DF raw data'!L205="","",'DF raw data'!L205) -> -1.18465e-05 | F200: -1.76765244e-05 | G200: 0.000176591552 | H200: -1.1893886e-05 | J200: -0.0001012859493 | K200: -0.002966998245 | L200: 0.01241417035 | M200: 0.4376855873 | N200: 0.003646993798
A201: =IF('DF raw data'!I206="","",'DF raw data'!I206) -> -230.5 | B201: =IF('DF raw data'!J206="","",'DF raw data'!J206) -> -1.91054e-06 | C201: =IF('DF raw data'!K206="","",'DF raw data'!K206) -> 0.000173887 | D201: =IF('DF raw data'!L206="","",'DF raw data'!L206) -> -1.16181e-05 | F201: -1.91818216e-06 | G201: 0.000174582548 | H201: -1.16645724e-05 | J201: -0.0001022450404 | K201: -0.003018120765 | L201: 0.01250146162 | M201: 0.4439363181 | N201: 0.003725142296
... 1061 more rows

Sheet 10 y=0.1
A1: =IF('DF raw data'!M1="","",'DF raw data'!M1) -> Number of header lines | B1: =IF('DF raw data'!N1="","",'DF raw data'!N1) -> 54 | C1: =IF('DF raw data'!O1="","",'DF raw data'!O1) ->  | D1: =IF('DF raw data'!P1="","",'DF raw data'!P1) ->  | F1: T_coeff | G1: -0.001 | H1: /degC | J1: ='10 y=-0.2'!J1 -> IBy total | K1: ='10 y=-0.2'!K1 -> -2.813545052 | L1: ='10 y=-0.2'!L1 -> muTm | R1: ='10 y=-0.2'!R1 -> DF ref | S1: ='10 y=-0.2'!S1 -> 1
A2: =IF('DF raw data'!M2="","",'DF raw data'!M2) -> Measured by | B2: =IF('DF raw data'!N2="","",'DF raw data'!N2) -> Danfysik | C2: =IF('DF raw data'!O2="","",'DF raw data'!O2) ->  | D2: =IF('DF raw data'!P2="","",'DF raw data'!P2) ->  | F2: Tcorr | G2: 20 | H2: degC | J2: JBy total | K2: =K1262 -> -14.23406396 | L2: muTm^2 | M2: =M1262 -> 18.52736263
A3: =IF('DF raw data'!M3="","",'DF raw data'!M3) -> Operator | B3: =IF('DF raw data'!N3="","",'DF raw data'!N3) -> PMHA | C3: =IF('DF raw data'!O3="","",'DF raw data'!O3) ->  | D3: =IF('DF raw data'!P3="","",'DF raw data'!P3) ->  | F3: Step | G3: =A63-A62 -> 0.5 | H3: mm | J3: PI total | K3: =N1262 -> 10612.17461 | L3: T^2mm^3
A4: =IF('DF raw data'!M4="","",'DF raw data'!M4) -> Data-time | B4: =IF('DF raw data'!N4="","",'DF raw data'!N4) -> 11-09-2024, 12:23:48 | C4: =IF('DF raw data'!O4="","",'DF raw data'!O4) ->  | D4: =IF('DF raw data'!P4="","",'DF raw data'!P4) -> 
A5: =IF('DF raw data'!M5="","",'DF raw data'!M5) -> Project | B5: =IF('DF raw data'!N5="","",'DF raw data'!N5) -> 504314 | C5: =IF('DF raw data'!O5="","",'DF raw data'!O5) ->  | D5: =IF('DF raw data'!P5="","",'DF raw data'!P5) -> 
A6: =IF('DF raw data'!M6="","",'DF raw data'!M6) -> Magnet type | B6: =IF('DF raw data'!N6="","",'DF raw data'!N6) -> Dipole | C6: =IF('DF raw data'!O6="","",'DF raw data'!O6) ->  | D6: =IF('DF raw data'!P6="","",'DF raw data'!P6) -> 
A7: =IF('DF raw data'!M7="","",'DF raw data'!M7) -> Magnet nr. | B7: =IF('DF raw data'!N7="","",'DF raw data'!N7) -> 2410095 | C7: =IF('DF raw data'!O7="","",'DF raw data'!O7) ->  | D7: =IF('DF raw data'!P7="","",'DF raw data'!P7) -> 
A8: =IF('DF raw data'!M8="","",'DF raw data'!M8) -> Meas. number | B8: =IF('DF raw data'!N8="","",'DF raw data'!N8) -> 411 | C8: =IF('DF raw data'!O8="","",'DF raw data'!O8) ->  | D8: =IF('DF raw data'!P8="","",'DF raw data'!P8) -> 
A9: =IF('DF raw data'!M9="","",'DF raw data'!M9) -> Add. info | B9: =IF('DF raw data'!N9="","",'DF raw data'!N9) -> Y-alignment scan 4) | C9: =IF('DF raw data'!O9="","",'DF raw data'!O9) ->  | D9: =IF('DF raw data'!P9="","",'DF raw data'!P9) -> 
A10: =IF('DF raw data'!M10="","",'DF raw data'!M10) -> Device | B10: =IF('DF raw data'!N10="","",'DF raw data'!N10) -> (HAL) HALL-PROBE | C10: =IF('DF raw data'!O10="","",'DF raw data'!O10) ->  | D10: =IF('DF raw data'!P10="","",'DF raw data'!P10) -> 
A11: =IF('DF raw data'!M11="","",'DF raw data'!M11) -> Goal | B11: =IF('DF raw data'!N11="","",'DF raw data'!N11) -> (AXI) AXis Integral (Line, EFB) | C11: =IF('DF raw data'!O11="","",'DF raw data'!O11) ->  | D11: =IF('DF raw data'!P11="","",'DF raw data'!P11) -> 
A12: =IF('DF raw data'!M12="","",'DF raw data'!M12) -> Power supply mode | B12: =IF('DF raw data'!N12="","",'DF raw data'!N12) -> (PM) Permanent Magnet (no MPS in use) | C12: =IF('DF raw data'!O12="","",'DF raw data'!O12) ->  | D12: =IF('DF raw data'!P12="","",'DF raw data'!P12) -> 
A13: =IF('DF raw data'!M13="","",'DF raw data'!M13) -> Data format | B13: =IF('DF raw data'!N13="","",'DF raw data'!N13) -> Raw data text file | C13: =IF('DF raw data'!O13="","",'DF raw data'!O13) ->  | D13: =IF('DF raw data'!P13="","",'DF raw data'!P13) -> 
A14: =IF('DF raw data'!M14="","",'DF raw data'!M14) -> Direction of the pos. x-axis | B14: =IF('DF raw data'!N14="","",'DF raw data'!N14) -> See test program | C14: =IF('DF raw data'!O14="","",'DF raw data'!O14) ->  | D14: =IF('DF raw data'!P14="","",'DF raw data'!P14) -> 
A15: =IF('DF raw data'!M15="","",'DF raw data'!M15) -> Direction of the pos. y-axis | B15: =IF('DF raw data'!N15="","",'DF raw data'!N15) -> Vertical up | C15: =IF('DF raw data'!O15="","",'DF raw data'!O15) ->  | D15: =IF('DF raw data'!P15="","",'DF raw data'!P15) -> 
A16: =IF('DF raw data'!M16="","",'DF raw data'!M16) -> Direction of the pos. z-axis | B16: =IF('DF raw data'!N16="","",'DF raw data'!N16) -> See test program | C16: =IF('DF raw data'!O16="","",'DF raw data'!O16) ->  | D16: =IF('DF raw data'!P16="","",'DF raw data'!P16) -> 
A17: =IF('DF raw data'!M17="","",'DF raw data'!M17) -> Mapper type | B17: =IF('DF raw data'!N17="","",'DF raw data'!N17) -> Precision Hall Mapper | C17: =IF('DF raw data'!O17="","",'DF raw data'!O17) ->  | D17: =IF('DF raw data'!P17="","",'DF raw data'!P17) -> 
A18: =IF('DF raw data'!M18="","",'DF raw data'!M18) -> Mapper Danfysik Reg. Number | B18: =IF('DF raw data'!N18="","",'DF raw data'!N18) -> 2033-D (mapper 1) | C18: =IF('DF raw data'!O18="","",'DF raw data'!O18) ->  | D18: =IF('DF raw data'!P18="","",'DF raw data'!P18) -> 
A19: =IF('DF raw data'!M19="","",'DF raw data'!M19) -> Measurement consept | B19: =IF('DF raw data'!N19="","",'DF raw data'!N19) -> Square line grid | C19: =IF('DF raw data'!O19="","",'DF raw data'!O19) ->  | D19: =IF('DF raw data'!P19="","",'DF raw data'!P19) -> 
A20: =IF('DF raw data'!M20="","",'DF raw data'!M20) -> Mode | B20: =IF('DF raw data'!N20="","",'DF raw data'!N20) -> On-the-fly measurement | C20: =IF('DF raw data'!O20="","",'DF raw data'!O20) ->  | D20: =IF('DF raw data'!P20="","",'DF raw data'!P20) -> 
A21: =IF('DF raw data'!M21="","",'DF raw data'!M21) ->  | B21: =IF('DF raw data'!N21="","",'DF raw data'!N21) ->  | C21: =IF('DF raw data'!O21="","",'DF raw data'!O21) ->  | D21: =IF('DF raw data'!P21="","",'DF raw data'!P21) -> 
A22: =IF('DF raw data'!M22="","",'DF raw data'!M22) -> Probe Name | B22: =IF('DF raw data'!N22="","",'DF raw data'!N22) -> ID12_By | C22: =IF('DF raw data'!O22="","",'DF raw data'!O22) ->  | D22: =IF('DF raw data'!P22="","",'DF raw data'!P22) -> 
A23: =IF('DF raw data'!M23="","",'DF raw data'!M23) -> Probe Type | B23: =IF('DF raw data'!N23="","",'DF raw data'!N23) -> DF_ID_3D_Bxyz | C23: =IF('DF raw data'!O23="","",'DF raw data'!O23) ->  | D23: =IF('DF raw data'!P23="","",'DF raw data'!P23) -> 
A24: =IF('DF raw data'!M24="","",'DF raw data'!M24) -> Probe Danfysik Reg. Number | B24: =IF('DF raw data'!N24="","",'DF raw data'!N24) -> 2277 | C24: =IF('DF raw data'!O24="","",'DF raw data'!O24) ->  | D24: =IF('DF raw data'!P24="","",'DF raw data'!P24) -> 
A25: =IF('DF raw data'!M25="","",'DF raw data'!M25) -> Probe Axis | B25: =IF('DF raw data'!N25="","",'DF raw data'!N25) -> By | C25: =IF('DF raw data'!O25="","",'DF raw data'!O25) ->  | D25: =IF('DF raw data'!P25="","",'DF raw data'!P25) -> 
A26: =IF('DF raw data'!M26="","",'DF raw data'!M26) -> Probe Current Supply | B26: =IF('DF raw data'!N26="","",'DF raw data'!N26) -> 1825-D | C26: =IF('DF raw data'!O26="","",'DF raw data'!O26) ->  | D26: =IF('DF raw data'!P26="","",'DF raw data'!P26) -> 
A27: =IF('DF raw data'!M27="","",'DF raw data'!M27) -> Probe Gain Correction | B27: =IF('DF raw data'!N27="","",'DF raw data'!N27) -> 0.99606 | C27: =IF('DF raw data'!O27="","",'DF raw data'!O27) ->  | D27: =IF('DF raw data'!P27="","",'DF raw data'!P27) -> 
A28: =IF('DF raw data'!M28="","",'DF raw data'!M28) -> Probe Offset Correction | B28: =IF('DF raw data'!N28="","",'DF raw data'!N28) -> 0.0027673 | C28: =IF('DF raw data'!O28="","",'DF raw data'!O28) ->  | D28: =IF('DF raw data'!P28="","",'DF raw data'!P28) -> 
A29: =IF('DF raw data'!M29="","",'DF raw data'!M29) -> DVM Number | B29: =IF('DF raw data'!N29="","",'DF raw data'!N29) -> 2 | C29: =IF('DF raw data'!O29="","",'DF raw data'!O29) ->  | D29: =IF('DF raw data'!P29="","",'DF raw data'!P29) -> 
A30: =IF('DF raw data'!M30="","",'DF raw data'!M30) -> DVM Type | B30: =IF('DF raw data'!N30="","",'DF raw data'!N30) -> K2701 | C30: =IF('DF raw data'!O30="","",'DF raw data'!O30) ->  | D30: =IF('DF raw data'!P30="","",'DF raw data'!P30) -> 
A31: =IF('DF raw data'!M31="","",'DF raw data'!M31) -> DVM Danfysik Reg. Number | B31: =IF('DF raw data'!N31="","",'DF raw data'!N31) -> 1743-D | C31: =IF('DF raw data'!O31="","",'DF raw data'!O31) ->  | D31: =IF('DF raw data'!P31="","",'DF raw data'!P31) -> 
A32: =IF('DF raw data'!M32="","",'DF raw data'!M32) -> Probe Name | B32: =IF('DF raw data'!N32="","",'DF raw data'!N32) -> ID12_Bx | C32: =IF('DF raw data'!O32="","",'DF raw data'!O32) ->  | D32: =IF('DF raw data'!P32="","",'DF raw data'!P32) -> 
A33: =IF('DF raw data'!M33="","",'DF raw data'!M33) -> Probe Type | B33: =IF('DF raw data'!N33="","",'DF raw data'!N33) -> DF_ID_3D_Bxyz | C33: =IF('DF raw data'!O33="","",'DF raw data'!O33) ->  | D33: =IF('DF raw data'!P33="","",'DF raw data'!P33) -> 
A34: =IF('DF raw data'!M34="","",'DF raw data'!M34) -> Probe Danfysik Reg. Number | B34: =IF('DF raw data'!N34="","",'DF raw data'!N34) -> 2277 | C34: =IF('DF raw data'!O34="","",'DF raw data'!O34) ->  | D34: =IF('DF raw data'!P34="","",'DF raw data'!P34) -> 
A35: =IF('DF raw data'!M35="","",'DF raw data'!M35) -> Probe Axis | B35: =IF('DF raw data'!N35="","",'DF raw data'!N35) -> Bx | C35: =IF('DF raw data'!O35="","",'DF raw data'!O35) ->  | D35: =IF('DF raw data'!P35="","",'DF raw data'!P35) -> 
A36: =IF('DF raw data'!M36="","",'DF raw data'!M36) -> Probe Current Supply | B36: =IF('DF raw data'!N36="","",'DF raw data'!N36) -> 1825-D | C36: =IF('DF raw data'!O36="","",'DF raw data'!O36) ->  | D36: =IF('DF raw data'!P36="","",'DF raw data'!P36) -> 
A37: =IF('DF raw data'!M37="","",'DF raw data'!M37) -> Probe Gain Correction | B37: =IF('DF raw data'!N37="","",'DF raw data'!N37) -> 1 | C37: =IF('DF raw data'!O37="","",'DF raw data'!O37) ->  | D37: =IF('DF raw data'!P37="","",'DF raw data'!P37) -> 
A38: =IF('DF raw data'!M38="","",'DF raw data'!M38) -> Probe Offset Correction | B38: =IF('DF raw data'!N38="","",'DF raw data'!N38) -> -0.17543 | C38: =IF('DF raw data'!O38="","",'DF raw data'!O38) ->  | D38: =IF('DF raw data'!P38="","",'DF raw data'!P38) -> 
A39: =IF('DF raw data'!M39="","",'DF raw data'!M39) -> DVM Number | B39: =IF('DF raw data'!N39="","",'DF raw data'!N39) -> 3 | C39: =IF('DF raw data'!O39="","",'DF raw data'!O39) ->  | D39: =IF('DF raw data'!P39="","",'DF raw data'!P39) -> 
A40: =IF('DF raw data'!M40="","",'DF raw data'!M40) -> DVM Type | B40: =IF('DF raw data'!N40="","",'DF raw data'!N40) -> K2701 | C40: =IF('DF raw data'!O40="","",'DF raw data'!O40) ->  | D40: =IF('DF raw data'!P40="","",'DF raw data'!P40) -> 
A41: =IF('DF raw data'!M41="","",'DF raw data'!M41) -> DVM Danfysik Reg. Number | B41: =IF('DF raw data'!N41="","",'DF raw data'!N41) -> 1744-D | C41: =IF('DF raw data'!O41="","",'DF raw data'!O41) ->  | D41: =IF('DF raw data'!P41="","",'DF raw data'!P41) -> 
A42: =IF('DF raw data'!M42="","",'DF raw data'!M42) -> Probe Name | B42: =IF('DF raw data'!N42="","",'DF raw data'!N42) -> ID12_Bz | C42: =IF('DF raw data'!O42="","",'DF raw data'!O42) ->  | D42: =IF('DF raw data'!P42="","",'DF raw data'!P42) -> 
A43: =IF('DF raw data'!M43="","",'DF raw data'!M43) -> Probe Type | B43: =IF('DF raw data'!N43="","",'DF raw data'!N43) -> DF_ID_3D_Bxyz | C43: =IF('DF raw data'!O43="","",'DF raw data'!O43) ->  | D43: =IF('DF raw data'!P43="","",'DF raw data'!P43) -> 
A44: =IF('DF raw data'!M44="","",'DF raw data'!M44) -> Probe Danfysik Reg. Number | B44: =IF('DF raw data'!N44="","",'DF raw data'!N44) -> 2277 | C44: =IF('DF raw data'!O44="","",'DF raw data'!O44) ->  | D44: =IF('DF raw data'!P44="","",'DF raw data'!P44) -> 
A45: =IF('DF raw data'!M45="","",'DF raw data'!M45) -> Probe Axis | B45: =IF('DF raw data'!N45="","",'DF raw data'!N45) -> Bz | C45: =IF('DF raw data'!O45="","",'DF raw data'!O45) ->  | D45: =IF('DF raw data'!P45="","",'DF raw data'!P45) -> 
A46: =IF('DF raw data'!M46="","",'DF raw data'!M46) -> Probe Current Supply | B46: =IF('DF raw data'!N46="","",'DF raw data'!N46) -> 1825-D | C46: =IF('DF raw data'!O46="","",'DF raw data'!O46) ->  | D46: =IF('DF raw data'!P46="","",'DF raw data'!P46) -> 
A47: =IF('DF raw data'!M47="","",'DF raw data'!M47) -> Probe Gain Correction | B47: =IF('DF raw data'!N47="","",'DF raw data'!N47) -> 1 | C47: =IF('DF raw data'!O47="","",'DF raw data'!O47) ->  | D47: =IF('DF raw data'!P47="","",'DF raw data'!P47) -> 
A48: =IF('DF raw data'!M53="","",'DF raw data'!M53) -> PS-Gap: | B48: =IF('DF raw data'!N53="","",'DF raw data'!N53) -> 10 | C48: =IF('DF raw data'!O53="","",'DF raw data'!O53) ->  | D48: =IF('DF raw data'!P53="","",'DF raw data'!P53) -> 
A49: =IF('DF raw data'!M54="","",'DF raw data'!M54) -> PS-Temperature: | B49: =IF('DF raw data'!N54="","",'DF raw data'!N54) -> 24 | C49: =IF('DF raw data'!O54="","",'DF raw data'!O54) ->  | D49: =IF('DF raw data'!P54="","",'DF raw data'!P54) -> 
A50: =IF('DF raw data'!M55="","",'DF raw data'!M55) -> PS-Encoder: | B50: =IF('DF raw data'!N55="","",'DF raw data'!N55) -> 19.6951 | C50: =IF('DF raw data'!O55="","",'DF raw data'!O55) ->  | D50: =IF('DF raw data'!P55="","",'DF raw data'!P55) -> 
A51: =IF('DF raw data'!M56="","",'DF raw data'!M56) ->  | B51: =IF('DF raw data'!N56="","",'DF raw data'!N56) ->  | C51: =IF('DF raw data'!O56="","",'DF raw data'!O56) ->  | D51: =IF('DF raw data'!P56="","",'DF raw data'!P56) -> 
A52: =IF('DF raw data'!M57="","",'DF raw data'!M57) -> Monitor-Index | B52: =IF('DF raw data'!N57="","",'DF raw data'!N57) -> [1,1,4] | C52: =IF('DF raw data'!O57="","",'DF raw data'!O57) ->  | D52: =IF('DF raw data'!P57="","",'DF raw data'!P57) -> 
A53: =IF('DF raw data'!M58="","",'DF raw data'!M58) ->  | B53: =IF('DF raw data'!N58="","",'DF raw data'!N58) ->  | C53: =IF('DF raw data'!O58="","",'DF raw data'!O58) ->  | D53: =IF('DF raw data'!P58="","",'DF raw data'!P58) -> 
A54: =IF('DF raw data'!M59="","",'DF raw data'!M59) -> Time [s] | B54: =IF('DF raw data'!N59="","",'DF raw data'!N59) -> Y [mm] | C54: =IF('DF raw data'!O59="","",'DF raw data'!O59) -> X [mm] | D54: =IF('DF raw data'!P59="","",'DF raw data'!P59) -> Nominal current [A]
A55: =IF('DF raw data'!M60="","",'DF raw data'!M60) ->  | B55: =IF('DF raw data'!N60="","",'DF raw data'!N60) ->  | C55: =IF('DF raw data'!O60="","",'DF raw data'!O60) ->  | D55: =IF('DF raw data'!P60="","",'DF raw data'!P60) -> 
A56: =IF('DF raw data'!M61="","",'DF raw data'!M61) -> 207.4 | B56: =IF('DF raw data'!N61="","",'DF raw data'!N61) -> 31.86 | C56: =IF('DF raw data'!O61="","",'DF raw data'!O61) -> 301.8 | D56: =IF('DF raw data'!P61="","",'DF raw data'!P61) -> 0
A57: =IF('DF raw data'!M62="","",'DF raw data'!M62) ->  | B57: =IF('DF raw data'!N62="","",'DF raw data'!N62) ->  | C57: =IF('DF raw data'!O62="","",'DF raw data'!O62) ->  | D57: =IF('DF raw data'!P62="","",'DF raw data'!P62) -> 
A58: =IF('DF raw data'!M63="","",'DF raw data'!M63) -> Measurement-Index | B58: =IF('DF raw data'!N63="","",'DF raw data'!N63) -> [1,1,1201,2] | C58: =IF('DF raw data'!O63="","",'DF raw data'!O63) ->  | D58: =IF('DF raw data'!P63="","",'DF raw data'!P63) -> 
A59: =IF('DF raw data'!M64="","",'DF raw data'!M64) ->  | B59: =IF('DF raw data'!N64="","",'DF raw data'!N64) ->  | C59: =IF('DF raw data'!O64="","",'DF raw data'!O64) ->  | D59: =IF('DF raw data'!P64="","",'DF raw data'!P64) -> 
A60: =IF('DF raw data'!M65="","",'DF raw data'!M65) -> Z [mm] | B60: By [T] | C60: Bx [T] | D60: Bz [T] | F60: By_corr | G60: Bx_corr | H60: Bz_corr | J60: Iy | K60: Jy | L60: Ix | M60: Jx | N60: PI
A62: =IF('DF raw data'!M67="","",'DF raw data'!M67) -> -300 | B62: =IF('DF raw data'!N67="","",'DF raw data'!N67) -> -1.9707e-06 | C62: =IF('DF raw data'!O67="","",'DF raw data'!O67) -> 0.000179617 | D62: =IF('DF raw data'!P67="","",'DF raw data'!P67) -> -2.89902e-05 | F62: =(1-$G$1*($B$49))*B62 -> -2.0179968e-06 | G62: =(1-$G$1*($B$49-$G$2))*C62 -> 0.000180335468 | H62: =(1-$G$1*($B$49-$G$2))*D62 -> -2.91061608e-05 | J62: =F62*$G$3 -> -1.0089984e-06 | K62: =J62*$G$3 -> -5.044992e-07 | L62: =G62*$G$3 -> 9.0167734e-05 | M62: =L62*$G$3 -> 4.5083867e-05 | N62: =(J62^2+L62^2)*$G$3 -> 4.065619166e-09
A63: =IF('DF raw data'!M68="","",'DF raw data'!M68) -> -299.5 | B63: =IF('DF raw data'!N68="","",'DF raw data'!N68) -> -8.0573e-06 | C63: =IF('DF raw data'!O68="","",'DF raw data'!O68) -> 0.000189241 | D63: =IF('DF raw data'!P68="","",'DF raw data'!P68) -> -2.89222e-05 | F63: =(1-$G$1*($B$49-$G$2))*B63 -> -8.0895292e-06 | G63: =(1-$G$1*($B$49-$G$2))*C63 -> 0.000189997964 | H63: -2.90378888e-05 | J63: =F63*$G$3+J62 -> -5.053763e-06 | K63: =J63*$G$3+K62 -> -3.0313807e-06 | L63: =G63*$G$3+L62 -> 0.000185166716 | M63: =L63*$G$3+M62 -> 0.000137667225 | N63: =(J63^2+L63^2)*$G$3+N62 -> 2.122174578e-08
A64: =IF('DF raw data'!M69="","",'DF raw data'!M69) -> -299 | B64: =IF('DF raw data'!N69="","",'DF raw data'!N69) -> 2.77039e-06 | C64: =IF('DF raw data'!O69="","",'DF raw data'!O69) -> 0.000191661 | D64: =IF('DF raw data'!P69="","",'DF raw data'!P69) -> -2.91834e-05 | F64: =(1-$G$1*($B$49-$G$2))*B64 -> 2.78147156e-06 | G64: 0.000192427644 | H64: -2.93001336e-05 | J64: =F64*$G$3+J63 -> -3.66302722e-06 | K64: =J64*$G$3+K63 -> -4.86289431e-06 | L64: =G64*$G$3+L63 -> 0.000281380538 | M64: =L64*$G$3+M63 -> 0.000278357494 | N64: =(J64^2+L64^2)*$G$3+N63 -> 6.081595825e-08
A65: =IF('DF raw data'!M70="","",'DF raw data'!M70) -> -298.5 | B65: =IF('DF raw data'!N70="","",'DF raw data'!N70) -> -8.82472e-06 | C65: =IF('DF raw data'!O70="","",'DF raw data'!O70) -> 0.000188798 | D65: =IF('DF raw data'!P70="","",'DF raw data'!P70) -> -2.95256e-05 | F65: -8.86001888e-06 | G65: 0.000189553192 | H65: -2.96437024e-05 | J65: -8.09303666e-06 | K65: -8.90941264e-06 | L65: 0.000376157134 | M65: 0.000466436061 | N65: 1.315958016e-07
A66: =IF('DF raw data'!M71="","",'DF raw data'!M71) -> -298 | B66: =IF('DF raw data'!N71="","",'DF raw data'!N71) -> -1.04276e-05 | C66: =IF('DF raw data'!O71="","",'DF raw data'!O71) -> 0.000179996 | D66: =IF('DF raw data'!P71="","",'DF raw data'!P71) -> -2.92467e-05 | F66: -1.04693104e-05 | G66: 0.000180715984 | H66: -2.93636868e-05 | J66: -1.332769186e-05 | K66: -1.557325857e-05 | L66: 0.000466515126 | M66: 0.000699693624 | N66: 2.405027967e-07
A67: =IF('DF raw data'!M72="","",'DF raw data'!M72) -> -297.5 | B67: =IF('DF raw data'!N72="","",'DF raw data'!N72) -> -1.2605e-05 | C67: =IF('DF raw data'!O72="","",'DF raw data'!O72) -> 0.000175407 | D67: =IF('DF raw data'!P72="","",'DF raw data'!P72) -> -2.83376e-05 | F67: -1.265542e-05 | G67: 0.000176108628 | H67: -2.84509504e-05 | J67: -1.965540186e-05 | K67: -2.54009595e-05 | L67: 0.00055456944 | M67: 0.000976978344 | N67: 3.94469596e-07
A68: =IF('DF raw data'!M73="","",'DF raw data'!M73) -> -297 | B68: =IF('DF raw data'!N73="","",'DF raw data'!N73) -> -9.78786e-06 | C68: =IF('DF raw data'!O73="","",'DF raw data'!O73) -> 0.000190678 | D68: =IF('DF raw data'!P73="","",'DF raw data'!P73) -> -2.74615e-05 | F68: -9.82701144e-06 | G68: 0.000191440712 | H68: -2.7571346e-05 | J68: -2.456890758e-05 | K68: -3.768541329e-05 | L68: 0.000650289796 | M68: 0.001302123242 | N68: 6.06209821e-07
A69: =IF('DF raw data'!M74="","",'DF raw data'!M74) -> -296.5 | B69: =IF('DF raw data'!N74="","",'DF raw data'!N74) -> -3.70138e-06 | C69: =IF('DF raw data'!O74="","",'DF raw data'!O74) -> 0.000195757 | D69: =IF('DF raw data'!P74="","",'DF raw data'!P74) -> -2.71911e-05 | F69: -3.71618552e-06 | G69: 0.000196540028 | H69: -2.72998644e-05 | J69: -2.642700034e-05 | K69: -5.089891346e-05 | L69: 0.00074855981 | M69: 0.001676403147 | N69: 8.867299087e-07
A70: =IF('DF raw data'!M75="","",'DF raw data'!M75) -> -296 | B70: =IF('DF raw data'!N75="","",'DF raw data'!N75) -> 3.98648e-06 | C70: =IF('DF raw data'!O75="","",'DF raw data'!O75) -> 0.000182757 | D70: =IF('DF raw data'!P75="","",'DF raw data'!P75) -> -2.76153e-05 | F70: 4.00242592e-06 | G70: 0.000183488028 | H70: -2.77257612e-05 | J70: -2.442578738e-05 | K70: -6.311180715e-05 | L70: 0.000840303824 | M70: 0.002096555059 | N70: 1.240083477e-06
A71: =IF('DF raw data'!M76="","",'DF raw data'!M76) -> -295.5 | B71: =IF('DF raw data'!N76="","",'DF raw data'!N76) -> 1.87234e-06 | C71: =IF('DF raw data'!O76="","",'DF raw data'!O76) -> 0.000175893 | D71: =IF('DF raw data'!P76="","",'DF raw data'!P76) -> -2.81037e-05 | F71: 1.87982936e-06 | G71: 0.000176596572 | H71: -2.82161148e-05 | J71: -2.34858727e-05 | K71: -7.48547435e-05 | L71: 0.00092860211 | M71: 0.002560856114 | N71: 1.671510209e-06
A72: =IF('DF raw data'!M77="","",'DF raw data'!M77) -> -295 | B72: =IF('DF raw data'!N77="","",'DF raw data'!N77) -> 4.43548e-06 | C72: =IF('DF raw data'!O77="","",'DF raw data'!O77) -> 0.000180066 | D72: =IF('DF raw data'!P77="","",'DF raw data'!P77) -> -2.82625e-05 | F72: 4.45322192e-06 | G72: 0.000180786264 | H72: -2.837555e-05 | J72: -2.125926174e-05 | K72: -8.548437437e-05 | L72: 0.001018995242 | M72: 0.003070353735 | N72: 2.190911839e-06
A73: =IF('DF raw data'!M78="","",'DF raw data'!M78) -> -294.5 | B73: =IF('DF raw data'!N78="","",'DF raw data'!N78) -> 4.49898e-06 | C73: =IF('DF raw data'!O78="","",'DF raw data'!O78) -> 0.000175737 | D73: =IF('DF raw data'!P78="","",'DF raw data'!P78) -> -2.83722e-05 | F73: 4.51697592e-06 | G73: 0.000176439948 | H73: -2.84856888e-05 | J73: -1.900077378e-05 | K73: -9.498476126e-05 | L73: 0.001107215216 | M73: 0.003623961343 | N73: 2.804055121e-06
A74: =IF('DF raw data'!M79="","",'DF raw data'!M79) -> -294 | B74: =IF('DF raw data'!N79="","",'DF raw data'!N79) -> 7.83142e-06 | C74: =IF('DF raw data'!O79="","",'DF raw data'!O79) -> 0.000177498 | D74: =IF('DF raw data'!P79="","",'DF raw data'!P79) -> -2.88467e-05 | F74: 7.86274568e-06 | G74: 0.000178207992 | H74: -2.89620868e-05 | J74: -1.506940094e-05 | K74: -0.0001025194617 | L74: 0.001196319212 | M74: 0.004222120949 | N74: 3.519758493e-06
A75: =IF('DF raw data'!M80="","",'DF raw data'!M80) -> -293.5 | B75: =IF('DF raw data'!N80="","",'DF raw data'!N80) -> 5.46063e-06 | C75: =IF('DF raw data'!O80="","",'DF raw data'!O80) -> 0.000185129 | D75: =IF('DF raw data'!P80="","",'DF raw data'!P80) -> -2.93891e-05 | F75: 5.48247252e-06 | G75: 0.000185869516 | H75: -2.95066564e-05 | J75: -1.232816468e-05 | K75: -0.0001086835441 | L75: 0.00128925397 | M75: 0.004866747934 | N75: 4.350922384e-06
A76: =IF('DF raw data'!M81="","",'DF raw data'!M81) -> -293 | B76: =IF('DF raw data'!N81="","",'DF raw data'!N81) -> -5.61039e-07 | C76: =IF('DF raw data'!O81="","",'DF raw data'!O81) -> 0.000186761 | D76: =IF('DF raw data'!P81="","",'DF raw data'!P81) -> -2.94534e-05 | F76: -5.63283156e-07 | G76: 0.000187508044 | H76: -2.95712136e-05 | J76: -1.260980626e-05 | K76: -0.0001149884472 | L76: 0.001383007992 | M76: 0.00555825193 | N76: 5.307357441e-06
A77: =IF('DF raw data'!M82="","",'DF raw data'!M82) -> -292.5 | B77: =IF('DF raw data'!N82="","",'DF raw data'!N82) -> -2.29086e-06 | C77: =IF('DF raw data'!O82="","",'DF raw data'!O82) -> 0.0001872 | D77: =IF('DF raw data'!P82="","",'DF raw data'!P82) -> -2.91367e-05 | F77: -2.30002344e-06 | G77: 0.0001879488 | H77: -2.92532468e-05 | J77: -1.375981798e-05 | K77: -0.0001218683562 | L77: 0.001476982392 | M77: 0.006296743126 | N77: 6.3981906e-06
A78: =IF('DF raw data'!M83="","",'DF raw data'!M83) -> -292 | B78: =IF('DF raw data'!N83="","",'DF raw data'!N83) -> -4.33294e-07 | C78: =IF('DF raw data'!O83="","",'DF raw data'!O83) -> 0.000187768 | D78: =IF('DF raw data'!P83="","",'DF raw data'!P83) -> -2.88628e-05 | F78: -4.35027176e-07 | G78: 0.000188519072 | H78: -2.89782512e-05 | J78: -1.397733157e-05 | K78: -0.000128857022 | L78: 0.001571241928 | M78: 0.00708236409 | N78: 7.632688881e-06
A79: =IF('DF raw data'!M84="","",'DF raw data'!M84) -> -291.5 | B79: =IF('DF raw data'!N84="","",'DF raw data'!N84) -> -5.94625e-06 | C79: =IF('DF raw data'!O84="","",'DF raw data'!O84) -> 0.000174984 | D79: =IF('DF raw data'!P84="","",'DF raw data'!P84) -> -2.29694e-05 | F79: -5.970035e-06 | G79: 0.000175683936 | H79: -2.30612776e-05 | J79: -1.696234907e-05 | K79: -0.0001373381965 | L79: 0.001659083896 | M79: 0.007911906038 | N79: 9.009112429e-06
A80: =IF('DF raw data'!M85="","",'DF raw data'!M85) -> -291 | B80: =IF('DF raw data'!N85="","",'DF raw data'!N85) -> 1.48373e-06 | C80: =IF('DF raw data'!O85="","",'DF raw data'!O85) -> 0.000171885 | D80: =IF('DF raw data'!P85="","",'DF raw data'!P85) -> -2.12835e-05 | F80: 1.48966492e-06 | G80: 0.00017257254 | H80: -2.1368634e-05 | J80: -1.621751661e-05 | K80: -0.0001454469548 | L80: 0.001745370166 | M80: 0.008784591121 | N80: 1.053240244e-05
A81: =IF('DF raw data'!M86="","",'DF raw data'!M86) -> -290.5 | B81: =IF('DF raw data'!N86="","",'DF raw data'!N86) -> -7.99629e-06 | C81: =IF('DF raw data'!O86="","",'DF raw data'!O86) -> 0.000166688 | D81: =IF('DF raw data'!P86="","",'DF raw data'!P86) -> -2.26744e-05 | F81: -8.02827516e-06 | G81: 0.000167354752 | H81: -2.27650976e-05 | J81: -2.023165419e-05 | K81: -0.0001555627819 | L81: 0.001829047542 | M81: 0.009699114892 | N81: 1.220531456e-05
A82: =IF('DF raw data'!M87="","",'DF raw data'!M87) -> -290 | B82: =IF('DF raw data'!N87="","",'DF raw data'!N87) -> -7.1656e-06 | C82: =IF('DF raw data'!O87="","",'DF raw data'!O87) -> 0.000168988 | D82: =IF('DF raw data'!P87="","",'DF raw data'!P87) -> -2.09214e-05 | F82: -7.1942624e-06 | G82: 0.000169663952 | H82: -2.10050856e-05 | J82: -2.382878539e-05 | K82: -0.0001674771746 | L82: 0.001913879518 | M82: 0.01065605465 | N82: 1.403706587e-05
A83: =IF('DF raw data'!M88="","",'DF raw data'!M88) -> -289.5 | B83: =IF('DF raw data'!N88="","",'DF raw data'!N88) -> 1.31017e-07 | C83: =IF('DF raw data'!O88="","",'DF raw data'!O88) -> 0.000170769 | D83: =IF('DF raw data'!P88="","",'DF raw data'!P88) -> -9.75975e-06 | F83: 1.31541068e-07 | G83: 0.000171452076 | H83: -9.798789e-06 | J83: -2.376301485e-05 | K83: -0.000179358682 | L83: 0.001999605556 | M83: 0.01165585743 | N83: 1.60365594e-05
A84: =IF('DF raw data'!M89="","",'DF raw data'!M89) -> -289 | B84: =IF('DF raw data'!N89="","",'DF raw data'!N89) -> 6.54565e-06 | C84: =IF('DF raw data'!O89="","",'DF raw data'!O89) -> 0.000175068 | D84: =IF('DF raw data'!P89="","",'DF raw data'!P89) -> -2.19505e-05 | F84: 6.5718326e-06 | G84: 0.000175768272 | H84: -2.2038302e-05 | J84: -2.047709855e-05 | K84: -0.0001895972313 | L84: 0.002087489692 | M84: 0.01269960228 | N84: 1.821557566e-05
A85: =IF('DF raw data'!M90="","",'DF raw data'!M90) -> -288.5 | B85: =IF('DF raw data'!N90="","",'DF raw data'!N90) -> -2.42259e-06 | C85: =IF('DF raw data'!O90="","",'DF raw data'!O90) -> 0.000179151 | D85: =IF('DF raw data'!P90="","",'DF raw data'!P90) -> -2.35634e-05 | F85: -2.43228036e-06 | G85: 0.000179867604 | H85: -2.36576536e-05 | J85: -2.169323873e-05 | K85: -0.0002004438507 | L85: 0.002177423494 | M85: 0.01378831402 | N85: 2.058639749e-05
A86: =IF('DF raw data'!M91="","",'DF raw data'!M91) -> -288 | B86: =IF('DF raw data'!N91="","",'DF raw data'!N91) -> -1.20956e-05 | C86: =IF('DF raw data'!O91="","",'DF raw data'!O91) -> 0.000179595 | D86: =IF('DF raw data'!P91="","",'DF raw data'!P91) -> -2.57844e-05 | F86: -1.21439824e-05 | G86: 0.00018031338 | H86: -2.58875376e-05 | J86: -2.776522993e-05 | K86: -0.0002143264656 | L86: 0.002267580184 | M86: 0.01492210411 | N86: 2.315774289e-05
A87: =IF('DF raw data'!M92="","",'DF raw data'!M92) -> -287.5 | B87: =IF('DF raw data'!N92="","",'DF raw data'!N92) -> -4.16474e-06 | C87: =IF('DF raw data'!O92="","",'DF raw data'!O92) -> 0.000175433 | D87: =IF('DF raw data'!P92="","",'DF raw data'!P92) -> -4.34213e-06 | F87: -4.18139896e-06 | G87: 0.000176134732 | H87: -4.35949852e-06 | J87: -2.985592941e-05 | K87: -0.0002292544303 | L87: 0.00235564755 | M87: 0.01609992789 | N87: 2.593272627e-05
A88: =IF('DF raw data'!M93="","",'DF raw data'!M93) -> -287 | B88: =IF('DF raw data'!N93="","",'DF raw data'!N93) -> -2.42844e-06 | C88: =IF('DF raw data'!O93="","",'DF raw data'!O93) -> 0.000168633 | D88: =IF('DF raw data'!P93="","",'DF raw data'!P93) -> -1.49679e-05 | F88: -2.43815376e-06 | G88: 0.000169307532 | H88: -1.50277716e-05 | J88: -3.107500629e-05 | K88: -0.0002447919335 | L88: 0.002440301316 | M88: 0.01732007855 | N88: 2.891074436e-05
A89: =IF('DF raw data'!M94="","",'DF raw data'!M94) -> -286.5 | B89: =IF('DF raw data'!N94="","",'DF raw data'!N94) -> -1.13316e-05 | C89: =IF('DF raw data'!O94="","",'DF raw data'!O94) -> 0.000170281 | D89: =IF('DF raw data'!P94="","",'DF raw data'!P94) -> -1.63171e-05 | F89: -1.13769264e-05 | G89: 0.000170962124 | H89: -1.63823684e-05 | J89: -3.676346949e-05 | K89: -0.0002631736682 | L89: 0.002525782378 | M89: 0.01858296974 | N89: 3.210120844e-05
A90: =IF('DF raw data'!M95="","",'DF raw data'!M95) -> -286 | B90: =IF('DF raw data'!N95="","",'DF raw data'!N95) -> 5.88597e-07 | C90: =IF('DF raw data'!O95="","",'DF raw data'!O95) -> 0.00016734 | D90: =IF('DF raw data'!P95="","",'DF raw data'!P95) -> -2.40186e-05 | F90: 5.90951388e-07 | G90: 0.00016800936 | H90: -2.41146744e-05 | J90: -3.64679938e-05 | K90: -0.0002814076651 | L90: 0.002609787058 | M90: 0.01988786327 | N90: 3.550736764e-05
A91: =IF('DF raw data'!M96="","",'DF raw data'!M96) -> -285.5 | B91: =IF('DF raw data'!N96="","",'DF raw data'!N96) -> -1.66057e-06 | C91: =IF('DF raw data'!O96="","",'DF raw data'!O96) -> 0.000166959 | D91: =IF('DF raw data'!P96="","",'DF raw data'!P96) -> -1.32759e-05 | F91: -1.66721228e-06 | G91: 0.000167626836 | H91: -1.33290036e-05 | J91: -3.730159994e-05 | K91: -0.0003000584651 | L91: 0.002693600476 | M91: 0.0212346635 | N91: 3.913580511e-05
A92: =IF('DF raw data'!M97="","",'DF raw data'!M97) -> -285 | B92: =IF('DF raw data'!N97="","",'DF raw data'!N97) -> -4.93891e-07 | C92: =IF('DF raw data'!O97="","",'DF raw data'!O97) -> 0.000169177 | D92: =IF('DF raw data'!P97="","",'DF raw data'!P97) -> -3.40051e-05 | F92: -4.95866564e-07 | G92: 0.000169853708 | H92: -3.41411204e-05 | J92: -3.754953322e-05 | K92: -0.0003188332317 | L92: 0.00277852733 | M92: 0.02262392717 | N92: 4.299661716e-05
A93: =IF('DF raw data'!M98="","",'DF raw data'!M98) -> -284.5 | B93: =IF('DF raw data'!N98="","",'DF raw data'!N98) -> 3.53301e-06 | C93: =IF('DF raw data'!O98="","",'DF raw data'!O98) -> 0.000169898 | D93: =IF('DF raw data'!P98="","",'DF raw data'!P98) -> -2.02778e-05 | F93: 3.54714204e-06 | G93: 0.000170577592 | H93: -2.03589112e-05 | J93: -3.57759622e-05 | K93: -0.0003367212128 | L93: 0.002863816126 | M93: 0.02405583523 | N93: 4.709797852e-05
A94: =IF('DF raw data'!M99="","",'DF raw data'!M99) -> -284 | B94: =IF('DF raw data'!N99="","",'DF raw data'!N99) -> -1.56099e-05 | C94: =IF('DF raw data'!O99="","",'DF raw data'!O99) -> 0.000167108 | D94: =IF('DF raw data'!P99="","",'DF raw data'!P99) -> -4.0292e-05 | F94: -1.56723396e-05 | G94: 0.000167776432 | H94: -4.0453168e-05 | J94: -4.3612132e-05 | K94: -0.0003585272788 | L94: 0.002947704342 | M94: 0.0255296874 | N94: 5.144340997e-05
A95: =IF('DF raw data'!M100="","",'DF raw data'!M100) -> -283.5 | B95: =IF('DF raw data'!N100="","",'DF raw data'!N100) -> 2.45082e-06 | C95: =IF('DF raw data'!O100="","",'DF raw data'!O100) -> 0.000168333 | D95: =IF('DF raw data'!P100="","",'DF raw data'!P100) -> -3.09485e-05 | F95: 2.46062328e-06 | G95: 0.000169006332 | H95: -3.1072294e-05 | J95: -4.238182036e-05 | K95: -0.000379718189 | L95: 0.003032207508 | M95: 0.02704579116 | N95: 5.604144927e-05
A96: =IF('DF raw data'!M101="","",'DF raw data'!M101) -> -283 | B96: =IF('DF raw data'!N101="","",'DF raw data'!N101) -> -7.93541e-06 | C96: =IF('DF raw data'!O101="","",'DF raw data'!O101) -> 0.000165888 | D96: =IF('DF raw data'!P101="","",'DF raw data'!P101) -> -1.93608e-05 | F96: -7.96715164e-06 | G96: 0.000166551552 | H96: -1.94382432e-05 | J96: -4.636539618e-05 | K96: -0.0004029008871 | L96: 0.003115483284 | M96: 0.0286035328 | N96: 6.089564219e-05
A97: =IF('DF raw data'!M102="","",'DF raw data'!M102) -> -282.5 | B97: =IF('DF raw data'!N102="","",'DF raw data'!N102) -> -4.99485e-06 | C97: =IF('DF raw data'!O102="","",'DF raw data'!O102) -> 0.000163832 | D97: =IF('DF raw data'!P102="","",'DF raw data'!P102) -> -8.1924e-06 | F97: -5.0148294e-06 | G97: 0.000164487328 | H97: -8.2251696e-06 | J97: -4.887281088e-05 | K97: -0.0004273372925 | L97: 0.003197726948 | M97: 0.03020239627 | N97: 6.600956528e-05
A98: =IF('DF raw data'!M103="","",'DF raw data'!M103) -> -282 | B98: =IF('DF raw data'!N103="","",'DF raw data'!N103) -> 3.08376e-06 | C98: =IF('DF raw data'!O103="","",'DF raw data'!O103) -> 0.000171329 | D98: =IF('DF raw data'!P103="","",'DF raw data'!P103) -> -1.86493e-05 | F98: 3.09609504e-06 | G98: 0.000172014316 | H98: -1.87238972e-05 | J98: -4.732476336e-05 | K98: -0.0004509996742 | L98: 0.003283734106 | M98: 0.03184426333 | N98: 7.140213994e-05
A99: =IF('DF raw data'!M104="","",'DF raw data'!M104) -> -281.5 | B99: =IF('DF raw data'!N104="","",'DF raw data'!N104) -> 1.41951e-06 | C99: =IF('DF raw data'!O104="","",'DF raw data'!O104) -> 0.000173342 | D99: =IF('DF raw data'!P104="","",'DF raw data'!P104) -> -2.10895e-05 | F99: 1.42518804e-06 | G99: 0.000174035368 | H99: -2.1173858e-05 | J99: -4.661216934e-05 | K99: -0.0004743057589 | L99: 0.00337075179 | M99: 0.03352963922 | N99: 7.70842101e-05
A100: =IF('DF raw data'!M105="","",'DF raw data'!M105) -> -281 | B100: =IF('DF raw data'!N105="","",'DF raw data'!N105) -> 3.85505e-06 | C100: =IF('DF raw data'!O105="","",'DF raw data'!O105) -> 0.000164639 | D100: =IF('DF raw data'!P105="","",'DF raw data'!P105) -> -2.25544e-05 | F100: 3.8704702e-06 | G100: 0.000165297556 | H100: -2.26446176e-05 | J100: -4.467693424e-05 | K100: -0.000496644226 | L100: 0.003453400568 | M100: 0.0352563395 | N100: 8.304819585e-05
A101: =IF('DF raw data'!M106="","",'DF raw data'!M106) -> -280.5 | B101: =IF('DF raw data'!N106="","",'DF raw data'!N106) -> -3.05876e-06 | C101: =IF('DF raw data'!O106="","",'DF raw data'!O106) -> 0.000166042 | D101: =IF('DF raw data'!P106="","",'DF raw data'!P106) -> -3.03843e-05 | F101: -3.07099504e-06 | G101: 0.000166706168 | H101: -3.05058372e-05 | J101: -4.621243176e-05 | K101: -0.0005197504419 | L101: 0.003536753652 | M101: 0.03702471633 | N101: 8.930357685e-05
A102: =IF('DF raw data'!M107="","",'DF raw data'!M107) -> -280 | B102: =IF('DF raw data'!N107="","",'DF raw data'!N107) -> -2.99032e-06 | C102: =IF('DF raw data'!O107="","",'DF raw data'!O107) -> 0.000173271 | D102: =IF('DF raw data'!P107="","",'DF raw data'!P107) -> -3.73953e-05 | F102: -3.00228128e-06 | G102: 0.000173964084 | H102: -3.75448812e-05 | J102: -4.77135724e-05 | K102: -0.0005436072281 | L102: 0.003623735694 | M102: 0.03883658418 | N102: 9.587044533e-05
A103: =IF('DF raw data'!M108="","",'DF raw data'!M108) -> -279.5 | B103: =IF('DF raw data'!N108="","",'DF raw data'!N108) -> -1.49684e-05 | C103: =IF('DF raw data'!O108="","",'DF raw data'!O108) -> 0.000167042 | D103: =IF('DF raw data'!P108="","",'DF raw data'!P108) -> -3.91739e-05 | F103: -1.50282736e-05 | G103: 0.000167710168 | H103: -3.93305956e-05 | J103: -5.52277092e-05 | K103: -0.0005712210827 | L103: 0.003707590778 | M103: 0.04069037957 | N103: 0.0001027450851
A104: =IF('DF raw data'!M109="","",'DF raw data'!M109) -> -279 | B104: =IF('DF raw data'!N109="","",'DF raw data'!N109) -> 1.23486e-06 | C104: =IF('DF raw data'!O109="","",'DF raw data'!O109) -> 0.000161742 | D104: =IF('DF raw data'!P109="","",'DF raw data'!P109) -> -3.26889e-05 | F104: 1.23979944e-06 | G104: 0.000162388968 | H104: -3.28196556e-05 | J104: -5.460780948e-05 | K104: -0.0005985249874 | L104: 0.003788785262 | M104: 0.0425847722 | N104: 0.000109924023
A105: =IF('DF raw data'!M110="","",'DF raw data'!M110) -> -278.5 | B105: =IF('DF raw data'!N110="","",'DF raw data'!N110) -> -9.2765e-06 | C105: =IF('DF raw data'!O110="","",'DF raw data'!O110) -> 0.00016934 | D105: =IF('DF raw data'!P110="","",'DF raw data'!P110) -> -2.42441e-05 | F105: -9.313606e-06 | G105: 0.00017001736 | H105: -2.43410764e-05 | J105: -5.926461248e-05 | K105: -0.0006281572936 | L105: 0.003873793942 | M105: 0.04452166917 | N105: 0.0001174289189
A106: =IF('DF raw data'!M111="","",'DF raw data'!M111) -> -278 | B106: =IF('DF raw data'!N111="","",'DF raw data'!N111) -> -1.10685e-05 | C106: =IF('DF raw data'!O111="","",'DF raw data'!O111) -> 0.000175567 | D106: =IF('DF raw data'!P111="","",'DF raw data'!P111) -> -2.87574e-05 | F106: -1.1112774e-05 | G106: 0.000176269268 | H106: -2.88724296e-05 | J106: -6.482099948e-05 | K106: -0.0006605677934 | L106: 0.003961928576 | M106: 0.04650263346 | N106: 0.0001252794588
A107: =IF('DF raw data'!M112="","",'DF raw data'!M112) -> -277.5 | B107: =IF('DF raw data'!N112="","",'DF raw data'!N112) -> -1.03616e-05 | C107: =IF('DF raw data'!O112="","",'DF raw data'!O112) -> 0.000165413 | D107: =IF('DF raw data'!P112="","",'DF raw data'!P112) -> -3.05233e-05 | F107: -1.04030464e-05 | G107: 0.000166074652 | H107: -3.06453932e-05 | J107: -7.002252268e-05 | K107: -0.0006955790547 | L107: 0.004044965902 | M107: 0.04852511641 | N107: 0.0001334627849
A108: =IF('DF raw data'!M113="","",'DF raw data'!M113) -> -277 | B108: =IF('DF raw data'!N113="","",'DF raw data'!N113) -> -4.21275e-06 | C108: =IF('DF raw data'!O113="","",'DF raw data'!O113) -> 0.000174589 | D108: =IF('DF raw data'!P113="","",'DF raw data'!P113) -> -2.95322e-05 | F108: -4.229601e-06 | G108: 0.000175287356 | H108: -2.96503288e-05 | J108: -7.213732318e-05 | K108: -0.0007316477163 | L108: 0.00413260958 | M108: 0.0505914212 | N108: 0.0001420046178
A109: =IF('DF raw data'!M114="","",'DF raw data'!M114) -> -276.5 | B109: =IF('DF raw data'!N114="","",'DF raw data'!N114) -> -9.08038e-06 | C109: =IF('DF raw data'!O114="","",'DF raw data'!O114) -> 0.00017853 | D109: =IF('DF raw data'!P114="","",'DF raw data'!P114) -> -3.06165e-05 | F109: -9.11670152e-06 | G109: 0.00017924412 | H109: -3.0738966e-05 | J109: -7.669567394e-05 | K109: -0.0007699955533 | L109: 0.00422223164 | M109: 0.05270253702 | N109: 0.0001509211789
A110: =IF('DF raw data'!M115="","",'DF raw data'!M115) -> -276 | B110: =IF('DF raw data'!N115="","",'DF raw data'!N115) -> -3.12559e-06 | C110: =IF('DF raw data'!O115="","",'DF raw data'!O115) -> 0.000170156 | D110: =IF('DF raw data'!P115="","",'DF raw data'!P115) -> -2.63501e-05 | F110: -3.13809236e-06 | G110: 0.000170836624 | H110: -2.64555004e-05 | J110: -7.826472012e-05 | K110: -0.0008091279133 | L110: 0.004307649952 | M110: 0.05485636199 | N110: 0.0001602021656
A111: =IF('DF raw data'!M116="","",'DF raw data'!M116) -> -275.5 | B111: =IF('DF raw data'!N116="","",'DF raw data'!N116) -> -7.41891e-06 | C111: =IF('DF raw data'!O116="","",'DF raw data'!O116) -> 0.000169618 | D111: =IF('DF raw data'!P116="","",'DF raw data'!P116) -> -2.43645e-05 | F111: -7.44858564e-06 | G111: 0.000170296472 | H111: -2.4461958e-05 | J111: -8.198901294e-05 | K111: -0.0008501224198 | L111: 0.004392798188 | M111: 0.05705276109 | N111: 0.0001698538647
A112: =IF('DF raw data'!M117="","",'DF raw data'!M117) -> -275 | B112: =IF('DF raw data'!N117="","",'DF raw data'!N117) -> -6.33141e-06 | C112: =IF('DF raw data'!O117="","",'DF raw data'!O117) -> 0.000165294 | D112: =IF('DF raw data'!P117="","",'DF raw data'!P117) -> -2.26671e-05 | F112: -6.35673564e-06 | G112: 0.000165955176 | H112: -2.27577684e-05 | J112: -8.516738076e-05 | K112: -0.0008927061102 | L112: 0.004475775776 | M112: 0.05929064898 | N112: 0.0001798737758
A113: =IF('DF raw data'!M118="","",'DF raw data'!M118) -> -274.5 | B113: =IF('DF raw data'!N118="","",'DF raw data'!N118) -> -8.05508e-06 | C113: =IF('DF raw data'!O118="","",'DF raw data'!O118) -> 0.000159994 | D113: =IF('DF raw data'!P118="","",'DF raw data'!P118) -> -3.11874e-05 | F113: -8.08730032e-06 | G113: 0.000160633976 | H113: -3.13121496e-05 | J113: -8.921103092e-05 | K113: -0.0009373116257 | L113: 0.004556092764 | M113: 0.06156869536 | N113: 0.0001902567458
A114: =IF('DF raw data'!M119="","",'DF raw data'!M119) -> -274 | B114: =IF('DF raw data'!N119="","",'DF raw data'!N119) -> -5.17298e-06 | C114: =IF('DF raw data'!O119="","",'DF raw data'!O119) -> 0.00016254 | D114: =IF('DF raw data'!P119="","",'DF raw data'!P119) -> -3.08259e-05 | F114: -5.19367192e-06 | G114: 0.00016319016 | H114: -3.09492036e-05 | J114: -9.180786688e-05 | K114: -0.0009832155591 | L114: 0.004637687844 | M114: 0.06388753928 | N114: 0.0002010150344
A115: =IF('DF raw data'!M120="","",'DF raw data'!M120) -> -273.5 | B115: =IF('DF raw data'!N120="","",'DF raw data'!N120) -> 1.28635e-06 | C115: =IF('DF raw data'!O120="","",'DF raw data'!O120) -> 0.00015624 | D115: =IF('DF raw data'!P120="","",'DF raw data'!P120) -> -1.32827e-05 | F115: 1.2914954e-06 | G115: 0.00015686496 | H115: -1.33358308e-05 | J115: -9.116211918e-05 | K115: -0.001028796619 | L115: 0.004716120324 | M115: 0.06624559944 | N115: 0.0002121400851
A116: =IF('DF raw data'!M121="","",'DF raw data'!M121) -> -273 | B116: =IF('DF raw data'!N121="","",'DF raw data'!N121) -> 1.46769e-05 | C116: =IF('DF raw data'!O121="","",'DF raw data'!O121) -> 0.000160845 | D116: =IF('DF raw data'!P121="","",'DF raw data'!P121) -> -1.39714e-05 | F116: 1.47356076e-05 | G116: 0.00016148838 | H116: -1.40272856e-05 | J116: -8.379431538e-05 | K116: -0.001070693776 | L116: 0.004796864514 | M116: 0.0686440317 | N116: 0.0002236485504
A117: =IF('DF raw data'!M122="","",'DF raw data'!M122) -> -272.5 | B117: =IF('DF raw data'!N122="","",'DF raw data'!N122) -> -3.18939e-06 | C117: =IF('DF raw data'!O122="","",'DF raw data'!O122) -> 0.000164349 | D117: =IF('DF raw data'!P122="","",'DF raw data'!P122) -> -2.65637e-05 | F117: -3.20214756e-06 | G117: 0.000165006396 | H117: -2.66699548e-05 | J117: -8.539538916e-05 | K117: -0.001113391471 | L117: 0.004879367712 | M117: 0.07108371555 | N117: 0.0002355563113
A118: =IF('DF raw data'!M123="","",'DF raw data'!M123) -> -272 | B118: =IF('DF raw data'!N123="","",'DF raw data'!N123) -> -4.79711e-06 | C118: =IF('DF raw data'!O123="","",'DF raw data'!O123) -> 0.000159673 | D118: =IF('DF raw data'!P123="","",'DF raw data'!P123) -> -1.77145e-05 | F118: -4.81629844e-06 | G118: 0.000160311692 | H118: -1.7785358e-05 | J118: -8.780353838e-05 | K118: -0.00115729324 | L118: 0.004959523558 | M118: 0.07356347733 | N118: 0.0002478586029
A119: =IF('DF raw data'!M124="","",'DF raw data'!M124) -> -271.5 | B119: =IF('DF raw data'!N124="","",'DF raw data'!N124) -> -1.06887e-05 | C119: =IF('DF raw data'!O124="","",'DF raw data'!O124) -> 0.000157151 | D119: =IF('DF raw data'!P124="","",'DF raw data'!P124) -> -2.02027e-05 | F119: -1.07314548e-05 | G119: 0.000157779604 | H119: -2.02835108e-05 | J119: -9.316926578e-05 | K119: -0.001203877873 | L119: 0.00503841336 | M119: 0.07608268401 | N119: 0.0002605557478
A120: =IF('DF raw data'!M125="","",'DF raw data'!M125) -> -271 | B120: =IF('DF raw data'!N125="","",'DF raw data'!N125) -> -6.143e-06 | C120: =IF('DF raw data'!O125="","",'DF raw data'!O125) -> 0.000160572 | D120: =IF('DF raw data'!P125="","",'DF raw data'!P125) -> -1.66687e-05 | F120: -6.167572e-06 | G120: 0.000161214288 | H120: -1.67353748e-05 | J120: -9.625305178e-05 | K120: -0.001252004399 | L120: 0.005119020504 | M120: 0.07864219427 | N120: 0.0002736625656
A121: =IF('DF raw data'!M126="","",'DF raw data'!M126) -> -270.5 | B121: =IF('DF raw data'!N126="","",'DF raw data'!N126) -> 1.53884e-05 | C121: =IF('DF raw data'!O126="","",'DF raw data'!O126) -> 0.000161145 | D121: =IF('DF raw data'!P126="","",'DF raw data'!P126) -> -2.67083e-05 | F121: 1.54499536e-05 | G121: 0.00016178958 | H121: -2.68151332e-05 | J121: -8.852807498e-05 | K121: -0.001296268436 | L121: 0.005199915294 | M121: 0.08124215191 | N121: 0.0002871860437
A122: =IF('DF raw data'!M127="","",'DF raw data'!M127) -> -270 | B122: =IF('DF raw data'!N127="","",'DF raw data'!N127) -> 4.36584e-06 | C122: =IF('DF raw data'!O127="","",'DF raw data'!O127) -> 0.00016521 | D122: =IF('DF raw data'!P127="","",'DF raw data'!P127) -> -1.99562e-05 | F122: 4.38330336e-06 | G122: 0.00016587084 | H122: -2.00360248e-05 | J122: -8.63364233e-05 | K122: -0.001339436648 | L122: 0.005282850714 | M122: 0.08388357727 | N122: 0.0003011440265
A123: =IF('DF raw data'!M128="","",'DF raw data'!M128) -> -269.5 | B123: =IF('DF raw data'!N128="","",'DF raw data'!N128) -> -6.14264e-06 | C123: =IF('DF raw data'!O128="","",'DF raw data'!O128) -> 0.00017316 | D123: =IF('DF raw data'!P128="","",'DF raw data'!P128) -> -1.64213e-05 | F123: -6.16721056e-06 | G123: 0.00017385264 | H123: -1.64869852e-05 | J123: -8.942002858e-05 | K123: -0.001384146662 | L123: 0.005369777034 | M123: 0.08656846579 | N123: 0.0003155652772
A124: =IF('DF raw data'!M129="","",'DF raw data'!M129) -> -269 | B124: =IF('DF raw data'!N129="","",'DF raw data'!N129) -> -4.86092e-06 | C124: =IF('DF raw data'!O129="","",'DF raw data'!O129) -> 0.000174103 | D124: =IF('DF raw data'!P129="","",'DF raw data'!P129) -> -1.78892e-05 | F124: -4.88036368e-06 | G124: 0.000174799412 | H124: -1.79607568e-05 | J124: -9.186021042e-05 | K124: -0.001430076768 | L124: 0.00545717674 | M124: 0.08929705416 | N124: 0.0003304598853
A125: =IF('DF raw data'!M130="","",'DF raw data'!M130) -> -268.5 | B125: =IF('DF raw data'!N130="","",'DF raw data'!N130) -> -6.59142e-06 | C125: =IF('DF raw data'!O130="","",'DF raw data'!O130) -> 0.000161198 | D125: =IF('DF raw data'!P130="","",'DF raw data'!P130) -> -1.60311e-05 | F125: -6.61778568e-06 | G125: 0.000161842792 | H125: -1.60952244e-05 | J125: -9.516910326e-05 | K125: -0.001477661319 | L125: 0.005538098136 | M125: 0.09206610322 | N125: 0.0003457996794
A126: =IF('DF raw data'!M131="","",'DF raw data'!M131) -> -268 | B126: =IF('DF raw data'!N131="","",'DF raw data'!N131) -> -3.25587e-06 | C126: =IF('DF raw data'!O131="","",'DF raw data'!O131) -> 0.000162519 | D126: =IF('DF raw data'!P131="","",'DF raw data'!P131) -> -2.30227e-05 | F126: -3.26889348e-06 | G126: 0.000163169076 | H126: -2.31147908e-05 | J126: -9.680355e-05 | K126: -0.001526063094 | L126: 0.005619682674 | M126: 0.09487594456 | N126: 0.0003615947816
A127: =IF('DF raw data'!M132="","",'DF raw data'!M132) -> -267.5 | B127: =IF('DF raw data'!N132="","",'DF raw data'!N132) -> -6.45985e-06 | C127: =IF('DF raw data'!O132="","",'DF raw data'!O132) -> 0.000163719 | D127: =IF('DF raw data'!P132="","",'DF raw data'!P132) -> -2.14001e-05 | F127: -6.4856894e-06 | G127: 0.000164373876 | H127: -2.14857004e-05 | J127: -0.0001000463947 | K127: -0.001576086292 | L127: 0.005701869612 | M127: 0.09772687937 | N127: 0.0003778554447
A128: =IF('DF raw data'!M133="","",'DF raw data'!M133) -> -267 | B128: =IF('DF raw data'!N133="","",'DF raw data'!N133) -> -7.15645e-06 | C128: =IF('DF raw data'!O133="","",'DF raw data'!O133) -> 0.000168837 | D128: =IF('DF raw data'!P133="","",'DF raw data'!P133) -> -3.49204e-05 | F128: =(1-$G$1*($B$49-$G$2))*B128 -> -7.1850758e-06 | G128: 0.000169512348 | H128: -3.50600816e-05 | J128: =F128*$G$3+J127 -> -0.0001036389326 | K128: =J128*$G$3+K127 -> -0.001627905758 | L128: =G128*$G$3+L127 -> 0.005786625786 | M128: =L128*$G$3+M127 -> 0.1006201923 | N128: =(J128^2+L128^2)*$G$3+N127 -> 0.0003946033342
A129: =IF('DF raw data'!M134="","",'DF raw data'!M134) -> -266.5 | B129: =IF('DF raw data'!N134="","",'DF raw data'!N134) -> -1.57534e-05 | C129: =IF('DF raw data'!O134="","",'DF raw data'!O134) -> 0.000171637 | D129: =IF('DF raw data'!P134="","",'DF raw data'!P134) -> -1.43059e-05 | F129: -1.58164136e-05 | G129: 0.000172323548 | H129: -1.43631236e-05 | J129: -0.0001115471394 | K129: -0.001683679328 | L129: 0.00587278756 | M129: 0.103556586 | N129: 0.0004118543725
A130: =IF('DF raw data'!M135="","",'DF raw data'!M135) -> -266 | B130: =IF('DF raw data'!N135="","",'DF raw data'!N135) -> -9.08913e-06 | C130: =IF('DF raw data'!O135="","",'DF raw data'!O135) -> 0.000163969 | D130: =IF('DF raw data'!P135="","",'DF raw data'!P135) -> -1.82246e-05 | F130: -9.12548652e-06 | G130: 0.000164624876 | H130: -1.82974984e-05 | J130: -0.0001161098827 | K130: -0.001741734269 | L130: 0.005955099998 | M130: 0.106534136 | N130: 0.0004295927212
A131: =IF('DF raw data'!M136="","",'DF raw data'!M136) -> -265.5 | B131: =IF('DF raw data'!N136="","",'DF raw data'!N136) -> -5.81477e-06 | C131: =IF('DF raw data'!O136="","",'DF raw data'!O136) -> 0.000162861 | D131: =IF('DF raw data'!P136="","",'DF raw data'!P136) -> -2.83479e-05 | F131: -5.83802908e-06 | G131: 0.000163512444 | H131: -2.84612916e-05 | J131: -0.0001190288972 | K131: -0.001801248717 | L131: 0.00603685622 | M131: 0.1095525641 | N131: 0.0004478216217
A132: =IF('DF raw data'!M137="","",'DF raw data'!M137) -> -265 | B132: =IF('DF raw data'!N137="","",'DF raw data'!N137) -> -1.02464e-05 | C132: =IF('DF raw data'!O137="","",'DF raw data'!O137) -> 0.000171624 | D132: =IF('DF raw data'!P137="","",'DF raw data'!P137) -> -1.18202e-05 | F132: -1.02873856e-05 | G132: 0.000172310496 | H132: -1.18674808e-05 | J132: -0.00012417259 | K132: -0.001863335012 | L132: 0.006123011468 | M132: 0.1126140699 | N132: 0.0004665749658
A133: =IF('DF raw data'!M138="","",'DF raw data'!M138) -> -264.5 | B133: =IF('DF raw data'!N138="","",'DF raw data'!N138) -> -1.39413e-06 | C133: =IF('DF raw data'!O138="","",'DF raw data'!O138) -> 0.000179397 | D133: =IF('DF raw data'!P138="","",'DF raw data'!P138) -> -2.90699e-05 | F133: -1.39970652e-06 | G133: 0.000180114588 | H133: -2.91861796e-05 | J133: -0.0001248724433 | K133: -0.001925771234 | L133: 0.006213068762 | M133: 0.1157206043 | N133: 0.0004858838741
A134: =IF('DF raw data'!M139="","",'DF raw data'!M139) -> -264 | B134: =IF('DF raw data'!N139="","",'DF raw data'!N139) -> 5.0062e-06 | C134: =IF('DF raw data'!O139="","",'DF raw data'!O139) -> 0.000180032 | D134: =IF('DF raw data'!P139="","",'DF raw data'!P139) -> -1.91934e-05 | F134: 5.0262248e-06 | G134: 0.000180752128 | H134: -1.92701736e-05 | J134: -0.0001223593309 | K134: -0.0019869509 | L134: 0.006303444826 | M134: 0.1188723267 | N134: 0.0005057580683
A135: =IF('DF raw data'!M140="","",'DF raw data'!M140) -> -263.5 | B135: =IF('DF raw data'!N140="","",'DF raw data'!N140) -> -1.04236e-05 | C135: =IF('DF raw data'!O140="","",'DF raw data'!O140) -> 0.000168074 | D135: =IF('DF raw data'!P140="","",'DF raw data'!P140) -> -3.40169e-05 | F135: -1.04652944e-05 | G135: 0.000168746296 | H135: -3.41529676e-05 | J135: -0.0001275919781 | K135: -0.002050746889 | L135: 0.006387817974 | M135: 0.1220662357 | N135: 0.0005261683174
A136: =IF('DF raw data'!M141="","",'DF raw data'!M141) -> -263 | B136: =IF('DF raw data'!N141="","",'DF raw data'!N141) -> -5.43136e-06 | C136: =IF('DF raw data'!O141="","",'DF raw data'!O141) -> 0.00016721 | D136: =IF('DF raw data'!P141="","",'DF raw data'!P141) -> -2.74678e-05 | F136: -5.45308544e-06 | G136: 0.00016787884 | H136: -2.75776712e-05 | J136: -0.0001303185208 | K136: -0.002115906149 | L136: 0.006471757394 | M136: 0.1253021144 | N136: 0.0005471186308
A137: =IF('DF raw data'!M142="","",'DF raw data'!M142) -> -262.5 | B137: =IF('DF raw data'!N142="","",'DF raw data'!N142) -> -1.01291e-06 | C137: =IF('DF raw data'!O142="","",'DF raw data'!O142) -> 0.000168466 | D137: =IF('DF raw data'!P142="","",'DF raw data'!P142) -> -2.38458e-05 | F137: -1.01696164e-06 | G137: 0.000169139864 | H137: -2.39411832e-05 | J137: -0.0001308270016 | K137: -0.00218131965 | L137: 0.006556327326 | M137: 0.128580278 | N137: 0.0005686199026
A138: =IF('DF raw data'!M143="","",'DF raw data'!M143) -> -262 | B138: =IF('DF raw data'!N143="","",'DF raw data'!N143) -> -1.97251e-05 | C138: =IF('DF raw data'!O143="","",'DF raw data'!O143) -> 0.000157729 | D138: =IF('DF raw data'!P143="","",'DF raw data'!P143) -> -1.64515e-05 | F138: -1.98040004e-05 | G138: 0.000158359916 | H138: -1.6517306e-05 | J138: -0.0001407290018 | K138: -0.002251684151 | L138: 0.006635507284 | M138: 0.1318980317 | N138: 0.0005906447834
A139: =IF('DF raw data'!M144="","",'DF raw data'!M144) -> -261.5 | B139: =IF('DF raw data'!N144="","",'DF raw data'!N144) -> -7.54979e-06 | C139: =IF('DF raw data'!O144="","",'DF raw data'!O144) -> 0.00015907 | D139: =IF('DF raw data'!P144="","",'DF raw data'!P144) -> -2.0284e-05 | F139: -7.57998916e-06 | G139: 0.00015970628 | H139: -2.0365136e-05 | J139: -0.0001445189964 | K139: -0.002323943649 | L139: 0.006715360424 | M139: 0.1352557119 | N139: 0.0006132032591
A140: =IF('DF raw data'!M145="","",'DF raw data'!M145) -> -261 | B140: =IF('DF raw data'!N145="","",'DF raw data'!N145) -> -8.50758e-06 | C140: =IF('DF raw data'!O145="","",'DF raw data'!O145) -> 0.000160004 | D140: =IF('DF raw data'!P145="","",'DF raw data'!P145) -> -2.55618e-05 | F140: -8.54161032e-06 | G140: 0.000160644016 | H140: -2.56640472e-05 | J140: -0.0001487898015 | K140: -0.00239833855 | L140: 0.006795682432 | M140: 0.1386535531 | N140: 0.0006363049782
A141: =IF('DF raw data'!M146="","",'DF raw data'!M146) -> -260.5 | B141: =IF('DF raw data'!N146="","",'DF raw data'!N146) -> 7.16566e-07 | C141: =IF('DF raw data'!O146="","",'DF raw data'!O146) -> 0.000163565 | D141: =IF('DF raw data'!P146="","",'DF raw data'!P146) -> -2.386e-05 | F141: 7.19432264e-07 | G141: 0.00016421926 | H141: -2.395544e-05 | J141: -0.0001484300854 | K141: -0.002472553592 | L141: 0.006877792062 | M141: 0.1420924491 | N141: 0.0006599680057
A142: =IF('DF raw data'!M147="","",'DF raw data'!M147) -> -260 | B142: =IF('DF raw data'!N147="","",'DF raw data'!N147) -> -2.80297e-06 | C142: =IF('DF raw data'!O147="","",'DF raw data'!O147) -> 0.000161847 | D142: =IF('DF raw data'!P147="","",'DF raw data'!P147) -> -3.0028e-05 | F142: -2.81418188e-06 | G142: 0.000162494388 | H142: -3.0148112e-05 | J142: -0.0001498371763 | K142: -0.00254747218 | L142: 0.006959039256 | M142: 0.1455719688 | N142: 0.000684193345
A143: =IF('DF raw data'!M148="","",'DF raw data'!M148) -> -259.5 | B143: =IF('DF raw data'!N148="","",'DF raw data'!N148) -> -5.18126e-06 | C143: =IF('DF raw data'!O148="","",'DF raw data'!O148) -> 0.000155768 | D143: =IF('DF raw data'!P148="","",'DF raw data'!P148) -> -1.75297e-05 | F143: -5.20198504e-06 | G143: 0.000156391072 | H143: -1.75998188e-05 | J143: -0.0001524381689 | K143: -0.002623691265 | L143: 0.007037234792 | M143: 0.1490905861 | N143: 0.0007089663004
A144: =IF('DF raw data'!M149="","",'DF raw data'!M149) -> -259 | B144: =IF('DF raw data'!N149="","",'DF raw data'!N149) -> -6.1332e-06 | C144: =IF('DF raw data'!O149="","",'DF raw data'!O149) -> 0.000152489 | D144: =IF('DF raw data'!P149="","",'DF raw data'!P149) -> -3.16044e-05 | F144: -6.1577328e-06 | G144: 0.000153098956 | H144: -3.17308176e-05 | J144: -0.0001555170353 | K144: -0.002701449783 | L144: 0.00711378427 | M144: 0.1526474783 | N144: 0.0007342813565
A145: =IF('DF raw data'!M150="","",'DF raw data'!M150) -> -258.5 | B145: =IF('DF raw data'!N150="","",'DF raw data'!N150) -> -1.64588e-05 | C145: =IF('DF raw data'!O150="","",'DF raw data'!O150) -> 0.000158059 | D145: =IF('DF raw data'!P150="","",'DF raw data'!P150) -> -1.35972e-05 | F145: -1.65246352e-05 | G145: 0.000158691236 | H145: -1.36515888e-05 | J145: -0.0001637793529 | K145: -0.002783339459 | L145: 0.007193129888 | M145: 0.1562440432 | N145: 0.0007601653272
A146: =IF('DF raw data'!M151="","",'DF raw data'!M151) -> -258 | B146: =IF('DF raw data'!N151="","",'DF raw data'!N151) -> -7.93053e-06 | C146: =IF('DF raw data'!O151="","",'DF raw data'!O151) -> 0.000164257 | D146: =IF('DF raw data'!P151="","",'DF raw data'!P151) -> -2.65101e-05 | F146: -7.96225212e-06 | G146: 0.000164914028 | H146: -2.66161404e-05 | J146: -0.0001677604789 | K146: -0.002867219698 | L146: 0.007275586902 | M146: 0.1598818367 | N146: 0.0007866464813
A147: =IF('DF raw data'!M152="","",'DF raw data'!M152) -> -257.5 | B147: =IF('DF raw data'!N152="","",'DF raw data'!N152) -> -5.47021e-08 | C147: =IF('DF raw data'!O152="","",'DF raw data'!O152) -> 0.000154102 | D147: =IF('DF raw data'!P152="","",'DF raw data'!P152) -> -1.99177e-05 | F147: -5.49209084e-08 | G147: 0.000154718408 | H147: -1.99973708e-05 | J147: -0.0001677879394 | K147: -0.002951113668 | L147: 0.007352946106 | M147: 0.1635583097 | N147: 0.000813693466
A148: =IF('DF raw data'!M153="","",'DF raw data'!M153) -> -257 | B148: =IF('DF raw data'!N153="","",'DF raw data'!N153) -> -8.18661e-06 | C148: =IF('DF raw data'!O153="","",'DF raw data'!O153) -> 0.000149333 | D148: =IF('DF raw data'!P153="","",'DF raw data'!P153) -> -2.67958e-05 | F148: -8.21935644e-06 | G148: 0.000149930332 | H148: -2.69029832e-05 | J148: -0.0001718976176 | K148: -0.003037062477 | L148: 0.007427911272 | M148: 0.1672722654 | N148: 0.0008412951733
